Workbook

Sheet AER Final Decision
B1: AER Final Decision for Jemena - Public lighting prices
D4: $2026-27 | F4: $2026-27 | H4: Comparison against RP | J4: Comparison against current 2025-26 prices
B5: Light type | C5: Grouping | D5: Jemena Initial Proposal | E5: AER Draft decision prices | F5: Revised proposal (as per IR80) | G5: AER Final decision prices | H5: Difference ($) - AER Final decision vs Revised Proposal | I5: Difference (%) | J5: 2025/26 Actual price ($Nom) | K5: Difference (%) ($Nom)
B6: Mercury Vapour 80 watt | C6: Legacy lights | D6: 65.73823761 | E6: 63.59858545 | F6: 84.9844476 | G6: 84.56473784 | H6: -0.4197097587 | I6: -0.004938665492 | J6: 64.78 | K6: 0.305414292
B7: Sodium High Pressure 150 watt | C7: Legacy lights | D7: 142.5916482 | E7: 137.9505665 | F7: 184.3341268 | G7: 183.4237622 | H7: -0.9103645908 | I7: -0.004938665492 | J7: 140.51 | K7: 0.305414292
B8: Sodium High Pressure 250 watt | C8: Legacy lights | D8: 144.6408596 | E8: 139.9330801 | F8: 186.9841512 | G8: 186.060699 | H8: -0.9234521751 | I8: -0.004938665492 | J8: 142.53 | K8: 0.305414292
B9: Fluorescent 20 watt | C9: Legacy lights | D9: 82.15728783 | E9: 79.48322743 | F9: 106.2108811 | G9: 105.6863411 | H9: -0.5245400133 | I9: -0.004938665492 | J9: 80.96 | K9: 0.305414292
B10: Fluorescent 40 watt | C10: Legacy lights | D10: 82.15728783 | E10: 79.48322743 | F10: 106.2108811 | G10: 105.6863411 | H10: -0.5245400133 | I10: -0.004938665492 | J10: 80.96 | K10: 0.305414292
B11: Fluorescent 80 watt | C11: Legacy lights | D11: 82.15728783 | E11: 79.48322743 | F11: 106.2108811 | G11: 105.6863411 | H11: -0.5245400133 | I11: -0.004938665492 | J11: 80.96 | K11: 0.305414292
B12: Mercury Vapour 50 watt | C12: Legacy lights | D12: 82.15728783 | E12: 79.48322743 | F12: 106.2108811 | G12: 105.6863411 | H12: -0.5245400133 | I12: -0.004938665492 | J12: 80.96 | K12: 0.305414292
B13: Mercury Vapour 125 watt | C13: Legacy lights | D13: 96.62218158 | E13: 93.47731693 | F13: 124.9053605 | G13: 124.2884947 | H13: -0.6168657938 | I13: -0.004938665492 | J13: 95.21 | K13: 0.305414292
B14: Mercury Vapour 250 watt | C14: Legacy lights | D14: 138.8656123 | E14: 134.3458059 | F14: 179.5194784 | G14: 178.6328917 | H14: -0.886586653 | I14: -0.004938665492 | J14: 136.84 | K14: 0.305414292
B15: Mercury Vapour 400 watt | C15: Legacy lights | D15: 156.2121283 | E15: 151.1277265 | F15: 201.9397348 | G15: 200.942422 | H15: -0.9973127995 | I15: -0.004938665492 | J15: 153.93 | K15: 0.305414292
B16: Sodium Low Pressure 90 watt | C16: Legacy lights | D16: 151.1413296 | E16: 146.2219724 | F16: 195.3933872 | G16: 194.4284047 | H16: -0.9649825789 | I16: -0.004938665492 | J16: 148.94 | K16: 0.305414292
B17: Sodium High Pressure 100 watt | C17: Legacy lights | D17: 195.3337288 | E17: 188.9759947 | F17: 252.5132213 | G17: 251.2661429 | H17: -1.247078332 | I17: -0.004938665492 | J17: 192.48 | K17: 0.305414292
B18: Sodium High Pressure 400 watt | C18: Legacy lights | D18: 192.3801336 | E18: 186.1185333 | F18: 248.6956118 | G18: 247.4673873 | H18: -1.228224436 | I18: -0.004938665492 | J18: 189.57 | K18: 0.305414292
B19: Metal Halide 70 watt | C19: Legacy lights | D19: 168.9363108 | E19: 163.4377615 | F19: 218.3908767 | G19: 217.3123172 | H19: -1.078559486 | I19: -0.004938665492 | J19: 166.47 | K19: 0.305414292
B20: Metal Halide 150 watt | C20: Legacy lights | D20: 316.5459793 | E20: 306.2430215 | F20: 409.2188753 | G20: 407.1978801 | H20: -2.020995138 | I20: -0.004938665492 | J20: 311.93 | K20: 0.305414292
B21: Metal Halide 250 watt | C21: Legacy lights | D21: 310.990832 | E21: 300.8686835 | F21: 402.0297 | G21: 400.0442098 | H21: -1.985490206 | I21: -0.004938665492 | J21: 306.45 | K21: 0.305414292
B22: Incandescent 100 watt | C22: Legacy lights | D22: 102.5466877 | E22: 99.2089919 | F22: 132.5668174 | G22: 131.9121142 | H22: -0.6547031663 | I22: -0.004938665492 | J22: 101.05 | K22: 0.305414292
B23: Incandescent 150 watt | C23: Legacy lights | D23: 128.1781899 | E23: 124.0062384 | F23: 165.705242 | G23: 164.8868792 | H23: -0.8183627604 | I23: -0.004938665492 | J23: 126.31 | K23: 0.305414292
B24: T5 2X14W | C24: Energy efficient lights | D24: 115.7273212 | E24: 99.41652053 | F24: 105.8566699 | G24: 105.3338792 | H24: -0.5227906827 | I24: -0.004938665492 | J24: 80.69 | K24: 0.305414292
B25: T5 (2x24W) | C25: Energy efficient lights | D25: 130.3319352 | E25: 111.962736 | F25: 119.2248626 | G25: 118.6360509 | H25: -0.5888117146 | I25: -0.004938665492 | J25: 90.88 | K25: 0.305414292
B26: LED 18W (incl. other standard Category P LED variants) | C26: Energy efficient lights | D26: 56.7091633 | E26: 48.71647972 | F26: 51.87226085 | G26: 51.61608111 | H26: -0.2561797446 | I26: -0.004938665492 | J26: 39.54 | K26: 0.305414292
B27: Compact Fluoro 32W | C27: Energy efficient lights | D27: 109.7295331 | E27: 94.26407065 | F27: 100.3729559 | G27: 99.87724748 | H27: -0.4957084538 | I27: -0.004938665492 | J27: 76.51 | K27: 0.305414292
B28: Compact Fluoro 42W | C28: Energy efficient lights | D28: 109.7295331 | E28: 94.26407065 | F28: 100.3729559 | G28: 99.87724748 | H28: -0.4957084538 | I28: -0.004938665492 | J28: 76.51 | K28: 0.305414292
B29: LED 70W | C29: Energy efficient lights | D29: 104.3262674 | E29: 89.62235014 | F29: 95.42711822 | G29: 94.9558356 | H29: -0.4712826157 | I29: -0.004938665492 | J29: 72.74 | K29: 0.305414292
B30: LED 118W, 155W, 162W | C30: Energy efficient lights | D30: 105.8130277 | E30: 90.899564 | F30: 96.79148724 | G30: 96.31346647 | H30: -0.478020778 | I30: -0.004938665492 | J30: 73.78 | K30: 0.305414292
B31: LED 275W | C31: Energy efficient lights | D31: 118.9350326 | E31: 102.1721317 | F31: 108.7953109 | G31: 108.2580072 | H31: -0.5373036475 | I31: -0.004938665492 | J31: 82.93 | K31: 0.305414292
B32: LED 18W (incl. other standard Category P LED variants) - PE | C32: Energy efficient lights (not smart) | F32: 44.09142172 | G32: 43.87366894 | H32: -0.217752783 | I32: -0.004938665492 | J32: 33.609 | K32: 0.305414292
B33: LED 18W (incl. other standard Category P LED variants) - PE - Self Funded | C33: Self-funded energy efficient lights (not smart) | F33: 36.3105826 | G33: 36.13125678 | H33: -0.1793258213 | I33: -0.004938665492 | J33: N/A | K33: N/A
B34: T5 2X14W - Self Funded | C34: Self-funded energy efficient lights | D34: 72.63546443 | E34: 61.7684053 | F34: 79.39250243 | G34: 79.00040942 | H34: -0.3920930121 | I34: -0.004938665492 | J34: N/A | K34: N/A
B35: T5 (2x24W) - Self Funded | C35: Self-funded energy efficient lights | D35: 81.80195087 | E35: 69.56348521 | F35: 89.41864693 | G35: 88.97703815 | H35: -0.4416087859 | I35: -0.004938665492 | J35: N/A | K35: N/A
B36: LED 18W (incl. other standard Category P LED variants) - Self Funded | C36: Self-funded energy efficient lights | D36: 35.59311984 | E36: 30.26800021 | F36: 38.90419564 | G36: 38.71206083 | H36: -0.1921348085 | I36: -0.004938665492 | J36: N/A | K36: N/A
B37: Compact Fluoro 32W - Self Funded | C37: Self-funded energy efficient lights | D37: 68.87099361 | E37: 58.56714045 | F37: 75.27971695 | G37: 74.90793561 | H37: -0.3717813403 | I37: -0.004938665492 | J37: N/A | K37: N/A
B38: Compact Fluoro 42W - Self Funded | C38: Self-funded energy efficient lights | D38: 68.87099361 | E38: 58.56714045 | F38: 75.27971695 | G38: 74.90793561 | H38: -0.3717813403 | I38: -0.004938665492 | J38: N/A | K38: N/A
B39: LED 70W - Self Funded | C39: Self-funded energy efficient lights | D39: 65.47967069 | E39: 55.68319649 | F39: 71.57033866 | G39: 71.2168767 | H39: -0.3534619618 | I39: -0.004938665492 | J39: N/A | K39: N/A
B40: LED 118W, 155W, 162W - Self Funded | C40: Self-funded energy efficient lights | D40: 66.41282568 | E40: 56.4767413 | F40: 72.59361543 | G40: 72.23509985 | H40: -0.3585155835 | I40: -0.004938665492 | J40: N/A | K40: N/A
B41: LED 275W - Self Funded | C41: Self-funded energy efficient lights | D41: 74.6487626 | E41: 63.48049206 | F41: 81.59648316 | G41: 81.19350543 | H41: -0.4029777357 | I41: -0.004938665492 | J41: N/A | K41: N/A

Sheet Final Decision changes
B1: AER Draft Decision change log
B3: changes in the spreadsheet are also highlighted in orange
B6: Tab reference | C6: Cells | D6: Description of change
B7: PTRM input | C7: J7:J9, L7:L9 | D7: Updated as per Outputs tab in inputs model
B8: PTRM input | C8: G61:K110 | D8: updated forecast capex
B9: PTRM input | C9: G331:K331 | D9: Updated opex as per inputs model
B10: PTRM input | C10: G596 | D10: corrected forecast volume for LED 275W
B11: PTRM input | C11: row 373 | D11: Updated inflation as per RBA forecast
B12: PTRM input | C12: G383 | D12: updated return on equity to our draft decision
B13: PTRM input | C13: row 388 | D13: updated return on debt to our draft decision
B14: PTRM input | C14: G399 | D14: updated debt raising costs to our draft decision
B16: Supporting information | C16: H224:H249 | D16: Updated 2025-26 prices
B17: X factors | C17: G47 | D17: updated X factor for P_0
B20: Jemena revised proposal change log
B22: changes in the spreadsheet are also highlighted in blue
B24: Tab | C24: Cells | D24: Description of change
B25: PTRM input | C25: J7:J9 | D25: Updated opening RAB to incorporate actual net capex for 2024-25
B26: PTRM input | C26: L7:L9 | D26: Updated remaining lives to incorporate actual net capex for 2024-25
B27: PTRM input | C27: G12 | D27: Updated the asset class name to 'Smart lighting control devices'
B28: PTRM input | C28: G61:K110 | D28: Updated forecast capex
B29: PTRM input | C29: G331:K331 | D29: Updated opex as per inputs model
B30: Supporting information | C30: K214 | D30: Set scalar for self-funded lights to zero
B31: X factors | C31: G47 | D31: Updated X factor for P_0
B34: Jemena response to information request change log
B36: changes in the spreadsheet are also highlighted in green
B38: Tab | C38: Cells | D38: Description of change
B39: PTRM input | C39: Rows 558:559 | D39: New tariffs added and linked to the 'Supporting information' sheet
B40: PTRM input | C40: Rows 599:600 | D40: Volumes for new tariffs added
B41: PTRM input | C41: Rows 643:644 | D41: Functionality for new tariffs added to be consistant
B42: Supporting information | C42: J135:K144 | D42: Added allocator assumptions for two new tariff groups
B43: Supporting information | C43: Row 151:152 | D43: Added in forecast volumes for the new tariff groups
B44: Supporting information | C44: G157:K165, G168:K176, G179:K187 | D44: Amended the formulas to allow for the new tariff groups
B45: Supporting information | C45: Rows 189:209 | D45: Added allocation percentages for the new tariff groups
B46: Supporting information | C46: Row 231:232 | D46: Added in forecast costs for the new tariff groups
B47: Supporting information | C47: G233:K233 | D47: Updated the total to included the new tariff groups
B48: Supporting information | C48: Row 241:242 | D48: Added the amortised average cost per light for the new tariff groups
B49: Supporting information | C49: Rows 278:279 | D49: Added tariffs for the new tariff group
B50: X factors | C50: G47 | D50: Updated X factor for P_0
B53: AER Final Decision change log
B55: changes in the spreadsheet are also highlighted in green
B57: Tab | C57: Cells | D57: Description of change
B58: PTRM input | C58: G331:K331 | D58: Updated opex as per inputs model
B59: PTRM input | C59: row 373 | D59: Updated forecast inflation as per RBA forecast
B60: PTRM input | C60: G383 | D60: updated return on equity to our final decision
B61: PTRM input | C61: row 388 | D61: updated return on debt to our final decision
B62: PTRM input | C62: G399 | D62: updated debt raising costs to our final decision
B64: X factors | C64: G47 | D64: updated X factor for P_0

Sheet Intro
G2: Electricity Distribution Network Service Provider
H3: Post-Tax Revenue Model
K4: Version: | L4: 5
K5: Date: | L5: April 2021
B8: Introduction | J8: Electricity Distribution Model
C13: This model illustrates the basic elements of the AER's building block calculation and associated price and revenue constraints for distribution businesses.
C14: The model is intended to produce X factors that are applicable to revenue caps, price caps and revenue yield forms of control.
C15: Building block revenues and cash flows are modelled in nominal terms unless specified otherwise.
C17: INSTRUCTIONS FOR USE
C18: The full PTRM handbook is available on the AER website at https://www.aer.gov.au/node/74034
C20: 1. Prior to the commencement of the regulatory control period
C22: 1a. Fill out input cells on the 'DMS Input' sheet. These input cells are highlighted blue.
C23: This provides information on the service provider submitting the PTRM and the context for the PTRM preparation.
C24: This information also controls the automatic import of the PTRM into the AER's Data Management System (DMS).
C26: 1b. Fill out input cells on the 'PTRM Input' sheet. These input cells are highlighted blue.
C27: This provides the data for the PTRM calculations.
C28: In general, input expenditure data should be valued in real dollar terms of the year indicated, as at the end of that year.
C29: Units and basis for entry are specified where required for each data table.
C30: Review any cautions (which are generated based on data entered) before continuing.
C32: 1c. Determine the expected revenue (smoothed revenue) using the 'X factors' sheet
C33: Clause 6.2.6 requires that the form of control applicable to standard control services be of a CPI–X form.
C34: This sheet provides for the calculation of X factors under three basic forms of control, namely a weighted average price cap, revenue cap and revenue yield.
C35: The X factor values may differ for each year of the regulatory control period but must be set such that the NPV of annual expected revenues (smoothed) is equal to the NPV of the annual revenue requirements (unsmoothed) for that period.
C36: This sheet provides input cells for each X factor and contains macro buttons which should be used to goal seek an X factor value for a specific year to equate the NPVs of smoothed and unsmoothed revenues.
C38: 2. Within the regulatory control period when updating the annual return on debt
C40: 2a. Update input cells on the 'DMS Input' sheet. These input cells are highlighted blue.
C41: Check that the contact details are still current and describe the new amendment.
C43: 2b. Update input cells on the 'PTRM Input' sheet. These input cells are highlighted blue.
C44: In general, the only row that should be changed is the Trailing Average Portfolio Return on Debt (row 379).
C45: The basis for updating the annual return on debt will be in accordance with the relevant regulatory decision prior to the commencement of the period.
C47: 2c. Determine the expected revenue (smoothed revenue) using the 'X factors' sheet
C48: Indicate the year of the annual debt update (cell F21) to ensure the correct content-sensitive cautions are displayed.
C49: Enter new X factors for this year (and potentially later years within the regulatory control period) in order to equate the NPVs of smoothed and unsmoothed revenues.
C50: The macro buttons should be used to goal seek the X factor for these specific years.
C51: Note that X factors for earlier years within the regulatory control period should not be changed.
C54: VERSION RECORD
C56: Version | D56: Date | F56: Description
C57: 1 | D57: June 2008 | F57: Initial model, based on transmission PTRM
C59: 2 | D59: June 2009 | F59: Various non-consequential errors corrected
C61: 3 | D61: January 2015 | F61: Allowed time-varying return on debt, and revenue revisions for annual return on debt update
F62: Explicitly recognised revenue adjustments in building block calculations
F63: Incorporated equity raising cost calculations into automatic smoothing process
F64: Revised and expanded summary tables and reporting
F65: Standardised many elements with transmission PTRM
F66: Enabled automatic import into AER DMS
C68: 4 | D68: April 2019 | F68: Expanded PTRM to accommodate 50 asset classes
F69: Allowed for immediate expensing of capex for tax purposes
F70: Applied the diminishing value method for depreciation of new capex added to the TAB for asset classes 1 to 46
F71: Allowed for option of using year-by-year tracking method for straight-line depreciation of opening RAB and TAB
C73: 5 | D73: April 2021 | F73: Applied inflation review final position for calculation of expected inflation.

Sheet DMS input
B2: =C16&" - DMS Input"&" - DNSP PTRM - version "&Intro!$L$4 -> Jemena Electricity - DMS Input - DNSP PTRM - version 5 | G2: Input cells are in blue
B6: This sheet requests information that allows the AER to automatically import the PTRM into our data management system (DMS).
B7: This sheet's metadata relates to the business and context for the PTRM (rather than the PTRM itself).
B8: Some of this data is automatically populated based on data entered on the PTRM input sheet. Only change blue input cells.
B9: Some rows are hidden. To facilitate the automatic import, please do not delete or add rows on this sheet.
B10: Throughout the rest of the workbook, defined name ranges are used to identify data that is imported into the DMS.
B12: Entity details
B14: Trading name | C14: Jemena Electricity
B15: ACN / ABN
B16: Business short name | C16: Jemena Electricity
B20: Regulatory process details
B22: Forthcoming regulatory control period | C22: ='PTRM input'!G60 -> 2026-27 | D22: =IF(COUNTA($C22:C22)>='PTRM input'!$R$7,"",'PTRM input'!H60) -> 2027-28 | E22: =IF(COUNTA($C22:D22)>='PTRM input'!$R$7,"",'PTRM input'!I60) -> 2028-29 | F22: =IF(COUNTA($C22:E22)>='PTRM input'!$R$7,"",'PTRM input'!J60) -> 2029-30 | G22: =IF(COUNTA($C22:F22)>='PTRM input'!$R$7,"",'PTRM input'!K60) -> 2030-31 | H22: =IF(COUNTA($C22:G22)>='PTRM input'!$R$7,"",'PTRM input'!L60) ->  | I22: =IF(COUNTA($C22:H22)>='PTRM input'!$R$7,"",'PTRM input'!M60) ->  | J22: =IF(COUNTA($C22:I22)>='PTRM input'!$R$7,"",'PTRM input'!N60) ->  | K22: =IF(COUNTA($C22:J22)>='PTRM input'!$R$7,"",'PTRM input'!O60) ->  | L22: =IF(COUNTA($C22:K22)>='PTRM input'!$R$7,"",'PTRM input'!P60) -> 
B23: Year prior to the FRCP | C23: ='PTRM input'!F525 -> 2025-26
B25: Current regulatory control period
B28: Previous regulatory control period
B31: Sector | C31: Electricity
B32: Segment | C32: Distribution
B33: Source | C33: Regulatory proposal
B34: Regulatory Year Ending | C34: =LEFT('X factors'!$F$21,2)&RIGHT('X factors'!$F$21,2) -> 2027
B35: Reporting Period Type | C35: =IF(LEN(C22)=4,"Calendar",IF(LEN(C22)=7,"Financial","Other")) -> Financial
B36: RIN or Model Type | C36: PTRM
B37: Security Classification | C37: Public
B38: Data quality (Actual, estimate, consolidated) | C38: Consolidated
B39: Model response - version no.
B40: Amended model submission - reason
B41: Model template - version no. | C41: 5
B42: $ real | C42: ='PTRM input'!F525 -> 2025-26
B43: Form of control | C43: Weighted average price cap

Sheet PTRM input
E2: Jemena Electricity - PTRM input - DNSP PTRM - version 5 | I2: Input cells are in blue
E5: Opening Regulatory Asset Base and Opening Tax Asset Base for 2026-27 ($m Nominal)
G6: Asset Class Name | J6: Opening Asset Value | K6: Assets Under Construction | L6: Remaining Life | M6: Standard Life | N6: Opening Tax Value | O6: Tax Remaining Life | P6: Tax Standard Life | Q6: Base Regulatory Year | R6: Length of Regulatory Control Period (Year)
E7: Asset Class 1 | G7: Poles and brackets | J7: 10.00935242 | L7: 28.23905332 | M7: 35 | N7: 10.00935242 | O7: 28.23905332 | P7: 35 | Q7: 2026-27 | R7: 5
E8: Asset Class 2 | G8: Existing lights - luminaires | J8: 2.794580341 | L8: 12.65001146 | M8: 20 | N8: 2.794580341 | O8: 12.65001146 | P8: 20
E9: Asset Class 3 | G9: Energy efficient lights - luminaires & ballasts | J9: 8.947704705 | L9: 16.5821542 | M9: 20 | N9: 8.947704705 | O9: 16.5821542 | P9: 20
E10: Asset Class 4 | G10: Replaced self-funded energy efficient lights | J10: 0 | L10: n/a | M10: 20 | N10: 0 | O10: n/a | P10: 20
E11: Asset Class 5 | G11: Smart lighting control | J11: 0 | L11: n/a | M11: 5 | N11: 0 | O11: n/a | P11: 5
E12: Asset Class 6 | G12: Smart lighting control devices | J12: 0 | L12: n/a | M12: 20 | N12: 0 | O12: n/a | P12: 20
E13: Asset Class 7
E14: Asset Class 8
E15: Asset Class 9
E16: Asset Class 10
E17: Asset Class 11
E18: Asset Class 12
E19: Asset Class 13
E20: Asset Class 14
E21: Asset Class 15
E22: Asset Class 16
E23: Asset Class 17
E24: Asset Class 18
E25: Asset Class 19
E26: Asset Class 20
E27: Asset Class 21
E28: Asset Class 22
E29: Asset Class 23
E30: Asset Class 24
E31: Asset Class 25
E32: Asset Class 26
E33: Asset Class 27
E34: Asset Class 28
E35: Asset Class 29
E36: Asset Class 30
E37: Asset Class 31
E38: Asset Class 32
E39: Asset Class 33
E40: Asset Class 34
E41: Asset Class 35
E42: Asset Class 36
E43: Asset Class 37
E44: Asset Class 38
E45: Asset Class 39
E46: Asset Class 40
E47: Asset Class 41
E48: Asset Class 42
E49: Asset Class 43
E50: Asset Class 44
E51: Asset Class 45
E52: Asset Class 46
E53: Asset Class 47 | G53: Spare straight-line tax asset class 1
E54: Asset Class 48 | G54: Buildings - capital works
E55: Asset Class 49 | G55: in-house software | J55: 0 | L55: n/a | M55: 5 | N55: 0 | O55: n/a | P55: 5
E56: Asset Class 50 | G56: Equity raising costs | J56: 0 | L56: n/a | M56: 21.95935149
E57: Total | J57: 21.75163747 | K57: 0 | N57: 21.75163747
E59: Forecast Capital Expenditure – As Incurred ($m Real 2025-26)
E60: Year | G60: 2026-27 | H60: 2027-28 | I60: 2028-29 | J60: 2029-30 | K60: 2030-31 | L60: 2031-32 | M60: 2032-33 | N60: 2033-34 | O60: 2034-35 | P60: 2035-36
E61: Poles and brackets | G61: 1.629027033 | H61: 1.615768157 | I61: 1.615768157 | J61: 1.615768157 | K61: 1.615768157
E62: Existing lights - luminaires | G62: 0 | H62: 0 | I62: 0 | J62: 0 | K62: 0
E63: Energy efficient lights - luminaires & ballasts | G63: 6.400681729 | H63: 11.66649368 | I63: 13.35538756 | J63: 8.177006042 | K63: 2.977243062
E64: Replaced self-funded energy efficient lights | G64: 0 | H64: 0 | I64: 0 | J64: 0 | K64: 0
E67: 0
E68: 0
E69: 0
E70: 0
E71: 0
E72: 0
E73: 0
E74: 0
E75: 0
E76: 0
E77: 0
E78: 0
E79: 0
E80: 0
E81: 0
E82: 0
E83: 0
E84: 0
E85: 0
E86: 0
E87: 0
E88: 0
E89: 0
E90: 0
E91: 0
E92: 0
E93: 0
E94: 0
E95: 0
E96: 0
E97: 0
E98: 0
E99: 0
E100: 0
E101: 0
E102: 0
E103: 0
E104: 0
E105: 0
E106: 0
E107: Spare straight-line tax asset class 1
E108: Buildings - capital works
E109: in-house software | G109: 0.1065749235 | H109: 0 | I109: 0 | J109: 0 | K109: 0
E110: Equity raising costs | G110: 0.3618769007
E111: Total | G111: 10.49002311 | H111: 14.70245918 | I111: 16.43486234 | J111: 10.80541162 | K111: 5.222756687 | L111: 0 | M111: 0 | N111: 0 | O111: 0 | P111: 0
Q112: 57.65551293
E113: Forecast Immediate Expensing of Capital Expenditure - As Incurred ($m Real 2025-26)
E114: Year | G114: 2026-27 | H114: 2027-28 | I114: 2028-29 | J114: 2029-30 | K114: 2030-31 | L114: 2031-32 | M114: 2032-33 | N114: 2033-34 | O114: 2034-35 | P114: 2035-36
E115: Poles and brackets | G115: 0 | H115: 0 | I115: 0 | J115: 0 | K115: 0
E116: Existing lights - luminaires | G116: 0 | H116: 0 | I116: 0 | J116: 0 | K116: 0
E117: Energy efficient lights - luminaires & ballasts | G117: 0 | H117: 0 | I117: 0 | J117: 0 | K117: 0
E118: Replaced self-funded energy efficient lights | G118: 0 | H118: 0 | I118: 0 | J118: 0 | K118: 0
E119: Smart lighting control | G119: 0 | H119: 0 | I119: 0 | J119: 0 | K119: 0
E120: Smart lighting control devices | G120: 0 | H120: 0 | I120: 0 | J120: 0 | K120: 0
E121: 0
E122: 0
E123: 0
E124: 0
E125: 0
E126: 0
E127: 0
E128: 0
E129: 0
E130: 0
E131: 0
E132: 0
E133: 0
E134: 0
E135: 0
E136: 0
E137: 0
E138: 0
E139: 0
E140: 0
E141: 0
E142: 0
E143: 0
E144: 0
E145: 0
E146: 0
E147: 0
E148: 0
E149: 0
E150: 0
E151: 0
E152: 0
E153: 0
E154: 0
E155: 0
E156: 0
E157: 0
E158: 0
E159: 0
E160: 0
E161: Spare straight-line tax asset class 1
E162: Buildings - capital works
E163: in-house software | G163: 0 | H163: 0 | I163: 0 | J163: 0 | K163: 0
E164: Equity raising costs
E165: Total | G165: 0 | H165: 0 | I165: 0 | J165: 0 | K165: 0 | L165: 0 | M165: 0 | N165: 0 | O165: 0 | P165: 0
Q166: 0
E167: Forecast Asset Disposal – As Incurred ($m Real 2025-26)
E168: Year | G168: 2026-27 | H168: 2027-28 | I168: 2028-29 | J168: 2029-30 | K168: 2030-31 | L168: 2031-32 | M168: 2032-33 | N168: 2033-34 | O168: 2034-35 | P168: 2035-36
E169: Poles and brackets | G169: 0 | H169: 0 | I169: 0 | J169: 0 | K169: 0
E170: Existing lights - luminaires | G170: 0.2765207425 | H170: 0.5510448294 | I170: 0.8344920727 | J170: 0.4766552995 | K170: 4.918314935e-06
E171: Energy efficient lights - luminaires & ballasts | G171: 0 | H171: 0 | I171: 0 | J171: 0 | K171: 0
E172: Replaced self-funded energy efficient lights | G172: 0 | H172: 0 | I172: 0 | J172: 0 | K172: 0
E173: Smart lighting control | G173: 0 | H173: 0 | I173: 0 | J173: 0 | K173: 0
E174: Smart lighting control devices | G174: 0 | H174: 0 | I174: 0 | J174: 0 | K174: 0
E175: 0
E176: 0
E177: 0
E178: 0
E179: 0
E180: 0
E181: 0
E182: 0
E183: 0
E184: 0
E185: 0
E186: 0
E187: 0
E188: 0
E189: 0
E190: 0
E191: 0
E192: 0
E193: 0
E194: 0
E195: 0
E196: 0
E197: 0
E198: 0
E199: 0
E200: 0
E201: 0
E202: 0
E203: 0
E204: 0
E205: 0
E206: 0
... 409 more rows

Sheet Supporting information
B2: Jemena Electricity - Cost of Capital Parameters - DNSP PTRM - version 5
B4: Year | F4: 2025-26 | G4: 2026-27 | H4: 2027-28 | I4: 2028-29 | J4: 2029-30 | K4: 2030-31
B5: 1. Transfer of Written Down Value ($Nominal) | C5: ◄ This section determines the written down value of legacy lights to be transferred from the existing lights asset class into the energy efficient asset classes upon replacement
B7: Existing lights - luminaires | G7: 2026-27 | H7: 2027-28 | I7: 2028-29 | J7: 2029-30 | K7: 2030-31
B8: Regulatory Asset Base
B9: Opening RAB | C9: nominal | G9: 2.794580341 | H9: 2.352455768 | I9: 1.616429561 | J9: 0.5851757942 | K9: 3.959665402e-05
B10: Inflation on Opening RAB | C10: nominal | G10: 0.07321518829 | H10: 0.0616319701 | I10: 0.04234882532 | J10: 0.01533101602 | K10: 1.037392426e-06
B11: Nominal Asset Disposals | C11: nominal | G11: -0.2886367624 | H11: -0.5904405491 | I11: -0.9178489209 | J11: -0.5382386025 | K11: -5.70358791e-06
B12: Nominal Straight-line Depreciation | C12: nominal | G12: -0.2267029985 | H12: -0.2072176278 | I12: -0.1557536715 | J12: -0.0622286111 | K12: -4.6975714e-06 | L12: ◄ Calculated by dividing the opening RAB plus inflation less disposals by the remaining life; this ensures that the RAB value is zero if all lights are replaced in the year
B13: Closing RAB | C13: nominal | G13: 2.352455768 | H13: 1.616429561 | I13: 0.5851757942 | J13: 3.959665402e-05 | K13: 3.023288714e-05
B15: Remaining life (opening RAB) | G15: 12.65001146 | H15: 11.65001146 | I15: 10.65001146 | J15: 9.65001146 | K15: 8.65001146
B17: Population (opening balance) | G17: 24681.88222 | H17: 21984.47632 | I17: 16102.60488 | J17: 6269.261248 | K17: 0.4611774525
B19: Disposal value per light ($Nominal) | C19: nominal | G19: 105.1993351 | H19: 98.65851436 | I19: 91.70980088 | J19: 84.3230568 | K19: 76.47042841 | L19: ◄ These values are converted from year end to middle of year dollar terms
B20: Disposal value per light ($Real) | C20: Real 2025-26 | G20: 102.5135826 | H20: 93.68528965 | I20: 84.86351171 | J20: 76.03613037 | K20: 67.19479052
B22: Replaced lights
B23: JEN-funded | G23: 2697.4059 | H23: 5881.871438 | I23: 9833.343635 | J23: 6268.800071 | K23: 0.07319488456
B24: Self-funded | G24: 0 | H24: 0 | I24: 0 | J24: 0 | K24: 0
B25: Total | G25: 2697.4059 | H25: 5881.871438 | I25: 9833.343635 | J25: 6268.800071 | K25: 0.07319488456
B27: Estimated written down value ($m)
B28: JEN-funded | C28: Real 2025-26 | G28: 0.2765207425 | H28: 0.5510448294 | I28: 0.8344920727 | J28: 0.4766552995 | K28: 4.918314935e-06 | L28: ◄ These amounts are used to determine the disposal value for existing lights and the notional new capex for the energy efficient lights
B29: Self-funded | C29: Real 2025-26 | G29: 0 | H29: 0 | I29: 0 | J29: 0 | K29: 0
B32: 2. Forecast Closing RAB by Asset Class ($m Nominal) | C32: ◄ This section disaggregates the RAB roll-forward by asset class.
B34: Opening RAB | G34: 2026-27 | H34: 2027-28 | I34: 2028-29 | J34: 2029-30 | K34: 2030-31
B35: Poles and brackets | C35: nominal | G35: 10.00935242 | H35: 11.60825481 | I35: 13.22054097 | J35: 14.85910309 | K35: 16.52313907
B36: Existing lights - luminaires | C36: nominal | G36: 2.794580341 | H36: 2.352455768 | I36: 1.616429561 | J36: 0.5851757942 | K36: 3.959665402e-05
B37: Energy efficient lights - luminaires & ballasts | C37: nominal | G37: 8.947704705 | H37: 15.30952386 | I37: 27.30013023 | J37: 41.12849107 | K37: 49.0681455
B38: Replaced self-funded energy efficient lights | C38: nominal | G38: 0 | H38: 0 | I38: 0 | J38: 0 | K38: 0
B39: Smart lighting control | C39: nominal | G39: 0 | H39: 0.8152202594 | I39: 0.6692625668 | J39: 0.5150974287 | K39: 0.3523949748
B40: Smart lighting control devices | C40: nominal | G40: 0 | H40: 1.263917617 | I40: 2.753910608 | J40: 4.291345023 | K40: 5.31621853
B41: in-house software | C41: nominal | G41: 0 | H41: 0.1112446054 | I41: 0.09132728155 | J41: 0.07028997321 | K41: 0.04808766644
B42: Equity raising costs | C42: nominal | G42: 0 | H42: 0.377732882 | I42: 0.369976983 | J42: 0.3615554195 | K42: 0.3524386356
B43: Total | C43: nominal | G43: 21.75163747 | H43: 31.83834981 | I43: 46.0215782 | J43: 61.8110578 | K43: 71.66046398
B45: Inflation on Opening RAB
B46: Poles and brackets | C46: nominal | G46: 0.2622349451 | H46: 0.3041245762 | I46: 0.3463648486 | J46: 0.3892935245 | K46: 0.4328895902
B47: Existing lights - luminaires | C47: nominal | G47: 0.07321518829 | H47: 0.0616319701 | I47: 0.04234882532 | J47: 0.01533101602 | K47: 1.037392426e-06
B48: Energy efficient lights - luminaires & ballasts | C48: nominal | G48: 0.234420845 | H48: 0.4010940949 | I48: 0.7152358965 | J48: 1.077525013 | K48: 1.285535957
B49: Replaced self-funded energy efficient lights | C49: nominal | G49: 0 | H49: 0 | I49: 0 | J49: 0 | K49: 0
B50: Smart lighting control | C50: nominal | G50: 0 | H50: 0.02135794914 | I50: 0.01753400471 | J50: 0.01349503347 | K50: 0.009232393163
B51: Smart lighting control devices | C51: nominal | G51: 0 | H51: 0.03311336768 | I51: 0.07214968228 | J51: 0.1124289144 | K51: 0.1392795673
B52: in-house software | C52: nominal | G52: 0 | H52: 0.002914496539 | I52: 0.002392682729 | J52: 0.001841526454 | K52: 0.001259848394
B53: Equity raising costs | C53: nominal | G53: 0 | H53: 0.009896220795 | I53: 0.009693024058 | J53: 0.009472387583 | K53: 0.009233537035
B54: Total | C54: nominal | G54: 0.5698709783 | H54: 0.8341326754 | I54: 1.205718964 | J54: 1.619387416 | K54: 1.87743193
B56: Nominal Net Capex
B57: Poles and brackets | C57: nominal | G57: 1.700404405 | H57: 1.731283894 | I57: 1.777166145 | J57: 1.824523499 | K57: 1.873746568
B58: Existing lights - luminaires | C58: nominal | G58: -0.2886367624 | H58: -0.5904405491 | I58: -0.9178489209 | J58: -0.5382386025 | K58: -5.70358791e-06
B59: Energy efficient lights - luminaires & ballasts | C59: nominal | G59: 6.681133699 | H59: 12.5005636 | I59: 14.68944819 | J59: 9.233465587 | K59: 3.452598656
B60: Replaced self-funded energy efficient lights | C60: nominal | G60: 0 | H60: 0 | I60: 0 | J60: 0 | K60: 0
B61: Smart lighting control | C61: nominal | G61: 0.8152202594 | H61: 0 | I61: 0 | J61: 0 | K61: 0
B62: Smart lighting control devices | C62: nominal | G62: 1.263917617 | H62: 1.521731172 | I62: 1.609915278 | J62: 1.143468983 | K62: 0.7302925247
B63: in-house software | C63: nominal | G63: 0.1112446054 | H63: 0 | I63: 0 | J63: 0 | K63: 0
B64: Equity raising costs | C64: nominal | G64: 0.377732882 | H64: 0 | I64: 0 | J64: 0 | K64: 0
B65: Total | C65: nominal | G65: 10.66101671 | H65: 15.16313812 | I65: 17.15868069 | J65: 11.66321947 | K65: 6.056632045
B67: Nominal Straight-line Depreciation
B68: Poles and brackets | C68: nominal | G68: -0.3637369585 | H68: -0.4231223084 | I68: -0.4849688803 | J68: -0.5497810364 | K68: -0.6176797219
B69: Existing lights - luminaires | C69: nominal | G69: -0.2267029985 | H69: -0.2072176278 | I69: -0.1557536715 | J69: -0.0622286111 | K69: -4.6975714e-06
B70: Energy efficient lights - luminaires & ballasts | C70: nominal | G70: -0.5537353856 | H70: -0.911051328 | I70: -1.576323243 | J70: -2.371336169 | K70: -2.907231441
B71: Replaced self-funded energy efficient lights | C71: nominal | G71: 0 | H71: 0 | I71: 0 | J71: 0 | K71: 0
B72: Smart lighting control | C72: nominal | G72: 0 | H72: -0.1673156417 | I72: -0.1716991429 | J72: -0.1761974874 | K72: -0.180813684
B73: Smart lighting control devices | C73: nominal | G73: 0 | H73: -0.06485154924 | I73: -0.1446305442 | J73: -0.2310243905 | K73: -0.2957483325
B74: in-house software | C74: nominal | G74: 0 | H74: -0.02283182039 | I74: -0.02342999107 | J74: -0.02404383322 | K74: -0.02467375742
B75: Equity raising costs | C75: nominal | G75: 0 | H75: -0.01765211978 | I75: -0.01811458753 | J75: -0.01858917146 | K75: -0.01907618902
B76: Total | C76: nominal | G76: -1.144175343 | H76: -1.814042395 | I76: -2.57492006 | J76: -3.433200699 | K76: -4.045227823
B78: Closing RAB
B79: Poles and brackets | C79: nominal | G79: 11.60825481 | H79: 13.22054097 | I79: 14.85910309 | J79: 16.52313907 | K79: 18.21209551
B80: Existing lights - luminaires | C80: nominal | G80: 2.352455768 | H80: 1.616429561 | I80: 0.5851757942 | J80: 3.959665402e-05 | K80: 3.023288714e-05
B81: Energy efficient lights - luminaires & ballasts | C81: nominal | G81: 15.30952386 | H81: 27.30013023 | I81: 41.12849107 | J81: 49.0681455 | K81: 50.89904867
B82: Replaced self-funded energy efficient lights | C82: nominal | G82: 0 | H82: 0 | I82: 0 | J82: 0 | K82: 0
B83: Smart lighting control | C83: nominal | G83: 0.8152202594 | H83: 0.6692625668 | I83: 0.5150974287 | J83: 0.3523949748 | K83: 0.180813684
B84: Smart lighting control devices | C84: nominal | G84: 1.263917617 | H84: 2.753910608 | I84: 4.291345023 | J84: 5.31621853 | K84: 5.89004229
B85: in-house software | C85: nominal | G85: 0.1112446054 | H85: 0.09132728155 | I85: 0.07028997321 | J85: 0.04808766644 | K85: 0.02467375742
B86: Equity raising costs | C86: nominal | G86: 0.377732882 | H86: 0.369976983 | I86: 0.3615554195 | J86: 0.3524386356 | K86: 0.3425959837
B87: Total | C87: nominal | G87: 31.83834981 | H87: 46.0215782 | I87: 61.8110578 | J87: 71.66046398 | K87: 75.54930013
B90: 3. Forecast Building Block Costs ($m Nominal) | C90: ◄ This section disaggregates the building blocks costs so that they can be used to determine the amortised cost by light grouping. The return on capital, return of captial, and net tax allowance are attributed to each asset class.
B92: Return on capital | G92: 2026-27 | H92: 2027-28 | I92: 2028-29 | J92: 2029-30 | K92: 2030-31
B93: Poles and brackets | C93: nominal | G93: 0.6179308552 | H93: 0.7242322625 | I93: 0.8331137712 | J93: 0.9501860288 | K93: 1.083315672
B94: Existing lights - luminaires | C94: nominal | G94: 0.1725243899 | H94: 0.1467683464 | I94: 0.1018619231 | J94: 0.03741988065 | K94: 2.596097248e-06
B95: Energy efficient lights - luminaires & ballasts | C95: nominal | G95: 0.5523896641 | H95: 0.9551522848 | I95: 1.720361859 | J95: 2.630018607 | K95: 3.217081863
B96: Replaced self-funded energy efficient lights | C96: nominal | G96: 0 | H96: 0 | I96: 0 | J96: 0 | K96: 0
B100: Equity raising costs | C100: nominal | G100: 0 | H100: 0.02356653469 | I100: 0.02331469795 | J100: 0.02312016454 | K100: 0.02310712848
B101: Total | C101: nominal | G101: 1.342844909 | H101: 1.986376117 | I101: 2.900124182 | J101: 3.952594124 | K101: 4.698314489
B103: Return of capital
B104: Poles and brackets | C104: nominal | G104: 0.1015020134 | H104: 0.1189977322 | I104: 0.1386040317 | J104: 0.1604875119 | K104: 0.1847901317
B105: Existing lights - luminaires | C105: nominal | G105: 0.1534878102 | H105: 0.1455856577 | I105: 0.1134048462 | J105: 0.04689759509 | K105: 3.660178974e-06
B106: Energy efficient lights - luminaires & ballasts | C106: nominal | G106: 0.3193145406 | H106: 0.5099572331 | I106: 0.8610873464 | J106: 1.293811156 | K106: 1.621695484
B107: Replaced self-funded energy efficient lights | C107: nominal | G107: 0 | H107: 0 | I107: 0 | J107: 0 | K107: 0
B111: Equity raising costs | C111: nominal | G111: 0 | H111: 0.007755898985 | I111: 0.008421563468 | J111: 0.009116783878 | K111: 0.009842651983
B112: Total | C112: nominal | G112: 0.5743043642 | H112: 0.9799097199 | I112: 1.369201096 | J112: 1.813813284 | K112: 2.167795893
B114: Net tax allowance
B115: Poles and brackets | C115: nominal | G115: 0.01027817771 | H115: 0 | I115: 0 | J115: 0 | K115: 0 | L115: ◄ As a simplification, the net tax allowance is pro-rated across asset classes using the return on and of capital building blocks
B116: Existing lights - luminaires | C116: nominal | G116: 0.004657573311 | H116: 0 | I116: 0 | J116: 0 | K116: 0
B117: Energy efficient lights - luminaires & ballasts | C117: nominal | G117: 0.01245360216 | H117: 0 | I117: 0 | J117: 0 | K117: 0
B118: Replaced self-funded energy efficient lights | C118: nominal | G118: 0 | H118: 0 | I118: 0 | J118: 0 | K118: 0
B119: Smart lighting control | C119: nominal | G119: 0 | H119: 0 | I119: 0 | J119: 0 | K119: 0
B120: Smart lighting control devices | C120: nominal | G120: 0 | H120: 0 | I120: 0 | J120: 0 | K120: 0
B121: in-house software | C121: nominal | G121: 0 | H121: 0 | I121: 0 | J121: 0 | K121: 0
B122: Equity raising costs | C122: nominal | G122: 0 | H122: 0 | I122: 0 | J122: 0 | K122: 0
B123: Total | C123: nominal | G123: 0.02738935318 | H123: 0 | I123: 0 | J123: 0 | K123: 0
B125: Operating costs
B126: Controllable opex | C126: nominal | G126: 4.07632369 | H126: 3.76952547 | I126: 3.059266299 | J126: 2.113833758 | K126: 1.611579988
B127: Debt raising costs | C127: nominal | G127: 0.01165398121 | H127: 0.01705818842 | I127: 0.02465720608 | J127: 0.0331168128 | K127: 0.03839387733
B128: Total | G128: 4.087977671 | H128: 3.786583659 | I128: 3.083923505 | J128: 2.146950571 | K128: 1.649973866
B130: Total Building Blocks | C130: nominal | G130: 6.032516298 | H130: 6.752869495 | I130: 7.353248783 | J130: 7.913357979 | K130: 8.516084247
B133: 4. Allocators | C133: ◄ This section first inputs the allocator assumptions, which nominate what cost categories are covered by the tariffs for each light type. These assumptions, and forecast volumes, are then used to determine allocation percentages.
B135: Allocator assumptions | G135: Legacy lights | H135: Energy efficient lights | I135: Self-funded energy efficient lights | J135: Energy efficient lights (not smart) | K135: Self-funded energy efficient lights (not smart)
B136: Poles and brackets | G136: Yes | H136: Yes | I136: Yes | J136: Yes | K136: Yes
B137: Existing lights - luminaires | G137: Yes | H137: No | I137: No | J137: No | K137: No
B138: Energy efficient lights - luminaires & ballasts | G138: No | H138: Yes | I138: No | J138: Yes | K138: No
B139: Replaced self-funded energy efficient lights | G139: No | H139: No | I139: Yes | J139: No | K139: No
B140: Smart lighting control | G140: No | H140: Yes | I140: Yes | J140: No | K140: No
B141: Smart lighting control devices | G141: No | H141: Yes | I141: No | J141: No | K141: No
B142: in-house software | G142: No | H142: Yes | I142: Yes | J142: Yes | K142: Yes
B143: Equity raising costs | G143: Yes | H143: Yes | I143: Yes | J143: Yes | K143: Yes
B144: Operating costs | G144: Yes | H144: Yes | I144: Yes | J144: Yes | K144: Yes
B147: Volumes (average per year) | G147: 2026-27 | H147: 2027-28 | I147: 2028-29 | J147: 2029-30 | K147: 2030-31
B148: Legacy lights | G148: 24871.94111 | H148: 23333.17927 | I148: 19043.5406 | J148: 11185.93307 | K148: 3134.861213
B149: Energy efficient lights | G149: 43067.94819 | H149: 45178.94008 | I149: 49602.07143 | J149: 57823.76631 | K149: 66809.1934
B150: Self-funded energy efficient lights | G150: 407.2625237 | H150: 400.5250475 | I150: 400.5250475 | J150: 400.5250475 | K150: 400.5250475
B151: Energy efficient lights (not smart) | G151: 0 | H151: 2221.534955 | I151: 3293.37796 | J151: 4322.74569 | K151: 4802.347938
B152: Self-funded energy efficient lights (not smart) | G152: 0 | H152: 0 | I152: 0 | J152: 0 | K152: 0
B155: Allocation percentages
B156: Legacy lights
B157: Poles and brackets | G157: 0.3639060363 | H157: 0.3280164259 | I157: 0.263252257 | J157: 0.1517087003 | K157: 0.04171642558
B158: Existing lights - luminaires | G158: 1 | H158: 1 | I158: 1 | J158: 1 | K158: 1
B159: Energy efficient lights - luminaires & ballasts | G159: 0 | H159: 0 | I159: 0 | J159: 0 | K159: 0
B160: Replaced self-funded energy efficient lights | G160: 0 | H160: 0 | I160: 0 | J160: 0 | K160: 0
B161: Smart lighting control | G161: 0 | H161: 0 | I161: 0 | J161: 0 | K161: 0
B162: Smart lighting control devices | G162: 0 | H162: 0 | I162: 0 | J162: 0 | K162: 0
B163: in-house software | G163: 0 | H163: 0 | I163: 0 | J163: 0 | K163: 0
B164: Equity raising costs | G164: 0.3639060363 | H164: 0.3280164259 | I164: 0.263252257 | J164: 0.1517087003 | K164: 0.04171642558
B165: Operating costs | G165: 0.3639060363 | H165: 0.3280164259 | I165: 0.263252257 | J165: 0.1517087003 | K165: 0.04171642558
B167: Energy efficient lights
B168: Poles and brackets | G168: 0.6301352293 | H168: 0.6351228129 | I168: 0.6856843235 | J168: 0.7842321586 | K168: 0.8890475703
B169: Existing lights - luminaires | G169: 0 | H169: 0 | I169: 0 | J169: 0 | K169: 0
B170: Energy efficient lights - luminaires & ballasts | G170: 1 | H170: 0.9531326437 | I170: 0.9377379718 | J170: 0.930442666 | K170: 0.9329389111
B171: Replaced self-funded energy efficient lights | G171: 0 | H171: 0 | I171: 0 | J171: 0 | K171: 0
B172: Smart lighting control | G172: 0.9906323048 | H172: 0.9912125988 | I172: 0.991989915 | J172: 0.9931209975 | K172: 0.9940406677
B173: Smart lighting control devices | G173: 1 | H173: 1 | I173: 1 | J173: 1 | K173: 1
B174: in-house software | G174: 0.9906323048 | H174: 0.9451463359 | I174: 0.9306907689 | J174: 0.9244845006 | K174: 0.9277499835
B175: Equity raising costs | G175: 0.6301352293 | H175: 0.6351228129 | I175: 0.6856843235 | J175: 0.7842321586 | K175: 0.8890475703
B176: Operating costs | G176: 0.6301352293 | H176: 0.6351228129 | I176: 0.6856843235 | J176: 0.7842321586 | K176: 0.8890475703
B178: Self-funded energy efficient lights
B179: Poles and brackets | G179: 0.005958734385 | H179: 0.005630556943 | I179: 0.00553673946 | J179: 0.005432102448 | K179: 0.005329892522
B180: Existing lights - luminaires | G180: 0 | H180: 0 | I180: 0 | J180: 0 | K180: 0
B181: Energy efficient lights - luminaires & ballasts | G181: 0 | H181: 0 | I181: 0 | J181: 0 | K181: 0
B182: Replaced self-funded energy efficient lights | G182: 1 | H182: 1 | I182: 1 | J182: 1 | K182: 1
B183: Smart lighting control | G183: 0.009367695223 | H183: 0.008787401219 | I183: 0.008010084989 | J183: 0.006879002528 | K183: 0.005959332321
B184: Smart lighting control devices | G184: 0 | H184: 0 | I184: 0 | J184: 0 | K184: 0
B185: in-house software | G185: 0.009367695223 | H185: 0.008379009785 | I185: 0.007515108818 | J185: 0.00640358147 | K185: 0.005561915767
B186: Equity raising costs | G186: 0.005958734385 | H186: 0.005630556943 | I186: 0.00553673946 | J186: 0.005432102448 | K186: 0.005329892522
B187: Operating costs | G187: 0.005958734385 | H187: 0.005630556943 | I187: 0.00553673946 | J187: 0.005432102448 | K187: 0.005329892522
B189: Energy efficient lights (not smart)
B190: Poles and brackets | G190: 0 | H190: 0.03123020431 | I190: 0.0455266801 | J190: 0.05862703867 | K190: 0.06390611155
B191: Existing lights - luminaires | G191: 0 | H191: 0 | I191: 0 | J191: 0 | K191: 0
B192: Energy efficient lights - luminaires & ballasts | G192: 0 | H192: 0.04686735635 | I192: 0.06226202817 | J192: 0.06955733396 | K192: 0.06706108887
B193: Replaced self-funded energy efficient lights | G193: 0 | H193: 0 | I193: 0 | J193: 0 | K193: 0
B194: Smart lighting control | G194: 0 | H194: 0 | I194: 0 | J194: 0 | K194: 0
B195: Smart lighting control devices | G195: 0 | H195: 0 | I195: 0 | J195: 0 | K195: 0
B196: in-house software | G196: 0 | H196: 0.04647465431 | I196: 0.06179412225 | J196: 0.06911191791 | K196: 0.06668810074
B197: Equity raising costs | G197: 0 | H197: 0.03123020431 | I197: 0.0455266801 | J197: 0.05862703867 | K197: 0.06390611155
B198: Operating costs | G198: 0 | H198: 0.03123020431 | I198: 0.0455266801 | J198: 0.05862703867 | K198: 0.06390611155
B200: Self-funded energy efficient lights (not smart)
B201: Poles and brackets | G201: 0 | H201: 0 | I201: 0 | J201: 0 | K201: 0
B202: Existing lights - luminaires | G202: 0 | H202: 0 | I202: 0 | J202: 0 | K202: 0
B203: Energy efficient lights - luminaires & ballasts | G203: 0 | H203: 0 | I203: 0 | J203: 0 | K203: 0
B204: Replaced self-funded energy efficient lights | G204: 0 | H204: 0 | I204: 0 | J204: 0 | K204: 0
B205: Smart lighting control | G205: 0 | H205: 0 | I205: 0 | J205: 0 | K205: 0
B206: Smart lighting control devices | G206: 0 | H206: 0 | I206: 0 | J206: 0 | K206: 0
B207: in-house software | G207: 0 | H207: 0 | I207: 0 | J207: 0 | K207: 0
B208: Equity raising costs | G208: 0 | H208: 0 | I208: 0 | J208: 0 | K208: 0
B209: Operating costs | G209: 0 | H209: 0 | I209: 0 | J209: 0 | K209: 0
B212: 5. Amortised Costs | C212: ◄ This section calculates the amortised for each light group. It starts with the capital and operating costs for each year. These costs are then allocated across the three light groupings based on the allocation percentages determined above.
B214: Total costs | G214: 2026-27 | H214: 2027-28 | I214: 2028-29 | J214: 2029-30 | K214: 2030-31
B215: Poles and brackets | G215: 0.7297110464 | H215: 0.8432299947 | I215: 0.9717178029 | J215: 1.110673541 | K215: 1.268105804
B216: Existing lights - luminaires | C216: nominal | G216: 0.3306697735 | H216: 0.2923540041 | I216: 0.2152667693 | J216: 0.08431747573 | K216: 6.256276222e-06
B217: Energy efficient lights - luminaires & ballasts | C217: nominal | G217: 0.8841578069 | H217: 1.465109518 | I217: 2.581449206 | J217: 3.923829763 | K217: 4.838777347
B218: Replaced self-funded energy efficient lights | C218: nominal | G218: 0 | H218: 0 | I218: 0 | J218: 0 | K218: 0
B222: Equity raising costs | C222: nominal | G222: 0 | H222: 0.03132243368 | I222: 0.03173626142 | J222: 0.03223694842 | K222: 0.03294978047
B223: Operating costs | C223: nominal | G223: 4.087977671 | H223: 3.786583659 | I223: 3.083923505 | J223: 2.146950571 | K223: 1.649973866
B224: Total | C224: nominal | G224: 6.032516298 | H224: 6.752869495 | I224: 7.353248783 | J224: 7.913357979 | K224: 8.516084247
B227: Costs by light group
B228: Legacy lights | C228: nominal | G228: 2.083855779 | H228: 1.821283204 | I228: 1.29127814 | J228: 0.5834180214 | K228: 0.1231126567
B229: Energy efficient lights | C229: nominal | G229: 3.919953192 | H229: 4.687904682 | I229: 5.689099243 | J229: 6.842901286 | K229: 7.861080785
B230: Self-funded energy efficient lights | C230: nominal | G230: 0.02870732742 | H230: 0.02819935986 | I230: 0.02440479131 | J230: 0.01938763481 | K230: 0.01703662752
B231: Energy efficient lights (not smart) | C231: nominal | G231: 0 | H231: 0.2154822496 | I231: 0.3484666098 | J231: 0.4676510364 | K231: 0.5148541781
B232: Self-funded energy efficient lights (not smart) | C232: nominal | G232: 0 | H232: 0 | I232: 0 | J232: 0 | K232: 0
B233: Total | C233: nominal | G233: 6.032516298 | H233: 6.752869495 | I233: 7.353248783 | J233: 7.913357979 | K233: 8.516084247
J236: Scalar | N236: Price increase | P236: ◄ This is the implied price increase from 2025-26 actual charges to 2026-27 proposed prices
B237: Amortised average cost per light by light group | F237: 2025-26 | H237: Average 2025-26 charge | J237: Calculated | K237: Override | L237: Adopted | N237: Implied (nominal)
B238: Legacy lights | C238: nominal | F238: 73.19929353 | H238: 132.2516186 | J238: 0.5534850485 | K238: 1 | L238: 1 | N238: 0.305414292 | P238: ◄ The scalar is calculated for each light group by dividing the amortised average cost by the volume weighted average 2025-26 charge for that group
B239: Energy efficient lights | C239: nominal | F239: 109.6727254 | H239: 56.42767937 | J239: 1.943598011 | K239: 1 | L239: 1 | N239: 0.305414292 | P239: ◄ The average 2025-26 charge for each light group is calculated using average volumes over the 2026-31 period
B240: Self-funded energy efficient lights | C240: nominal | F240: 59.55016383 | H240: 72.99169082 | J240: 0.8158485324 | K240: 0.75 | L240: 0.75 | N240: -0.02093928097 | P240: ◄ An override can be used instead of the calculated scalar
B241: Energy efficient lights (not smart) | C241: nominal | F241: 105.433919 | H241: 39.54 | J241: 2.666512874 | K241: 0.85 | L241: 0.85 | N241: 0.1096021482
B242: Self-funded energy efficient lights (not smart) | C242: nominal | F242: 0 | K242: 0.7 | L242: 0.7 | N242: -0.08620999557
B244: Self-funded light as portion of JEN funded light | F244: 0.5429806146 | G244: ◄ This implies that a self funded light costs around 54% of a JEN funded light
B247: 6. Starting Charge per Light ($Nominal) | C247: ◄ This section uses the amortised cost by light group above to determine the starting charge for each light type
H249: 2025-26 | I249: 2026-31 Average | K249: 2025-26
B250: Light type | F250: Grouping | H250: Actual charge | I250: Volumes | K250: Starting charge
B252: Mercury Vapour 80 watt | F252: Legacy lights | H252: 64.78 | I252: 2555.176583 | K252: 64.78 | L252: ◄ The adopted scalar from above is used to scale the 2025-26 light charge for each light group
B253: Sodium High Pressure 150 watt | F253: Legacy lights | H253: 140.51 | I253: 9937.4 | K253: 140.51
B254: Sodium High Pressure 250 watt | F254: Legacy lights | H254: 142.53 | I254: 2806.2 | K254: 142.53
... 33 more rows

Sheet WACC
B2: ='DMS input'!$C$16&" - Cost of Capital Parameters"&" - DNSP PTRM - version "&Intro!$L$4 -> Jemena Electricity - Cost of Capital Parameters - DNSP PTRM - version 5
B4: Year | G4: ='PTRM input'!G60 -> 2026-27 | H4: ='PTRM input'!H60 -> 2027-28 | I4: ='PTRM input'!I60 -> 2028-29 | J4: ='PTRM input'!J60 -> 2029-30 | K4: ='PTRM input'!K60 -> 2030-31 | L4: ='PTRM input'!L60 -> 2031-32 | M4: ='PTRM input'!M60 -> 2032-33 | N4: ='PTRM input'!N60 -> 2033-34 | O4: ='PTRM input'!O60 -> 2034-35 | P4: ='PTRM input'!P60 -> 2035-36 | R4: Final decision checks
R5: This column contains calculations that presume a constant WACC. They are therefore to be used at the start of the regulatory period (prior to any annual debt updates).
B6: Inflation Rate | D6: f | F6: Constant | G6: =f -> 0.02619899211 | H6: 0.02619899211 | I6: 0.02619899211 | J6: 0.02619899211 | K6: 0.02619899211 | L6: 0.02619899211 | M6: 0.02619899211 | N6: 0.02619899211 | O6: 0.02619899211 | P6: 0.02619899211
B7: Value of Imputation Credits (gamma) | D7: γ | F7: Constant | G7: =g -> 0.57 | H7: 0.57 | I7: 0.57 | J7: 0.57 | K7: 0.57 | L7: 0.57 | M7: 0.57 | N7: 0.57 | O7: 0.57 | P7: 0.57
B8: Proportion of Equity Funding | D8: E/V | F8: Constant | G8: =1-G9 -> 0.4 | H8: =1-H9 -> 0.4 | I8: =1-I9 -> 0.4 | J8: 0.4 | K8: 0.4 | L8: 0.4 | M8: 0.4 | N8: 0.4 | O8: 0.4 | P8: =1-P9 -> 0.4
B9: Proportion of Debt Funding | D9: D/V | F9: Constant | G9: =Dv -> 0.6 | H9: 0.6 | I9: 0.6 | J9: 0.6 | K9: 0.6 | L9: 0.6 | M9: 0.6 | N9: 0.6 | O9: 0.6 | P9: 0.6
B10: Post-tax Nominal Return on Equity | D10: Re | F10: Constant | G10: ='PTRM input'!$G$383 -> 0.08339501452 | H10: ='PTRM input'!$G$383 -> 0.08339501452 | I10: ='PTRM input'!$G$383 -> 0.08339501452 | J10: ='PTRM input'!$G$383 -> 0.08339501452 | K10: ='PTRM input'!$G$383 -> 0.08339501452 | L10: ='PTRM input'!$G$383 -> 0.08339501452 | M10: ='PTRM input'!$G$383 -> 0.08339501452 | N10: ='PTRM input'!$G$383 -> 0.08339501452 | O10: ='PTRM input'!$G$383 -> 0.08339501452 | P10: ='PTRM input'!$G$383 -> 0.08339501452 | R10: =Analysis!$E$111 -> 0.08339501452
B11: Post-tax Real Return on Equity | D11: Rre | F11: Constant | G11: =(1+G10)/(1+G6)-1 -> 0.05573580061 | H11: 0.05573580061 | I11: 0.05573580061 | J11: 0.05573580061 | K11: 0.05573580061 | L11: 0.05573580061 | M11: 0.05573580061 | N11: 0.05573580061 | O11: 0.05573580061 | P11: 0.05573580061 | R11: =Analysis!$E$115 -> 0.05573580061
B13: Corporate Tax Rate | D13: T | F13: Varying | G13: ='PTRM input'!G363 -> 0.3 | H13: =IF(OR(ISBLANK('PTRM input'!H363),'PTRM input'!H363=0),G13,'PTRM input'!H363) -> 0.3 | I13: =IF(OR(ISBLANK('PTRM input'!I363),'PTRM input'!I363=0),H13,'PTRM input'!I363) -> 0.3 | J13: =IF(OR(ISBLANK('PTRM input'!J363),'PTRM input'!J363=0),I13,'PTRM input'!J363) -> 0.3 | K13: =IF(OR(ISBLANK('PTRM input'!K363),'PTRM input'!K363=0),J13,'PTRM input'!K363) -> 0.3 | L13: =IF(OR(ISBLANK('PTRM input'!L363),'PTRM input'!L363=0),K13,'PTRM input'!L363) -> 0.3 | M13: =IF(OR(ISBLANK('PTRM input'!M363),'PTRM input'!M363=0),L13,'PTRM input'!M363) -> 0.3 | N13: =IF(OR(ISBLANK('PTRM input'!N363),'PTRM input'!N363=0),M13,'PTRM input'!N363) -> 0.3 | O13: =IF(OR(ISBLANK('PTRM input'!O363),'PTRM input'!O363=0),N13,'PTRM input'!O363) -> 0.3 | P13: =IF(OR(ISBLANK('PTRM input'!P363),'PTRM input'!P363=0),O13,'PTRM input'!P363) -> 0.3
B14: Nominal Pre-tax Return on Debt | D14: Rd | F14: Varying | G14: ='PTRM input'!G388 -> 0.04729557038 | H14: =IF(OR(ISBLANK('PTRM input'!H388),'PTRM input'!H388=0),G14,'PTRM input'!H388) -> 0.0483856871 | I14: =IF(OR(ISBLANK('PTRM input'!I388),'PTRM input'!I388=0),H14,'PTRM input'!I388) -> 0.04943101918 | J14: =IF(OR(ISBLANK('PTRM input'!J388),'PTRM input'!J388=0),I14,'PTRM input'!J388) -> 0.05098064343 | K14: =IF(OR(ISBLANK('PTRM input'!K388),'PTRM input'!K388=0),J14,'PTRM input'!K388) -> 0.05367590875 | L14: =IF(OR(ISBLANK('PTRM input'!L388),'PTRM input'!L388=0),K14,'PTRM input'!L388) -> 0.05367590875 | M14: =IF(OR(ISBLANK('PTRM input'!M388),'PTRM input'!M388=0),L14,'PTRM input'!M388) -> 0.05367590875 | N14: =IF(OR(ISBLANK('PTRM input'!N388),'PTRM input'!N388=0),M14,'PTRM input'!N388) -> 0.05367590875 | O14: =IF(OR(ISBLANK('PTRM input'!O388),'PTRM input'!O388=0),N14,'PTRM input'!O388) -> 0.05367590875 | P14: =IF(OR(ISBLANK('PTRM input'!P388),'PTRM input'!P388=0),O14,'PTRM input'!P388) -> 0.05367590875
B15: Real Pre-tax Return on Debt | D15: Rrd | F15: Varying | G15: =(1+G14)/(1+G6)-1 -> 0.02055797992 | H15: 0.02162026582 | I15: 0.02263891043 | J15: 0.02414897258 | K15: 0.02677542743 | L15: 0.02677542743 | M15: 0.02677542743 | N15: 0.02677542743 | O15: 0.02677542743 | P15: 0.02677542743
G17: Formula approximations of WACC | R17: Cashflow derivations of WACC
B18: Nominal Vanilla WACC | F18: Varying | G18: =G8*G10+G9*G14 -> 0.06173534804 | H18: 0.06238941807 | I18: 0.06301661731 | J18: 0.06394639187 | K18: 0.06556355106 | L18: 0.06556355106 | M18: 0.06556355106 | N18: 0.06556355106 | O18: 0.06556355106 | P18: 0.06556355106 | R18: =Analysis!$E$126 -> 0.06500460331
B19: Real Vanilla WACC | F19: Varying | G19: =G8*G11+G9*G15 -> 0.03462910819 | H19: 0.03526647974 | I19: 0.0358776665 | J19: 0.03678370379 | K19: 0.0383595767 | L19: 0.0383595767 | M19: 0.0383595767 | N19: 0.0383595767 | O19: 0.0383595767 | P19: 0.0383595767 | R19: =Analysis!$E$127 -> 0.03781489896
B20: Post-tax Nominal WACC | F20: Varying | G20: =G10*G8+G14*G9*(1-G28*(1-G7)) -> 0.05820646357 | H20: 0.05877919626 | I20: 0.0593283997 | J20: 0.06014255148 | K20: 0.06155860769 | L20: 0.06155860769 | M20: 0.06155860769 | N20: 0.06155860769 | O20: 0.06155860769 | P20: 0.06155860769 | R20: =Analysis!$E$123 -> 0.06088509193
B21: Post-tax Real WACC | F21: Varying | G21: =(1+G20)/(1+G6)-1 -> 0.0311903166 | H21: 0.03174842735 | I21: 0.03228360956 | J21: 0.03307697594 | K21: 0.03445688006 | L21: 0.03445688006 | M21: 0.03445688006 | N21: 0.03445688006 | O21: 0.03445688006 | P21: 0.03445688006 | R21: =Analysis!$E$125 -> 0.03380055923
B22: Pre-tax Nominal WACC | F22: Varying | G22: =G10*(1/(1-G27*(1-G7)))*G8+G14*G9 -> 0.06445362537 | H22: 0.0651076954 | I22: 0.06573489465 | J22: 0.0666646692 | K22: 0.06828182839 | L22: 0.06828182839 | M22: 0.06828182839 | N22: 0.06828182839 | O22: 0.06828182839 | P22: 0.06828182839 | R22: =Analysis!$E$122 -> 0.06793751781
B23: Pre-tax Real WACC | F23: Varying | G23: =(1+G22)/(1+G6)-1 -> 0.03727798756 | H23: 0.0379153591 | I23: 0.03852654587 | J23: 0.03943258316 | K23: 0.04100845606 | L23: 0.04100845606 | M23: 0.04100845606 | N23: 0.04100845606 | O23: 0.04100845606 | P23: 0.04100845606 | R23: =Analysis!$E$124 -> 0.04067293577
B24: Nominal Tax Allowance | F24: Varying | G24: =G22-G20 -> 0.006247161802 | H24: =H22-H20 -> 0.006328499144 | I24: 0.006406494949 | J24: 0.006522117722 | K24: 0.006723220697 | L24: 0.006723220697 | M24: 0.006723220697 | N24: 0.006723220697 | O24: 0.006723220697 | P24: 0.006723220697 | R24: =$R$22-$R$20 -> 0.007052425888
B25: Real Tax Allowance | F25: Varying | G25: =G23-G21 -> 0.006087670958 | H25: =H23-H21 -> 0.006166931747 | I25: 0.00624293631 | J25: 0.006355607218 | K25: 0.006551576009 | L25: 0.006551576009 | M25: 0.006551576009 | N25: 0.006551576009 | O25: 0.006551576009 | P25: 0.006551576009 | R25: =$R$23-$R$21 -> 0.006872376544
B27: Effective Tax Rate for Equity (from relevant cashflows) | D27: Te | G27: 0.1752280069 | H27: =G27 -> 0.1752280069 | I27: =H27 -> 0.1752280069 | J27: 0.1752280069 | K27: 0.1752280069 | L27: 0.1752280069 | M27: 0.1752280069 | N27: 0.1752280069 | O27: 0.1752280069 | P27: 0.1752280069 | R27: =Analysis!$D$109 -> 0.1723356628
B28: Effective Tax Rate for Debt (effective debt shield) | D28: Td | G28: 0.2891993197 | H28: =G28 -> 0.2891993197 | I28: =H28 -> 0.2891993197 | J28: 0.2891993197 | K28: 0.2891993197 | L28: 0.2891993197 | M28: 0.2891993197 | N28: 0.2891993197 | O28: 0.2891993197 | P28: 0.2891993197 | R28: =Analysis!$D$120 -> 0.2901954582
G30: At the start of the regulatory control period, indicative cashflow-calculated average of Te and Td are copied over to this sheet
G31: These calculations presume a constant WACC so Te/Td should not be updated during a regulatory control period
G32: when annually updating the return on debt - just use the same Te/Td from the final decision.
G34: Numbers in White cells are calculated on this sheet from input parameters.
G35: Numbers in Orange cells are transferred from relevant sheets

Sheet Assets
B2: Jemena Electricity - Asset Roll Forward - DNSP PTRM - version 5
F3: 0 | G3: 1 | H3: 2 | I3: 3 | J3: 4 | K3: 5 | L3: 6 | M3: 7 | N3: 8 | O3: 9 | P3: 10 | Q3: 11 | R3: 12 | S3: 13 | T3: 14 | U3: 15 | V3: 16 | W3: 17 | X3: 18 | Y3: 19 | Z3: 20 | AA3: 21 | AB3: 22 | AC3: 23 | AD3: 24 | AE3: 25 | AF3: 26 | AG3: 27 | AH3: 28 | AI3: 29 | AJ3: 30 | AK3: 31 | AL3: 32 | AM3: 33 | AN3: 34 | AO3: 35 | AP3: 36 | AQ3: 37 | AR3: 38 | AS3: 39 | AT3: 40 | AU3: 41 | AV3: 42 | AW3: 43 | AX3: 44 | AY3: 45 | AZ3: 46 | BA3: 47 | BB3: 48 | BC3: 49 | BD3: 50 | BE3: 51 | BF3: 52 | BG3: 53 | BH3: 54 | BI3: 55
B4: Year | F4: 2025-26 | G4: 2026-27 | H4: 2027-28 | I4: 2028-29 | J4: 2029-30 | K4: 2030-31 | L4: 2031-32 | M4: 2032-33 | N4: 2033-34 | O4: 2034-35 | P4: 2035-36 | Q4: 2036-37 | R4: 2037-38 | S4: 2038-39 | T4: 2039-40 | U4: 2040-41 | V4: 2041-42 | W4: 2042-43 | X4: 2043-44 | Y4: 2044-45 | Z4: 2045-46 | AA4: 2046-47 | AB4: 2047-48 | AC4: 2048-49 | AD4: 2049-50 | AE4: 2050-51 | AF4: 2051-52 | AG4: 2052-53 | AH4: 2053-54 | AI4: 2054-55 | AJ4: 2055-56 | AK4: 2056-57 | AL4: 2057-58 | AM4: 2058-59 | AN4: 2059-60 | AO4: 2060-61 | AP4: 2061-62 | AQ4: 2062-63 | AR4: 2063-64 | AS4: 2064-65 | AT4: 2065-66 | AU4: 2066-67 | AV4: 2067-68 | AW4: 2068-69 | AX4: 2069-70 | AY4: 2070-71 | AZ4: 2071-72 | BA4: 2072-73 | BB4: 2073-74 | BC4: 2074-75 | BD4: 2075-76 | BE4: 2076-77 | BF4: 2077-78 | BG4: 2078-79 | BH4: 2079-80 | BI4: 2080-81
B6: Inflation Assumption (CPI % increase) | D6: 0.02619899211 | G6: 0.02619899211 | H6: 0.02619899211 | I6: 0.02619899211 | J6: 0.02619899211 | K6: 0.02619899211 | L6: 0.02619899211 | M6: 0.02619899211 | N6: 0.02619899211 | O6: 0.02619899211 | P6: 0.02619899211 | Q6: 0.02619899211 | R6: 0.02619899211 | S6: 0.02619899211 | T6: 0.02619899211 | U6: 0.02619899211 | V6: 0.02619899211 | W6: 0.02619899211 | X6: 0.02619899211 | Y6: 0.02619899211 | Z6: 0.02619899211 | AA6: 0.02619899211 | AB6: 0.02619899211 | AC6: 0.02619899211 | AD6: 0.02619899211 | AE6: 0.02619899211 | AF6: 0.02619899211 | AG6: 0.02619899211 | AH6: 0.02619899211 | AI6: 0.02619899211 | AJ6: 0.02619899211 | AK6: 0.02619899211 | AL6: 0.02619899211 | AM6: 0.02619899211 | AN6: 0.02619899211 | AO6: 0.02619899211 | AP6: 0.02619899211 | AQ6: 0.02619899211 | AR6: 0.02619899211 | AS6: 0.02619899211 | AT6: 0.02619899211 | AU6: 0.02619899211 | AV6: 0.02619899211 | AW6: 0.02619899211 | AX6: 0.02619899211 | AY6: 0.02619899211 | AZ6: 0.02619899211 | BA6: 0.02619899211 | BB6: 0.02619899211 | BC6: 0.02619899211 | BD6: 0.02619899211 | BE6: 0.02619899211 | BF6: 0.02619899211 | BG6: 0.02619899211 | BH6: 0.02619899211 | BI6: 0.02619899211
B7: Cumulative Inflation Index (CPI end period) | F7: 1 | G7: 1.026198992 | H7: 1.053084371 | I7: 1.080674121 | J7: 1.108986693 | K7: 1.138041027 | L7: 1.167856555 | M7: 1.198453219 | N7: 1.229851486 | O7: 1.262072355 | P7: 1.295137379 | Q7: 1.329068673 | R7: 1.363888933 | S7: 1.399621448 | T7: 1.436290119 | U7: 1.473919473 | V7: 1.512534677 | W7: 1.552161562 | X7: 1.59282663 | Y7: 1.634557082 | Z7: 1.67738083 | AA7: 1.721326518 | AB7: 1.766423537 | AC7: 1.812702054 | AD7: 1.860193021 | AE7: 1.908928203 | AF7: 1.958940198 | AG7: 2.010262457 | AH7: 2.062929307 | AI7: 2.116975975 | AJ7: 2.172438612 | AK7: 2.229354314 | AL7: 2.28776115 | AM7: 2.347698187 | AN7: 2.409205513 | AO7: 2.472324269 | AP7: 2.537096673 | AQ7: 2.603566049 | AR7: 2.671776855 | AS7: 2.741774716 | AT7: 2.81360645 | AU7: 2.887320103 | AV7: 2.96296498 | AW7: 3.040591676 | AX7: 3.120252114 | AY7: 3.201999574 | AZ7: 3.285888736 | BA7: 3.371975709 | BB7: 3.460318074 | BC7: 3.55097492 | BD7: 3.644006883 | BE7: 3.739476191 | BF7: 3.837446698 | BG7: 3.937983934 | BH7: 4.041155144 | BI7: 4.147029336
B9: Opening Regulatory Asset Base (RAB) | F9: 21.75163747
B10: Real Net Capital Expenditure (capex) | G10: 10.38883958 | H10: 14.39878753 | I10: 15.87775664 | J10: 10.51700578 | K10: 5.321980405 | L10: 0 | M10: 0 | N10: 0 | O10: 0 | P10: 0
C11: Poles and brackets | G11: 1.656992862 | H11: 1.644012523 | I11: 1.644497736 | J11: 1.645216764 | K11: 1.646466624 | L11: 0 | M11: 0 | N11: 0 | O11: 0 | P11: 0
C12: Existing lights - luminaires | G12: -0.2812678288 | H12: -0.5606773447 | I12: -0.8493299723 | J12: -0.4853427059 | K12: -5.011759484e-06 | L12: 0 | M12: 0 | N12: 0 | O12: 0 | P12: 0
C13: Energy efficient lights - luminaires & ballasts | G13: 6.510563498 | H13: 11.87042932 | I13: 13.59285645 | J13: 8.326038214 | K13: 3.033808601 | L13: 0 | M13: 0 | N13: 0 | O13: 0 | P13: 0
C14: Replaced self-funded energy efficient lights | G14: 0 | H14: 0 | I14: 0 | J14: 0 | K14: 0 | L14: 0 | M14: 0 | N14: 0 | O14: 0 | P14: 0
L15: 0 | M15: 0 | N15: 0 | O15: 0 | P15: 0
L16: 0 | M16: 0 | N16: 0 | O16: 0 | P16: 0
C17: 0 | G17: 0 | H17: 0 | I17: 0 | J17: 0 | K17: 0 | L17: 0 | M17: 0 | N17: 0 | O17: 0 | P17: 0
C18: 0 | G18: 0 | H18: 0 | I18: 0 | J18: 0 | K18: 0 | L18: 0 | M18: 0 | N18: 0 | O18: 0 | P18: 0
C19: 0 | G19: 0 | H19: 0 | I19: 0 | J19: 0 | K19: 0 | L19: 0 | M19: 0 | N19: 0 | O19: 0 | P19: 0
C20: 0 | G20: 0 | H20: 0 | I20: 0 | J20: 0 | K20: 0 | L20: 0 | M20: 0 | N20: 0 | O20: 0 | P20: 0
C21: 0 | G21: 0 | H21: 0 | I21: 0 | J21: 0 | K21: 0 | L21: 0 | M21: 0 | N21: 0 | O21: 0 | P21: 0
C22: 0 | G22: 0 | H22: 0 | I22: 0 | J22: 0 | K22: 0 | L22: 0 | M22: 0 | N22: 0 | O22: 0 | P22: 0
C23: 0 | G23: 0 | H23: 0 | I23: 0 | J23: 0 | K23: 0 | L23: 0 | M23: 0 | N23: 0 | O23: 0 | P23: 0
C24: 0 | G24: 0 | H24: 0 | I24: 0 | J24: 0 | K24: 0 | L24: 0 | M24: 0 | N24: 0 | O24: 0 | P24: 0
C25: 0 | G25: 0 | H25: 0 | I25: 0 | J25: 0 | K25: 0 | L25: 0 | M25: 0 | N25: 0 | O25: 0 | P25: 0
C26: 0 | G26: 0 | H26: 0 | I26: 0 | J26: 0 | K26: 0 | L26: 0 | M26: 0 | N26: 0 | O26: 0 | P26: 0
C27: 0 | G27: 0 | H27: 0 | I27: 0 | J27: 0 | K27: 0 | L27: 0 | M27: 0 | N27: 0 | O27: 0 | P27: 0
C28: 0 | G28: 0 | H28: 0 | I28: 0 | J28: 0 | K28: 0 | L28: 0 | M28: 0 | N28: 0 | O28: 0 | P28: 0
C29: 0 | G29: 0 | H29: 0 | I29: 0 | J29: 0 | K29: 0 | L29: 0 | M29: 0 | N29: 0 | O29: 0 | P29: 0
C30: 0 | G30: 0 | H30: 0 | I30: 0 | J30: 0 | K30: 0 | L30: 0 | M30: 0 | N30: 0 | O30: 0 | P30: 0
C31: 0 | G31: 0 | H31: 0 | I31: 0 | J31: 0 | K31: 0 | L31: 0 | M31: 0 | N31: 0 | O31: 0 | P31: 0
C32: 0 | G32: 0 | H32: 0 | I32: 0 | J32: 0 | K32: 0 | L32: 0 | M32: 0 | N32: 0 | O32: 0 | P32: 0
C33: 0 | G33: 0 | H33: 0 | I33: 0 | J33: 0 | K33: 0 | L33: 0 | M33: 0 | N33: 0 | O33: 0 | P33: 0
C34: 0 | G34: 0 | H34: 0 | I34: 0 | J34: 0 | K34: 0 | L34: 0 | M34: 0 | N34: 0 | O34: 0 | P34: 0
C35: 0 | G35: 0 | H35: 0 | I35: 0 | J35: 0 | K35: 0 | L35: 0 | M35: 0 | N35: 0 | O35: 0 | P35: 0
C36: 0 | G36: 0 | H36: 0 | I36: 0 | J36: 0 | K36: 0 | L36: 0 | M36: 0 | N36: 0 | O36: 0 | P36: 0
C37: 0 | G37: 0 | H37: 0 | I37: 0 | J37: 0 | K37: 0 | L37: 0 | M37: 0 | N37: 0 | O37: 0 | P37: 0
C38: 0 | G38: 0 | H38: 0 | I38: 0 | J38: 0 | K38: 0 | L38: 0 | M38: 0 | N38: 0 | O38: 0 | P38: 0
C39: 0 | G39: 0 | H39: 0 | I39: 0 | J39: 0 | K39: 0 | L39: 0 | M39: 0 | N39: 0 | O39: 0 | P39: 0
C40: 0 | G40: 0 | H40: 0 | I40: 0 | J40: 0 | K40: 0 | L40: 0 | M40: 0 | N40: 0 | O40: 0 | P40: 0
C41: 0 | G41: 0 | H41: 0 | I41: 0 | J41: 0 | K41: 0 | L41: 0 | M41: 0 | N41: 0 | O41: 0 | P41: 0
C42: 0 | G42: 0 | H42: 0 | I42: 0 | J42: 0 | K42: 0 | L42: 0 | M42: 0 | N42: 0 | O42: 0 | P42: 0
C43: 0 | G43: 0 | H43: 0 | I43: 0 | J43: 0 | K43: 0 | L43: 0 | M43: 0 | N43: 0 | O43: 0 | P43: 0
C44: 0 | G44: 0 | H44: 0 | I44: 0 | J44: 0 | K44: 0 | L44: 0 | M44: 0 | N44: 0 | O44: 0 | P44: 0
C45: 0 | G45: 0 | H45: 0 | I45: 0 | J45: 0 | K45: 0 | L45: 0 | M45: 0 | N45: 0 | O45: 0 | P45: 0
C46: 0 | G46: 0 | H46: 0 | I46: 0 | J46: 0 | K46: 0 | L46: 0 | M46: 0 | N46: 0 | O46: 0 | P46: 0
C47: 0 | G47: 0 | H47: 0 | I47: 0 | J47: 0 | K47: 0 | L47: 0 | M47: 0 | N47: 0 | O47: 0 | P47: 0
C48: 0 | G48: 0 | H48: 0 | I48: 0 | J48: 0 | K48: 0 | L48: 0 | M48: 0 | N48: 0 | O48: 0 | P48: 0
C49: 0 | G49: 0 | H49: 0 | I49: 0 | J49: 0 | K49: 0 | L49: 0 | M49: 0 | N49: 0 | O49: 0 | P49: 0
C50: 0 | G50: 0 | H50: 0 | I50: 0 | J50: 0 | K50: 0 | L50: 0 | M50: 0 | N50: 0 | O50: 0 | P50: 0
C51: 0 | G51: 0 | H51: 0 | I51: 0 | J51: 0 | K51: 0 | L51: 0 | M51: 0 | N51: 0 | O51: 0 | P51: 0
C52: 0 | G52: 0 | H52: 0 | I52: 0 | J52: 0 | K52: 0 | L52: 0 | M52: 0 | N52: 0 | O52: 0 | P52: 0
C53: 0 | G53: 0 | H53: 0 | I53: 0 | J53: 0 | K53: 0 | L53: 0 | M53: 0 | N53: 0 | O53: 0 | P53: 0
C54: 0 | G54: 0 | H54: 0 | I54: 0 | J54: 0 | K54: 0 | L54: 0 | M54: 0 | N54: 0 | O54: 0 | P54: 0
C55: 0 | G55: 0 | H55: 0 | I55: 0 | J55: 0 | K55: 0 | L55: 0 | M55: 0 | N55: 0 | O55: 0 | P55: 0
C56: 0 | G56: 0 | H56: 0 | I56: 0 | J56: 0 | K56: 0 | L56: 0 | M56: 0 | N56: 0 | O56: 0 | P56: 0
C57: Spare straight-line tax asset class 1 | G57: 0 | H57: 0 | I57: 0 | J57: 0 | K57: 0 | L57: 0 | M57: 0 | N57: 0 | O57: 0 | P57: 0
C58: Buildings - capital works | G58: 0 | H58: 0 | I58: 0 | J58: 0 | K58: 0 | L58: 0 | M58: 0 | N58: 0 | O58: 0 | P58: 0
C59: in-house software | G59: 0.1084045163 | H59: 0 | I59: 0 | J59: 0 | K59: 0 | L59: 0 | M59: 0 | N59: 0 | O59: 0 | P59: 0
C60: Equity raising costs | G60: 0.368089313 | H60: 0 | I60: 0 | J60: 0 | K60: 0 | L60: 0 | M60: 0 | N60: 0 | O60: 0 | P60: 0
B61: Nominal Net Capex | G61: 10.66101671 | H61: 15.16313812 | I61: 17.15868069 | J61: 11.66321947 | K61: 6.056632045 | L61: 0 | M61: 0 | N61: 0 | O61: 0 | P61: 0
C62: Poles and brackets | G62: 1.700404405 | H62: 1.731283894 | I62: 1.777166145 | J62: 1.824523499 | K62: 1.873746568 | L62: 0 | M62: 0 | N62: 0 | O62: 0 | P62: 0
C63: Existing lights - luminaires | G63: -0.2886367624 | H63: -0.5904405491 | I63: -0.9178489209 | J63: -0.5382386025 | K63: -5.70358791e-06 | L63: 0 | M63: 0 | N63: 0 | O63: 0 | P63: 0
C64: Energy efficient lights - luminaires & ballasts | G64: 6.681133699 | H64: 12.5005636 | I64: 14.68944819 | J64: 9.233465587 | K64: 3.452598656 | L64: 0 | M64: 0 | N64: 0 | O64: 0 | P64: 0
C65: Replaced self-funded energy efficient lights | G65: 0 | H65: 0 | I65: 0 | J65: 0 | K65: 0 | L65: 0 | M65: 0 | N65: 0 | O65: 0 | P65: 0
L66: 0 | M66: 0 | N66: 0 | O66: 0 | P66: 0
L67: 0 | M67: 0 | N67: 0 | O67: 0 | P67: 0
C68: 0 | G68: 0 | H68: 0 | I68: 0 | J68: 0 | K68: 0 | L68: 0 | M68: 0 | N68: 0 | O68: 0 | P68: 0
C69: 0 | G69: 0 | H69: 0 | I69: 0 | J69: 0 | K69: 0 | L69: 0 | M69: 0 | N69: 0 | O69: 0 | P69: 0
C70: 0 | G70: 0 | H70: 0 | I70: 0 | J70: 0 | K70: 0 | L70: 0 | M70: 0 | N70: 0 | O70: 0 | P70: 0
C71: 0 | G71: 0 | H71: 0 | I71: 0 | J71: 0 | K71: 0 | L71: 0 | M71: 0 | N71: 0 | O71: 0 | P71: 0
C72: 0 | G72: 0 | H72: 0 | I72: 0 | J72: 0 | K72: 0 | L72: 0 | M72: 0 | N72: 0 | O72: 0 | P72: 0
C73: 0 | G73: 0 | H73: 0 | I73: 0 | J73: 0 | K73: 0 | L73: 0 | M73: 0 | N73: 0 | O73: 0 | P73: 0
C74: 0 | G74: 0 | H74: 0 | I74: 0 | J74: 0 | K74: 0 | L74: 0 | M74: 0 | N74: 0 | O74: 0 | P74: 0
C75: 0 | G75: 0 | H75: 0 | I75: 0 | J75: 0 | K75: 0 | L75: 0 | M75: 0 | N75: 0 | O75: 0 | P75: 0
C76: 0 | G76: 0 | H76: 0 | I76: 0 | J76: 0 | K76: 0 | L76: 0 | M76: 0 | N76: 0 | O76: 0 | P76: 0
C77: 0 | G77: 0 | H77: 0 | I77: 0 | J77: 0 | K77: 0 | L77: 0 | M77: 0 | N77: 0 | O77: 0 | P77: 0
C78: 0 | G78: 0 | H78: 0 | I78: 0 | J78: 0 | K78: 0 | L78: 0 | M78: 0 | N78: 0 | O78: 0 | P78: 0
C79: 0 | G79: 0 | H79: 0 | I79: 0 | J79: 0 | K79: 0 | L79: 0 | M79: 0 | N79: 0 | O79: 0 | P79: 0
C80: 0 | G80: 0 | H80: 0 | I80: 0 | J80: 0 | K80: 0 | L80: 0 | M80: 0 | N80: 0 | O80: 0 | P80: 0
C81: 0 | G81: 0 | H81: 0 | I81: 0 | J81: 0 | K81: 0 | L81: 0 | M81: 0 | N81: 0 | O81: 0 | P81: 0
C82: 0 | G82: 0 | H82: 0 | I82: 0 | J82: 0 | K82: 0 | L82: 0 | M82: 0 | N82: 0 | O82: 0 | P82: 0
C83: 0 | G83: 0 | H83: 0 | I83: 0 | J83: 0 | K83: 0 | L83: 0 | M83: 0 | N83: 0 | O83: 0 | P83: 0
C84: 0 | G84: 0 | H84: 0 | I84: 0 | J84: 0 | K84: 0 | L84: 0 | M84: 0 | N84: 0 | O84: 0 | P84: 0
C85: 0 | G85: 0 | H85: 0 | I85: 0 | J85: 0 | K85: 0 | L85: 0 | M85: 0 | N85: 0 | O85: 0 | P85: 0
C86: 0 | G86: 0 | H86: 0 | I86: 0 | J86: 0 | K86: 0 | L86: 0 | M86: 0 | N86: 0 | O86: 0 | P86: 0
C87: 0 | G87: 0 | H87: 0 | I87: 0 | J87: 0 | K87: 0 | L87: 0 | M87: 0 | N87: 0 | O87: 0 | P87: 0
C88: 0 | G88: 0 | H88: 0 | I88: 0 | J88: 0 | K88: 0 | L88: 0 | M88: 0 | N88: 0 | O88: 0 | P88: 0
C89: 0 | G89: 0 | H89: 0 | I89: 0 | J89: 0 | K89: 0 | L89: 0 | M89: 0 | N89: 0 | O89: 0 | P89: 0
C90: 0 | G90: 0 | H90: 0 | I90: 0 | J90: 0 | K90: 0 | L90: 0 | M90: 0 | N90: 0 | O90: 0 | P90: 0
C91: 0 | G91: 0 | H91: 0 | I91: 0 | J91: 0 | K91: 0 | L91: 0 | M91: 0 | N91: 0 | O91: 0 | P91: 0
C92: 0 | G92: 0 | H92: 0 | I92: 0 | J92: 0 | K92: 0 | L92: 0 | M92: 0 | N92: 0 | O92: 0 | P92: 0
C93: 0 | G93: 0 | H93: 0 | I93: 0 | J93: 0 | K93: 0 | L93: 0 | M93: 0 | N93: 0 | O93: 0 | P93: 0
C94: 0 | G94: 0 | H94: 0 | I94: 0 | J94: 0 | K94: 0 | L94: 0 | M94: 0 | N94: 0 | O94: 0 | P94: 0
C95: 0 | G95: 0 | H95: 0 | I95: 0 | J95: 0 | K95: 0 | L95: 0 | M95: 0 | N95: 0 | O95: 0 | P95: 0
C96: 0 | G96: 0 | H96: 0 | I96: 0 | J96: 0 | K96: 0 | L96: 0 | M96: 0 | N96: 0 | O96: 0 | P96: 0
C97: 0 | G97: 0 | H97: 0 | I97: 0 | J97: 0 | K97: 0 | L97: 0 | M97: 0 | N97: 0 | O97: 0 | P97: 0
C98: 0 | G98: 0 | H98: 0 | I98: 0 | J98: 0 | K98: 0 | L98: 0 | M98: 0 | N98: 0 | O98: 0 | P98: 0
C99: 0 | G99: 0 | H99: 0 | I99: 0 | J99: 0 | K99: 0 | L99: 0 | M99: 0 | N99: 0 | O99: 0 | P99: 0
C100: 0 | G100: 0 | H100: 0 | I100: 0 | J100: 0 | K100: 0 | L100: 0 | M100: 0 | N100: 0 | O100: 0 | P100: 0
C101: 0 | G101: 0 | H101: 0 | I101: 0 | J101: 0 | K101: 0 | L101: 0 | M101: 0 | N101: 0 | O101: 0 | P101: 0
C102: 0 | G102: 0 | H102: 0 | I102: 0 | J102: 0 | K102: 0 | L102: 0 | M102: 0 | N102: 0 | O102: 0 | P102: 0
C103: 0 | G103: 0 | H103: 0 | I103: 0 | J103: 0 | K103: 0 | L103: 0 | M103: 0 | N103: 0 | O103: 0 | P103: 0
C104: 0 | G104: 0 | H104: 0 | I104: 0 | J104: 0 | K104: 0 | L104: 0 | M104: 0 | N104: 0 | O104: 0 | P104: 0
C105: 0 | G105: 0 | H105: 0 | I105: 0 | J105: 0 | K105: 0 | L105: 0 | M105: 0 | N105: 0 | O105: 0 | P105: 0
C106: 0 | G106: 0 | H106: 0 | I106: 0 | J106: 0 | K106: 0 | L106: 0 | M106: 0 | N106: 0 | O106: 0 | P106: 0
C107: 0 | G107: 0 | H107: 0 | I107: 0 | J107: 0 | K107: 0 | L107: 0 | M107: 0 | N107: 0 | O107: 0 | P107: 0
C108: Spare straight-line tax asset class 1 | G108: 0 | H108: 0 | I108: 0 | J108: 0 | K108: 0 | L108: 0 | M108: 0 | N108: 0 | O108: 0 | P108: 0
C109: Buildings - capital works | G109: 0 | H109: 0 | I109: 0 | J109: 0 | K109: 0 | L109: 0 | M109: 0 | N109: 0 | O109: 0 | P109: 0
H110: 0 | I110: 0 | J110: 0 | K110: 0 | L110: 0 | M110: 0 | N110: 0 | O110: 0 | P110: 0
C111: Equity raising costs | G111: 0.377732882 | H111: 0 | I111: 0 | J111: 0 | K111: 0 | L111: 0 | M111: 0 | N111: 0 | O111: 0 | P111: 0
B113: Asset Values ($m Real 2025-26)
B115: Real Straight-line Depreciation | G115: 1.114964399 | H115: 1.722599295 | I115: 2.382697995 | J115: 3.095799724 | K115: 3.554553595 | L115: 3.785370783 | M115: 3.604808363 | N115: 3.604808363 | O115: 3.604808363 | P115: 3.604808363 | Q115: 3.604808363 | R115: 3.604808363 | S115: 3.604808363 | T115: 3.604807342 | U115: 3.604804891 | V115: 3.604804891 | W115: 3.379335945 | X115: 3.065206441 | Y115: 3.065206441 | Z115: 3.065206441 | AA115: 3.065206441 | AB115: 2.678095784 | AC115: 2.011641803 | AD115: 1.241431419 | AE115: 0.7735748328 | AF115: 0.5897988932 | AG115: 0.5897988932 | AH115: 0.5897988932 | AI115: 0.3200808033 | AJ115: 0.235348186 | AK115: 0.235348186 | AL115: 0.235348186 | AM115: 0.235348186 | AN115: 0.235348186 | AO115: 0.235348186 | AP115: 0.235348186 | AQ115: 0.1880055328 | AR115: 0.1410337464 | AS115: 0.09404809681 | AT115: 0.04704190354 | AU115: 1.33226763e-15 | AV115: 0 | AW115: 0 | AX115: 0 | AY115: 0 | AZ115: 0 | BA115: 0 | BB115: 0 | BC115: 0 | BD115: 0 | BE115: 0 | BF115: 0 | BG115: 0 | BH115: 0 | BI115: 0
B116: Poles and brackets | D116: Initial Asset Base | G116: 0.3544507072 | H116: 0.3544507072 | I116: 0.3544507072 | J116: 0.3544507072 | K116: 0.3544507072 | L116: 0.3544507072 | M116: 0.3544507072 | N116: 0.3544507072 | O116: 0.3544507072 | P116: 0.3544507072 | Q116: 0.3544507072 | R116: 0.3544507072 | S116: 0.3544507072 | T116: 0.3544507072 | U116: 0.3544507072 | V116: 0.3544507072 | W116: 0.3544507072 | X116: 0.3544507072 | Y116: 0.3544507072 | Z116: 0.3544507072 | AA116: 0.3544507072 | AB116: 0.3544507072 | AC116: 0.3544507072 | AD116: 0.3544507072 | AE116: 0.3544507072 | AF116: 0.3544507072 | AG116: 0.3544507072 | AH116: 0.3544507072 | AI116: 0.08473261726 | AJ116: 0 | AK116: 0 | AL116: 0 | AM116: 0 | AN116: 0 | AO116: 0 | AP116: 0 | AQ116: 0 | AR116: 0 | AS116: 0 | AT116: 0 | AU116: 0 | AV116: 0 | AW116: 0 | AX116: 0 | AY116: 0 | AZ116: 0 | BA116: 0 | BB116: 0 | BC116: 0 | BD116: 0 | BE116: 0 | BF116: 0 | BG116: 0 | BH116: 0 | BI116: 0
D117: Capex in year | E117: 0
E118: 1 | H118: 0.04734265321 | I118: 0.04734265321 | J118: 0.04734265321 | K118: 0.04734265321 | L118: 0.04734265321 | M118: 0.04734265321 | N118: 0.04734265321 | O118: 0.04734265321 | P118: 0.04734265321 | Q118: 0.04734265321 | R118: 0.04734265321 | S118: 0.04734265321 | T118: 0.04734265321 | U118: 0.04734265321 | V118: 0.04734265321 | W118: 0.04734265321 | X118: 0.04734265321 | Y118: 0.04734265321 | Z118: 0.04734265321 | AA118: 0.04734265321 | AB118: 0.04734265321 | AC118: 0.04734265321 | AD118: 0.04734265321 | AE118: 0.04734265321 | AF118: 0.04734265321 | AG118: 0.04734265321 | AH118: 0.04734265321 | AI118: 0.04734265321 | AJ118: 0.04734265321 | AK118: 0.04734265321 | AL118: 0.04734265321 | AM118: 0.04734265321 | AN118: 0.04734265321 | AO118: 0.04734265321 | AP118: 0.04734265321 | AQ118: -6.661338148e-16 | AR118: 0 | AS118: 0 | AT118: 0 | AU118: 0 | AV118: 0 | AW118: 0 | AX118: 0 | AY118: 0 | AZ118: 0 | BA118: 0 | BB118: 0 | BC118: 0 | BD118: 0 | BE118: 0 | BF118: 0 | BG118: 0 | BH118: 0 | BI118: 0
E119: 2 | I119: 0.04697178636 | J119: 0.04697178636 | K119: 0.04697178636 | L119: 0.04697178636 | M119: 0.04697178636 | N119: 0.04697178636 | O119: 0.04697178636 | P119: 0.04697178636 | Q119: 0.04697178636 | R119: 0.04697178636 | S119: 0.04697178636 | T119: 0.04697178636 | U119: 0.04697178636 | V119: 0.04697178636 | W119: 0.04697178636 | X119: 0.04697178636 | Y119: 0.04697178636 | Z119: 0.04697178636 | AA119: 0.04697178636 | AB119: 0.04697178636 | AC119: 0.04697178636 | AD119: 0.04697178636 | AE119: 0.04697178636 | AF119: 0.04697178636 | AG119: 0.04697178636 | AH119: 0.04697178636 | AI119: 0.04697178636 | AJ119: 0.04697178636 | AK119: 0.04697178636 | AL119: 0.04697178636 | AM119: 0.04697178636 | AN119: 0.04697178636 | AO119: 0.04697178636 | AP119: 0.04697178636 | AQ119: 0.04697178636 | AR119: 0 | AS119: 0 | AT119: 0 | AU119: 0 | AV119: 0 | AW119: 0 | AX119: 0 | AY119: 0 | AZ119: 0 | BA119: 0 | BB119: 0 | BC119: 0 | BD119: 0 | BE119: 0 | BF119: 0 | BG119: 0 | BH119: 0 | BI119: 0
E120: 3 | J120: 0.0469856496 | K120: 0.0469856496 | L120: 0.0469856496 | M120: 0.0469856496 | N120: 0.0469856496 | O120: 0.0469856496 | P120: 0.0469856496 | Q120: 0.0469856496 | R120: 0.0469856496 | S120: 0.0469856496 | T120: 0.0469856496 | U120: 0.0469856496 | V120: 0.0469856496 | W120: 0.0469856496 | X120: 0.0469856496 | Y120: 0.0469856496 | Z120: 0.0469856496 | AA120: 0.0469856496 | AB120: 0.0469856496 | AC120: 0.0469856496 | AD120: 0.0469856496 | AE120: 0.0469856496 | AF120: 0.0469856496 | AG120: 0.0469856496 | AH120: 0.0469856496 | AI120: 0.0469856496 | AJ120: 0.0469856496 | AK120: 0.0469856496 | AL120: 0.0469856496 | AM120: 0.0469856496 | AN120: 0.0469856496 | AO120: 0.0469856496 | AP120: 0.0469856496 | AQ120: 0.0469856496 | AR120: 0.0469856496 | AS120: -6.661338148e-16 | AT120: 0 | AU120: 0 | AV120: 0 | AW120: 0 | AX120: 0 | AY120: 0 | AZ120: 0 | BA120: 0 | BB120: 0 | BC120: 0 | BD120: 0 | BE120: 0 | BF120: 0 | BG120: 0 | BH120: 0 | BI120: 0
E121: 4 | K121: 0.04700619327 | L121: 0.04700619327 | M121: 0.04700619327 | N121: 0.04700619327 | O121: 0.04700619327 | P121: 0.04700619327 | Q121: 0.04700619327 | R121: 0.04700619327 | S121: 0.04700619327 | T121: 0.04700619327 | U121: 0.04700619327 | V121: 0.04700619327 | W121: 0.04700619327 | X121: 0.04700619327 | Y121: 0.04700619327 | Z121: 0.04700619327 | AA121: 0.04700619327 | AB121: 0.04700619327 | AC121: 0.04700619327 | AD121: 0.04700619327 | AE121: 0.04700619327 | AF121: 0.04700619327 | AG121: 0.04700619327 | AH121: 0.04700619327 | AI121: 0.04700619327 | AJ121: 0.04700619327 | AK121: 0.04700619327 | AL121: 0.04700619327 | AM121: 0.04700619327 | AN121: 0.04700619327 | AO121: 0.04700619327 | AP121: 0.04700619327 | AQ121: 0.04700619327 | AR121: 0.04700619327 | AS121: 0.04700619327 | AT121: 1.110223025e-15 | AU121: 0 | AV121: 0 | AW121: 0 | AX121: 0 | AY121: 0 | AZ121: 0 | BA121: 0 | BB121: 0 | BC121: 0 | BD121: 0 | BE121: 0 | BF121: 0 | BG121: 0 | BH121: 0 | BI121: 0
E122: 5 | L122: 0.04704190354 | M122: 0.04704190354 | N122: 0.04704190354 | O122: 0.04704190354 | P122: 0.04704190354 | Q122: 0.04704190354 | R122: 0.04704190354 | S122: 0.04704190354 | T122: 0.04704190354 | U122: 0.04704190354 | V122: 0.04704190354 | W122: 0.04704190354 | X122: 0.04704190354 | Y122: 0.04704190354 | Z122: 0.04704190354 | AA122: 0.04704190354 | AB122: 0.04704190354 | AC122: 0.04704190354 | AD122: 0.04704190354 | AE122: 0.04704190354 | AF122: 0.04704190354 | AG122: 0.04704190354 | AH122: 0.04704190354 | AI122: 0.04704190354 | AJ122: 0.04704190354 | AK122: 0.04704190354 | AL122: 0.04704190354 | AM122: 0.04704190354 | AN122: 0.04704190354 | AO122: 0.04704190354 | AP122: 0.04704190354 | AQ122: 0.04704190354 | AR122: 0.04704190354 | AS122: 0.04704190354 | AT122: 0.04704190354 | AU122: 1.33226763e-15 | AV122: 0 | AW122: 0 | AX122: 0 | AY122: 0 | AZ122: 0 | BA122: 0 | BB122: 0 | BC122: 0 | BD122: 0 | BE122: 0 | BF122: 0 | BG122: 0 | BH122: 0 | BI122: 0
E123: 6 | M123: 0 | N123: 0 | O123: 0 | P123: 0 | Q123: 0 | R123: 0 | S123: 0 | T123: 0 | U123: 0 | V123: 0 | W123: 0 | X123: 0 | Y123: 0 | Z123: 0 | AA123: 0 | AB123: 0 | AC123: 0 | AD123: 0 | AE123: 0 | AF123: 0 | AG123: 0 | AH123: 0 | AI123: 0 | AJ123: 0 | AK123: 0 | AL123: 0 | AM123: 0 | AN123: 0 | AO123: 0 | AP123: 0 | AQ123: 0 | AR123: 0 | AS123: 0 | AT123: 0 | AU123: 0 | AV123: 0 | AW123: 0 | AX123: 0 | AY123: 0 | AZ123: 0 | BA123: 0 | BB123: 0 | BC123: 0 | BD123: 0 | BE123: 0 | BF123: 0 | BG123: 0 | BH123: 0 | BI123: 0
E124: 7 | N124: 0 | O124: 0 | P124: 0 | Q124: 0 | R124: 0 | S124: 0 | T124: 0 | U124: 0 | V124: 0 | W124: 0 | X124: 0 | Y124: 0 | Z124: 0 | AA124: 0 | AB124: 0 | AC124: 0 | AD124: 0 | AE124: 0 | AF124: 0 | AG124: 0 | AH124: 0 | AI124: 0 | AJ124: 0 | AK124: 0 | AL124: 0 | AM124: 0 | AN124: 0 | AO124: 0 | AP124: 0 | AQ124: 0 | AR124: 0 | AS124: 0 | AT124: 0 | AU124: 0 | AV124: 0 | AW124: 0 | AX124: 0 | AY124: 0 | AZ124: 0 | BA124: 0 | BB124: 0 | BC124: 0 | BD124: 0 | BE124: 0 | BF124: 0 | BG124: 0 | BH124: 0 | BI124: 0
E125: 8 | O125: 0 | P125: 0 | Q125: 0 | R125: 0 | S125: 0 | T125: 0 | U125: 0 | V125: 0 | W125: 0 | X125: 0 | Y125: 0 | Z125: 0 | AA125: 0 | AB125: 0 | AC125: 0 | AD125: 0 | AE125: 0 | AF125: 0 | AG125: 0 | AH125: 0 | AI125: 0 | AJ125: 0 | AK125: 0 | AL125: 0 | AM125: 0 | AN125: 0 | AO125: 0 | AP125: 0 | AQ125: 0 | AR125: 0 | AS125: 0 | AT125: 0 | AU125: 0 | AV125: 0 | AW125: 0 | AX125: 0 | AY125: 0 | AZ125: 0 | BA125: 0 | BB125: 0 | BC125: 0 | BD125: 0 | BE125: 0 | BF125: 0 | BG125: 0 | BH125: 0 | BI125: 0
E126: 9 | P126: 0 | Q126: 0 | R126: 0 | S126: 0 | T126: 0 | U126: 0 | V126: 0 | W126: 0 | X126: 0 | Y126: 0 | Z126: 0 | AA126: 0 | AB126: 0 | AC126: 0 | AD126: 0 | AE126: 0 | AF126: 0 | AG126: 0 | AH126: 0 | AI126: 0 | AJ126: 0 | AK126: 0 | AL126: 0 | AM126: 0 | AN126: 0 | AO126: 0 | AP126: 0 | AQ126: 0 | AR126: 0 | AS126: 0 | AT126: 0 | AU126: 0 | AV126: 0 | AW126: 0 | AX126: 0 | AY126: 0 | AZ126: 0 | BA126: 0 | BB126: 0 | BC126: 0 | BD126: 0 | BE126: 0 | BF126: 0 | BG126: 0 | BH126: 0 | BI126: 0
E127: 10 | Q127: 0 | R127: 0 | S127: 0 | T127: 0 | U127: 0 | V127: 0 | W127: 0 | X127: 0 | Y127: 0 | Z127: 0 | AA127: 0 | AB127: 0 | AC127: 0 | AD127: 0 | AE127: 0 | AF127: 0 | AG127: 0 | AH127: 0 | AI127: 0 | AJ127: 0 | AK127: 0 | AL127: 0 | AM127: 0 | AN127: 0 | AO127: 0 | AP127: 0 | AQ127: 0 | AR127: 0 | AS127: 0 | AT127: 0 | AU127: 0 | AV127: 0 | AW127: 0 | AX127: 0 | AY127: 0 | AZ127: 0 | BA127: 0 | BB127: 0 | BC127: 0 | BD127: 0 | BE127: 0 | BF127: 0 | BG127: 0 | BH127: 0 | BI127: 0
C128: Poles and brackets | G128: 0.3544507072 | H128: 0.4017933604 | I128: 0.4487651468 | J128: 0.4957507964 | K128: 0.5427569897 | L128: 0.5897988932 | M128: 0.5897988932 | N128: 0.5897988932 | O128: 0.5897988932 | P128: 0.5897988932 | Q128: 0.5897988932 | R128: 0.5897988932 | S128: 0.5897988932 | T128: 0.5897988932 | U128: 0.5897988932 | V128: 0.5897988932 | W128: 0.5897988932 | X128: 0.5897988932 | Y128: 0.5897988932 | Z128: 0.5897988932 | AA128: 0.5897988932 | AB128: 0.5897988932 | AC128: 0.5897988932 | AD128: 0.5897988932 | AE128: 0.5897988932 | AF128: 0.5897988932 | AG128: 0.5897988932 | AH128: 0.5897988932 | AI128: 0.3200808033 | AJ128: 0.235348186 | AK128: 0.235348186 | AL128: 0.235348186 | AM128: 0.235348186 | AN128: 0.235348186 | AO128: 0.235348186 | AP128: 0.235348186 | AQ128: 0.1880055328 | AR128: 0.1410337464 | AS128: 0.09404809681 | AT128: 0.04704190354 | AU128: 1.33226763e-15 | AV128: 0 | AW128: 0 | AX128: 0 | AY128: 0 | AZ128: 0 | BA128: 0 | BB128: 0 | BC128: 0 | BD128: 0 | BE128: 0 | BF128: 0 | BG128: 0 | BH128: 0 | BI128: 0
B129: Existing lights - luminaires | D129: Initial Asset Base | G129: 0.2209152418 | H129: 0.1967721043 | I129: 0.1441264009 | J129: 0.05611303677 | K129: 4.127769816e-06 | L129: 3.472638839e-06 | M129: 3.472638839e-06 | N129: 3.472638839e-06 | O129: 3.472638839e-06 | P129: 3.472638839e-06 | Q129: 3.472638839e-06 | R129: 3.472638839e-06 | S129: 3.472638839e-06 | T129: 2.451776426e-06 | U129: 0 | V129: 0 | W129: 0 | X129: 0 | Y129: 0 | Z129: 0 | AA129: 0 | AB129: 0 | AC129: 0 | AD129: 0 | AE129: 0 | AF129: 0 | AG129: 0 | AH129: 0 | AI129: 0 | AJ129: 0 | AK129: 0 | AL129: 0 | AM129: 0 | AN129: 0 | AO129: 0 | AP129: 0 | AQ129: 0 | AR129: 0 | AS129: 0 | AT129: 0 | AU129: 0 | AV129: 0 | AW129: 0 | AX129: 0 | AY129: 0 | AZ129: 0 | BA129: 0 | BB129: 0 | BC129: 0 | BD129: 0 | BE129: 0 | BF129: 0 | BG129: 0 | BH129: 0 | BI129: 0
D130: Capex in year | E130: 0 | H130: Note: depreciation of asset disposals removed; depreciation managed via the year-by-year tracking input
E131: 1
E132: 2
E133: 3
E134: 4
E135: 5
E136: 6
E137: 7
E138: 8
E139: 9
E140: 10
C141: Existing lights - luminaires | G141: 0.2209152418 | H141: 0.1967721043 | I141: 0.1441264009 | J141: 0.05611303677 | K141: 4.127769816e-06 | L141: 3.472638839e-06 | M141: 3.472638839e-06 | N141: 3.472638839e-06 | O141: 3.472638839e-06 | P141: 3.472638839e-06 | Q141: 3.472638839e-06 | R141: 3.472638839e-06 | S141: 3.472638839e-06 | T141: 2.451776426e-06 | U141: 0 | V141: 0 | W141: 0 | X141: 0 | Y141: 0 | Z141: 0 | AA141: 0 | AB141: 0 | AC141: 0 | AD141: 0 | AE141: 0 | AF141: 0 | AG141: 0 | AH141: 0 | AI141: 0 | AJ141: 0 | AK141: 0 | AL141: 0 | AM141: 0 | AN141: 0 | AO141: 0 | AP141: 0 | AQ141: 0 | AR141: 0 | AS141: 0 | AT141: 0 | AU141: 0 | AV141: 0 | AW141: 0 | AX141: 0 | AY141: 0 | AZ141: 0 | BA141: 0 | BB141: 0 | BC141: 0 | BD141: 0 | BE141: 0 | BF141: 0 | BG141: 0 | BH141: 0 | BI141: 0
B142: Energy efficient lights - luminaires & ballasts | D142: Initial Asset Base | G142: 0.53959845 | H142: 0.53959845 | I142: 0.53959845 | J142: 0.53959845 | K142: 0.53959845 | L142: 0.53959845 | M142: 0.53959845 | N142: 0.53959845 | O142: 0.53959845 | P142: 0.53959845 | Q142: 0.53959845 | R142: 0.53959845 | S142: 0.53959845 | T142: 0.53959845 | U142: 0.53959845 | V142: 0.53959845 | W142: 0.3141295049 | X142: 0 | Y142: 0 | Z142: 0 | AA142: 0 | AB142: 0 | AC142: 0 | AD142: 0 | AE142: 0 | AF142: 0 | AG142: 0 | AH142: 0 | AI142: 0 | AJ142: 0 | AK142: 0 | AL142: 0 | AM142: 0 | AN142: 0 | AO142: 0 | AP142: 0 | AQ142: 0 | AR142: 0 | AS142: 0 | AT142: 0 | AU142: 0 | AV142: 0 | AW142: 0 | AX142: 0 | AY142: 0 | AZ142: 0 | BA142: 0 | BB142: 0 | BC142: 0 | BD142: 0 | BE142: 0 | BF142: 0 | BG142: 0 | BH142: 0 | BI142: 0
D143: Capex in year | E143: 0
E144: 1 | H144: 0.3255281749 | I144: 0.3255281749 | J144: 0.3255281749 | K144: 0.3255281749 | L144: 0.3255281749 | M144: 0.3255281749 | N144: 0.3255281749 | O144: 0.3255281749 | P144: 0.3255281749 | Q144: 0.3255281749 | R144: 0.3255281749 | S144: 0.3255281749 | T144: 0.3255281749 | U144: 0.3255281749 | V144: 0.3255281749 | W144: 0.3255281749 | X144: 0.3255281749 | Y144: 0.3255281749 | Z144: 0.3255281749 | AA144: 0.3255281749 | AB144: -1.776356839e-15 | AC144: 0 | AD144: 0 | AE144: 0 | AF144: 0 | AG144: 0 | AH144: 0 | AI144: 0 | AJ144: 0 | AK144: 0 | AL144: 0 | AM144: 0 | AN144: 0 | AO144: 0 | AP144: 0 | AQ144: 0 | AR144: 0 | AS144: 0 | AT144: 0 | AU144: 0 | AV144: 0 | AW144: 0 | AX144: 0 | AY144: 0 | AZ144: 0 | BA144: 0 | BB144: 0 | BC144: 0 | BD144: 0 | BE144: 0 | BF144: 0 | BG144: 0 | BH144: 0 | BI144: 0
E145: 2 | I145: 0.5935214661 | J145: 0.5935214661 | K145: 0.5935214661 | L145: 0.5935214661 | M145: 0.5935214661 | N145: 0.5935214661 | O145: 0.5935214661 | P145: 0.5935214661 | Q145: 0.5935214661 | R145: 0.5935214661 | S145: 0.5935214661 | T145: 0.5935214661 | U145: 0.5935214661 | V145: 0.5935214661 | W145: 0.5935214661 | X145: 0.5935214661 | Y145: 0.5935214661 | Z145: 0.5935214661 | AA145: 0.5935214661 | AB145: 0.5935214661 | AC145: -3.552713679e-15 | AD145: 0 | AE145: 0 | AF145: 0 | AG145: 0 | AH145: 0 | AI145: 0 | AJ145: 0 | AK145: 0 | AL145: 0 | AM145: 0 | AN145: 0 | AO145: 0 | AP145: 0 | AQ145: 0 | AR145: 0 | AS145: 0 | AT145: 0 | AU145: 0 | AV145: 0 | AW145: 0 | AX145: 0 | AY145: 0 | AZ145: 0 | BA145: 0 | BB145: 0 | BC145: 0 | BD145: 0 | BE145: 0 | BF145: 0 | BG145: 0 | BH145: 0 | BI145: 0
E146: 3 | J146: 0.6796428224 | K146: 0.6796428224 | L146: 0.6796428224 | M146: 0.6796428224 | N146: 0.6796428224 | O146: 0.6796428224 | P146: 0.6796428224 | Q146: 0.6796428224 | R146: 0.6796428224 | S146: 0.6796428224 | T146: 0.6796428224 | U146: 0.6796428224 | V146: 0.6796428224 | W146: 0.6796428224 | X146: 0.6796428224 | Y146: 0.6796428224 | Z146: 0.6796428224 | AA146: 0.6796428224 | AB146: 0.6796428224 | AC146: 0.6796428224 | AD146: 3.552713679e-15 | AE146: 0 | AF146: 0 | AG146: 0 | AH146: 0 | AI146: 0 | AJ146: 0 | AK146: 0 | AL146: 0 | AM146: 0 | AN146: 0 | AO146: 0 | AP146: 0 | AQ146: 0 | AR146: 0 | AS146: 0 | AT146: 0 | AU146: 0 | AV146: 0 | AW146: 0 | AX146: 0 | AY146: 0 | AZ146: 0 | BA146: 0 | BB146: 0 | BC146: 0 | BD146: 0 | BE146: 0 | BF146: 0 | BG146: 0 | BH146: 0 | BI146: 0
E147: 4 | K147: 0.4163019107 | L147: 0.4163019107 | M147: 0.4163019107 | N147: 0.4163019107 | O147: 0.4163019107 | P147: 0.4163019107 | Q147: 0.4163019107 | R147: 0.4163019107 | S147: 0.4163019107 | T147: 0.4163019107 | U147: 0.4163019107 | V147: 0.4163019107 | W147: 0.4163019107 | X147: 0.4163019107 | Y147: 0.4163019107 | Z147: 0.4163019107 | AA147: 0.4163019107 | AB147: 0.4163019107 | AC147: 0.4163019107 | AD147: 0.4163019107 | AE147: -1.776356839e-15 | AF147: 0 | AG147: 0 | AH147: 0 | AI147: 0 | AJ147: 0 | AK147: 0 | AL147: 0 | AM147: 0 | AN147: 0 | AO147: 0 | AP147: 0 | AQ147: 0 | AR147: 0 | AS147: 0 | AT147: 0 | AU147: 0 | AV147: 0 | AW147: 0 | AX147: 0 | AY147: 0 | AZ147: 0 | BA147: 0 | BB147: 0 | BC147: 0 | BD147: 0 | BE147: 0 | BF147: 0 | BG147: 0 | BH147: 0 | BI147: 0
E148: 5 | L148: 0.1516904301 | M148: 0.1516904301 | N148: 0.1516904301 | O148: 0.1516904301 | P148: 0.1516904301 | Q148: 0.1516904301 | R148: 0.1516904301 | S148: 0.1516904301 | T148: 0.1516904301 | U148: 0.1516904301 | V148: 0.1516904301 | W148: 0.1516904301 | X148: 0.1516904301 | Y148: 0.1516904301 | Z148: 0.1516904301 | AA148: 0.1516904301 | AB148: 0.1516904301 | AC148: 0.1516904301 | AD148: 0.1516904301 | AE148: 0.1516904301 | AF148: -8.881784197e-16 | AG148: 0 | AH148: 0 | AI148: 0 | AJ148: 0 | AK148: 0 | AL148: 0 | AM148: 0 | AN148: 0 | AO148: 0 | AP148: 0 | AQ148: 0 | AR148: 0 | AS148: 0 | AT148: 0 | AU148: 0 | AV148: 0 | AW148: 0 | AX148: 0 | AY148: 0 | AZ148: 0 | BA148: 0 | BB148: 0 | BC148: 0 | BD148: 0 | BE148: 0 | BF148: 0 | BG148: 0 | BH148: 0 | BI148: 0
E149: 6 | M149: 0 | N149: 0 | O149: 0 | P149: 0 | Q149: 0 | R149: 0 | S149: 0 | T149: 0 | U149: 0 | V149: 0 | W149: 0 | X149: 0 | Y149: 0 | Z149: 0 | AA149: 0 | AB149: 0 | AC149: 0 | AD149: 0 | AE149: 0 | AF149: 0 | AG149: 0 | AH149: 0 | AI149: 0 | AJ149: 0 | AK149: 0 | AL149: 0 | AM149: 0 | AN149: 0 | AO149: 0 | AP149: 0 | AQ149: 0 | AR149: 0 | AS149: 0 | AT149: 0 | AU149: 0 | AV149: 0 | AW149: 0 | AX149: 0 | AY149: 0 | AZ149: 0 | BA149: 0 | BB149: 0 | BC149: 0 | BD149: 0 | BE149: 0 | BF149: 0 | BG149: 0 | BH149: 0 | BI149: 0
E150: 7 | N150: 0 | O150: 0 | P150: 0 | Q150: 0 | R150: 0 | S150: 0 | T150: 0 | U150: 0 | V150: 0 | W150: 0 | X150: 0 | Y150: 0 | Z150: 0 | AA150: 0 | AB150: 0 | AC150: 0 | AD150: 0 | AE150: 0 | AF150: 0 | AG150: 0 | AH150: 0 | AI150: 0 | AJ150: 0 | AK150: 0 | AL150: 0 | AM150: 0 | AN150: 0 | AO150: 0 | AP150: 0 | AQ150: 0 | AR150: 0 | AS150: 0 | AT150: 0 | AU150: 0 | AV150: 0 | AW150: 0 | AX150: 0 | AY150: 0 | AZ150: 0 | BA150: 0 | BB150: 0 | BC150: 0 | BD150: 0 | BE150: 0 | BF150: 0 | BG150: 0 | BH150: 0 | BI150: 0
E151: 8 | O151: 0 | P151: 0 | Q151: 0 | R151: 0 | S151: 0 | T151: 0 | U151: 0 | V151: 0 | W151: 0 | X151: 0 | Y151: 0 | Z151: 0 | AA151: 0 | AB151: 0 | AC151: 0 | AD151: 0 | AE151: 0 | AF151: 0 | AG151: 0 | AH151: 0 | AI151: 0 | AJ151: 0 | AK151: 0 | AL151: 0 | AM151: 0 | AN151: 0 | AO151: 0 | AP151: 0 | AQ151: 0 | AR151: 0 | AS151: 0 | AT151: 0 | AU151: 0 | AV151: 0 | AW151: 0 | AX151: 0 | AY151: 0 | AZ151: 0 | BA151: 0 | BB151: 0 | BC151: 0 | BD151: 0 | BE151: 0 | BF151: 0 | BG151: 0 | BH151: 0 | BI151: 0
E152: 9 | P152: 0 | Q152: 0 | R152: 0 | S152: 0 | T152: 0 | U152: 0 | V152: 0 | W152: 0 | X152: 0 | Y152: 0 | Z152: 0 | AA152: 0 | AB152: 0 | AC152: 0 | AD152: 0 | AE152: 0 | AF152: 0 | AG152: 0 | AH152: 0 | AI152: 0 | AJ152: 0 | AK152: 0 | AL152: 0 | AM152: 0 | AN152: 0 | AO152: 0 | AP152: 0 | AQ152: 0 | AR152: 0 | AS152: 0 | AT152: 0 | AU152: 0 | AV152: 0 | AW152: 0 | AX152: 0 | AY152: 0 | AZ152: 0 | BA152: 0 | BB152: 0 | BC152: 0 | BD152: 0 | BE152: 0 | BF152: 0 | BG152: 0 | BH152: 0 | BI152: 0
E153: 10 | Q153: 0 | R153: 0 | S153: 0 | T153: 0 | U153: 0 | V153: 0 | W153: 0 | X153: 0 | Y153: 0 | Z153: 0 | AA153: 0 | AB153: 0 | AC153: 0 | AD153: 0 | AE153: 0 | AF153: 0 | AG153: 0 | AH153: 0 | AI153: 0 | AJ153: 0 | AK153: 0 | AL153: 0 | AM153: 0 | AN153: 0 | AO153: 0 | AP153: 0 | AQ153: 0 | AR153: 0 | AS153: 0 | AT153: 0 | AU153: 0 | AV153: 0 | AW153: 0 | AX153: 0 | AY153: 0 | AZ153: 0 | BA153: 0 | BB153: 0 | BC153: 0 | BD153: 0 | BE153: 0 | BF153: 0 | BG153: 0 | BH153: 0 | BI153: 0
C154: Energy efficient lights - luminaires & ballasts | G154: 0.53959845 | H154: 0.8651266249 | I154: 1.458648091 | J154: 2.138290913 | K154: 2.554592824 | L154: 2.706283254 | M154: 2.706283254 | N154: 2.706283254 | O154: 2.706283254 | P154: 2.706283254 | Q154: 2.706283254 | R154: 2.706283254 | S154: 2.706283254 | T154: 2.706283254 | U154: 2.706283254 | V154: 2.706283254 | W154: 2.480814309 | X154: 2.166684804 | Y154: 2.166684804 | Z154: 2.166684804 | AA154: 2.166684804 | AB154: 1.841156629 | AC154: 1.247635163 | AD154: 0.5679923407 | AE154: 0.1516904301 | AF154: -8.881784197e-16 | AG154: 0 | AH154: 0 | AI154: 0 | AJ154: 0 | AK154: 0 | AL154: 0 | AM154: 0 | AN154: 0 | AO154: 0 | AP154: 0 | AQ154: 0 | AR154: 0 | AS154: 0 | AT154: 0 | AU154: 0 | AV154: 0 | AW154: 0 | AX154: 0 | AY154: 0 | AZ154: 0 | BA154: 0 | BB154: 0 | BC154: 0 | BD154: 0 | BE154: 0 | BF154: 0 | BG154: 0 | BH154: 0 | BI154: 0
B155: Replaced self-funded energy efficient lights | D155: Initial Asset Base | G155: 0 | H155: 0 | I155: 0 | J155: 0 | K155: 0 | L155: 0 | M155: 0 | N155: 0 | O155: 0 | P155: 0 | Q155: 0 | R155: 0 | S155: 0 | T155: 0 | U155: 0 | V155: 0 | W155: 0 | X155: 0 | Y155: 0 | Z155: 0 | AA155: 0 | AB155: 0 | AC155: 0 | AD155: 0 | AE155: 0 | AF155: 0 | AG155: 0 | AH155: 0 | AI155: 0 | AJ155: 0 | AK155: 0 | AL155: 0 | AM155: 0 | AN155: 0 | AO155: 0 | AP155: 0 | AQ155: 0 | AR155: 0 | AS155: 0 | AT155: 0 | AU155: 0 | AV155: 0 | AW155: 0 | AX155: 0 | AY155: 0 | AZ155: 0 | BA155: 0 | BB155: 0 | BC155: 0 | BD155: 0 | BE155: 0 | BF155: 0 | BG155: 0 | BH155: 0 | BI155: 0
D156: Capex in year | E156: 0
E157: 1 | H157: 0 | I157: 0 | J157: 0 | K157: 0 | L157: 0 | M157: 0 | N157: 0 | O157: 0 | P157: 0 | Q157: 0 | R157: 0 | S157: 0 | T157: 0 | U157: 0 | V157: 0 | W157: 0 | X157: 0 | Y157: 0 | Z157: 0 | AA157: 0 | AB157: 0 | AC157: 0 | AD157: 0 | AE157: 0 | AF157: 0 | AG157: 0 | AH157: 0 | AI157: 0 | AJ157: 0 | AK157: 0 | AL157: 0 | AM157: 0 | AN157: 0 | AO157: 0 | AP157: 0 | AQ157: 0 | AR157: 0 | AS157: 0 | AT157: 0 | AU157: 0 | AV157: 0 | AW157: 0 | AX157: 0 | AY157: 0 | AZ157: 0 | BA157: 0 | BB157: 0 | BC157: 0 | BD157: 0 | BE157: 0 | BF157: 0 | BG157: 0 | BH157: 0 | BI157: 0
E158: 2 | I158: 0 | J158: 0 | K158: 0 | L158: 0 | M158: 0 | N158: 0 | O158: 0 | P158: 0 | Q158: 0 | R158: 0 | S158: 0 | T158: 0 | U158: 0 | V158: 0 | W158: 0 | X158: 0 | Y158: 0 | Z158: 0 | AA158: 0 | AB158: 0 | AC158: 0 | AD158: 0 | AE158: 0 | AF158: 0 | AG158: 0 | AH158: 0 | AI158: 0 | AJ158: 0 | AK158: 0 | AL158: 0 | AM158: 0 | AN158: 0 | AO158: 0 | AP158: 0 | AQ158: 0 | AR158: 0 | AS158: 0 | AT158: 0 | AU158: 0 | AV158: 0 | AW158: 0 | AX158: 0 | AY158: 0 | AZ158: 0 | BA158: 0 | BB158: 0 | BC158: 0 | BD158: 0 | BE158: 0 | BF158: 0 | BG158: 0 | BH158: 0 | BI158: 0
E159: 3 | J159: 0 | K159: 0 | L159: 0 | M159: 0 | N159: 0 | O159: 0 | P159: 0 | Q159: 0 | R159: 0 | S159: 0 | T159: 0 | U159: 0 | V159: 0 | W159: 0 | X159: 0 | Y159: 0 | Z159: 0 | AA159: 0 | AB159: 0 | AC159: 0 | AD159: 0 | AE159: 0 | AF159: 0 | AG159: 0 | AH159: 0 | AI159: 0 | AJ159: 0 | AK159: 0 | AL159: 0 | AM159: 0 | AN159: 0 | AO159: 0 | AP159: 0 | AQ159: 0 | AR159: 0 | AS159: 0 | AT159: 0 | AU159: 0 | AV159: 0 | AW159: 0 | AX159: 0 | AY159: 0 | AZ159: 0 | BA159: 0 | BB159: 0 | BC159: 0 | BD159: 0 | BE159: 0 | BF159: 0 | BG159: 0 | BH159: 0 | BI159: 0
E160: 4 | K160: 0 | L160: 0 | M160: 0 | N160: 0 | O160: 0 | P160: 0 | Q160: 0 | R160: 0 | S160: 0 | T160: 0 | U160: 0 | V160: 0 | W160: 0 | X160: 0 | Y160: 0 | Z160: 0 | AA160: 0 | AB160: 0 | AC160: 0 | AD160: 0 | AE160: 0 | AF160: 0 | AG160: 0 | AH160: 0 | AI160: 0 | AJ160: 0 | AK160: 0 | AL160: 0 | AM160: 0 | AN160: 0 | AO160: 0 | AP160: 0 | AQ160: 0 | AR160: 0 | AS160: 0 | AT160: 0 | AU160: 0 | AV160: 0 | AW160: 0 | AX160: 0 | AY160: 0 | AZ160: 0 | BA160: 0 | BB160: 0 | BC160: 0 | BD160: 0 | BE160: 0 | BF160: 0 | BG160: 0 | BH160: 0 | BI160: 0
E161: 5 | L161: 0 | M161: 0 | N161: 0 | O161: 0 | P161: 0 | Q161: 0 | R161: 0 | S161: 0 | T161: 0 | U161: 0 | V161: 0 | W161: 0 | X161: 0 | Y161: 0 | Z161: 0 | AA161: 0 | AB161: 0 | AC161: 0 | AD161: 0 | AE161: 0 | AF161: 0 | AG161: 0 | AH161: 0 | AI161: 0 | AJ161: 0 | AK161: 0 | AL161: 0 | AM161: 0 | AN161: 0 | AO161: 0 | AP161: 0 | AQ161: 0 | AR161: 0 | AS161: 0 | AT161: 0 | AU161: 0 | AV161: 0 | AW161: 0 | AX161: 0 | AY161: 0 | AZ161: 0 | BA161: 0 | BB161: 0 | BC161: 0 | BD161: 0 | BE161: 0 | BF161: 0 | BG161: 0 | BH161: 0 | BI161: 0
E162: 6 | M162: 0 | N162: 0 | O162: 0 | P162: 0 | Q162: 0 | R162: 0 | S162: 0 | T162: 0 | U162: 0 | V162: 0 | W162: 0 | X162: 0 | Y162: 0 | Z162: 0 | AA162: 0 | AB162: 0 | AC162: 0 | AD162: 0 | AE162: 0 | AF162: 0 | AG162: 0 | AH162: 0 | AI162: 0 | AJ162: 0 | AK162: 0 | AL162: 0 | AM162: 0 | AN162: 0 | AO162: 0 | AP162: 0 | AQ162: 0 | AR162: 0 | AS162: 0 | AT162: 0 | AU162: 0 | AV162: 0 | AW162: 0 | AX162: 0 | AY162: 0 | AZ162: 0 | BA162: 0 | BB162: 0 | BC162: 0 | BD162: 0 | BE162: 0 | BF162: 0 | BG162: 0 | BH162: 0 | BI162: 0
E163: 7 | N163: 0 | O163: 0 | P163: 0 | Q163: 0 | R163: 0 | S163: 0 | T163: 0 | U163: 0 | V163: 0 | W163: 0 | X163: 0 | Y163: 0 | Z163: 0 | AA163: 0 | AB163: 0 | AC163: 0 | AD163: 0 | AE163: 0 | AF163: 0 | AG163: 0 | AH163: 0 | AI163: 0 | AJ163: 0 | AK163: 0 | AL163: 0 | AM163: 0 | AN163: 0 | AO163: 0 | AP163: 0 | AQ163: 0 | AR163: 0 | AS163: 0 | AT163: 0 | AU163: 0 | AV163: 0 | AW163: 0 | AX163: 0 | AY163: 0 | AZ163: 0 | BA163: 0 | BB163: 0 | BC163: 0 | BD163: 0 | BE163: 0 | BF163: 0 | BG163: 0 | BH163: 0 | BI163: 0
E164: 8 | O164: 0 | P164: 0 | Q164: 0 | R164: 0 | S164: 0 | T164: 0 | U164: 0 | V164: 0 | W164: 0 | X164: 0 | Y164: 0 | Z164: 0 | AA164: 0 | AB164: 0 | AC164: 0 | AD164: 0 | AE164: 0 | AF164: 0 | AG164: 0 | AH164: 0 | AI164: 0 | AJ164: 0 | AK164: 0 | AL164: 0 | AM164: 0 | AN164: 0 | AO164: 0 | AP164: 0 | AQ164: 0 | AR164: 0 | AS164: 0 | AT164: 0 | AU164: 0 | AV164: 0 | AW164: 0 | AX164: 0 | AY164: 0 | AZ164: 0 | BA164: 0 | BB164: 0 | BC164: 0 | BD164: 0 | BE164: 0 | BF164: 0 | BG164: 0 | BH164: 0 | BI164: 0
E165: 9 | P165: 0 | Q165: 0 | R165: 0 | S165: 0 | T165: 0 | U165: 0 | V165: 0 | W165: 0 | X165: 0 | Y165: 0 | Z165: 0 | AA165: 0 | AB165: 0 | AC165: 0 | AD165: 0 | AE165: 0 | AF165: 0 | AG165: 0 | AH165: 0 | AI165: 0 | AJ165: 0 | AK165: 0 | AL165: 0 | AM165: 0 | AN165: 0 | AO165: 0 | AP165: 0 | AQ165: 0 | AR165: 0 | AS165: 0 | AT165: 0 | AU165: 0 | AV165: 0 | AW165: 0 | AX165: 0 | AY165: 0 | AZ165: 0 | BA165: 0 | BB165: 0 | BC165: 0 | BD165: 0 | BE165: 0 | BF165: 0 | BG165: 0 | BH165: 0 | BI165: 0
E166: 10 | Q166: 0 | R166: 0 | S166: 0 | T166: 0 | U166: 0 | V166: 0 | W166: 0 | X166: 0 | Y166: 0 | Z166: 0 | AA166: 0 | AB166: 0 | AC166: 0 | AD166: 0 | AE166: 0 | AF166: 0 | AG166: 0 | AH166: 0 | AI166: 0 | AJ166: 0 | AK166: 0 | AL166: 0 | AM166: 0 | AN166: 0 | AO166: 0 | AP166: 0 | AQ166: 0 | AR166: 0 | AS166: 0 | AT166: 0 | AU166: 0 | AV166: 0 | AW166: 0 | AX166: 0 | AY166: 0 | AZ166: 0 | BA166: 0 | BB166: 0 | BC166: 0 | BD166: 0 | BE166: 0 | BF166: 0 | BG166: 0 | BH166: 0 | BI166: 0
C167: Replaced self-funded energy efficient lights | G167: 0 | H167: 0 | I167: 0 | J167: 0 | K167: 0 | L167: 0 | M167: 0 | N167: 0 | O167: 0 | P167: 0 | Q167: 0 | R167: 0 | S167: 0 | T167: 0 | U167: 0 | V167: 0 | W167: 0 | X167: 0 | Y167: 0 | Z167: 0 | AA167: 0 | AB167: 0 | AC167: 0 | AD167: 0 | AE167: 0 | AF167: 0 | AG167: 0 | AH167: 0 | AI167: 0 | AJ167: 0 | AK167: 0 | AL167: 0 | AM167: 0 | AN167: 0 | AO167: 0 | AP167: 0 | AQ167: 0 | AR167: 0 | AS167: 0 | AT167: 0 | AU167: 0 | AV167: 0 | AW167: 0 | AX167: 0 | AY167: 0 | AZ167: 0 | BA167: 0 | BB167: 0 | BC167: 0 | BD167: 0 | BE167: 0 | BF167: 0 | BG167: 0 | BH167: 0 | BI167: 0
B168: Smart lighting control | D168: Initial Asset Base | G168: 0 | H168: 0 | I168: 0 | J168: 0 | K168: 0 | L168: 0 | M168: 0 | N168: 0 | O168: 0 | P168: 0 | Q168: 0 | R168: 0 | S168: 0 | T168: 0 | U168: 0 | V168: 0 | W168: 0 | X168: 0 | Y168: 0 | Z168: 0 | AA168: 0 | AB168: 0 | AC168: 0 | AD168: 0 | AE168: 0 | AF168: 0 | AG168: 0 | AH168: 0 | AI168: 0 | AJ168: 0 | AK168: 0 | AL168: 0 | AM168: 0 | AN168: 0 | AO168: 0 | AP168: 0 | AQ168: 0 | AR168: 0 | AS168: 0 | AT168: 0 | AU168: 0 | AV168: 0 | AW168: 0 | AX168: 0 | AY168: 0 | AZ168: 0 | BA168: 0 | BB168: 0 | BC168: 0 | BD168: 0 | BE168: 0 | BF168: 0 | BG168: 0 | BH168: 0 | BI168: 0
D169: Capex in year | E169: 0
E170: 1 | M170: 0 | N170: 0 | O170: 0 | P170: 0 | Q170: 0 | R170: 0 | S170: 0 | T170: 0 | U170: 0 | V170: 0 | W170: 0 | X170: 0 | Y170: 0 | Z170: 0 | AA170: 0 | AB170: 0 | AC170: 0 | AD170: 0 | AE170: 0 | AF170: 0 | AG170: 0 | AH170: 0 | AI170: 0 | AJ170: 0 | AK170: 0 | AL170: 0 | AM170: 0 | AN170: 0 | AO170: 0 | AP170: 0 | AQ170: 0 | AR170: 0 | AS170: 0 | AT170: 0 | AU170: 0 | AV170: 0 | AW170: 0 | AX170: 0 | AY170: 0 | AZ170: 0 | BA170: 0 | BB170: 0 | BC170: 0 | BD170: 0 | BE170: 0 | BF170: 0 | BG170: 0 | BH170: 0 | BI170: 0
E171: 2 | I171: 0 | J171: 0 | K171: 0 | L171: 0 | M171: 0 | N171: 0 | O171: 0 | P171: 0 | Q171: 0 | R171: 0 | S171: 0 | T171: 0 | U171: 0 | V171: 0 | W171: 0 | X171: 0 | Y171: 0 | Z171: 0 | AA171: 0 | AB171: 0 | AC171: 0 | AD171: 0 | AE171: 0 | AF171: 0 | AG171: 0 | AH171: 0 | AI171: 0 | AJ171: 0 | AK171: 0 | AL171: 0 | AM171: 0 | AN171: 0 | AO171: 0 | AP171: 0 | AQ171: 0 | AR171: 0 | AS171: 0 | AT171: 0 | AU171: 0 | AV171: 0 | AW171: 0 | AX171: 0 | AY171: 0 | AZ171: 0 | BA171: 0 | BB171: 0 | BC171: 0 | BD171: 0 | BE171: 0 | BF171: 0 | BG171: 0 | BH171: 0 | BI171: 0
E172: 3 | J172: 0 | K172: 0 | L172: 0 | M172: 0 | N172: 0 | O172: 0 | P172: 0 | Q172: 0 | R172: 0 | S172: 0 | T172: 0 | U172: 0 | V172: 0 | W172: 0 | X172: 0 | Y172: 0 | Z172: 0 | AA172: 0 | AB172: 0 | AC172: 0 | AD172: 0 | AE172: 0 | AF172: 0 | AG172: 0 | AH172: 0 | AI172: 0 | AJ172: 0 | AK172: 0 | AL172: 0 | AM172: 0 | AN172: 0 | AO172: 0 | AP172: 0 | AQ172: 0 | AR172: 0 | AS172: 0 | AT172: 0 | AU172: 0 | AV172: 0 | AW172: 0 | AX172: 0 | AY172: 0 | AZ172: 0 | BA172: 0 | BB172: 0 | BC172: 0 | BD172: 0 | BE172: 0 | BF172: 0 | BG172: 0 | BH172: 0 | BI172: 0
E173: 4 | K173: 0 | L173: 0 | M173: 0 | N173: 0 | O173: 0 | P173: 0 | Q173: 0 | R173: 0 | S173: 0 | T173: 0 | U173: 0 | V173: 0 | W173: 0 | X173: 0 | Y173: 0 | Z173: 0 | AA173: 0 | AB173: 0 | AC173: 0 | AD173: 0 | AE173: 0 | AF173: 0 | AG173: 0 | AH173: 0 | AI173: 0 | AJ173: 0 | AK173: 0 | AL173: 0 | AM173: 0 | AN173: 0 | AO173: 0 | AP173: 0 | AQ173: 0 | AR173: 0 | AS173: 0 | AT173: 0 | AU173: 0 | AV173: 0 | AW173: 0 | AX173: 0 | AY173: 0 | AZ173: 0 | BA173: 0 | BB173: 0 | BC173: 0 | BD173: 0 | BE173: 0 | BF173: 0 | BG173: 0 | BH173: 0 | BI173: 0
E174: 5 | L174: 0 | M174: 0 | N174: 0 | O174: 0 | P174: 0 | Q174: 0 | R174: 0 | S174: 0 | T174: 0 | U174: 0 | V174: 0 | W174: 0 | X174: 0 | Y174: 0 | Z174: 0 | AA174: 0 | AB174: 0 | AC174: 0 | AD174: 0 | AE174: 0 | AF174: 0 | AG174: 0 | AH174: 0 | AI174: 0 | AJ174: 0 | AK174: 0 | AL174: 0 | AM174: 0 | AN174: 0 | AO174: 0 | AP174: 0 | AQ174: 0 | AR174: 0 | AS174: 0 | AT174: 0 | AU174: 0 | AV174: 0 | AW174: 0 | AX174: 0 | AY174: 0 | AZ174: 0 | BA174: 0 | BB174: 0 | BC174: 0 | BD174: 0 | BE174: 0 | BF174: 0 | BG174: 0 | BH174: 0 | BI174: 0
E175: 6 | M175: 0 | N175: 0 | O175: 0 | P175: 0 | Q175: 0 | R175: 0 | S175: 0 | T175: 0 | U175: 0 | V175: 0 | W175: 0 | X175: 0 | Y175: 0 | Z175: 0 | AA175: 0 | AB175: 0 | AC175: 0 | AD175: 0 | AE175: 0 | AF175: 0 | AG175: 0 | AH175: 0 | AI175: 0 | AJ175: 0 | AK175: 0 | AL175: 0 | AM175: 0 | AN175: 0 | AO175: 0 | AP175: 0 | AQ175: 0 | AR175: 0 | AS175: 0 | AT175: 0 | AU175: 0 | AV175: 0 | AW175: 0 | AX175: 0 | AY175: 0 | AZ175: 0 | BA175: 0 | BB175: 0 | BC175: 0 | BD175: 0 | BE175: 0 | BF175: 0 | BG175: 0 | BH175: 0 | BI175: 0
E176: 7 | N176: 0 | O176: 0 | P176: 0 | Q176: 0 | R176: 0 | S176: 0 | T176: 0 | U176: 0 | V176: 0 | W176: 0 | X176: 0 | Y176: 0 | Z176: 0 | AA176: 0 | AB176: 0 | AC176: 0 | AD176: 0 | AE176: 0 | AF176: 0 | AG176: 0 | AH176: 0 | AI176: 0 | AJ176: 0 | AK176: 0 | AL176: 0 | AM176: 0 | AN176: 0 | AO176: 0 | AP176: 0 | AQ176: 0 | AR176: 0 | AS176: 0 | AT176: 0 | AU176: 0 | AV176: 0 | AW176: 0 | AX176: 0 | AY176: 0 | AZ176: 0 | BA176: 0 | BB176: 0 | BC176: 0 | BD176: 0 | BE176: 0 | BF176: 0 | BG176: 0 | BH176: 0 | BI176: 0
E177: 8 | O177: 0 | P177: 0 | Q177: 0 | R177: 0 | S177: 0 | T177: 0 | U177: 0 | V177: 0 | W177: 0 | X177: 0 | Y177: 0 | Z177: 0 | AA177: 0 | AB177: 0 | AC177: 0 | AD177: 0 | AE177: 0 | AF177: 0 | AG177: 0 | AH177: 0 | AI177: 0 | AJ177: 0 | AK177: 0 | AL177: 0 | AM177: 0 | AN177: 0 | AO177: 0 | AP177: 0 | AQ177: 0 | AR177: 0 | AS177: 0 | AT177: 0 | AU177: 0 | AV177: 0 | AW177: 0 | AX177: 0 | AY177: 0 | AZ177: 0 | BA177: 0 | BB177: 0 | BC177: 0 | BD177: 0 | BE177: 0 | BF177: 0 | BG177: 0 | BH177: 0 | BI177: 0
E178: 9 | P178: 0 | Q178: 0 | R178: 0 | S178: 0 | T178: 0 | U178: 0 | V178: 0 | W178: 0 | X178: 0 | Y178: 0 | Z178: 0 | AA178: 0 | AB178: 0 | AC178: 0 | AD178: 0 | AE178: 0 | AF178: 0 | AG178: 0 | AH178: 0 | AI178: 0 | AJ178: 0 | AK178: 0 | AL178: 0 | AM178: 0 | AN178: 0 | AO178: 0 | AP178: 0 | AQ178: 0 | AR178: 0 | AS178: 0 | AT178: 0 | AU178: 0 | AV178: 0 | AW178: 0 | AX178: 0 | AY178: 0 | AZ178: 0 | BA178: 0 | BB178: 0 | BC178: 0 | BD178: 0 | BE178: 0 | BF178: 0 | BG178: 0 | BH178: 0 | BI178: 0
E179: 10 | Q179: 0 | R179: 0 | S179: 0 | T179: 0 | U179: 0 | V179: 0 | W179: 0 | X179: 0 | Y179: 0 | Z179: 0 | AA179: 0 | AB179: 0 | AC179: 0 | AD179: 0 | AE179: 0 | AF179: 0 | AG179: 0 | AH179: 0 | AI179: 0 | AJ179: 0 | AK179: 0 | AL179: 0 | AM179: 0 | AN179: 0 | AO179: 0 | AP179: 0 | AQ179: 0 | AR179: 0 | AS179: 0 | AT179: 0 | AU179: 0 | AV179: 0 | AW179: 0 | AX179: 0 | AY179: 0 | AZ179: 0 | BA179: 0 | BB179: 0 | BC179: 0 | BD179: 0 | BE179: 0 | BF179: 0 | BG179: 0 | BH179: 0 | BI179: 0
C180: Smart lighting control | G180: 0 | M180: 0 | N180: 0 | O180: 0 | P180: 0 | Q180: 0 | R180: 0 | S180: 0 | T180: 0 | U180: 0 | V180: 0 | W180: 0 | X180: 0 | Y180: 0 | Z180: 0 | AA180: 0 | AB180: 0 | AC180: 0 | AD180: 0 | AE180: 0 | AF180: 0 | AG180: 0 | AH180: 0 | AI180: 0 | AJ180: 0 | AK180: 0 | AL180: 0 | AM180: 0 | AN180: 0 | AO180: 0 | AP180: 0 | AQ180: 0 | AR180: 0 | AS180: 0 | AT180: 0 | AU180: 0 | AV180: 0 | AW180: 0 | AX180: 0 | AY180: 0 | AZ180: 0 | BA180: 0 | BB180: 0 | BC180: 0 | BD180: 0 | BE180: 0 | BF180: 0 | BG180: 0 | BH180: 0 | BI180: 0
B181: Smart lighting control devices | D181: Initial Asset Base | G181: 0 | H181: 0 | I181: 0 | J181: 0 | K181: 0 | L181: 0 | M181: 0 | N181: 0 | O181: 0 | P181: 0 | Q181: 0 | R181: 0 | S181: 0 | T181: 0 | U181: 0 | V181: 0 | W181: 0 | X181: 0 | Y181: 0 | Z181: 0 | AA181: 0 | AB181: 0 | AC181: 0 | AD181: 0 | AE181: 0 | AF181: 0 | AG181: 0 | AH181: 0 | AI181: 0 | AJ181: 0 | AK181: 0 | AL181: 0 | AM181: 0 | AN181: 0 | AO181: 0 | AP181: 0 | AQ181: 0 | AR181: 0 | AS181: 0 | AT181: 0 | AU181: 0 | AV181: 0 | AW181: 0 | AX181: 0 | AY181: 0 | AZ181: 0 | BA181: 0 | BB181: 0 | BC181: 0 | BD181: 0 | BE181: 0 | BF181: 0 | BG181: 0 | BH181: 0 | BI181: 0
D182: Capex in year | E182: 0
E183: 1 | H183: 0.0615824819 | I183: 0.0615824819 | J183: 0.0615824819 | K183: 0.0615824819 | L183: 0.0615824819 | M183: 0.0615824819 | N183: 0.0615824819 | O183: 0.0615824819 | P183: 0.0615824819 | Q183: 0.0615824819 | R183: 0.0615824819 | S183: 0.0615824819 | T183: 0.0615824819 | U183: 0.0615824819 | V183: 0.0615824819 | W183: 0.0615824819 | X183: 0.0615824819 | Y183: 0.0615824819 | Z183: 0.0615824819 | AA183: 0.0615824819 | AB183: 2.220446049e-16 | AC183: 0 | AD183: 0 | AE183: 0 | AF183: 0 | AG183: 0 | AH183: 0 | AI183: 0 | AJ183: 0 | AK183: 0 | AL183: 0 | AM183: 0 | AN183: 0 | AO183: 0 | AP183: 0 | AQ183: 0 | AR183: 0 | AS183: 0 | AT183: 0 | AU183: 0 | AV183: 0 | AW183: 0 | AX183: 0 | AY183: 0 | AZ183: 0 | BA183: 0 | BB183: 0 | BC183: 0 | BD183: 0 | BE183: 0 | BF183: 0 | BG183: 0 | BH183: 0 | BI183: 0
E184: 2 | I184: 0.07225115164 | J184: 0.07225115164 | K184: 0.07225115164 | L184: 0.07225115164 | M184: 0.07225115164 | N184: 0.07225115164 | O184: 0.07225115164 | P184: 0.07225115164 | Q184: 0.07225115164 | R184: 0.07225115164 | S184: 0.07225115164 | T184: 0.07225115164 | U184: 0.07225115164 | V184: 0.07225115164 | W184: 0.07225115164 | X184: 0.07225115164 | Y184: 0.07225115164 | Z184: 0.07225115164 | AA184: 0.07225115164 | AB184: 0.07225115164 | AC184: 6.661338148e-16 | AD184: 0 | AE184: 0 | AF184: 0 | AG184: 0 | AH184: 0 | AI184: 0 | AJ184: 0 | AK184: 0 | AL184: 0 | AM184: 0 | AN184: 0 | AO184: 0 | AP184: 0 | AQ184: 0 | AR184: 0 | AS184: 0 | AT184: 0 | AU184: 0 | AV184: 0 | AW184: 0 | AX184: 0 | AY184: 0 | AZ184: 0 | BA184: 0 | BB184: 0 | BC184: 0 | BD184: 0 | BE184: 0 | BF184: 0 | BG184: 0 | BH184: 0 | BI184: 0
E185: 3 | J185: 0.07448662122 | K185: 0.07448662122 | L185: 0.07448662122 | M185: 0.07448662122 | N185: 0.07448662122 | O185: 0.07448662122 | P185: 0.07448662122 | Q185: 0.07448662122 | R185: 0.07448662122 | S185: 0.07448662122 | T185: 0.07448662122 | U185: 0.07448662122 | V185: 0.07448662122 | W185: 0.07448662122 | X185: 0.07448662122 | Y185: 0.07448662122 | Z185: 0.07448662122 | AA185: 0.07448662122 | AB185: 0.07448662122 | AC185: 0.07448662122 | AD185: -2.220446049e-16 | AE185: 0 | AF185: 0 | AG185: 0 | AH185: 0 | AI185: 0 | AJ185: 0 | AK185: 0 | AL185: 0 | AM185: 0 | AN185: 0 | AO185: 0 | AP185: 0 | AQ185: 0 | AR185: 0 | AS185: 0 | AT185: 0 | AU185: 0 | AV185: 0 | AW185: 0 | AX185: 0 | AY185: 0 | AZ185: 0 | BA185: 0 | BB185: 0 | BC185: 0 | BD185: 0 | BE185: 0 | BF185: 0 | BG185: 0 | BH185: 0 | BI185: 0
E186: 4 | K186: 0.05155467554 | L186: 0.05155467554 | M186: 0.05155467554 | N186: 0.05155467554 | O186: 0.05155467554 | P186: 0.05155467554 | Q186: 0.05155467554 | R186: 0.05155467554 | S186: 0.05155467554 | T186: 0.05155467554 | U186: 0.05155467554 | V186: 0.05155467554 | W186: 0.05155467554 | X186: 0.05155467554 | Y186: 0.05155467554 | Z186: 0.05155467554 | AA186: 0.05155467554 | AB186: 0.05155467554 | AC186: 0.05155467554 | AD186: 0.05155467554 | AE186: -4.440892099e-16 | AF186: 0 | AG186: 0 | AH186: 0 | AI186: 0 | AJ186: 0 | AK186: 0 | AL186: 0 | AM186: 0 | AN186: 0 | AO186: 0 | AP186: 0 | AQ186: 0 | AR186: 0 | AS186: 0 | AT186: 0 | AU186: 0 | AV186: 0 | AW186: 0 | AX186: 0 | AY186: 0 | AZ186: 0 | BA186: 0 | BB186: 0 | BC186: 0 | BD186: 0 | BE186: 0 | BF186: 0 | BG186: 0 | BH186: 0 | BI186: 0
E187: 5 | L187: 0.03208550955 | M187: 0.03208550955 | N187: 0.03208550955 | O187: 0.03208550955 | P187: 0.03208550955 | Q187: 0.03208550955 | R187: 0.03208550955 | S187: 0.03208550955 | T187: 0.03208550955 | U187: 0.03208550955 | V187: 0.03208550955 | W187: 0.03208550955 | X187: 0.03208550955 | Y187: 0.03208550955 | Z187: 0.03208550955 | AA187: 0.03208550955 | AB187: 0.03208550955 | AC187: 0.03208550955 | AD187: 0.03208550955 | AE187: 0.03208550955 | AF187: 1.110223025e-16 | AG187: 0 | AH187: 0 | AI187: 0 | AJ187: 0 | AK187: 0 | AL187: 0 | AM187: 0 | AN187: 0 | AO187: 0 | AP187: 0 | AQ187: 0 | AR187: 0 | AS187: 0 | AT187: 0 | AU187: 0 | AV187: 0 | AW187: 0 | AX187: 0 | AY187: 0 | AZ187: 0 | BA187: 0 | BB187: 0 | BC187: 0 | BD187: 0 | BE187: 0 | BF187: 0 | BG187: 0 | BH187: 0 | BI187: 0
E188: 6 | M188: 0 | N188: 0 | O188: 0 | P188: 0 | Q188: 0 | R188: 0 | S188: 0 | T188: 0 | U188: 0 | V188: 0 | W188: 0 | X188: 0 | Y188: 0 | Z188: 0 | AA188: 0 | AB188: 0 | AC188: 0 | AD188: 0 | AE188: 0 | AF188: 0 | AG188: 0 | AH188: 0 | AI188: 0 | AJ188: 0 | AK188: 0 | AL188: 0 | AM188: 0 | AN188: 0 | AO188: 0 | AP188: 0 | AQ188: 0 | AR188: 0 | AS188: 0 | AT188: 0 | AU188: 0 | AV188: 0 | AW188: 0 | AX188: 0 | AY188: 0 | AZ188: 0 | BA188: 0 | BB188: 0 | BC188: 0 | BD188: 0 | BE188: 0 | BF188: 0 | BG188: 0 | BH188: 0 | BI188: 0
E189: 7 | N189: 0 | O189: 0 | P189: 0 | Q189: 0 | R189: 0 | S189: 0 | T189: 0 | U189: 0 | V189: 0 | W189: 0 | X189: 0 | Y189: 0 | Z189: 0 | AA189: 0 | AB189: 0 | AC189: 0 | AD189: 0 | AE189: 0 | AF189: 0 | AG189: 0 | AH189: 0 | AI189: 0 | AJ189: 0 | AK189: 0 | AL189: 0 | AM189: 0 | AN189: 0 | AO189: 0 | AP189: 0 | AQ189: 0 | AR189: 0 | AS189: 0 | AT189: 0 | AU189: 0 | AV189: 0 | AW189: 0 | AX189: 0 | AY189: 0 | AZ189: 0 | BA189: 0 | BB189: 0 | BC189: 0 | BD189: 0 | BE189: 0 | BF189: 0 | BG189: 0 | BH189: 0 | BI189: 0
E190: 8 | O190: 0 | P190: 0 | Q190: 0 | R190: 0 | S190: 0 | T190: 0 | U190: 0 | V190: 0 | W190: 0 | X190: 0 | Y190: 0 | Z190: 0 | AA190: 0 | AB190: 0 | AC190: 0 | AD190: 0 | AE190: 0 | AF190: 0 | AG190: 0 | AH190: 0 | AI190: 0 | AJ190: 0 | AK190: 0 | AL190: 0 | AM190: 0 | AN190: 0 | AO190: 0 | AP190: 0 | AQ190: 0 | AR190: 0 | AS190: 0 | AT190: 0 | AU190: 0 | AV190: 0 | AW190: 0 | AX190: 0 | AY190: 0 | AZ190: 0 | BA190: 0 | BB190: 0 | BC190: 0 | BD190: 0 | BE190: 0 | BF190: 0 | BG190: 0 | BH190: 0 | BI190: 0
E191: 9 | P191: 0 | Q191: 0 | R191: 0 | S191: 0 | T191: 0 | U191: 0 | V191: 0 | W191: 0 | X191: 0 | Y191: 0 | Z191: 0 | AA191: 0 | AB191: 0 | AC191: 0 | AD191: 0 | AE191: 0 | AF191: 0 | AG191: 0 | AH191: 0 | AI191: 0 | AJ191: 0 | AK191: 0 | AL191: 0 | AM191: 0 | AN191: 0 | AO191: 0 | AP191: 0 | AQ191: 0 | AR191: 0 | AS191: 0 | AT191: 0 | AU191: 0 | AV191: 0 | AW191: 0 | AX191: 0 | AY191: 0 | AZ191: 0 | BA191: 0 | BB191: 0 | BC191: 0 | BD191: 0 | BE191: 0 | BF191: 0 | BG191: 0 | BH191: 0 | BI191: 0
E192: 10 | Q192: 0 | R192: 0 | S192: 0 | T192: 0 | U192: 0 | V192: 0 | W192: 0 | X192: 0 | Y192: 0 | Z192: 0 | AA192: 0 | AB192: 0 | AC192: 0 | AD192: 0 | AE192: 0 | AF192: 0 | AG192: 0 | AH192: 0 | AI192: 0 | AJ192: 0 | AK192: 0 | AL192: 0 | AM192: 0 | AN192: 0 | AO192: 0 | AP192: 0 | AQ192: 0 | AR192: 0 | AS192: 0 | AT192: 0 | AU192: 0 | AV192: 0 | AW192: 0 | AX192: 0 | AY192: 0 | AZ192: 0 | BA192: 0 | BB192: 0 | BC192: 0 | BD192: 0 | BE192: 0 | BF192: 0 | BG192: 0 | BH192: 0 | BI192: 0
C193: Smart lighting control devices | G193: 0 | AG193: 0 | AH193: 0 | AI193: 0 | AJ193: 0 | AK193: 0 | AL193: 0 | AM193: 0 | AN193: 0 | AO193: 0 | AP193: 0 | AQ193: 0 | AR193: 0 | AS193: 0 | AT193: 0 | AU193: 0 | AV193: 0 | AW193: 0 | AX193: 0 | AY193: 0 | AZ193: 0 | BA193: 0 | BB193: 0 | BC193: 0 | BD193: 0 | BE193: 0 | BF193: 0 | BG193: 0 | BH193: 0 | BI193: 0
B194: 0 | D194: Initial Asset Base | G194: 0 | H194: 0 | I194: 0 | J194: 0 | K194: 0 | L194: 0 | M194: 0 | N194: 0 | O194: 0 | P194: 0 | Q194: 0 | R194: 0 | S194: 0 | T194: 0 | U194: 0 | V194: 0 | W194: 0 | X194: 0 | Y194: 0 | Z194: 0 | AA194: 0 | AB194: 0 | AC194: 0 | AD194: 0 | AE194: 0 | AF194: 0 | AG194: 0 | AH194: 0 | AI194: 0 | AJ194: 0 | AK194: 0 | AL194: 0 | AM194: 0 | AN194: 0 | AO194: 0 | AP194: 0 | AQ194: 0 | AR194: 0 | AS194: 0 | AT194: 0 | AU194: 0 | AV194: 0 | AW194: 0 | AX194: 0 | AY194: 0 | AZ194: 0 | BA194: 0 | BB194: 0 | BC194: 0 | BD194: 0 | BE194: 0 | BF194: 0 | BG194: 0 | BH194: 0 | BI194: 0
D195: Capex in year | E195: 0
E196: 1 | H196: 0 | I196: 0 | J196: 0 | K196: 0 | L196: 0 | M196: 0 | N196: 0 | O196: 0 | P196: 0 | Q196: 0 | R196: 0 | S196: 0 | T196: 0 | U196: 0 | V196: 0 | W196: 0 | X196: 0 | Y196: 0 | Z196: 0 | AA196: 0 | AB196: 0 | AC196: 0 | AD196: 0 | AE196: 0 | AF196: 0 | AG196: 0 | AH196: 0 | AI196: 0 | AJ196: 0 | AK196: 0 | AL196: 0 | AM196: 0 | AN196: 0 | AO196: 0 | AP196: 0 | AQ196: 0 | AR196: 0 | AS196: 0 | AT196: 0 | AU196: 0 | AV196: 0 | AW196: 0 | AX196: 0 | AY196: 0 | AZ196: 0 | BA196: 0 | BB196: 0 | BC196: 0 | BD196: 0 | BE196: 0 | BF196: 0 | BG196: 0 | BH196: 0 | BI196: 0
E197: 2 | I197: 0 | J197: 0 | K197: 0 | L197: 0 | M197: 0 | N197: 0 | O197: 0 | P197: 0 | Q197: 0 | R197: 0 | S197: 0 | T197: 0 | U197: 0 | V197: 0 | W197: 0 | X197: 0 | Y197: 0 | Z197: 0 | AA197: 0 | AB197: 0 | AC197: 0 | AD197: 0 | AE197: 0 | AF197: 0 | AG197: 0 | AH197: 0 | AI197: 0 | AJ197: 0 | AK197: 0 | AL197: 0 | AM197: 0 | AN197: 0 | AO197: 0 | AP197: 0 | AQ197: 0 | AR197: 0 | AS197: 0 | AT197: 0 | AU197: 0 | AV197: 0 | AW197: 0 | AX197: 0 | AY197: 0 | AZ197: 0 | BA197: 0 | BB197: 0 | BC197: 0 | BD197: 0 | BE197: 0 | BF197: 0 | BG197: 0 | BH197: 0 | BI197: 0
E198: 3 | J198: 0 | K198: 0 | L198: 0 | M198: 0 | N198: 0 | O198: 0 | P198: 0 | Q198: 0 | R198: 0 | S198: 0 | T198: 0 | U198: 0 | V198: 0 | W198: 0 | X198: 0 | Y198: 0 | Z198: 0 | AA198: 0 | AB198: 0 | AC198: 0 | AD198: 0 | AE198: 0 | AF198: 0 | AG198: 0 | AH198: 0 | AI198: 0 | AJ198: 0 | AK198: 0 | AL198: 0 | AM198: 0 | AN198: 0 | AO198: 0 | AP198: 0 | AQ198: 0 | AR198: 0 | AS198: 0 | AT198: 0 | AU198: 0 | AV198: 0 | AW198: 0 | AX198: 0 | AY198: 0 | AZ198: 0 | BA198: 0 | BB198: 0 | BC198: 0 | BD198: 0 | BE198: 0 | BF198: 0 | BG198: 0 | BH198: 0 | BI198: 0
E199: 4 | K199: 0 | L199: 0 | M199: 0 | N199: 0 | O199: 0 | P199: 0 | Q199: 0 | R199: 0 | S199: 0 | T199: 0 | U199: 0 | V199: 0 | W199: 0 | X199: 0 | Y199: 0 | Z199: 0 | AA199: 0 | AB199: 0 | AC199: 0 | AD199: 0 | AE199: 0 | AF199: 0 | AG199: 0 | AH199: 0 | AI199: 0 | AJ199: 0 | AK199: 0 | AL199: 0 | AM199: 0 | AN199: 0 | AO199: 0 | AP199: 0 | AQ199: 0 | AR199: 0 | AS199: 0 | AT199: 0 | AU199: 0 | AV199: 0 | AW199: 0 | AX199: 0 | AY199: 0 | AZ199: 0 | BA199: 0 | BB199: 0 | BC199: 0 | BD199: 0 | BE199: 0 | BF199: 0 | BG199: 0 | BH199: 0 | BI199: 0
E200: 5 | L200: 0 | M200: 0 | N200: 0 | O200: 0 | P200: 0 | Q200: 0 | R200: 0 | S200: 0 | T200: 0 | U200: 0 | V200: 0 | W200: 0 | X200: 0 | Y200: 0 | Z200: 0 | AA200: 0 | AB200: 0 | AC200: 0 | AD200: 0 | AE200: 0 | AF200: 0 | AG200: 0 | AH200: 0 | AI200: 0 | AJ200: 0 | AK200: 0 | AL200: 0 | AM200: 0 | AN200: 0 | AO200: 0 | AP200: 0 | AQ200: 0 | AR200: 0 | AS200: 0 | AT200: 0 | AU200: 0 | AV200: 0 | AW200: 0 | AX200: 0 | AY200: 0 | AZ200: 0 | BA200: 0 | BB200: 0 | BC200: 0 | BD200: 0 | BE200: 0 | BF200: 0 | BG200: 0 | BH200: 0 | BI200: 0
E201: 6 | M201: 0 | N201: 0 | O201: 0 | P201: 0 | Q201: 0 | R201: 0 | S201: 0 | T201: 0 | U201: 0 | V201: 0 | W201: 0 | X201: 0 | Y201: 0 | Z201: 0 | AA201: 0 | AB201: 0 | AC201: 0 | AD201: 0 | AE201: 0 | AF201: 0 | AG201: 0 | AH201: 0 | AI201: 0 | AJ201: 0 | AK201: 0 | AL201: 0 | AM201: 0 | AN201: 0 | AO201: 0 | AP201: 0 | AQ201: 0 | AR201: 0 | AS201: 0 | AT201: 0 | AU201: 0 | AV201: 0 | AW201: 0 | AX201: 0 | AY201: 0 | AZ201: 0 | BA201: 0 | BB201: 0 | BC201: 0 | BD201: 0 | BE201: 0 | BF201: 0 | BG201: 0 | BH201: 0 | BI201: 0
E202: 7 | N202: 0 | O202: 0 | P202: 0 | Q202: 0 | R202: 0 | S202: 0 | T202: 0 | U202: 0 | V202: 0 | W202: 0 | X202: 0 | Y202: 0 | Z202: 0 | AA202: 0 | AB202: 0 | AC202: 0 | AD202: 0 | AE202: 0 | AF202: 0 | AG202: 0 | AH202: 0 | AI202: 0 | AJ202: 0 | AK202: 0 | AL202: 0 | AM202: 0 | AN202: 0 | AO202: 0 | AP202: 0 | AQ202: 0 | AR202: 0 | AS202: 0 | AT202: 0 | AU202: 0 | AV202: 0 | AW202: 0 | AX202: 0 | AY202: 0 | AZ202: 0 | BA202: 0 | BB202: 0 | BC202: 0 | BD202: 0 | BE202: 0 | BF202: 0 | BG202: 0 | BH202: 0 | BI202: 0
E203: 8 | O203: 0 | P203: 0 | Q203: 0 | R203: 0 | S203: 0 | T203: 0 | U203: 0 | V203: 0 | W203: 0 | X203: 0 | Y203: 0 | Z203: 0 | AA203: 0 | AB203: 0 | AC203: 0 | AD203: 0 | AE203: 0 | AF203: 0 | AG203: 0 | AH203: 0 | AI203: 0 | AJ203: 0 | AK203: 0 | AL203: 0 | AM203: 0 | AN203: 0 | AO203: 0 | AP203: 0 | AQ203: 0 | AR203: 0 | AS203: 0 | AT203: 0 | AU203: 0 | AV203: 0 | AW203: 0 | AX203: 0 | AY203: 0 | AZ203: 0 | BA203: 0 | BB203: 0 | BC203: 0 | BD203: 0 | BE203: 0 | BF203: 0 | BG203: 0 | BH203: 0 | BI203: 0
E204: 9 | P204: 0 | Q204: 0 | R204: 0 | S204: 0 | T204: 0 | U204: 0 | V204: 0 | W204: 0 | X204: 0 | Y204: 0 | Z204: 0 | AA204: 0 | AB204: 0 | AC204: 0 | AD204: 0 | AE204: 0 | AF204: 0 | AG204: 0 | AH204: 0 | AI204: 0 | AJ204: 0 | AK204: 0 | AL204: 0 | AM204: 0 | AN204: 0 | AO204: 0 | AP204: 0 | AQ204: 0 | AR204: 0 | AS204: 0 | AT204: 0 | AU204: 0 | AV204: 0 | AW204: 0 | AX204: 0 | AY204: 0 | AZ204: 0 | BA204: 0 | BB204: 0 | BC204: 0 | BD204: 0 | BE204: 0 | BF204: 0 | BG204: 0 | BH204: 0 | BI204: 0
E205: 10 | Q205: 0 | R205: 0 | S205: 0 | T205: 0 | U205: 0 | V205: 0 | W205: 0 | X205: 0 | Y205: 0 | Z205: 0 | AA205: 0 | AB205: 0 | AC205: 0 | AD205: 0 | AE205: 0 | AF205: 0 | AG205: 0 | AH205: 0 | AI205: 0 | AJ205: 0 | AK205: 0 | AL205: 0 | AM205: 0 | AN205: 0 | AO205: 0 | AP205: 0 | AQ205: 0 | AR205: 0 | AS205: 0 | AT205: 0 | AU205: 0 | AV205: 0 | AW205: 0 | AX205: 0 | AY205: 0 | AZ205: 0 | BA205: 0 | BB205: 0 | BC205: 0 | BD205: 0 | BE205: 0 | BF205: 0 | BG205: 0 | BH205: 0 | BI205: 0
... 1236 more rows

Sheet Analysis
B2: ='DMS input'!$C$16&" - Cash Flow Analysis"&" - DNSP PTRM - version "&Intro!$L$4 -> Jemena Electricity - Cash Flow Analysis - DNSP PTRM - version 5
B4: Year | F4: =Assets!F4 -> 2025-26 | G4: =Assets!G4 -> 2026-27 | H4: =Assets!H4 -> 2027-28 | I4: =Assets!I4 -> 2028-29 | J4: =Assets!J4 -> 2029-30 | K4: =Assets!K4 -> 2030-31 | L4: =Assets!L4 -> 2031-32 | M4: =Assets!M4 -> 2032-33 | N4: =Assets!N4 -> 2033-34 | O4: =Assets!O4 -> 2034-35 | P4: =Assets!P4 -> 2035-36 | Q4: =Assets!Q4 -> 2036-37 | R4: =Assets!R4 -> 2037-38 | S4: =Assets!S4 -> 2038-39 | T4: =Assets!T4 -> 2039-40 | U4: =Assets!U4 -> 2040-41 | V4: =Assets!V4 -> 2041-42 | W4: =Assets!W4 -> 2042-43 | X4: =Assets!X4 -> 2043-44 | Y4: =Assets!Y4 -> 2044-45 | Z4: =Assets!Z4 -> 2045-46 | AA4: =Assets!AA4 -> 2046-47 | AB4: =Assets!AB4 -> 2047-48 | AC4: =Assets!AC4 -> 2048-49 | AD4: =Assets!AD4 -> 2049-50 | AE4: =Assets!AE4 -> 2050-51 | AF4: =Assets!AF4 -> 2051-52 | AG4: =Assets!AG4 -> 2052-53 | AH4: =Assets!AH4 -> 2053-54 | AI4: =Assets!AI4 -> 2054-55 | AJ4: =Assets!AJ4 -> 2055-56 | AK4: =Assets!AK4 -> 2056-57 | AL4: =Assets!AL4 -> 2057-58 | AM4: =Assets!AM4 -> 2058-59 | AN4: =Assets!AN4 -> 2059-60 | AO4: =Assets!AO4 -> 2060-61 | AP4: =Assets!AP4 -> 2061-62 | AQ4: =Assets!AQ4 -> 2062-63 | AR4: =Assets!AR4 -> 2063-64 | AS4: =Assets!AS4 -> 2064-65 | AT4: =Assets!AT4 -> 2065-66 | AU4: =Assets!AU4 -> 2066-67 | AV4: =Assets!AV4 -> 2067-68 | AW4: =Assets!AW4 -> 2068-69 | AX4: =Assets!AX4 -> 2069-70 | AY4: =Assets!AY4 -> 2070-71 | AZ4: =Assets!AZ4 -> 2071-72 | BA4: =Assets!BA4 -> 2072-73 | BB4: =Assets!BB4 -> 2073-74 | BC4: =Assets!BC4 -> 2074-75 | BD4: =Assets!BD4 -> 2075-76 | BE4: =Assets!BE4 -> 2076-77 | BF4: =Assets!BF4 -> 2077-78 | BG4: =Assets!BG4 -> 2078-79 | BH4: =Assets!BH4 -> 2079-80 | BI4: =Assets!BI4 -> 2080-81
B6: Inflation Assumption (CPI % increase) | G6: =WACC!G6 -> 0.02619899211 | H6: =G6 -> 0.02619899211 | I6: =H6 -> 0.02619899211 | J6: 0.02619899211 | K6: 0.02619899211 | L6: 0.02619899211 | M6: 0.02619899211 | N6: 0.02619899211 | O6: 0.02619899211 | P6: 0.02619899211 | Q6: =P6 -> 0.02619899211 | R6: =Q6 -> 0.02619899211 | S6: =R6 -> 0.02619899211 | T6: 0.02619899211 | U6: 0.02619899211 | V6: 0.02619899211 | W6: 0.02619899211 | X6: 0.02619899211 | Y6: 0.02619899211 | Z6: 0.02619899211 | AA6: 0.02619899211 | AB6: 0.02619899211 | AC6: 0.02619899211 | AD6: 0.02619899211 | AE6: 0.02619899211 | AF6: 0.02619899211 | AG6: 0.02619899211 | AH6: 0.02619899211 | AI6: 0.02619899211 | AJ6: 0.02619899211 | AK6: 0.02619899211 | AL6: 0.02619899211 | AM6: 0.02619899211 | AN6: 0.02619899211 | AO6: 0.02619899211 | AP6: 0.02619899211 | AQ6: 0.02619899211 | AR6: =AQ6 -> 0.02619899211 | AS6: 0.02619899211 | AT6: 0.02619899211 | AU6: 0.02619899211 | AV6: 0.02619899211 | AW6: 0.02619899211 | AX6: 0.02619899211 | AY6: 0.02619899211 | AZ6: 0.02619899211 | BA6: 0.02619899211 | BB6: 0.02619899211 | BC6: 0.02619899211 | BD6: 0.02619899211 | BE6: 0.02619899211 | BF6: 0.02619899211 | BG6: 0.02619899211 | BH6: 0.02619899211 | BI6: 0.02619899211
B7: Cumulative Inflation Index (CPI end period) | F7: 1 | G7: =F7*(1+G6) -> 1.026198992 | H7: =G7*(1+H6) -> 1.053084371 | I7: 1.080674121 | J7: 1.108986693 | K7: 1.138041027 | L7: 1.167856555 | M7: 1.198453219 | N7: 1.229851486 | O7: 1.262072355 | P7: =O7*(1+P6) -> 1.295137379 | Q7: =P7*(1+Q6) -> 1.329068673 | R7: =Q7*(1+R6) -> 1.363888933 | S7: =R7*(1+S6) -> 1.399621448 | T7: 1.436290119 | U7: 1.473919473 | V7: 1.512534677 | W7: 1.552161562 | X7: 1.59282663 | Y7: 1.634557082 | Z7: 1.67738083 | AA7: 1.721326518 | AB7: 1.766423537 | AC7: 1.812702054 | AD7: 1.860193021 | AE7: 1.908928203 | AF7: 1.958940198 | AG7: 2.010262457 | AH7: 2.062929307 | AI7: 2.116975975 | AJ7: 2.172438612 | AK7: 2.229354314 | AL7: 2.28776115 | AM7: 2.347698187 | AN7: 2.409205513 | AO7: 2.472324269 | AP7: 2.537096673 | AQ7: =AP7*(1+AQ6) -> 2.603566049 | AR7: 2.671776855 | AS7: 2.741774716 | AT7: 2.81360645 | AU7: 2.887320103 | AV7: 2.96296498 | AW7: 3.040591676 | AX7: 3.120252114 | AY7: 3.201999574 | AZ7: 3.285888736 | BA7: 3.371975709 | BB7: 3.460318074 | BC7: 3.55097492 | BD7: 3.644006883 | BE7: 3.739476191 | BF7: 3.837446698 | BG7: 3.937983934 | BH7: 4.041155144 | BI7: 4.147029336
B9: Time Varying WACC
B10: Time Varying Return on Debt | G10: =WACC!G14 -> 0.04729557038 | H10: =WACC!H14 -> 0.0483856871 | I10: =WACC!I14 -> 0.04943101918 | J10: =WACC!J14 -> 0.05098064343 | K10: =WACC!K14 -> 0.05367590875 | L10: =WACC!L14 -> 0.05367590875 | M10: =WACC!M14 -> 0.05367590875 | N10: =WACC!N14 -> 0.05367590875 | O10: =WACC!O14 -> 0.05367590875 | P10: =WACC!P14 -> 0.05367590875 | Q10: =WACC!$P14 -> 0.05367590875 | R10: =WACC!$P14 -> 0.05367590875 | S10: =WACC!$P14 -> 0.05367590875 | T10: =WACC!$P14 -> 0.05367590875 | U10: =WACC!$P14 -> 0.05367590875 | V10: =WACC!$P14 -> 0.05367590875 | W10: =WACC!$P14 -> 0.05367590875 | X10: =WACC!$P14 -> 0.05367590875 | Y10: =WACC!$P14 -> 0.05367590875 | Z10: =WACC!$P14 -> 0.05367590875 | AA10: =WACC!$P14 -> 0.05367590875 | AB10: =WACC!$P14 -> 0.05367590875 | AC10: =WACC!$P14 -> 0.05367590875 | AD10: =WACC!$P14 -> 0.05367590875 | AE10: =WACC!$P14 -> 0.05367590875 | AF10: =WACC!$P14 -> 0.05367590875 | AG10: =WACC!$P14 -> 0.05367590875 | AH10: =WACC!$P14 -> 0.05367590875 | AI10: =WACC!$P14 -> 0.05367590875 | AJ10: =WACC!$P14 -> 0.05367590875 | AK10: =WACC!$P14 -> 0.05367590875 | AL10: =WACC!$P14 -> 0.05367590875 | AM10: =WACC!$P14 -> 0.05367590875 | AN10: =WACC!$P14 -> 0.05367590875 | AO10: =WACC!$P14 -> 0.05367590875 | AP10: =WACC!$P14 -> 0.05367590875 | AQ10: =WACC!$P14 -> 0.05367590875 | AR10: =WACC!$P14 -> 0.05367590875 | AS10: =WACC!$P14 -> 0.05367590875 | AT10: =WACC!$P14 -> 0.05367590875 | AU10: =WACC!$P14 -> 0.05367590875 | AV10: =WACC!$P14 -> 0.05367590875 | AW10: =WACC!$P14 -> 0.05367590875 | AX10: =WACC!$P14 -> 0.05367590875 | AY10: =WACC!$P14 -> 0.05367590875 | AZ10: =WACC!$P14 -> 0.05367590875 | BA10: =WACC!$P14 -> 0.05367590875 | BB10: =WACC!$P14 -> 0.05367590875 | BC10: =WACC!$P14 -> 0.05367590875 | BD10: =WACC!$P14 -> 0.05367590875 | BE10: =WACC!$P14 -> 0.05367590875 | BF10: =WACC!$P14 -> 0.05367590875 | BG10: =WACC!$P14 -> 0.05367590875 | BH10: =WACC!$P14 -> 0.05367590875 | BI10: =WACC!$P14 -> 0.05367590875
B11: Time Varying Nominal Vanilla WACC | G11: =WACC!G18 -> 0.06173534804 | H11: =WACC!H18 -> 0.06238941807 | I11: =WACC!I18 -> 0.06301661731 | J11: =WACC!J18 -> 0.06394639187 | K11: =WACC!K18 -> 0.06556355106 | L11: =WACC!L18 -> 0.06556355106 | M11: =WACC!M18 -> 0.06556355106 | N11: =WACC!N18 -> 0.06556355106 | O11: =WACC!O18 -> 0.06556355106 | P11: =WACC!P18 -> 0.06556355106 | Q11: =WACC!$P18 -> 0.06556355106 | R11: =WACC!$P18 -> 0.06556355106 | S11: =WACC!$P18 -> 0.06556355106 | T11: =WACC!$P18 -> 0.06556355106 | U11: =WACC!$P18 -> 0.06556355106 | V11: =WACC!$P18 -> 0.06556355106 | W11: =WACC!$P18 -> 0.06556355106 | X11: =WACC!$P18 -> 0.06556355106 | Y11: =WACC!$P18 -> 0.06556355106 | Z11: =WACC!$P18 -> 0.06556355106 | AA11: =WACC!$P18 -> 0.06556355106 | AB11: =WACC!$P18 -> 0.06556355106 | AC11: =WACC!$P18 -> 0.06556355106 | AD11: =WACC!$P18 -> 0.06556355106 | AE11: =WACC!$P18 -> 0.06556355106 | AF11: =WACC!$P18 -> 0.06556355106 | AG11: =WACC!$P18 -> 0.06556355106 | AH11: =WACC!$P18 -> 0.06556355106 | AI11: =WACC!$P18 -> 0.06556355106 | AJ11: =WACC!$P18 -> 0.06556355106 | AK11: =WACC!$P18 -> 0.06556355106 | AL11: =WACC!$P18 -> 0.06556355106 | AM11: =WACC!$P18 -> 0.06556355106 | AN11: =WACC!$P18 -> 0.06556355106 | AO11: =WACC!$P18 -> 0.06556355106 | AP11: =WACC!$P18 -> 0.06556355106 | AQ11: =WACC!$P18 -> 0.06556355106 | AR11: =WACC!$P18 -> 0.06556355106 | AS11: =WACC!$P18 -> 0.06556355106 | AT11: =WACC!$P18 -> 0.06556355106 | AU11: =WACC!$P18 -> 0.06556355106 | AV11: =WACC!$P18 -> 0.06556355106 | AW11: =WACC!$P18 -> 0.06556355106 | AX11: =WACC!$P18 -> 0.06556355106 | AY11: =WACC!$P18 -> 0.06556355106 | AZ11: =WACC!$P18 -> 0.06556355106 | BA11: =WACC!$P18 -> 0.06556355106 | BB11: =WACC!$P18 -> 0.06556355106 | BC11: =WACC!$P18 -> 0.06556355106 | BD11: =WACC!$P18 -> 0.06556355106 | BE11: =WACC!$P18 -> 0.06556355106 | BF11: =WACC!$P18 -> 0.06556355106 | BG11: =WACC!$P18 -> 0.06556355106 | BH11: =WACC!$P18 -> 0.06556355106 | BI11: =WACC!$P18 -> 0.06556355106
B12: Cumulative Discount Factor | F12: 1 | G12: =F12*(1+G11) -> 1.061735348 | H12: =G12*(1+H11) -> 1.127976399 | I12: 1.199057656 | J12: 1.275733066 | K12: 1.359374656 | L12: 1.448500086 | M12: 1.543468895 | N12: 1.644664197 | O12: 1.752494222 | P12: 1.867393967 | Q12: 1.989826946 | R12: =Q12*(1+R11) -> 2.120287067 | S12: 2.259300616 | T12: 2.407428388 | U12: 2.565267942 | V12: 2.733456017 | W12: 2.9126711 | X12: 3.103636161 | Y12: 3.307121569 | Z12: 3.523948202 | AA12: 3.75499076 | AB12: 4.001181289 | AC12: 4.263512943 | AD12: 4.543043991 | AE12: 4.840902088 | AF12: 5.158288819 | AG12: 5.496484551 | AH12: 5.856853597 | AI12: 6.240849717 | AJ12: 6.650021986 | AK12: 7.086021042 | AL12: 7.550605744 | AM12: 8.045650269 | AN12: 8.573151671 | AO12: 9.135237939 | AP12: 9.734176578 | AQ12: 10.37238376 | AR12: 11.05243407 | AS12: 11.7770709 | AT12: 12.54921749 | AU12: 13.37198875 | AV12: 14.24870382 | AW12: 15.18289944 | AX12: 16.17834424 | AY12: 17.23905394 | AZ12: 18.36930753 | BA12: 19.57366456 | BB12: 20.85698352 | BC12: 22.22444142 | BD12: 23.68155472 | BE12: 25.23420155 | BF12: 26.88864541 | BG12: 28.65156048 | BH12: 30.53005853 | BI12: 32.53171758
B13: Inverse Cumulative Discount Factor | F13: =1/F12 -> 1 | G13: =1/G12 -> 0.9418542972 | H13: 0.8865433721 | I13: 0.8339882535 | J13: 0.7838630403 | K13: 0.7356323699 | L13: 0.6903693066 | M13: 0.6478912552 | N13: 0.6080268554 | O13: 0.5706152907 | P13: 0.5355056394 | Q13: 0.502556266 | R13: =1/R12 -> 0.4716342497 | S13: 0.4426148485 | T13: 0.4153809954 | U13: 0.3898228266 | V13: 0.3658372382 | W13: 0.3433274701 | X13: 0.3222027159 | Y13: 0.3023777564 | Z13: 0.283772616 | AA13: 0.2663122398 | AB13: 0.2499261912 | AC13: 0.2345483674 | AD13: 0.2201167327 | AE13: 0.2065730688 | AF13: 0.1938627392 | AG13: 0.1819344693 | AH13: 0.1707401395 | AI13: 0.1602345907 | AJ13: 0.1503754427 | AK13: 0.1411229227 | AL13: 0.1324397054 | AM13: 0.1242907617 | AN13: 0.1166432181 | AO13: 0.1094662237 | AP13: 0.102730826 | AQ13: 0.09640985361 | AR13: 0.09047780728 | AS13: 0.08491075655 | AT13: 0.07968624346 | AU13: 0.07478319184 | AV13: 0.07018182235 | AW13: 0.06586357264 | AX13: 0.06181102251 | AY13: 0.05800782361 | AZ13: 0.05443863348 | BA13: 0.0510890537 | BB13: 0.04794557176 | BC13: 0.04499550657 | BD13: 0.0422269573 | BE13: 0.03962875537 | BF13: 0.03719041941 | BG13: 0.03490211294 | BH13: 0.03275460474 | BI13: 0.03073923157
B15: Annual Building Blocks ($m Nominal)
B17: RAB (start period) | D17: (nominal value) | G17: =Assets!F774 -> 21.75163747 | H17: =Assets!G774 -> 31.83834981 | I17: =Assets!H774 -> 46.0215782 | J17: =Assets!I774 -> 61.8110578 | K17: =Assets!J774 -> 71.66046398 | L17: =Assets!K774 -> 75.54930013 | M17: =Assets!L774 -> 73.10784557 | N17: =Assets!M774 -> 70.70300325 | O17: =Assets!N774 -> 68.12197175 | P17: =Assets!O774 -> 65.35716977 | Q17: =Assets!P774 -> 62.40073969 | R17: =Assets!Q774 -> 59.24453831 | S17: =Assets!R774 -> 55.88012727 | T17: =Assets!S774 -> 52.29876318 | U17: =Assets!T774 -> 48.4913889 | V17: =Assets!U774 -> 44.44862229 | W17: =Assets!V774 -> 40.16073899 | X17: =Assets!W774 -> 35.96763452 | Y17: =Assets!X774 -> 32.02760785 | Z17: =Assets!Y774 -> 27.856444 | AA17: =Assets!Z774 -> 23.44473623 | AB17: =Assets!AA774 -> 18.78274356 | AC17: =Assets!AB774 -> 14.54418108 | AD17: =Assets!AC774 -> 11.27871674 | AE17: =Assets!AD774 -> 9.264905689 | AF17: =Assets!AE774 -> 8.030938065 | AG17: =Assets!AF774 -> 7.085959787 | AH17: =Assets!AG774 -> 6.08595422 | AI17: =Assets!AH774 -> 5.028686664 | AJ17: =Assets!AI774 -> 4.482829816 | AK17: =Assets!AJ774 -> 4.088995952 | AL17: =Assets!AK774 -> 3.671449031 | AM17: =Assets!AL774 -> 3.229216859 | AN17: =Assets!AM774 -> 2.761292576 | AO17: =Assets!AN774 -> 2.266633512 | AP17: =Assets!AO774 -> 1.744159993 | AQ17: =Assets!AP774 -> 1.192754127 | AR17: =Assets!AQ774 -> 0.734518261 | AS17: =Assets!AR774 -> 0.3769511996 | AT17: =Assets!AS774 -> 0.1289682472 | AU17: =Assets!AT774 -> -1.031794558e-05 | AV17: =Assets!AU774 -> -1.058826536e-05 | AW17: =Assets!AV774 -> -1.086566724e-05 | AX17: =Assets!AW774 -> -1.115033677e-05 | AY17: =Assets!AX774 -> -1.144246435e-05 | AZ17: =Assets!AY774 -> -1.174224538e-05 | BA17: =Assets!AZ774 -> -1.204988038e-05 | BB17: =Assets!BA774 -> -1.23655751e-05 | BC17: =Assets!BB774 -> -1.26895407e-05 | BD17: =Assets!BC774 -> -1.302199388e-05 | BE17: =Assets!BD774 -> -1.3363157e-05 | BF17: =Assets!BE774 -> -1.371325824e-05 | BG17: =Assets!BF774 -> -1.407253179e-05 | BH17: =Assets!BG774 -> -1.444121793e-05 | BI17: =Assets!BH774 -> -1.481956329e-05
B18: - Equity | D18: =WACC!G8 -> 0.4 | G18: =$D18*G$17 -> 8.700654986 | H18: =$D18*H$17 -> 12.73533992 | I18: =$D18*I$17 -> 18.40863128 | J18: 24.72442312 | K18: 28.66418559 | L18: 30.21972005 | M18: 29.24313823 | N18: 28.2812013 | O18: 27.2487887 | P18: 26.14286791 | Q18: 24.96029588 | R18: 23.69781532 | S18: 22.35205091 | T18: 20.91950527 | U18: 19.39655556 | V18: 17.77944892 | W18: 16.0642956 | X18: =$D18*X$17 -> 14.38705381 | Y18: 12.81104314 | Z18: 11.1425776 | AA18: 9.377894491 | AB18: 7.513097424 | AC18: 5.817672433 | AD18: 4.511486696 | AE18: 3.705962276 | AF18: 3.212375226 | AG18: 2.834383915 | AH18: 2.434381688 | AI18: 2.011474666 | AJ18: 1.793131926 | AK18: 1.635598381 | AL18: 1.468579613 | AM18: 1.291686744 | AN18: 1.104517031 | AO18: 0.9066534046 | AP18: 0.6976639972 | AQ18: =$D18*AQ$17 -> 0.4771016509 | AR18: 0.2938073044 | AS18: 0.1507804799 | AT18: 0.05158729888 | AU18: -4.127178231e-06 | AV18: -4.235306142e-06 | AW18: -4.346266894e-06 | AX18: -4.460134707e-06 | AY18: -4.576985741e-06 | AZ18: -4.696898154e-06 | BA18: -4.819952152e-06 | BB18: -4.94623004e-06 | BC18: -5.075816282e-06 | BD18: -5.208797552e-06 | BE18: -5.345262798e-06 | BF18: -5.485303296e-06 | BG18: =$D18*BG$17 -> -5.629012714e-06 | BH18: -5.776487174e-06 | BI18: -5.927825316e-06
B19: - Debt | D19: =WACC!G9 -> 0.6 | G19: =$D19*G$17 -> 13.05098248 | H19: 19.10300988 | I19: 27.61294692 | J19: 37.08663468 | K19: 42.99627839 | L19: 45.32958008 | M19: 43.86470734 | N19: 42.42180195 | O19: 40.87318305 | P19: 39.21430186 | Q19: 37.44044381 | R19: 35.54672299 | S19: 33.52807636 | T19: 31.37925791 | U19: 29.09483334 | V19: 26.66917337 | W19: 24.0964434 | X19: 21.58058071 | Y19: 19.21656471 | Z19: 16.7138664 | AA19: 14.06684174 | AB19: 11.26964614 | AC19: 8.726508649 | AD19: 6.767230044 | AE19: 5.558943413 | AF19: 4.818562839 | AG19: 4.251575872 | AH19: 3.651572532 | AI19: 3.017211999 | AJ19: 2.68969789 | AK19: 2.453397571 | AL19: 2.202869419 | AM19: 1.937530115 | AN19: 1.656775546 | AO19: 1.359980107 | AP19: 1.046495996 | AQ19: 0.7156524763 | AR19: 0.4407109566 | AS19: 0.2261707198 | AT19: 0.07738094832 | AU19: -6.190767346e-06 | AV19: -6.352959213e-06 | AW19: -6.519400342e-06 | AX19: -6.69020206e-06 | AY19: -6.865478611e-06 | AZ19: -7.045347231e-06 | BA19: -7.229928227e-06 | BB19: -7.41934506e-06 | BC19: -7.613724423e-06 | BD19: -7.813196329e-06 | BE19: -8.017894198e-06 | BF19: -8.227954944e-06 | BG19: -8.443519071e-06 | BH19: -8.664730761e-06 | BI19: -8.891737973e-06
B21: Revenue Building Blocks
B23: Nominal Vanilla WACC | G23: =SUM(G25:G26) -> 1.342844909 | H23: =SUM(H25:H26) -> 1.986376117 | I23: =SUM(I25:I26) -> 2.900124182 | J23: 3.952594124 | K23: 4.698314489 | L23: 4.953280397 | M23: 4.793209966 | N23: 4.635539964 | O23: 4.466318373 | P23: 4.285048137 | Q23: 4.091214083 | R23: 3.884282312 | S23: 3.663699577 | T23: 3.42889263 | U23: 3.179267652 | V23: 2.914209517 | W23: 2.633080662 | X23: 2.358165842 | Y23: 2.099843702 | Z23: 1.826367388 | AA23: 1.537120161 | AB23: 1.231463366 | AC23: 0.953568159 | AD23: 0.7394727208 | AE23: 0.6074401172 | AF23: 0.5265368178 | AG23: 0.4645806863 | AH23: 0.3990167702 | AI23: 0.3296985549 | AJ23: 0.2939102415 | AK23: 0.2680890949 | AL23: 0.240713236 | AM23: 0.2117189244 | AN23: 0.1810401468 | AO23: 0.148608542 | AP23: 0.1143533228 | AQ23: 0.07820119612 | AR23: 0.04815762551 | AS23: 0.02471425922 | AT23: 0.00845561626 | AU23: -6.764811517e-07 | AV23: -6.942042763e-07 | AW23: -7.123917286e-07 | AX23: -7.310556739e-07 | AY23: -7.502085957e-07 | AZ23: -7.698633048e-07 | BA23: -7.900329475e-07 | BB23: -8.107310144e-07 | BC23: -8.319713499e-07 | BD23: -8.537681607e-07 | BE23: -8.76136026e-07 | BF23: -8.990899068e-07 | BG23: -9.226451562e-07 | BH23: -9.468175294e-07 | BI23: -9.716231944e-07
B24: Return on Capital
B25: - Return on Equity | D25: =WACC!$G$10 -> 0.08339501452 | G25: =$D25*G18 -> 0.7255912489 | H25: 1.062063858 | I25: 1.535188073 | J25: 2.061893625 | K25: 2.390450174 | L25: 2.520173993 | M25: 2.438731937 | N25: 2.358511193 | O25: 2.272413129 | P25: 2.180184849 | Q25: 2.081564237 | R25: 1.976279653 | S25: =$D25*S18 -> 1.86404961 | T25: 1.744582446 | U25: 1.617576033 | V25: 1.482717401 | W25: 1.339682165 | X25: 1.199808561 | Y25: 1.068377129 | Z25: 0.9292354206 | AA25: 0.7820696473 | AB25: 0.6265548688 | AC25: 0.485164877 | AD25: 0.3762354985 | AE25: 0.3090587778 | AF25: 0.2678960786 | AG25: 0.2363734877 | AH25: 0.2030152962 | AI25: 0.167746959 | AJ25: 0.149538263 | AK25: 0.1364007507 | AL25: 0.1224722181 | AM25: 0.1077202347 | AN25: 0.0921112138 | AO25: 0.07561037384 | AP25: 0.05818169918 | AQ25: 0.0397878991 | AR25: =$D25*AR18 -> 0.02450206442 | AS25: 0.01257434031 | AT25: 0.004302123539 | AU25: -3.441860885e-07 | AV25: -3.532034172e-07 | AW25: -3.624569908e-07 | AX25: -3.719529986e-07 | AY25: -3.816977923e-07 | AZ25: -3.916978897e-07 | BA25: -4.019599797e-07 | BB25: -4.12490926e-07 | BC25: -4.232977725e-07 | BD25: -4.343877475e-07 | BE25: -4.457682687e-07 | BF25: -4.57446948e-07 | BG25: -4.69431597e-07 | BH25: -4.817302317e-07 | BI25: -4.943510783e-07
B26: - Return on Debt | G26: =G10*G19 -> 0.6172536604 | H26: =H10*H19 -> 0.924312259 | I26: =I10*I19 -> 1.364936109 | J26: 1.890700499 | K26: 2.307864315 | L26: 2.433106404 | M26: 2.354478029 | N26: 2.27702877 | O26: 2.193905244 | P26: 2.104863288 | Q26: 2.009649846 | R26: 1.908002659 | S26: 1.799649967 | T26: 1.684310184 | U26: 1.561691619 | V26: 1.431492116 | W26: 1.293398497 | X26: 1.158357281 | Y26: 1.031466574 | Z26: 0.8971319676 | AA26: 0.7550505135 | AB26: 0.6049084976 | AC26: 0.468403282 | AD26: 0.3632372223 | AE26: 0.2983813394 | AF26: 0.2586407392 | AG26: 0.2282071986 | AH26: 0.196001474 | AI26: 0.1619515959 | AJ26: 0.1443719785 | AK26: 0.1316883442 | AL26: 0.1182410179 | AM26: 0.1039986897 | AN26: 0.08892893301 | AO26: 0.07299816812 | AP26: 0.05617162358 | AQ26: 0.03841329702 | AR26: 0.02365556109 | AS26: 0.01213991892 | AT26: 0.004153492721 | AU26: -3.322950632e-07 | AV26: -3.41000859e-07 | AW26: -3.499347378e-07 | AX26: -3.591026753e-07 | AY26: -3.685108034e-07 | AZ26: -3.781654151e-07 | BA26: -3.880729678e-07 | BB26: -3.982400884e-07 | BC26: -4.086735774e-07 | BD26: -4.193804132e-07 | BE26: -4.303677573e-07 | BF26: -4.416429588e-07 | BG26: -4.532135592e-07 | BH26: -4.650872976e-07 | BI26: -4.772721161e-07
B28: Return of Capital (regulatory depreciation) | G28: =Assets!G$773 -> 0.5743043642 | H28: =Assets!H$773 -> 0.9799097199 | I28: =Assets!I$773 -> 1.369201096 | J28: =Assets!J$773 -> 1.813813284 | K28: =Assets!K$773 -> 2.167795893 | L28: =Assets!L$773 -> 2.441454563 | M28: =Assets!M$773 -> 2.404842319 | N28: =Assets!N$773 -> 2.581031498 | O28: =Assets!O$773 -> 2.764801981 | P28: =Assets!P$773 -> 2.95643008 | Q28: =Assets!Q$773 -> 3.156201381 | R28: =Assets!R$773 -> 3.364411039 | S28: =Assets!S$773 -> 3.581364088 | T28: =Assets!T$773 -> 3.807374284 | U28: =Assets!U$773 -> 4.042766609 | V28: =Assets!V$773 -> 4.287883298 | W28: =Assets!W$773 -> 4.193104474 | X28: =Assets!X$773 -> 3.940026672 | Y28: =Assets!Y$773 -> 4.171163851 | Z28: =Assets!Z$773 -> 4.411707768 | AA28: =Assets!AA$773 -> 4.661992668 | AB28: =Assets!AB$773 -> 4.238562478 | AC28: =Assets!AC$773 -> 3.265464343 | AD28: =Assets!AD$773 -> 2.01381105 | AE28: =Assets!AE$773 -> 1.233967624 | AF28: =Assets!AF$773 -> 0.9449782775 | AG28: =Assets!AG$773 -> 1.000005567 | AH28: =Assets!AH$773 -> 1.057267555 | AI28: =Assets!AI$773 -> 0.5458568484 | AJ28: =Assets!AJ$773 -> 0.3938338636 | AK28: =Assets!AK$773 -> 0.4175469211 | AL28: =Assets!AL$773 -> 0.4422321725 | AM28: =Assets!AM$773 -> 0.4679242825 | AN28: =Assets!AN$773 -> 0.4946590648 | AO28: =Assets!AO$773 -> 0.5224735185 | AP28: =Assets!AP$773 -> 0.5514058658 | AQ28: =Assets!AQ$773 -> 0.4582358662 | AR28: =Assets!AR$773 -> 0.3575670614 | AS28: =Assets!AS$773 -> 0.2479829524 | AT28: =Assets!AT$773 -> 0.1289785651 | AU28: =Assets!AU$773 -> 2.703197786e-07 | AV28: =Assets!AV$773 -> 2.774018805e-07 | AW28: =Assets!AW$773 -> 2.846695302e-07 | AX28: =Assets!AX$773 -> 2.92127585e-07 | AY28: =Assets!AY$773 -> 2.997810333e-07 | AZ28: =Assets!AZ$773 -> 3.076349942e-07 | BA28: =Assets!BA$773 -> 3.15694721e-07 | BB28: =Assets!BB$773 -> 3.239656045e-07 | BC28: =Assets!BC$773 -> 3.324531768e-07 | BD28: =Assets!BD$773 -> 3.411631149e-07 | BE28: =Assets!BE$773 -> 3.501012447e-07 | BF28: =Assets!BF$773 -> 3.592735444e-07 | BG28: =Assets!BG$773 -> 3.686861492e-07 | BH28: =Assets!BH$773 -> 3.783453547e-07 | BI28: =Assets!BI$773 -> 3.882576217e-07
B30: Opex | G30: ='PTRM input'!G341*G$7 -> 4.087977671 | H30: ='PTRM input'!H341*H$7 -> 3.786583659 | I30: ='PTRM input'!I341*I$7 -> 3.083923505 | J30: ='PTRM input'!J341*J$7 -> 2.146950571 | K30: ='PTRM input'!K341*K$7 -> 1.649973866 | L30: ='PTRM input'!L341*L$7 -> 0 | M30: ='PTRM input'!M341*M$7 -> 0 | N30: ='PTRM input'!N341*N$7 -> 0 | O30: ='PTRM input'!O341*O$7 -> 0 | P30: ='PTRM input'!P341*P$7 -> 0
B32: Revenue Adjustments | G32: ='PTRM input'!G359*Analysis!G$7 -> 0 | H32: ='PTRM input'!H359*Analysis!H$7 -> 0 | I32: ='PTRM input'!I359*Analysis!I$7 -> 0 | J32: ='PTRM input'!J359*Analysis!J$7 -> 0 | K32: ='PTRM input'!K359*Analysis!K$7 -> 0 | L32: ='PTRM input'!L359*Analysis!L$7 -> 0 | M32: ='PTRM input'!M359*Analysis!M$7 -> 0 | N32: ='PTRM input'!N359*Analysis!N$7 -> 0 | O32: ='PTRM input'!O359*Analysis!O$7 -> 0 | P32: ='PTRM input'!P359*Analysis!P$7 -> 0
B34: Tax Payable | G34: =G59 -> 0.06369617018 | H34: =H59 -> 0 | I34: =I59 -> 0 | J34: 0 | K34: 0 | L34: 0 | M34: 0 | N34: 0 | O34: 0 | P34: 0 | Q34: =Q59 -> 0 | R34: =R59 -> 0.3788678422 | S34: =S59 -> 0.7636691526 | T34: 0.9209022666 | U34: 1.022452866 | V34: 1.118462032 | W34: 1.166661682 | X34: 1.186928935 | Y34: 1.26414268 | Z34: 1.337839776 | AA34: 1.408426723 | AB34: 0.9570676762 | AC34: 0.4164476794 | AD34: 0 | AE34: 0 | AF34: 0 | AG34: 0.2192374234 | AH34: 0.269777285 | AI34: 0.1767957281 | AJ34: 0.149621852 | AK34: 0.1554091321 | AL34: 0.1611362583 | AM34: 0.1668110034 | AN34: 0.1724407372 | AO34: 0.1780324494 | AP34: 0.18359277 | AQ34: 0.07744010493 | AR34: =AR59 -> 0.04164293268 | AS34: 0.003084408604 | AT34: 0 | AU34: 0 | AV34: 0 | AW34: 0 | AX34: 0 | AY34: 0 | AZ34: 0 | BA34: 0 | BB34: 0 | BC34: 0 | BD34: 0 | BE34: 0 | BF34: 0 | BG34: 0 | BH34: 0 | BI34: 0
B35: Less Value of Imputation Credits | D35: =WACC!$G$7 -> 0.57 | G35: =-G34*$D$35 -> -0.036306817 | H35: =-H34*$D$35 -> 0 | I35: 0 | J35: 0 | K35: 0 | L35: 0 | M35: 0 | N35: 0 | O35: 0 | P35: 0 | Q35: 0 | R35: -0.2159546701 | S35: =-S34*$D$35 -> -0.435291417 | T35: -0.524914292 | U35: -0.5827981334 | V35: -0.6375233581 | W35: -0.6649971586 | X35: -0.6765494931 | Y35: -0.7205613278 | Z35: -0.7625686725 | AA35: -0.8028032322 | AB35: -0.5455285755 | AC35: -0.2373751773 | AD35: 0 | AE35: 0 | AF35: 0 | AG35: -0.1249653313 | AH35: -0.1537730524 | AI35: -0.100773565 | AJ35: -0.08528445565 | AK35: -0.08858320532 | AL35: -0.09184766726 | AM35: -0.09508227191 | AN35: -0.0982912202 | AO35: -0.1014784962 | AP35: -0.1046478789 | AQ35: =-AQ34*$D$35 -> -0.04414085981 | AR35: -0.02373647163 | AS35: -0.001758112904 | AT35: 0 | AU35: 0 | AV35: 0 | AW35: 0 | AX35: 0 | AY35: 0 | AZ35: 0 | BA35: 0 | BB35: 0 | BC35: 0 | BD35: 0 | BE35: 0 | BF35: 0 | BG35: 0 | BH35: 0 | BI35: 0
B37: Revenue Subtotal | G37: =SUM(G25:G36) -> 6.032516298 | H37: =SUM(H25:H36) -> 6.752869495 | I37: 7.353248783 | J37: 7.913357979 | K37: 8.516084247 | L37: 7.39473496 | M37: 7.198052285 | N37: 7.216571461 | O37: 7.231120354 | P37: 7.241478217 | Q37: 7.247415464 | R37: 7.411606524 | S37: 7.573441401 | T37: 7.632254889 | U37: 7.661688993 | V37: 7.683031488 | W37: 7.327849659 | X37: 6.808571956 | Y37: 6.814588906 | Z37: 6.81334626 | AA37: 6.80473632 | AB37: 5.881564945 | AC37: 4.398105004 | AD37: 2.753283771 | AE37: 1.841407742 | AF37: 1.471515095 | AG37: 1.558858346 | AH37: 1.572288558 | AI37: 0.9515775664 | AJ37: 0.7520815015 | AK37: 0.7524619428 | AL37: 0.7522339996 | AM37: =SUM(AM25:AM36) -> 0.7513719383 | AN37: 0.7498487286 | AO37: 0.7476360137 | AP37: 0.7447040797 | AQ37: 0.5697363074 | AR37: 0.4236311479 | AS37: 0.2740235074 | AT37: 0.1374341814 | AU37: -4.061613731e-07 | AV37: -4.168023958e-07 | AW37: -4.277221984e-07 | AX37: -4.389280889e-07 | AY37: -4.504275625e-07 | AZ37: -4.622283106e-07 | BA37: -4.743382265e-07 | BB37: -4.867654099e-07 | BC37: -4.995181731e-07 | BD37: -5.126050458e-07 | BE37: -5.260347813e-07 | BF37: -5.398163624e-07 | BG37: -5.53959007e-07 | BH37: -5.684721747e-07 | BI37: -5.833655727e-07
B39: Additional Tax Income calculations
B40: - Add Capital Contributions | G40: ='PTRM input'!G273*Analysis!G$7 -> 0 | H40: ='PTRM input'!H273*Analysis!H$7 -> 0 | I40: ='PTRM input'!I273*Analysis!I$7 -> 0 | J40: ='PTRM input'!J273*Analysis!J$7 -> 0 | K40: ='PTRM input'!K273*Analysis!K$7 -> 0 | L40: ='PTRM input'!L273*Analysis!L$7 -> 0 | M40: ='PTRM input'!M273*Analysis!M$7 -> 0 | N40: ='PTRM input'!N273*Analysis!N$7 -> 0 | O40: ='PTRM input'!O273*Analysis!O$7 -> 0 | P40: ='PTRM input'!P273*Analysis!P$7 -> 0
B41: - Deduct Non-tax Income Revenue Adjustments | G41: =-'PTRM input'!G356*Analysis!G$7 -> 0 | H41: =-'PTRM input'!H356*Analysis!H$7 -> 0 | I41: =-'PTRM input'!I356*Analysis!I$7 -> 0 | J41: =-'PTRM input'!J356*Analysis!J$7 -> 0 | K41: =-'PTRM input'!K356*Analysis!K$7 -> 0 | L41: =-'PTRM input'!L356*Analysis!L$7 -> 0 | M41: =-'PTRM input'!M356*Analysis!M$7 -> 0 | N41: =-'PTRM input'!N356*Analysis!N$7 -> 0 | O41: =-'PTRM input'!O356*Analysis!O$7 -> 0 | P41: =-'PTRM input'!P356*Analysis!P$7 -> 0
B43: Revenue For Tax Assessment Subtotal | G43: =G37+G40+G41 -> 6.032516298 | H43: =H37+H40+H41 -> 6.752869495 | I43: 7.353248783 | J43: 7.913357979 | K43: 8.516084247 | L43: 7.39473496 | M43: 7.198052285 | N43: 7.216571461 | O43: 7.231120354 | P43: 7.241478217 | Q43: 7.247415464 | R43: 7.411606524 | S43: 7.573441401 | T43: 7.632254889 | U43: 7.661688993 | V43: 7.683031488 | W43: 7.327849659 | X43: 6.808571956 | Y43: 6.814588906 | Z43: 6.81334626 | AA43: 6.80473632 | AB43: 5.881564945 | AC43: 4.398105004 | AD43: 2.753283771 | AE43: 1.841407742 | AF43: 1.471515095 | AG43: 1.558858346 | AH43: 1.572288558 | AI43: 0.9515775664 | AJ43: 0.7520815015 | AK43: 0.7524619428 | AL43: 0.7522339996 | AM43: 0.7513719383 | AN43: 0.7498487286 | AO43: 0.7476360137 | AP43: 0.7447040797 | AQ43: 0.5697363074 | AR43: 0.4236311479 | AS43: 0.2740235074 | AT43: 0.1374341814 | AU43: -4.061613731e-07 | AV43: -4.168023958e-07 | AW43: -4.277221984e-07 | AX43: -4.389280889e-07 | AY43: -4.504275625e-07 | AZ43: -4.622283106e-07 | BA43: -4.743382265e-07 | BB43: -4.867654099e-07 | BC43: -4.995181731e-07 | BD43: -5.126050458e-07 | BE43: -5.260347813e-07 | BF43: -5.398163624e-07 | BG43: -5.53959007e-07 | BH43: -5.684721747e-07 | BI43: -5.833655727e-07
B45: Tax Expenses
B46: - Opex | G46: =G30 -> 4.087977671 | H46: 3.786583659 | I46: 3.083923505 | J46: 2.146950571 | K46: 1.649973866 | L46: 0 | M46: 0 | N46: 0 | O46: 0 | P46: 0 | Q46: 0 | R46: 0 | S46: 0 | T46: 0 | U46: 0 | V46: 0 | W46: 0 | X46: 0 | Y46: 0 | Z46: 0 | AA46: 0 | AB46: 0 | AC46: 0 | AD46: 0 | AE46: 0 | AF46: 0 | AG46: 0 | AH46: 0 | AI46: 0 | AJ46: 0 | AK46: 0 | AL46: 0 | AM46: =AM30 -> 0 | AN46: 0 | AO46: 0 | AP46: 0 | AQ46: 0 | AR46: 0 | AS46: 0 | AT46: 0 | AU46: 0 | AV46: 0 | AW46: 0 | AX46: 0 | AY46: 0 | AZ46: 0 | BA46: 0 | BB46: 0 | BC46: 0 | BD46: 0 | BE46: 0 | BF46: 0 | BG46: 0 | BH46: 0 | BI46: 0
B47: - Tax Depreciation | G47: =Assets!G779 -> 1.114964399 | H47: =Assets!H779 -> 2.677025515 | I47: =Assets!I779 -> 3.514043587 | J47: =Assets!J779 -> 4.837702835 | K47: =Assets!K779 -> 5.51348889 | L47: =Assets!L779 -> 5.586170316 | M47: =Assets!M779 -> 5.163462598 | N47: =Assets!N779 -> 4.72059815 | O47: =Assets!O779 -> 4.377076774 | P47: =Assets!P779 -> 4.066933706 | Q47: =Assets!Q779 -> 3.786886765 | R47: =Assets!R779 -> 3.533978804 | S47: =Assets!S779 -> 3.228227591 | T47: =Assets!T779 -> 2.878270482 | U47: =Assets!U779 -> 2.691821155 | V47: =Assets!V779 -> 2.523332599 | W47: =Assets!W779 -> 2.145578889 | X47: =Assets!X779 -> 1.693784891 | Y47: =Assets!Y779 -> 1.569313397 | Z47: =Assets!Z779 -> 1.456748372 | AA47: =Assets!AA779 -> 1.354930063 | AB47: =Assets!AB779 -> 2.08643086 | AC47: =Assets!AC779 -> 2.541542791 | AD47: =Assets!AD779 -> 2.539060678 | AE47: =Assets!AE779 -> 1.730890697 | AF47: =Assets!AF779 -> 0.9913971844 | AG47: =Assets!AG779 -> 0.4844584833 | AH47: =Assets!AH779 -> 0.4770294675 | AI47: =Assets!AI779 -> 0.2003068769 | AJ47: =Assets!AJ779 -> 0.1089700163 | AK47: =Assets!AK779 -> 0.1027431582 | AL47: =Assets!AL779 -> 0.09687212058 | AM47: =Assets!AM779 -> 0.09133657084 | AN47: =Assets!AN779 -> 0.08611733822 | AO47: =Assets!AO779 -> 0.08119634746 | AP47: =Assets!AP779 -> 0.07655655618 | AQ47: =Assets!AQ779 -> 0.2731893273 | AR47: =Assets!AR779 -> 0.2611658112 | AS47: =Assets!AS779 -> 0.2516022264 | AT47: =Assets!AT779 -> 0.2427255634 | AU47: =Assets!AU779 -> 0.2345002486 | AV47: =Assets!AV779 -> 0 | AW47: =Assets!AW779 -> 0 | AX47: =Assets!AX779 -> 0 | AY47: =Assets!AY779 -> 0 | AZ47: =Assets!AZ779 -> 0 | BA47: =Assets!BA779 -> 0 | BB47: =Assets!BB779 -> 0 | BC47: =Assets!BC779 -> 0 | BD47: =Assets!BD779 -> 0 | BE47: =Assets!BE779 -> 0 | BF47: =Assets!BF779 -> 0 | BG47: =Assets!BG779 -> 0 | BH47: =Assets!BH779 -> 0 | BI47: =Assets!BI779 -> 0
B48: - Interest | G48: =G26 -> 0.6172536604 | H48: 0.924312259 | I48: 1.364936109 | J48: 1.890700499 | K48: 2.307864315 | L48: 2.433106404 | M48: 2.354478029 | N48: 2.27702877 | O48: 2.193905244 | P48: 2.104863288 | Q48: 2.009649846 | R48: 1.908002659 | S48: 1.799649967 | T48: 1.684310184 | U48: 1.561691619 | V48: 1.431492116 | W48: 1.293398497 | X48: 1.158357281 | Y48: 1.031466574 | Z48: 0.8971319676 | AA48: 0.7550505135 | AB48: 0.6049084976 | AC48: 0.468403282 | AD48: 0.3632372223 | AE48: 0.2983813394 | AF48: 0.2586407392 | AG48: 0.2282071986 | AH48: 0.196001474 | AI48: 0.1619515959 | AJ48: 0.1443719785 | AK48: 0.1316883442 | AL48: 0.1182410179 | AM48: =AM26 -> 0.1039986897 | AN48: 0.08892893301 | AO48: 0.07299816812 | AP48: 0.05617162358 | AQ48: 0.03841329702 | AR48: 0.02365556109 | AS48: 0.01213991892 | AT48: 0.004153492721 | AU48: -3.322950632e-07 | AV48: -3.41000859e-07 | AW48: -3.499347378e-07 | AX48: -3.591026753e-07 | AY48: -3.685108034e-07 | AZ48: -3.781654151e-07 | BA48: -3.880729678e-07 | BB48: -3.982400884e-07 | BC48: -4.086735774e-07 | BD48: -4.193804132e-07 | BE48: -4.303677573e-07 | BF48: -4.416429588e-07 | BG48: -4.532135592e-07 | BH48: -4.650872976e-07 | BI48: -4.772721161e-07
B49: - Tax Expense Revenue Adjustments | G49: ='PTRM input'!G357*Analysis!G$7 -> 0 | H49: ='PTRM input'!H357*Analysis!H$7 -> 0 | I49: ='PTRM input'!I357*Analysis!I$7 -> 0 | J49: ='PTRM input'!J357*Analysis!J$7 -> 0 | K49: ='PTRM input'!K357*Analysis!K$7 -> 0 | L49: ='PTRM input'!L357*Analysis!L$7 -> 0 | M49: ='PTRM input'!M357*Analysis!M$7 -> 0 | N49: ='PTRM input'!N357*Analysis!N$7 -> 0 | O49: ='PTRM input'!O357*Analysis!O$7 -> 0 | P49: ='PTRM input'!P357*Analysis!P$7 -> 0
B50: Total Tax Expenses | G50: =SUM(G46:G49) -> 5.820195731 | H50: =SUM(H46:H49) -> 7.387921433 | I50: 7.962903201 | J50: 8.875353904 | K50: 9.471327071 | L50: 8.01927672 | M50: 7.517940627 | N50: 6.99762692 | O50: 6.570982017 | P50: 6.171796995 | Q50: 5.796536611 | R50: 5.441981463 | S50: 5.027877559 | T50: 4.562580667 | U50: 4.253512774 | V50: 3.954824716 | W50: 3.438977386 | X50: 2.852142172 | Y50: 2.600779971 | Z50: 2.353880339 | AA50: 2.109980577 | AB50: 2.691339357 | AC50: 3.009946073 | AD50: 2.9022979 | AE50: 2.029272036 | AF50: 1.250037924 | AG50: 0.7126656818 | AH50: 0.6730309415 | AI50: 0.3622584729 | AJ50: 0.2533419948 | AK50: 0.2344315024 | AL50: 0.2151131385 | AM50: 0.1953352605 | AN50: 0.1750462712 | AO50: 0.1541945156 | AP50: 0.1327281798 | AQ50: 0.3116026243 | AR50: 0.2848213723 | AS50: 0.2637421453 | AT50: 0.2468790561 | AU50: 0.2344999163 | AV50: -3.41000859e-07 | AW50: -3.499347378e-07 | AX50: -3.591026753e-07 | AY50: -3.685108034e-07 | AZ50: -3.781654151e-07 | BA50: -3.880729678e-07 | BB50: -3.982400884e-07 | BC50: -4.086735774e-07 | BD50: -4.193804132e-07 | BE50: -4.303677573e-07 | BF50: -4.416429588e-07 | BG50: -4.532135592e-07 | BH50: -4.650872976e-07 | BI50: -4.772721161e-07
B52: Tax Calculation
B53: Corporate tax rate | G53: =WACC!G13 -> 0.3 | H53: =WACC!H13 -> 0.3 | I53: =WACC!I13 -> 0.3 | J53: =WACC!J13 -> 0.3 | K53: =WACC!K13 -> 0.3 | L53: =WACC!L13 -> 0.3 | M53: =WACC!M13 -> 0.3 | N53: =WACC!N13 -> 0.3 | O53: =WACC!O13 -> 0.3 | P53: =WACC!P13 -> 0.3 | Q53: =WACC!$P13 -> 0.3 | R53: =WACC!$P13 -> 0.3 | S53: =WACC!$P13 -> 0.3 | T53: =WACC!$P13 -> 0.3 | U53: =WACC!$P13 -> 0.3 | V53: =WACC!$P13 -> 0.3 | W53: =WACC!$P13 -> 0.3 | X53: =WACC!$P13 -> 0.3 | Y53: =WACC!$P13 -> 0.3 | Z53: =WACC!$P13 -> 0.3 | AA53: =WACC!$P13 -> 0.3 | AB53: =WACC!$P13 -> 0.3 | AC53: =WACC!$P13 -> 0.3 | AD53: =WACC!$P13 -> 0.3 | AE53: =WACC!$P13 -> 0.3 | AF53: =WACC!$P13 -> 0.3 | AG53: =WACC!$P13 -> 0.3 | AH53: =WACC!$P13 -> 0.3 | AI53: =WACC!$P13 -> 0.3 | AJ53: =WACC!$P13 -> 0.3 | AK53: =WACC!$P13 -> 0.3 | AL53: =WACC!$P13 -> 0.3 | AM53: =WACC!$P13 -> 0.3 | AN53: =WACC!$P13 -> 0.3 | AO53: =WACC!$P13 -> 0.3 | AP53: =WACC!$P13 -> 0.3 | AQ53: =WACC!$P13 -> 0.3 | AR53: =WACC!$P13 -> 0.3 | AS53: =WACC!$P13 -> 0.3 | AT53: =WACC!$P13 -> 0.3 | AU53: =WACC!$P13 -> 0.3 | AV53: =WACC!$P13 -> 0.3 | AW53: =WACC!$P13 -> 0.3 | AX53: =WACC!$P13 -> 0.3 | AY53: =WACC!$P13 -> 0.3 | AZ53: =WACC!$P13 -> 0.3 | BA53: =WACC!$P13 -> 0.3 | BB53: =WACC!$P13 -> 0.3 | BC53: =WACC!$P13 -> 0.3 | BD53: =WACC!$P13 -> 0.3 | BE53: =WACC!$P13 -> 0.3 | BF53: =WACC!$P13 -> 0.3 | BG53: =WACC!$P13 -> 0.3 | BH53: =WACC!$P13 -> 0.3 | BI53: =WACC!$P13 -> 0.3
B54: Taxable Income | G54: =G55+F56 -> 0.2123205673 | H54: =H55+G56 -> -0.6350519375 | I54: =I55+H56 -> -1.244706355 | J54: -2.206702281 | K54: -3.161945104 | L54: -3.786486864 | M54: -4.106375206 | N54: -3.887430665 | O54: -3.227292329 | P54: -2.157611106 | Q54: -0.7067322533 | R54: 1.262892807 | S54: 2.545563842 | T54: 3.069674222 | U54: 3.408176219 | V54: 3.728206772 | W54: 3.888872273 | X54: 3.956429784 | Y54: 4.213808935 | Z54: 4.459465921 | AA54: 4.694755744 | AB54: 3.190225587 | AC54: 1.388158931 | AD54: -0.1490141292 | AE54: -0.3368784242 | AF54: -0.1154012525 | AG54: 0.7307914114 | AH54: 0.8992576166 | AI54: 0.5893190935 | AJ54: 0.4987395067 | AK54: 0.5180304405 | AL54: 0.5371208611 | AM54: =AM55+AL56 -> 0.5560366778 | AN54: 0.5748024573 | AO54: 0.5934414981 | AP54: 0.6119758999 | AQ54: 0.2581336831 | AR54: 0.1388097756 | AS54: 0.01028136201 | AT54: -0.1094448747 | AU54: -0.3439451971 | AV54: -0.3439452729 | AW54: -0.3439453507 | AX54: -0.3439454305 | AY54: -0.3439455125 | AZ54: -0.3439455965 | BA54: -0.3439456828 | BB54: -0.3439457713 | BC54: -0.3439458621 | BD54: -0.3439459554 | BE54: -0.343946051 | BF54: -0.3439461492 | BG54: -0.34394625 | BH54: -0.3439463533 | BI54: -0.3439464594
B55: - Pre-tax Income | G55: =G43-G50 -> 0.2123205673 | H55: =H43-H50 -> -0.6350519375 | I55: -0.6096544173 | J55: -0.9619959257 | K55: -0.9552428232 | L55: -0.6245417604 | M55: -0.3198883419 | N55: 0.2189445407 | O55: 0.6601383366 | P55: 1.069681222 | Q55: 1.450878853 | R55: 1.969625061 | S55: 2.545563842 | T55: 3.069674222 | U55: 3.408176219 | V55: 3.728206772 | W55: 3.888872273 | X55: 3.956429784 | Y55: 4.213808935 | Z55: 4.459465921 | AA55: 4.694755744 | AB55: 3.190225587 | AC55: 1.388158931 | AD55: -0.1490141292 | AE55: -0.187864295 | AF55: 0.2214771717 | AG55: 0.8461926639 | AH55: 0.8992576166 | AI55: 0.5893190935 | AJ55: 0.4987395067 | AK55: 0.5180304405 | AL55: 0.5371208611 | AM55: 0.5560366778 | AN55: 0.5748024573 | AO55: 0.5934414981 | AP55: 0.6119758999 | AQ55: 0.2581336831 | AR55: 0.1388097756 | AS55: 0.01028136201 | AT55: -0.1094448747 | AU55: -0.2345003224 | AV55: -7.580153673e-08 | AW55: -7.778746059e-08 | AX55: -7.982541366e-08 | AY55: -8.191675904e-08 | AZ55: -8.406289556e-08 | BA55: -8.62652587e-08 | BB55: -8.852532153e-08 | BC55: -9.084459573e-08 | BD55: -9.322463258e-08 | BE55: -9.566702399e-08 | BF55: -9.81734036e-08 | BG55: -1.007454478e-07 | BH55: -1.03384877e-07 | BI55: -1.060934566e-07
B56: - Tax Loss Carried Forward | F56: ='PTRM input'!F366 -> 0 | G56: =IF(G54<0,G54,0) -> 0 | H56: =IF(H54<0,H54,0) -> -0.6350519375 | I56: =IF(I54<0,I54,0) -> -1.244706355 | J56: =IF(J54<0,J54,0) -> -2.206702281 | K56: -3.161945104 | L56: -3.786486864 | M56: -4.106375206 | N56: -3.887430665 | O56: -3.227292329 | P56: -2.157611106 | Q56: -0.7067322533 | R56: 0 | S56: 0 | T56: 0 | U56: 0 | V56: 0 | W56: 0 | X56: 0 | Y56: 0 | Z56: 0 | AA56: 0 | AB56: 0 | AC56: 0 | AD56: -0.1490141292 | AE56: -0.3368784242 | AF56: -0.1154012525 | AG56: 0 | AH56: 0 | AI56: 0 | AJ56: 0 | AK56: 0 | AL56: 0 | AM56: 0 | AN56: 0 | AO56: 0 | AP56: 0 | AQ56: 0 | AR56: 0 | AS56: 0 | AT56: -0.1094448747 | AU56: -0.3439451971 | AV56: -0.3439452729 | AW56: -0.3439453507 | AX56: -0.3439454305 | AY56: -0.3439455125 | AZ56: -0.3439455965 | BA56: -0.3439456828 | BB56: -0.3439457713 | BC56: -0.3439458621 | BD56: -0.3439459554 | BE56: -0.343946051 | BF56: -0.3439461492 | BG56: -0.34394625 | BH56: -0.3439463533 | BI56: -0.3439464594
B57: Tax Payable | G57: =IF(G54>0,G53*G54,0) -> 0.06369617018 | H57: =IF(H54>0,H53*H54,0) -> 0 | I57: 0 | J57: 0 | K57: 0 | L57: 0 | M57: 0 | N57: 0 | O57: 0 | P57: 0 | Q57: 0 | R57: 0.3788678422 | S57: 0.7636691526 | T57: 0.9209022666 | U57: 1.022452866 | V57: 1.118462032 | W57: 1.166661682 | X57: 1.186928935 | Y57: 1.26414268 | Z57: 1.337839776 | AA57: 1.408426723 | AB57: 0.9570676762 | AC57: 0.4164476794 | AD57: 0 | AE57: 0 | AF57: 0 | AG57: 0.2192374234 | AH57: 0.269777285 | AI57: 0.1767957281 | AJ57: 0.149621852 | AK57: 0.1554091321 | AL57: 0.1611362583 | AM57: 0.1668110034 | AN57: 0.1724407372 | AO57: 0.1780324494 | AP57: 0.18359277 | AQ57: 0.07744010493 | AR57: 0.04164293268 | AS57: 0.003084408604 | AT57: 0 | AU57: 0 | AV57: 0 | AW57: 0 | AX57: 0 | AY57: 0 | AZ57: 0 | BA57: 0 | BB57: 0 | BC57: 0 | BD57: 0 | BE57: 0 | BF57: 0 | BG57: 0 | BH57: 0 | BI57: 0
B58: Value of Imputation Credits | D58: =WACC!$G$7 -> 0.57 | G58: =$D$58*G57 -> 0.036306817 | H58: 0 | I58: 0 | J58: 0 | K58: 0 | L58: 0 | M58: 0 | N58: 0 | O58: 0 | P58: 0 | Q58: 0 | R58: 0.2159546701 | S58: 0.435291417 | T58: 0.524914292 | U58: 0.5827981334 | V58: 0.6375233581 | W58: 0.6649971586 | X58: 0.6765494931 | Y58: 0.7205613278 | Z58: 0.7625686725 | AA58: 0.8028032322 | AB58: 0.5455285755 | AC58: 0.2373751773 | AD58: 0 | AE58: 0 | AF58: 0 | AG58: 0.1249653313 | AH58: 0.1537730524 | AI58: 0.100773565 | AJ58: 0.08528445565 | AK58: 0.08858320532 | AL58: 0.09184766726 | AM58: =$D$58*AM57 -> 0.09508227191 | AN58: 0.0982912202 | AO58: 0.1014784962 | AP58: 0.1046478789 | AQ58: 0.04414085981 | AR58: 0.02373647163 | AS58: 0.001758112904 | AT58: 0 | AU58: 0 | AV58: 0 | AW58: 0 | AX58: 0 | AY58: 0 | AZ58: 0 | BA58: 0 | BB58: 0 | BC58: 0 | BD58: 0 | BE58: 0 | BF58: 0 | BG58: 0 | BH58: 0 | BI58: 0
D59: (intermediate tax calculation) | G59: =MAX(0,(G25+G26+G28+G30+G32+G40+G41-G50+F56)*G53/(1-(1-$D$35)*G53)) -> 0.06369617018 | H59: =MAX(0,(H25+H26+H28+H30+H32+H40+H41-H50+G56)*H53/(1-(1-$D$35)*H53)) -> 0 | I59: =MAX(0,(I25+I26+I28+I30+I32+I40+I41-I50+H56)*I53/(1-(1-$D$35)*I53)) -> 0 | J59: 0 | K59: 0 | L59: 0 | M59: 0 | N59: 0 | O59: 0 | P59: 0 | Q59: 0 | R59: 0.3788678422 | S59: 0.7636691526 | T59: 0.9209022666 | U59: 1.022452866 | V59: 1.118462032 | W59: 1.166661682 | X59: 1.186928935 | Y59: 1.26414268 | Z59: 1.337839776 | AA59: 1.408426723 | AB59: 0.9570676762 | AC59: 0.4164476794 | AD59: 0 | AE59: 0 | AF59: 0 | AG59: 0.2192374234 | AH59: 0.269777285 | AI59: 0.1767957281 | AJ59: 0.149621852 | AK59: 0.1554091321 | AL59: 0.1611362583 | AM59: 0.1668110034 | AN59: 0.1724407372 | AO59: 0.1780324494 | AP59: 0.18359277 | AQ59: 0.07744010493 | AR59: 0.04164293268 | AS59: 0.003084408604 | AT59: 0 | AU59: 0 | AV59: 0 | AW59: 0 | AX59: 0 | AY59: 0 | AZ59: 0 | BA59: 0 | BB59: 0 | BC59: 0 | BD59: 0 | BE59: 0 | BF59: 0 | BG59: 0 | BH59: 0 | BI59: 0
B61: Cash Flow Analysis Below This Line
B63: Net Present Values
B64: RAB (start period) | D64: Project NPV Check | F64: =F65-F66-G64+F67 -> 2.516030055e-15 | G64: =Assets!F774 -> 21.75163747 | H64: =Assets!G774 -> 31.83834981 | I64: =Assets!H774 -> 46.0215782 | J64: =Assets!I774 -> 61.8110578 | K64: =Assets!J774 -> 71.66046398 | L64: =Assets!K774 -> 75.54930013 | M64: =Assets!L774 -> 73.10784557 | N64: =Assets!M774 -> 70.70300325 | O64: =Assets!N774 -> 68.12197175 | P64: =Assets!O774 -> 65.35716977 | Q64: =Assets!P774 -> 62.40073969 | R64: =Assets!Q774 -> 59.24453831 | S64: =Assets!R774 -> 55.88012727 | T64: =Assets!S774 -> 52.29876318 | U64: =Assets!T774 -> 48.4913889 | V64: =Assets!U774 -> 44.44862229 | W64: =Assets!V774 -> 40.16073899 | X64: =Assets!W774 -> 35.96763452 | Y64: =Assets!X774 -> 32.02760785 | Z64: =Assets!Y774 -> 27.856444 | AA64: =Assets!Z774 -> 23.44473623 | AB64: =Assets!AA774 -> 18.78274356 | AC64: =Assets!AB774 -> 14.54418108 | AD64: =Assets!AC774 -> 11.27871674 | AE64: =Assets!AD774 -> 9.264905689 | AF64: =Assets!AE774 -> 8.030938065 | AG64: =Assets!AF774 -> 7.085959787 | AH64: =Assets!AG774 -> 6.08595422 | AI64: =Assets!AH774 -> 5.028686664 | AJ64: =Assets!AI774 -> 4.482829816 | AK64: =Assets!AJ774 -> 4.088995952 | AL64: =Assets!AK774 -> 3.671449031 | AM64: =Assets!AL774 -> 3.229216859 | AN64: =Assets!AM774 -> 2.761292576 | AO64: =Assets!AN774 -> 2.266633512 | AP64: =Assets!AO774 -> 1.744159993 | AQ64: =Assets!AP774 -> 1.192754127 | AR64: =Assets!AQ774 -> 0.734518261 | AS64: =Assets!AR774 -> 0.3769511996 | AT64: =Assets!AS774 -> 0.1289682472 | AU64: =Assets!AT774 -> -1.031794558e-05 | AV64: =Assets!AU774 -> -1.058826536e-05 | AW64: =Assets!AV774 -> -1.086566724e-05 | AX64: =Assets!AW774 -> -1.115033677e-05 | AY64: =Assets!AX774 -> -1.144246435e-05 | AZ64: =Assets!AY774 -> -1.174224538e-05 | BA64: =Assets!AZ774 -> -1.204988038e-05 | BB64: =Assets!BA774 -> -1.23655751e-05 | BC64: =Assets!BB774 -> -1.26895407e-05 | BD64: =Assets!BC774 -> -1.302199388e-05 | BE64: =Assets!BD774 -> -1.3363157e-05 | BF64: =Assets!BE774 -> -1.371325824e-05 | BG64: =Assets!BF774 -> -1.407253179e-05 | BH64: =Assets!BG774 -> -1.444121793e-05 | BI64: =Assets!BH774 -> -1.481956329e-05
B65: PV for Returns on and of Asset Only | F65: =SUMPRODUCT(OFFSET(G65,0,0,1,55+1),OFFSET(G13,0,0,1,55+1)) -> 73.14350132 | G65: =SUM(G25:G26,G28) -> 1.917149274 | H65: 2.966285837 | I65: 4.269325278 | J65: 5.766407407 | K65: 6.866110382 | L65: 7.39473496 | M65: 7.198052285 | N65: 7.216571461 | O65: 7.231120354 | P65: 7.241478217 | Q65: 7.247415464 | R65: 7.248693352 | S65: 7.245063665 | T65: 7.236266914 | U65: 7.222034261 | V65: 7.202092815 | W65: 6.826185135 | X65: 6.298192514 | Y65: 6.271007553 | Z65: 6.238075156 | AA65: 6.199112829 | AB65: 5.470025844 | AC65: 4.219032502 | AD65: 2.753283771 | AE65: 1.841407742 | AF65: 1.471515095 | AG65: 1.464586254 | AH65: 1.456284326 | AI65: 0.8755554033 | AJ65: 0.6877441051 | AK65: 0.685636016 | AL65: 0.6829454086 | AM65: =SUM(AM25:AM26,AM28) -> 0.6796432069 | AN65: 0.6756992116 | AO65: 0.6710820604 | AP65: 0.6657591886 | AQ65: 0.5364370623 | AR65: 0.4057246869 | AS65: 0.2726972117 | AT65: 0.1374341814 | AU65: -4.061613731e-07 | AV65: -4.168023958e-07 | AW65: -4.277221984e-07 | AX65: -4.389280889e-07 | AY65: -4.504275625e-07 | AZ65: -4.622283106e-07 | BA65: -4.743382265e-07 | BB65: -4.867654099e-07 | BC65: -4.995181731e-07 | BD65: -5.126050458e-07 | BE65: -5.260347813e-07 | BF65: -5.398163624e-07 | BG65: -5.53959007e-07 | BH65: -5.684721747e-07 | BI65: -5.833655727e-07
B66: PV for Capex Only | F66: =SUMPRODUCT(OFFSET(G66,0,0,1,55+1),OFFSET(G13,0,0,1,55+1)) -> 51.39186339 | G66: =Assets!G61 -> 10.66101671 | H66: =Assets!H61 -> 15.16313812 | I66: =Assets!I61 -> 17.15868069 | J66: =Assets!J61 -> 11.66321947 | K66: =Assets!K61 -> 6.056632045 | L66: =Assets!L61 -> 0 | M66: =Assets!M61 -> 0 | N66: =Assets!N61 -> 0 | O66: =Assets!O61 -> 0 | P66: =Assets!P61 -> 0 | Q66: =Assets!Q61 -> 0 | R66: =Assets!R61 -> 0 | S66: =Assets!S61 -> 0 | T66: =Assets!T61 -> 0 | U66: =Assets!U61 -> 0 | V66: =Assets!V61 -> 0 | W66: =Assets!W61 -> 0 | X66: =Assets!X61 -> 0 | Y66: =Assets!Y61 -> 0 | Z66: =Assets!Z61 -> 0 | AA66: =Assets!AA61 -> 0 | AB66: =Assets!AB61 -> 0 | AC66: =Assets!AC61 -> 0 | AD66: =Assets!AD61 -> 0 | AE66: =Assets!AE61 -> 0 | AF66: =Assets!AF61 -> 0 | AG66: =Assets!AG61 -> 0 | AH66: =Assets!AH61 -> 0 | AI66: =Assets!AI61 -> 0 | AJ66: =Assets!AJ61 -> 0 | AK66: =Assets!AK61 -> 0 | AL66: =Assets!AL61 -> 0 | AM66: =Assets!AM61 -> 0 | AN66: =Assets!AN61 -> 0 | AO66: =Assets!AO61 -> 0 | AP66: =Assets!AP61 -> 0 | AQ66: =Assets!AQ61 -> 0 | AR66: =Assets!AR61 -> 0 | AS66: =Assets!AS61 -> 0 | AT66: =Assets!AT61 -> 0 | AU66: =Assets!AU61 -> 0 | AV66: =Assets!AV61 -> 0 | AW66: =Assets!AW61 -> 0 | AX66: =Assets!AX61 -> 0 | AY66: =Assets!AY61 -> 0 | AZ66: =Assets!AZ61 -> 0 | BA66: =Assets!BA61 -> 0 | BB66: =Assets!BB61 -> 0 | BC66: =Assets!BC61 -> 0 | BD66: =Assets!BD61 -> 0 | BE66: =Assets!BE61 -> 0 | BF66: =Assets!BF61 -> 0 | BG66: =Assets!BG61 -> 0 | BH66: =Assets!BH61 -> 0 | BI66: =Assets!BI61 -> 0
B67: PV for End of Period Assets | F67: =SUMPRODUCT(OFFSET(G67,0,0,1,55+1),OFFSET(G13,0,0,1,55+1)) -> -4.674767286e-07 | G67: 0 | H67: 0 | I67: 0 | J67: 0 | K67: 0 | L67: 0 | M67: 0 | N67: 0 | O67: 0 | P67: 0 | Q67: 0 | R67: 0 | S67: 0 | T67: 0 | U67: 0 | V67: 0 | W67: 0 | X67: 0 | Y67: 0 | Z67: 0 | AA67: 0 | AB67: 0 | AC67: 0 | AD67: 0 | AE67: 0 | AF67: 0 | AG67: 0 | AH67: 0 | AI67: 0 | AJ67: 0 | AK67: 0 | AL67: 0 | AM67: 0 | AN67: 0 | AO67: 0 | AP67: 0 | AQ67: 0 | AR67: 0 | AS67: 0 | AT67: 0 | AU67: 0 | AV67: 0 | AW67: 0 | AX67: 0 | AY67: 0 | AZ67: 0 | BA67: 0 | BB67: 0 | BC67: 0 | BD67: 0 | BE67: 0 | BF67: 0 | BG67: 0 | BH67: 0 | BI67: =Assets!BI774 -> -1.520782091e-05
B69: Nominal Cash Flow Analysis
B70: Capital Expenditure | F70: =Assets!F9+Assets!F61 -> 21.75163747 | G70: =Assets!G9+Assets!G61 -> 10.66101671 | H70: =Assets!H9+Assets!H61 -> 15.16313812 | I70: =Assets!I9+Assets!I61 -> 17.15868069 | J70: =Assets!J9+Assets!J61 -> 11.66321947 | K70: =Assets!K9+Assets!K61 -> 6.056632045 | L70: =Assets!L9+Assets!L61 -> 0 | M70: =Assets!M9+Assets!M61 -> 0 | N70: =Assets!N9+Assets!N61 -> 0 | O70: =Assets!O9+Assets!O61 -> 0 | P70: =Assets!P9+Assets!P61 -> 0 | Q70: =Assets!Q9+Assets!Q61 -> 0 | R70: =Assets!R9+Assets!R61 -> 0 | S70: =Assets!S9+Assets!S61 -> 0 | T70: =Assets!T9+Assets!T61 -> 0 | U70: =Assets!U9+Assets!U61 -> 0 | V70: =Assets!V9+Assets!V61 -> 0 | W70: =Assets!W9+Assets!W61 -> 0 | X70: =Assets!X9+Assets!X61 -> 0 | Y70: =Assets!Y9+Assets!Y61 -> 0 | Z70: =Assets!Z9+Assets!Z61 -> 0 | AA70: =Assets!AA9+Assets!AA61 -> 0 | AB70: =Assets!AB9+Assets!AB61 -> 0 | AC70: =Assets!AC9+Assets!AC61 -> 0 | AD70: =Assets!AD9+Assets!AD61 -> 0 | AE70: =Assets!AE9+Assets!AE61 -> 0 | AF70: =Assets!AF9+Assets!AF61 -> 0 | AG70: =Assets!AG9+Assets!AG61 -> 0 | AH70: =Assets!AH9+Assets!AH61 -> 0 | AI70: =Assets!AI9+Assets!AI61 -> 0 | AJ70: =Assets!AJ9+Assets!AJ61 -> 0 | AK70: =Assets!AK9+Assets!AK61 -> 0 | AL70: =Assets!AL9+Assets!AL61 -> 0 | AM70: =Assets!AM9+Assets!AM61 -> 0 | AN70: =Assets!AN9+Assets!AN61 -> 0 | AO70: =Assets!AO9+Assets!AO61 -> 0 | AP70: =Assets!AP9+Assets!AP61 -> 0 | AQ70: =Assets!AQ9+Assets!AQ61 -> 0 | AR70: =Assets!AR9+Assets!AR61 -> 0 | AS70: =Assets!AS9+Assets!AS61 -> 0 | AT70: =Assets!AT9+Assets!AT61 -> 0 | AU70: =Assets!AU9+Assets!AU61 -> 0 | AV70: =Assets!AV9+Assets!AV61 -> 0 | AW70: =Assets!AW9+Assets!AW61 -> 0 | AX70: =Assets!AX9+Assets!AX61 -> 0 | AY70: =Assets!AY9+Assets!AY61 -> 0 | AZ70: =Assets!AZ9+Assets!AZ61 -> 0 | BA70: =Assets!BA9+Assets!BA61 -> 0 | BB70: =Assets!BB9+Assets!BB61 -> 0 | BC70: =Assets!BC9+Assets!BC61 -> 0 | BD70: =Assets!BD9+Assets!BD61 -> 0 | BE70: =Assets!BE9+Assets!BE61 -> 0 | BF70: =Assets!BF9+Assets!BF61 -> 0 | BG70: =Assets!BG9+Assets!BG61 -> 0 | BH70: =Assets!BH9+Assets!BH61 -> 0 | BI70: =Assets!BI9+Assets!BI61 -> 0
B71: Interest Payments | F71: =F26 -> 0 | G71: 0.6172536604 | H71: 0.924312259 | I71: 1.364936109 | J71: 1.890700499 | K71: 2.307864315 | L71: 2.433106404 | M71: 2.354478029 | N71: 2.27702877 | O71: 2.193905244 | P71: 2.104863288 | Q71: 2.009649846 | R71: 1.908002659 | S71: 1.799649967 | T71: 1.684310184 | U71: 1.561691619 | V71: 1.431492116 | W71: 1.293398497 | X71: 1.158357281 | Y71: 1.031466574 | Z71: 0.8971319676 | AA71: 0.7550505135 | AB71: 0.6049084976 | AC71: 0.468403282 | AD71: 0.3632372223 | AE71: 0.2983813394 | AF71: 0.2586407392 | AG71: 0.2282071986 | AH71: 0.196001474 | AI71: 0.1619515959 | AJ71: 0.1443719785 | AK71: 0.1316883442 | AL71: =AL26 -> 0.1182410179 | AM71: 0.1039986897 | AN71: 0.08892893301 | AO71: 0.07299816812 | AP71: 0.05617162358 | AQ71: 0.03841329702 | AR71: 0.02365556109 | AS71: 0.01213991892 | AT71: 0.004153492721 | AU71: -3.322950632e-07 | AV71: -3.41000859e-07 | AW71: -3.499347378e-07 | AX71: -3.591026753e-07 | AY71: -3.685108034e-07 | AZ71: -3.781654151e-07 | BA71: -3.880729678e-07 | BB71: -3.982400884e-07 | BC71: -4.086735774e-07 | BD71: -4.193804132e-07 | BE71: -4.303677573e-07 | BF71: -4.416429588e-07 | BG71: -4.532135592e-07 | BH71: -4.650872976e-07 | BI71: -4.772721161e-07
B72: Repayment of Debt | F72: =F19-G19 -> -13.05098248 | G72: -6.052027405 | H72: -8.509937038 | I72: -9.473687755 | J72: -5.90964371 | K72: -2.333301691 | L72: 1.464872738 | M72: 1.442905392 | N72: 1.548618899 | O72: 1.658881189 | P72: 1.773858048 | Q72: 1.893720828 | R72: 2.018646623 | S72: 2.148818453 | T72: 2.28442457 | U72: 2.425659965 | V72: 2.572729979 | W72: 2.515862684 | X72: 2.364016003 | Y72: 2.502698311 | Z72: 2.647024661 | AA72: 2.797195601 | AB72: 2.543137487 | AC72: 1.959278606 | AD72: 1.20828663 | AE72: 0.7403805746 | AF72: 0.5669869665 | AG72: 0.6000033404 | AH72: 0.6343605332 | AI72: 0.3275141091 | AJ72: 0.2363003182 | AK72: 0.2505281527 | AL72: =AL19-AM19 -> 0.2653393035 | AM72: 0.2807545695 | AN72: 0.2967954389 | AO72: 0.3134841111 | AP72: 0.3308435195 | AQ72: 0.2749415197 | AR72: 0.2145402368 | AS72: 0.1487897715 | AT72: 0.07738713909 | AU72: 1.621918672e-07 | AV72: 1.664411283e-07 | AW72: 1.708017181e-07 | AX72: 1.75276551e-07 | AY72: 1.7986862e-07 | AZ72: 1.845809965e-07 | BA72: 1.894168326e-07 | BB72: 1.943793627e-07 | BC72: 1.994719061e-07 | BD72: 2.04697869e-07 | BE72: 2.100607468e-07 | BF72: 2.155641267e-07 | BG72: 2.212116895e-07 | BH72: 2.270072128e-07 | BI72: =BI19-Assets!BI774*D19 -> 2.32954573e-07
B74: Analysis Including Revenue Adjustments
B76: Nominal Cash Flow to Equity Holders
B77: - Pre-tax | C77: Te = | D77: =1-E78/E77 -> 0.1723356628 | E77: =IRR(OFFSET(F77,0,0,1,55+1)) -> 0.08955833118 | F77: =F37-F46-F70-F71-F72 -> -8.700654986 | G77: =G37-G46-G70-G71-G72 -> -3.281704335 | H77: -4.611227501 | I77: -4.780603764 | J77: -1.877868848 | K77: 0.8349157128 | L77: 3.496755818 | M77: 3.400668865 | N77: 3.390923792 | O77: 3.378333922 | P77: 3.362756881 | Q77: 3.344044789 | R77: 3.484957241 | S77: 3.624972981 | T77: 3.663520134 | U77: 3.674337408 | V77: 3.678809393 | W77: 3.518588477 | X77: 3.286198672 | Y77: 3.280424022 | Z77: 3.269189632 | AA77: 3.252490206 | AB77: 2.733518961 | AC77: 1.970423116 | AD77: 1.181759919 | AE77: 0.8026458275 | AF77: 0.6458873896 | AG77: 0.7306478068 | AH77: 0.7419265509 | AI77: 0.4621118614 | AJ77: 0.3714092048 | AK77: 0.370245446 | AL77: 0.3686536782 | AM77: 0.3666186792 | AN77: 0.3641243567 | AO77: 0.3611537345 | AP77: 0.3576889366 | AQ77: 0.2563814907 | AR77: 0.18543535 | AS77: 0.113093817 | AT77: 0.0558935496 | AU77: -2.36058177e-07 | AV77: -2.42242665e-07 | AW77: -2.485891787e-07 | AX77: -2.551019646e-07 | AY77: -2.61785379e-07 | AZ77: -2.686438921e-07 | BA77: -2.756820913e-07 | BB77: -2.829046842e-07 | BC77: -2.903165018e-07 | BD77: -2.979225015e-07 | BE77: -3.057277708e-07 | BF77: -3.137375303e-07 | BG77: -3.219571373e-07 | BH77: -3.303920898e-07 | BI77: =BI37-BI46-BI70-BI71-BI72+Assets!BI774*$D$18 -> -6.422176394e-06
B78: - Post-tax | E78: =IRR(OFFSET(F78,0,0,1,55+1)) -> 0.07412423681 | F78: =F77-F57 -> -8.700654986 | G78: -3.345400505 | H78: -4.611227501 | I78: -4.780603764 | J78: -1.877868848 | K78: 0.8349157128 | L78: 3.496755818 | M78: 3.400668865 | N78: 3.390923792 | O78: 3.378333922 | P78: 3.362756881 | Q78: 3.344044789 | R78: 3.106089399 | S78: 2.861303828 | T78: 2.742617868 | U78: 2.651884543 | V78: 2.560347362 | W78: 2.351926796 | X78: 2.099269737 | Y78: 2.016281341 | Z78: 1.931349855 | AA78: 1.844063483 | AB78: 1.776451284 | AC78: 1.553975437 | AD78: 1.181759919 | AE78: 0.8026458275 | AF78: 0.6458873896 | AG78: 0.5114103833 | AH78: 0.4721492659 | AI78: 0.2853161333 | AJ78: 0.2217873528 | AK78: 0.2148363139 | AL78: =AL77-AL57 -> 0.2075174199 | AM78: 0.1998076758 | AN78: 0.1916836195 | AO78: 0.1831212851 | AP78: 0.1740961666 | AQ78: 0.1789413858 | AR78: 0.1437924173 | AS78: 0.1100094084 | AT78: 0.0558935496 | AU78: -2.36058177e-07 | AV78: -2.42242665e-07 | AW78: -2.485891787e-07 | AX78: -2.551019646e-07 | AY78: -2.61785379e-07 | AZ78: -2.686438921e-07 | BA78: -2.756820913e-07 | BB78: -2.829046842e-07 | BC78: -2.903165018e-07 | BD78: -2.979225015e-07 | BE78: -3.057277708e-07 | BF78: -3.137375303e-07 | BG78: -3.219571373e-07 | BH78: -3.303920898e-07 | BI78: -6.422176394e-06
B79: - Post-tax + Value of Imputation Credits | E79: =IRR(OFFSET(F79,0,0,1,55+1)) -> 0.08339501452 | F79: =F78-F35 -> -8.700654986 | G79: -3.309093688 | H79: -4.611227501 | I79: -4.780603764 | J79: -1.877868848 | K79: 0.8349157128 | L79: 3.496755818 | M79: 3.400668865 | N79: 3.390923792 | O79: 3.378333922 | P79: 3.362756881 | Q79: 3.344044789 | R79: 3.322044069 | S79: 3.296595245 | T79: 3.26753216 | U79: 3.234682676 | V79: 3.19787072 | W79: 3.016923954 | X79: 2.77581923 | Y79: 2.736842669 | Z79: 2.693918528 | AA79: 2.646866715 | AB79: 2.32197986 | AC79: 1.791350614 | AD79: 1.181759919 | AE79: 0.8026458275 | AF79: 0.6458873896 | AG79: 0.6363757147 | AH79: 0.6259223183 | AI79: 0.3860896983 | AJ79: 0.3070718085 | AK79: 0.3034195192 | AL79: =AL78-AL35 -> 0.2993650871 | AM79: 0.2948899477 | AN79: 0.2899748397 | AO79: 0.2845997812 | AP79: 0.2787440455 | AQ79: 0.2230822456 | AR79: 0.167528889 | AS79: 0.1117675213 | AT79: 0.0558935496 | AU79: -2.36058177e-07 | AV79: -2.42242665e-07 | AW79: -2.485891787e-07 | AX79: -2.551019646e-07 | AY79: -2.61785379e-07 | AZ79: -2.686438921e-07 | BA79: -2.756820913e-07 | BB79: -2.829046842e-07 | BC79: -2.903165018e-07 | BD79: -2.979225015e-07 | BE79: -3.057277708e-07 | BF79: -3.137375303e-07 | BG79: -3.219571373e-07 | BH79: -3.303920898e-07 | BI79: -6.422176394e-06
B80: Real Cash Flow to Equity
B81: - Pre-tax | E81: =IRR(OFFSET(F81,0,0,1,55+1)) -> 0.061741767 | F81: =F77/F$7 -> -8.700654986 | G81: -3.197922001 | H81: -4.37878258 | I81: -4.423723741 | J81: -1.69331955 | K81: 0.7336428943 | L81: 2.994165511 | M81: 2.837548274 | N81: 2.757181522 | O81: 2.67681477 | P81: 2.596448018 | Q81: 2.516081266 | R81: 2.55516205 | S81: 2.589966727 | T81: 2.550682543 | U81: 2.492902412 | V81: 2.432214909 | W81: 2.26689577 | X81: 2.063123889 | Y81: 2.006919218 | Z81: 1.948984734 | AA81: 1.889525417 | AB81: 1.547487849 | AC81: 1.087008818 | AD81: 0.6352888682 | AE81: 0.4204693641 | AF81: 0.3297126632 | AG81: 0.3634589127 | AH81: 0.359647104 | AI81: 0.2182886659 | AJ81: 0.1709641887 | AK81: 0.1660774349 | AL81: =AL77/AL$7 -> 0.1611416813 | AM81: 0.1561609074 | AN81: 0.1511387695 | AO81: 0.1460786269 | AP81: 0.1409835661 | AQ81: 0.09847320401 | AR81: 0.06940525353 | AS81: 0.04124839883 | AT81: 0.01986544692 | AU81: -8.175684323e-08 | AV81: -8.175684379e-08 | AW81: -8.175684379e-08 | AX81: -8.175684379e-08 | AY81: -8.175684379e-08 | AZ81: -8.175684379e-08 | BA81: -8.175684379e-08 | BB81: -8.175684379e-08 | BC81: -8.175684379e-08 | BD81: -8.175684379e-08 | BE81: -8.175684379e-08 | BF81: -8.175684379e-08 | BG81: -8.175684379e-08 | BH81: -8.175684379e-08 | BI81: -1.548620922e-06
B82: - Post-tax | E82: 0.04670170705 | F82: =F78/F$7 -> -8.700654986 | G82: -3.259992 | H82: -4.37878258 | I82: -4.423723741 | J82: -1.69331955 | K82: 0.7336428943 | L82: 2.994165511 | M82: 2.837548274 | N82: 2.757181522 | O82: 2.67681477 | P82: 2.596448018 | Q82: 2.516081266 | R82: 2.277377083 | S82: 2.044341227 | T82: 1.909515237 | U82: 1.799205853 | V82: 1.692752834 | W82: 1.515259013 | X82: 1.317952436 | Y82: 1.233533758 | Z82: 1.151408088 | AA82: 1.071303709 | AB82: 1.005676864 | AC82: 0.8572701916 | AD82: 0.6352888682 | AE82: 0.4204693641 | AF82: 0.3297126632 | AG82: 0.2543998082 | AH82: 0.2288732165 | AI82: 0.1347753289 | AJ82: 0.1020914246 | AK82: 0.09636705681 | AL82: =AL78/AL$7 -> 0.0907076422 | AM82: 0.08510790567 | AN82: 0.07956300052 | AO82: 0.07406847368 | AP82: 0.0686202337 | AQ82: 0.06872934368 | AR82: 0.05381902199 | AS82: 0.0401234309 | AT82: 0.01986544692 | AU82: -8.175684323e-08 | AV82: -8.175684379e-08 | AW82: -8.175684379e-08 | AX82: -8.175684379e-08 | AY82: -8.175684379e-08 | AZ82: -8.175684379e-08 | BA82: -8.175684379e-08 | BB82: -8.175684379e-08 | BC82: -8.175684379e-08 | BD82: -8.175684379e-08 | BE82: -8.175684379e-08 | BF82: -8.175684379e-08 | BG82: -8.175684379e-08 | BH82: -8.175684379e-08 | BI82: -1.548620922e-06
B83: - Post-tax + Value of Imputation Credits | E83: 0.05573580061 | F83: =F79/F$7 -> -8.700654986 | G83: -3.224612101 | H83: -4.37878258 | I83: -4.423723741 | J83: -1.69331955 | K83: 0.7336428943 | L83: 2.994165511 | M83: 2.837548274 | N83: 2.757181522 | O83: 2.67681477 | P83: 2.596448018 | Q83: 2.516081266 | R83: 2.435714514 | S83: 2.355347762 | T83: 2.274980602 | U83: 2.194612892 | V83: 2.114246217 | W83: 1.943691964 | X83: 1.742700164 | Y83: 1.67436347 | Z83: 1.606026776 | AA83: 1.537690082 | AB83: 1.314509126 | AC83: 0.9882212085 | AD83: 0.6352888682 | AE83: 0.4204693641 | AF83: 0.3297126632 | AG83: 0.3165634978 | AH83: 0.3034143324 | AI83: 0.182377931 | AJ83: 0.1413489001 | AK83: 0.1361019723 | AL83: =AL79/AL$7 -> 0.1308550445 | AM83: 0.1256081167 | AN83: 0.1203611888 | AO83: 0.115114261 | AP83: 0.1098673332 | AQ83: 0.08568334407 | AR83: 0.06270317397 | AS83: 0.04076466262 | AT83: 0.01986544692 | AU83: -8.175684323e-08 | AV83: -8.175684379e-08 | AW83: -8.175684379e-08 | AX83: -8.175684379e-08 | AY83: -8.175684379e-08 | AZ83: -8.175684379e-08 | BA83: -8.175684379e-08 | BB83: -8.175684379e-08 | BC83: -8.175684379e-08 | BD83: -8.175684379e-08 | BE83: -8.175684379e-08 | BF83: -8.175684379e-08 | BG83: -8.175684379e-08 | BH83: -8.175684379e-08 | BI83: -1.548620922e-06
B84: Net Cash Flow to Debt
B85: Cash flow to debt before Tax calculation | E85: =IRR(OFFSET(F85,0,0,1,55+1)) -> 0.05281477764 | F85: =F72 -> -13.05098248 | G85: =G48+G72 -> -5.434773745 | H85: -7.585624779 | I85: -8.108751646 | J85: -4.018943211 | K85: -0.02543737591 | L85: 3.897979142 | M85: 3.79738342 | N85: 3.825647669 | O85: 3.852786432 | P85: 3.878721337 | Q85: 3.903370674 | R85: 3.926649283 | S85: 3.94846842 | T85: 3.968734754 | U85: 3.987351585 | V85: 4.004222095 | W85: 3.809261181 | X85: 3.522373284 | Y85: 3.534164884 | Z85: 3.544156629 | AA85: 3.552246115 | AB85: 3.148045984 | AC85: 2.427681888 | AD85: 1.571523853 | AE85: 1.038761914 | AF85: 0.8256277057 | AG85: 0.828210539 | AH85: 0.8303620072 | AI85: 0.489465705 | AJ85: 0.3806722966 | AK85: 0.3822164968 | AL85: 0.3835803214 | AM85: =AM48+AM72 -> 0.3847532592 | AN85: 0.3857243719 | AO85: 0.3864822792 | AP85: 0.3870151431 | AQ85: 0.3133548167 | AR85: 0.2381957979 | AS85: 0.1609296904 | AT85: 0.08154063181 | AU85: -1.70103196e-07 | AV85: -1.745597307e-07 | AW85: -1.791330197e-07 | AX85: -1.838261243e-07 | AY85: -1.886421835e-07 | AZ85: -1.935844186e-07 | BA85: -1.986561352e-07 | BB85: -2.038607257e-07 | BC85: -2.092016713e-07 | BD85: -2.146825442e-07 | BE85: -2.203070105e-07 | BF85: -2.260788321e-07 | BG85: -2.320018697e-07 | BH85: -2.380800848e-07 | BI85: =BI48+BI72+Assets!$BI$774*$D$19 -> -9.36901009e-06
B86: Deduction Utilised to Reduce Tax | G86: =MAX(0,MIN(G48+G55,F87+G48)) -> 0.6172536604 | H86: =MAX(0,MIN(H48+H55,G87+H48)) -> 0.2892603215 | I86: 0.7552816915 | J86: 0.928704573 | K86: 1.352621492 | L86: 1.808564644 | M86: 2.034589687 | N86: 2.495973311 | O86: 2.85404358 | P86: 3.174544511 | Q86: 3.460528699 | R86: 2.614734913 | S86: 1.799649967 | T86: 1.684310184 | U86: 1.561691619 | V86: 1.431492116 | W86: 1.293398497 | X86: 1.158357281 | Y86: 1.031466574 | Z86: 0.8971319676 | AA86: 0.7550505135 | AB86: 0.6049084976 | AC86: 0.468403282 | AD86: 0.2142230931 | AE86: 0.1105170444 | AF86: 0.4801179109 | AG86: 0.3436084511 | AH86: 0.196001474 | AI86: 0.1619515959 | AJ86: 0.1443719785 | AK86: 0.1316883442 | AL86: 0.1182410179 | AM86: =MAX(0,MIN(AM48+AM55,AL87+AM48)) -> 0.1039986897 | AN86: 0.08892893301 | AO86: 0.07299816812 | AP86: 0.05617162358 | AQ86: 0.03841329702 | AR86: 0.02365556109 | AS86: 0.01213991892 | AT86: 0 | AU86: 0 | AV86: 0 | AW86: 0 | AX86: 0 | AY86: 0 | AZ86: 0 | BA86: 0 | BB86: 0 | BC86: 0 | BD86: 0 | BE86: 0 | BF86: 0 | BG86: 0 | BH86: 0 | BI86: 0
B87: Unutilised Deductions Carried Forward | G87: =MAX(0,F87+G48-G86) -> 0 | H87: 0.6350519375 | I87: 1.244706355 | J87: 2.206702281 | K87: 3.161945104 | L87: 3.786486864 | M87: 4.106375206 | N87: 3.887430665 | O87: 3.227292329 | P87: 2.157611106 | Q87: 0.7067322533 | R87: 0 | S87: 0 | T87: 0 | U87: 0 | V87: 0 | W87: 0 | X87: 0 | Y87: 0 | Z87: 0 | AA87: 0 | AB87: 0 | AC87: 0 | AD87: 0.1490141292 | AE87: 0.3368784242 | AF87: 0.1154012525 | AG87: 0 | AH87: 0 | AI87: 0 | AJ87: 0 | AK87: 0 | AL87: 0 | AM87: =MAX(0,AL87+AM48-AM86) -> 0 | AN87: 0 | AO87: 0 | AP87: 0 | AQ87: 0 | AR87: 0 | AS87: 0 | AT87: 0.004153492721 | AU87: 0.004153160426 | AV87: 0.004152819425 | AW87: 0.00415246949 | AX87: 0.004152110388 | AY87: 0.004151741877 | AZ87: 0.004151363712 | BA87: 0.004150975639 | BB87: 0.004150577398 | BC87: 0.004150168725 | BD87: 0.004149749345 | BE87: 0.004149318977 | BF87: 0.004148877334 | BG87: 0.00414842412 | BH87: 0.004147959033 | BI87: 0.004147481761
B88: Net Cash Flow to Debt | C88: Td = | D88: =1-$E$88/$E$85 -> 0.2901954582 | E88: 0.03748816904 | F88: =F72 -> -13.05098248 | G88: =G48-G86*G53+G72 -> -5.619949843 | H88: -7.672402876 | I88: -8.335336154 | J88: -4.297554583 | K88: -0.4312238235 | L88: 3.355409749 | M88: 3.187006514 | N88: 3.076855676 | O88: 2.996573358 | P88: 2.926357983 | Q88: 2.865212065 | R88: 3.142228809 | S88: 3.40857343 | T88: 3.463441699 | U88: 3.518844099 | V88: 3.57477446 | W88: 3.421241632 | X88: 3.1748661 | Y88: 3.224724912 | Z88: 3.275017038 | AA88: 3.32573096 | AB88: 2.966573435 | AC88: 2.287160903 | AD88: 1.507256925 | AE88: 1.005606801 | AF88: 0.6815923325 | AG88: 0.7251280037 | AH88: 0.771561565 | AI88: 0.4408802262 | AJ88: 0.3373607031 | AK88: 0.3427099936 | AL88: 0.3481080161 | AM88: =AM48-AM86*AM53+AM72 -> 0.3535536523 | AN88: 0.359045692 | AO88: 0.3645828288 | AP88: 0.370163656 | AQ88: 0.3018308276 | AR88: 0.2310991296 | AS88: 0.1572877147 | AT88: 0.08154063181 | AU88: -1.70103196e-07 | AV88: -1.745597307e-07 | AW88: -1.791330197e-07 | AX88: -1.838261243e-07 | AY88: -1.886421835e-07 | AZ88: -1.935844186e-07 | BA88: -1.986561352e-07 | BB88: -2.038607257e-07 | BC88: -2.092016713e-07 | BD88: -2.146825442e-07 | BE88: -2.203070105e-07 | BF88: -2.260788321e-07 | BG88: -2.320018697e-07 | BH88: -2.380800848e-07 | BI88: =BI48-BI86*BI53+BI72+Assets!BI774*$D$19 -> -9.36901009e-06
B89: Nominal Cash Flows to Assets
B90: Cash flow to Asset | E90: 0.06793751781 | F90: =F37-F70-F30 -> -21.75163747 | G90: -8.71647808 | H90: -12.19685228 | I90: -12.88935541 | J90: -5.896812059 | K90: 0.8094783369 | L90: 7.39473496 | M90: 7.198052285 | N90: 7.216571461 | O90: 7.231120354 | P90: 7.241478217 | Q90: 7.247415464 | R90: 7.411606524 | S90: 7.573441401 | T90: 7.632254889 | U90: 7.661688993 | V90: 7.683031488 | W90: 7.327849659 | X90: 6.808571956 | Y90: 6.814588906 | Z90: 6.81334626 | AA90: 6.80473632 | AB90: 5.881564945 | AC90: 4.398105004 | AD90: 2.753283771 | AE90: 1.841407742 | AF90: 1.471515095 | AG90: 1.558858346 | AH90: 1.572288558 | AI90: 0.9515775664 | AJ90: 0.7520815015 | AK90: 0.7524619428 | AL90: =AL37-AL70-AL30 -> 0.7522339996 | AM90: 0.7513719383 | AN90: 0.7498487286 | AO90: 0.7476360137 | AP90: 0.7447040797 | AQ90: 0.5697363074 | AR90: 0.4236311479 | AS90: 0.2740235074 | AT90: 0.1374341814 | AU90: -4.061613731e-07 | AV90: -4.168023958e-07 | AW90: -4.277221984e-07 | AX90: -4.389280889e-07 | AY90: -4.504275625e-07 | AZ90: -4.622283106e-07 | BA90: -4.743382265e-07 | BB90: -4.867654099e-07 | BC90: -4.995181731e-07 | BD90: -5.126050458e-07 | BE90: -5.260347813e-07 | BF90: -5.398163624e-07 | BG90: -5.53959007e-07 | BH90: -5.684721747e-07 | BI90: =BI37-BI70-BI30+Assets!BI774 -> -1.579118648e-05
B91: Cash flow to Asset Post-tax | E91: 0.06088509193 | F91: =F90-F57 -> -21.75163747 | G91: -8.78017425 | H91: -12.19685228 | I91: -12.88935541 | J91: -5.896812059 | K91: 0.8094783369 | L91: 7.39473496 | M91: 7.198052285 | N91: 7.216571461 | O91: 7.231120354 | P91: 7.241478217 | Q91: 7.247415464 | R91: 7.032738681 | S91: 6.809772248 | T91: 6.711352622 | U91: 6.639236127 | V91: 6.564569457 | W91: 6.161187977 | X91: 5.621643021 | Y91: 5.550446225 | Z91: 5.475506484 | AA91: 5.396309597 | AB91: 4.924497268 | AC91: 3.981657325 | AD91: 2.753283771 | AE91: 1.841407742 | AF91: 1.471515095 | AG91: 1.339620922 | AH91: 1.302511273 | AI91: 0.7747818383 | AJ91: 0.6024596495 | AK91: 0.5970528107 | AL91: =AL90-AL57 -> 0.5910977413 | AM91: 0.584560935 | AN91: 0.5774079914 | AO91: 0.5696035643 | AP91: 0.5611113097 | AQ91: 0.4922962025 | AR91: 0.3819882153 | AS91: 0.2709390987 | AT91: 0.1374341814 | AU91: -4.061613731e-07 | AV91: -4.168023958e-07 | AW91: -4.277221984e-07 | AX91: -4.389280889e-07 | AY91: -4.504275625e-07 | AZ91: -4.622283106e-07 | BA91: -4.743382265e-07 | BB91: -4.867654099e-07 | BC91: -4.995181731e-07 | BD91: -5.126050458e-07 | BE91: -5.260347813e-07 | BF91: -5.398163624e-07 | BG91: -5.53959007e-07 | BH91: -5.684721747e-07 | BI91: -1.579118648e-05
B92: Cash flow to Asset Real | E92: 0.04067293577 | F92: =F90/F$7 -> -21.75163747 | G92: -8.493945274 | H92: -11.58202762 | I92: -11.92714359 | J92: -5.317297398 | K92: 0.7112909972 | L92: 6.331886334 | M92: 6.006118694 | N92: 5.867839771 | O92: 5.729560848 | P92: 5.591281925 | Q92: 5.453003002 | R92: 5.434171615 | S92: 5.411064121 | T92: 5.313867154 | U92: 5.198173397 | V92: 5.07957378 | W92: 4.721061158 | X92: 4.274521676 | Y92: 4.169073677 | Z92: 4.061895866 | AA92: 3.953193221 | AB92: 3.329645932 | AC92: 2.426270216 | AD92: 1.480106495 | AE92: 0.9646291248 | AF92: 0.751179182 | AG92: 0.7754501611 | AH92: 0.7621630819 | AI92: 0.4494985193 | AJ92: 0.3461922916 | AK92: 0.3375246088 | AL92: =AL90/AL$7 -> 0.3288079263 | AM92: 0.3200462234 | AN92: 0.3112431565 | AO92: 0.3024020849 | AP92: 0.2935260952 | AQ92: 0.2188292122 | AR92: 0.1585578328 | AS92: 0.09994384504 | AT92: 0.04884627038 | AU92: -1.406707114e-07 | AV92: -1.406707128e-07 | AW92: -1.406707128e-07 | AX92: -1.406707128e-07 | AY92: -1.406707128e-07 | AZ92: -1.406707128e-07 | BA92: -1.406707128e-07 | BB92: -1.406707128e-07 | BC92: -1.406707128e-07 | BD92: -1.406707128e-07 | BE92: -1.406707128e-07 | BF92: -1.406707128e-07 | BG92: -1.406707128e-07 | BH92: -1.406707128e-07 | BI92: -3.807830909e-06
B93: Cash flow to Asset Real Post-tax | E93: 0.03380055923 | F93: =F91/F$7 -> -21.75163747 | G93: -8.556015273 | H93: -11.58202762 | I93: -11.92714359 | J93: -5.317297398 | K93: 0.7112909972 | L93: 6.331886334 | M93: 6.006118694 | N93: 5.867839771 | O93: 5.729560848 | P93: 5.591281925 | Q93: 5.453003002 | R93: 5.156386648 | S93: 4.865438621 | T93: 4.672699848 | U93: 4.504476839 | V93: 4.340111704 | W93: 3.969424401 | X93: 3.529350223 | Y93: 3.395688218 | Z93: 3.26431922 | AA93: 3.134971513 | AB93: 2.787834947 | AC93: 2.19653159 | AD93: 1.480106495 | AE93: 0.9646291248 | AF93: 0.751179182 | AG93: 0.6663910565 | AH93: 0.6313891944 | AI93: 0.3659851823 | AJ93: 0.2773195275 | AK93: 0.2678142307 | AL93: =AL91/AL$7 -> 0.2583738871 | AM93: 0.2489932217 | AN93: 0.2396673875 | AO93: 0.2303919317 | AP93: 0.2211627628 | AQ93: 0.1890853519 | AR93: 0.1429716013 | AS93: 0.09881887712 | AT93: 0.04884627038 | AU93: -1.406707114e-07 | AV93: -1.406707128e-07 | AW93: -1.406707128e-07 | AX93: -1.406707128e-07 | AY93: -1.406707128e-07 | AZ93: -1.406707128e-07 | BA93: -1.406707128e-07 | BB93: -1.406707128e-07 | BC93: -1.406707128e-07 | BD93: -1.406707128e-07 | BE93: -1.406707128e-07 | BF93: -1.406707128e-07 | BG93: -1.406707128e-07 | BH93: -1.406707128e-07 | BI93: -3.807830909e-06
B94: Check on Vanilla WACC Cash Flow (nom) | E94: 0.06500460331 | F94: =(F90-F57+F58) -> -21.75163747 | G94: -8.743867433 | H94: -12.19685228 | I94: -12.88935541 | J94: -5.896812059 | K94: 0.8094783369 | L94: 7.39473496 | M94: 7.198052285 | N94: 7.216571461 | O94: 7.231120354 | P94: 7.241478217 | Q94: 7.247415464 | R94: 7.248693352 | S94: 7.245063665 | T94: 7.236266914 | U94: 7.222034261 | V94: 7.202092815 | W94: 6.826185135 | X94: 6.298192514 | Y94: 6.271007553 | Z94: 6.238075156 | AA94: 6.199112829 | AB94: 5.470025844 | AC94: 4.219032502 | AD94: 2.753283771 | AE94: 1.841407742 | AF94: 1.471515095 | AG94: 1.464586254 | AH94: 1.456284326 | AI94: 0.8755554033 | AJ94: 0.6877441051 | AK94: 0.685636016 | AL94: 0.6829454086 | AM94: =(AM90-AM57+AM58) -> 0.6796432069 | AN94: 0.6756992116 | AO94: 0.6710820604 | AP94: 0.6657591886 | AQ94: 0.5364370623 | AR94: 0.4057246869 | AS94: 0.2726972117 | AT94: 0.1374341814 | AU94: -4.061613731e-07 | AV94: -4.168023958e-07 | AW94: -4.277221984e-07 | AX94: -4.389280889e-07 | AY94: -4.504275625e-07 | AZ94: -4.622283106e-07 | BA94: -4.743382265e-07 | BB94: -4.867654099e-07 | BC94: -4.995181731e-07 | BD94: -5.126050458e-07 | BE94: -5.260347813e-07 | BF94: -5.398163624e-07 | BG94: -5.53959007e-07 | BH94: -5.684721747e-07 | BI94: -1.579118648e-05
B95: Check on Vanilla WACC Cash Flow (real) | E95: 0.03781489896 | F95: =F94/F$7 -> -21.75163747 | G95: =G94/G$7 -> -8.520635374 | H95: -11.58202762 | I95: -11.92714359 | J95: -5.317297398 | K95: 0.7112909972 | L95: 6.331886334 | M95: 6.006118694 | N95: 5.867839771 | O95: 5.729560848 | P95: 5.591281925 | Q95: 5.453003002 | R95: 5.314724079 | S95: 5.176445156 | T95: 5.038165212 | U95: 4.899883877 | V95: 4.761605087 | W95: 4.397857352 | X95: 3.954097951 | Y95: 3.83651793 | Z95: 3.718937908 | AA95: 3.601357886 | AB95: 3.096667208 | AC95: 2.327482607 | AD95: 1.480106495 | AE95: 0.9646291248 | AF95: 0.751179182 | AG95: 0.7285547461 | AH95: 0.7059303103 | AI95: 0.4135877844 | AJ95: 0.316577003 | AK95: 0.3075491462 | AL95: =AL94/AL$7 -> 0.2985212894 | AM95: 0.2894934326 | AN95: 0.2804655759 | AO95: 0.2714377191 | AP95: 0.2624098623 | AQ95: 0.2060393523 | AR95: 0.1518557532 | AS95: 0.09946010883 | AT95: 0.04884627038 | AU95: -1.406707114e-07 | AV95: -1.406707128e-07 | AW95: -1.406707128e-07 | AX95: -1.406707128e-07 | AY95: -1.406707128e-07 | AZ95: -1.406707128e-07 | BA95: -1.406707128e-07 | BB95: -1.406707128e-07 | BC95: -1.406707128e-07 | BD95: -1.406707128e-07 | BE95: -1.406707128e-07 | BF95: -1.406707128e-07 | BG95: -1.406707128e-07 | BH95: -1.406707128e-07 | BI95: -3.807830909e-06
B97: Analysis Excluding Revenue Adjustments (check target WACC is met)
B99: Restatement of figures above
B100: Intermediate tax calculation (excluding revenue adjustments) | G100: =MAX(0,(G25+G26+G28+G30+G40-G46-G47-G48+F56)*G53/(1-(1-$D$35)*G53)) -> 0.06369617018 | H100: 0 | I100: 0 | J100: 0 | K100: 0 | L100: 0 | M100: 0 | N100: 0 | O100: 0 | P100: 0 | Q100: 0 | R100: 0.3788678422 | S100: 0.7636691526 | T100: 0.9209022666 | U100: 1.022452866 | V100: 1.118462032 | W100: 1.166661682 | X100: 1.186928935 | Y100: 1.26414268 | Z100: 1.337839776 | AA100: 1.408426723 | AB100: 0.9570676762 | AC100: 0.4164476794 | AD100: 0 | AE100: 0 | AF100: 0 | AG100: 0.2192374234 | AH100: 0.269777285 | AI100: 0.1767957281 | AJ100: 0.149621852 | AK100: 0.1554091321 | AL100: 0.1611362583 | AM100: =MAX(0,(AM25+AM26+AM28+AM30+AM40-AM46-AM47-AM48+AL56)*AM53/(1-(1-$D$35)*AM53)) -> 0.1668110034 | AN100: 0.1724407372 | AO100: 0.1780324494 | AP100: 0.18359277 | AQ100: 0.07744010493 | AR100: 0.04164293268 | AS100: 0.003084408604 | AT100: 0 | AU100: 0 | AV100: 0 | AW100: 0 | AX100: 0 | AY100: 0 | AZ100: 0 | BA100: 0 | BB100: 0 | BC100: 0 | BD100: 0 | BE100: 0 | BF100: 0 | BG100: 0 | BH100: 0 | BI100: 0
B101: Imputation credit value (excluding revenue adjustments) | G101: =-$D$35*G100 -> -0.036306817 | H101: =-$D$35*H100 -> 0 | I101: 0 | J101: 0 | K101: 0 | L101: 0 | M101: 0 | N101: 0 | O101: 0 | P101: 0 | Q101: 0 | R101: -0.2159546701 | S101: -0.435291417 | T101: -0.524914292 | U101: -0.5827981334 | V101: -0.6375233581 | W101: -0.6649971586 | X101: -0.6765494931 | Y101: -0.7205613278 | Z101: -0.7625686725 | AA101: -0.8028032322 | AB101: -0.5455285755 | AC101: -0.2373751773 | AD101: 0 | AE101: 0 | AF101: 0 | AG101: -0.1249653313 | AH101: -0.1537730524 | AI101: -0.100773565 | AJ101: -0.08528445565 | AK101: -0.08858320532 | AL101: -0.09184766726 | AM101: -0.09508227191 | AN101: -0.0982912202 | AO101: -0.1014784962 | AP101: -0.1046478789 | AQ101: -0.04414085981 | AR101: -0.02373647163 | AS101: -0.001758112904 | AT101: 0 | AU101: 0 | AV101: 0 | AW101: 0 | AX101: 0 | AY101: 0 | AZ101: 0 | BA101: 0 | BB101: 0 | BC101: 0 | BD101: 0 | BE101: 0 | BF101: 0 | BG101: 0 | BH101: 0 | BI101: 0
B102: Revenue Subtotal (excluding revenue adjustments) | G102: =SUM(G25:G30)+SUM(G100:G101) -> 6.032516298 | H102: =SUM(H25:H30)+SUM(H100:H101) -> 6.752869495 | I102: 7.353248783 | J102: 7.913357979 | K102: 8.516084247 | L102: 7.39473496 | M102: 7.198052285 | N102: 7.216571461 | O102: 7.231120354 | P102: 7.241478217 | Q102: 7.247415464 | R102: 7.411606524 | S102: 7.573441401 | T102: 7.632254889 | U102: 7.661688993 | V102: 7.683031488 | W102: 7.327849659 | X102: 6.808571956 | Y102: 6.814588906 | Z102: 6.81334626 | AA102: 6.80473632 | AB102: 5.881564945 | AC102: 4.398105004 | AD102: 2.753283771 | AE102: 1.841407742 | AF102: 1.471515095 | AG102: 1.558858346 | AH102: 1.572288558 | AI102: 0.9515775664 | AJ102: 0.7520815015 | AK102: 0.7524619428 | AL102: 0.7522339996 | AM102: 0.7513719383 | AN102: 0.7498487286 | AO102: 0.7476360137 | AP102: 0.7447040797 | AQ102: 0.5697363074 | AR102: 0.4236311479 | AS102: 0.2740235074 | AT102: 0.1374341814 | AU102: -4.061613731e-07 | AV102: -4.168023958e-07 | AW102: -4.277221984e-07 | AX102: -4.389280889e-07 | AY102: -4.504275625e-07 | AZ102: -4.622283106e-07 | BA102: -4.743382265e-07 | BB102: -4.867654099e-07 | BC102: -4.995181731e-07 | BD102: -5.126050458e-07 | BE102: -5.260347813e-07 | BF102: -5.398163624e-07 | BG102: -5.53959007e-07 | BH102: -5.684721747e-07 | BI102: -5.833655727e-07
B103: Taxable income before loss carried forward (excluding revenue adjustments) | G103: =G102+G40-G46-G47-G48 -> 0.2123205673 | H103: =H102+H40-H46-H47-H48 -> -0.6350519375 | I103: -0.6096544173 | J103: -0.9619959257 | K103: -0.9552428232 | L103: -0.6245417604 | M103: -0.3198883419 | N103: 0.2189445407 | O103: 0.6601383366 | P103: 1.069681222 | Q103: 1.450878853 | R103: 1.969625061 | S103: 2.545563842 | T103: 3.069674222 | U103: 3.408176219 | V103: 3.728206772 | W103: 3.888872273 | X103: 3.956429784 | Y103: 4.213808935 | Z103: 4.459465921 | AA103: 4.694755744 | AB103: 3.190225587 | AC103: 1.388158931 | AD103: -0.1490141292 | AE103: -0.187864295 | AF103: 0.2214771717 | AG103: 0.8461926639 | AH103: 0.8992576166 | AI103: 0.5893190935 | AJ103: 0.4987395067 | AK103: 0.5180304405 | AL103: 0.5371208611 | AM103: 0.5560366778 | AN103: 0.5748024573 | AO103: 0.5934414981 | AP103: 0.6119758999 | AQ103: 0.2581336831 | AR103: 0.1388097756 | AS103: 0.01028136201 | AT103: -0.1094448747 | AU103: -0.2345003224 | AV103: -7.580153673e-08 | AW103: -7.778746059e-08 | AX103: -7.982541366e-08 | AY103: -8.191675904e-08 | AZ103: -8.406289556e-08 | BA103: -8.62652587e-08 | BB103: -8.852532153e-08 | BC103: -9.084459573e-08 | BD103: -9.322463258e-08 | BE103: -9.566702399e-08 | BF103: -9.81734036e-08 | BG103: -1.007454478e-07 | BH103: -1.03384877e-07 | BI103: -1.060934566e-07
B104: Taxable income (excluding revenue adjustments) | G104: =F106+G103 -> 0.2123205673 | H104: =G106+H103 -> -0.6350519375 | I104: -1.244706355 | J104: -2.206702281 | K104: -3.161945104 | L104: -3.786486864 | M104: -4.106375206 | N104: -3.887430665 | O104: -3.227292329 | P104: -2.157611106 | Q104: -0.7067322533 | R104: 1.262892807 | S104: 2.545563842 | T104: 3.069674222 | U104: 3.408176219 | V104: 3.728206772 | W104: 3.888872273 | X104: 3.956429784 | Y104: 4.213808935 | Z104: 4.459465921 | AA104: 4.694755744 | AB104: 3.190225587 | AC104: 1.388158931 | AD104: -0.1490141292 | AE104: -0.3368784242 | AF104: -0.1154012525 | AG104: 0.7307914114 | AH104: 0.8992576166 | AI104: 0.5893190935 | AJ104: 0.4987395067 | AK104: 0.5180304405 | AL104: 0.5371208611 | AM104: 0.5560366778 | AN104: 0.5748024573 | AO104: 0.5934414981 | AP104: 0.6119758999 | AQ104: 0.2581336831 | AR104: 0.1388097756 | AS104: 0.01028136201 | AT104: -0.1094448747 | AU104: -0.3439451971 | AV104: -0.3439452729 | AW104: -0.3439453507 | AX104: -0.3439454305 | AY104: -0.3439455125 | AZ104: -0.3439455965 | BA104: -0.3439456828 | BB104: -0.3439457713 | BC104: -0.3439458621 | BD104: -0.3439459554 | BE104: -0.343946051 | BF104: -0.3439461492 | BG104: -0.34394625 | BH104: -0.3439463533 | BI104: -0.3439464594
B105: Tax payable (excluding revenue adjustments) | G105: =IF(G104>0,G53*G104,0) -> 0.06369617018 | H105: =IF(H104>0,H53*H104,0) -> 0 | I105: 0 | J105: 0 | K105: 0 | L105: 0 | M105: 0 | N105: 0 | O105: 0 | P105: 0 | Q105: 0 | R105: 0.3788678422 | S105: 0.7636691526 | T105: 0.9209022666 | U105: 1.022452866 | V105: 1.118462032 | W105: 1.166661682 | X105: 1.186928935 | Y105: 1.26414268 | Z105: 1.337839776 | AA105: 1.408426723 | AB105: 0.9570676762 | AC105: 0.4164476794 | AD105: 0 | AE105: 0 | AF105: 0 | AG105: 0.2192374234 | AH105: 0.269777285 | AI105: 0.1767957281 | AJ105: 0.149621852 | AK105: 0.1554091321 | AL105: 0.1611362583 | AM105: 0.1668110034 | AN105: 0.1724407372 | AO105: 0.1780324494 | AP105: 0.18359277 | AQ105: 0.07744010493 | AR105: 0.04164293268 | AS105: 0.003084408604 | AT105: 0 | AU105: 0 | AV105: 0 | AW105: 0 | AX105: 0 | AY105: 0 | AZ105: 0 | BA105: 0 | BB105: 0 | BC105: 0 | BD105: 0 | BE105: 0 | BF105: 0 | BG105: 0 | BH105: 0 | BI105: 0
B106: Tax loss carried forward (excluding revenue adjustments) | F106: =F56 -> 0 | G106: =IF(G104<0,G104,0) -> 0 | H106: =IF(H104<0,H104,0) -> -0.6350519375 | I106: -1.244706355 | J106: -2.206702281 | K106: -3.161945104 | L106: -3.786486864 | M106: -4.106375206 | N106: -3.887430665 | O106: -3.227292329 | P106: -2.157611106 | Q106: -0.7067322533 | R106: 0 | S106: 0 | T106: 0 | U106: 0 | V106: 0 | W106: 0 | X106: 0 | Y106: 0 | Z106: 0 | AA106: 0 | AB106: 0 | AC106: 0 | AD106: -0.1490141292 | AE106: -0.3368784242 | AF106: -0.1154012525 | AG106: 0 | AH106: 0 | AI106: 0 | AJ106: 0 | AK106: 0 | AL106: 0 | AM106: 0 | AN106: 0 | AO106: 0 | AP106: 0 | AQ106: 0 | AR106: 0 | AS106: 0 | AT106: -0.1094448747 | AU106: -0.3439451971 | AV106: -0.3439452729 | AW106: -0.3439453507 | AX106: -0.3439454305 | AY106: -0.3439455125 | AZ106: -0.3439455965 | BA106: -0.3439456828 | BB106: -0.3439457713 | BC106: -0.3439458621 | BD106: -0.3439459554 | BE106: -0.343946051 | BF106: -0.3439461492 | BG106: -0.34394625 | BH106: -0.3439463533 | BI106: -0.3439464594
B108: Nominal Cash Flow to Equity Holders (excluding revenue adjustments)
B109: - Pre-tax | C109: Te = | D109: =1-E110/E109 -> 0.1723356628 | E109: =IRR(OFFSET(F109,0,0,1,55+1)) -> 0.08955833118 | F109: =SUM(F25:F30)+SUM(F100:F101)-F46-F70-F71-F72 -> -8.700654986 | G109: =SUM(G25:G30)+SUM(G100:G101)-G46-G70-G71-G72 -> -3.281704335 | H109: =SUM(H25:H30)+SUM(H100:H101)-H46-H70-H71-H72 -> -4.611227501 | I109: -4.780603764 | J109: -1.877868848 | K109: 0.8349157128 | L109: 3.496755818 | M109: 3.400668865 | N109: 3.390923792 | O109: 3.378333922 | P109: 3.362756881 | Q109: 3.344044789 | R109: 3.484957241 | S109: 3.624972981 | T109: 3.663520134 | U109: 3.674337408 | V109: 3.678809393 | W109: 3.518588477 | X109: 3.286198672 | Y109: 3.280424022 | Z109: 3.269189632 | AA109: 3.252490206 | AB109: 2.733518961 | AC109: 1.970423116 | AD109: 1.181759919 | AE109: 0.8026458275 | AF109: 0.6458873896 | AG109: 0.7306478068 | AH109: 0.7419265509 | AI109: 0.4621118614 | AJ109: 0.3714092048 | AK109: 0.370245446 | AL109: 0.3686536782 | AM109: 0.3666186792 | AN109: 0.3641243567 | AO109: 0.3611537345 | AP109: 0.3576889366 | AQ109: 0.2563814907 | AR109: 0.18543535 | AS109: 0.113093817 | AT109: 0.0558935496 | AU109: -2.36058177e-07 | AV109: -2.42242665e-07 | AW109: -2.485891787e-07 | AX109: -2.551019646e-07 | AY109: -2.61785379e-07 | AZ109: -2.686438921e-07 | BA109: -2.756820913e-07 | BB109: -2.829046842e-07 | BC109: -2.903165018e-07 | BD109: -2.979225015e-07 | BE109: -3.057277708e-07 | BF109: -3.137375303e-07 | BG109: -3.219571373e-07 | BH109: -3.303920898e-07 | BI109: =BI25+BI26+BI28+BI30+BI100+BI101-BI46-BI70-BI71-BI72+Assets!BI774*$D$18 -> -6.422176394e-06
B110: - Post-tax | E110: =IRR(OFFSET(F110,0,0,1,55+1)) -> 0.07412423681 | F110: =F109-F100 -> -8.700654986 | G110: -3.345400505 | H110: -4.611227501 | I110: -4.780603764 | J110: -1.877868848 | K110: 0.8349157128 | L110: 3.496755818 | M110: 3.400668865 | N110: 3.390923792 | O110: 3.378333922 | P110: 3.362756881 | Q110: 3.344044789 | R110: 3.106089399 | S110: 2.861303828 | T110: 2.742617868 | U110: 2.651884543 | V110: 2.560347362 | W110: 2.351926796 | X110: 2.099269737 | Y110: 2.016281341 | Z110: 1.931349855 | AA110: 1.844063483 | AB110: 1.776451284 | AC110: 1.553975437 | AD110: 1.181759919 | AE110: 0.8026458275 | AF110: 0.6458873896 | AG110: 0.5114103833 | AH110: 0.4721492659 | AI110: 0.2853161333 | AJ110: 0.2217873528 | AK110: 0.2148363139 | AL110: =AL109-AL100 -> 0.2075174199 | AM110: 0.1998076758 | AN110: 0.1916836195 | AO110: 0.1831212851 | AP110: 0.1740961666 | AQ110: 0.1789413858 | AR110: 0.1437924173 | AS110: 0.1100094084 | AT110: 0.0558935496 | AU110: -2.36058177e-07 | AV110: -2.42242665e-07 | AW110: -2.485891787e-07 | AX110: -2.551019646e-07 | AY110: -2.61785379e-07 | AZ110: -2.686438921e-07 | BA110: -2.756820913e-07 | BB110: -2.829046842e-07 | BC110: -2.903165018e-07 | BD110: -2.979225015e-07 | BE110: -3.057277708e-07 | BF110: -3.137375303e-07 | BG110: -3.219571373e-07 | BH110: -3.303920898e-07 | BI110: -6.422176394e-06
B111: - Post-tax + Value of Imputation Credits | E111: =IRR(OFFSET(F111,0,0,1,55+1)) -> 0.08339501452 | F111: =F110-F101 -> -8.700654986 | G111: -3.309093688 | H111: -4.611227501 | I111: -4.780603764 | J111: -1.877868848 | K111: 0.8349157128 | L111: 3.496755818 | M111: 3.400668865 | N111: 3.390923792 | O111: 3.378333922 | P111: 3.362756881 | Q111: 3.344044789 | R111: 3.322044069 | S111: 3.296595245 | T111: 3.26753216 | U111: 3.234682676 | V111: 3.19787072 | W111: 3.016923954 | X111: 2.77581923 | Y111: 2.736842669 | Z111: 2.693918528 | AA111: 2.646866715 | AB111: 2.32197986 | AC111: 1.791350614 | AD111: 1.181759919 | AE111: 0.8026458275 | AF111: 0.6458873896 | AG111: 0.6363757147 | AH111: 0.6259223183 | AI111: 0.3860896983 | AJ111: 0.3070718085 | AK111: 0.3034195192 | AL111: 0.2993650871 | AM111: =AM110-AM101 -> 0.2948899477 | AN111: 0.2899748397 | AO111: 0.2845997812 | AP111: 0.2787440455 | AQ111: 0.2230822456 | AR111: 0.167528889 | AS111: 0.1117675213 | AT111: 0.0558935496 | AU111: -2.36058177e-07 | AV111: -2.42242665e-07 | AW111: -2.485891787e-07 | AX111: -2.551019646e-07 | AY111: -2.61785379e-07 | AZ111: -2.686438921e-07 | BA111: -2.756820913e-07 | BB111: -2.829046842e-07 | BC111: -2.903165018e-07 | BD111: -2.979225015e-07 | BE111: -3.057277708e-07 | BF111: -3.137375303e-07 | BG111: -3.219571373e-07 | BH111: -3.303920898e-07 | BI111: -6.422176394e-06
B112: Real Cash Flow to Equity (excluding revenue adjustments)
B113: - Pre-tax | E113: =IRR(OFFSET(F113,0,0,1,55+1)) -> 0.061741767 | F113: =F109/F$7 -> -8.700654986 | G113: -3.197922001 | H113: -4.37878258 | I113: -4.423723741 | J113: -1.69331955 | K113: 0.7336428943 | L113: 2.994165511 | M113: 2.837548274 | N113: 2.757181522 | O113: 2.67681477 | P113: 2.596448018 | Q113: 2.516081266 | R113: 2.55516205 | S113: 2.589966727 | T113: 2.550682543 | U113: 2.492902412 | V113: 2.432214909 | W113: 2.26689577 | X113: 2.063123889 | Y113: 2.006919218 | Z113: 1.948984734 | AA113: 1.889525417 | AB113: 1.547487849 | AC113: 1.087008818 | AD113: 0.6352888682 | AE113: 0.4204693641 | AF113: 0.3297126632 | AG113: 0.3634589127 | AH113: 0.359647104 | AI113: 0.2182886659 | AJ113: 0.1709641887 | AK113: 0.1660774349 | AL113: =AL109/AL$7 -> 0.1611416813 | AM113: 0.1561609074 | AN113: 0.1511387695 | AO113: 0.1460786269 | AP113: 0.1409835661 | AQ113: 0.09847320401 | AR113: 0.06940525353 | AS113: 0.04124839883 | AT113: 0.01986544692 | AU113: -8.175684323e-08 | AV113: -8.175684379e-08 | AW113: -8.175684379e-08 | AX113: -8.175684379e-08 | AY113: -8.175684379e-08 | AZ113: -8.175684379e-08 | BA113: -8.175684379e-08 | BB113: -8.175684379e-08 | BC113: -8.175684379e-08 | BD113: -8.175684379e-08 | BE113: -8.175684379e-08 | BF113: -8.175684379e-08 | BG113: -8.175684379e-08 | BH113: -8.175684379e-08 | BI113: -1.548620922e-06
B114: - Post-tax | E114: =IRR(OFFSET(F114,0,0,1,55+1)) -> 0.04670170705 | F114: =F110/F$7 -> -8.700654986 | G114: -3.259992 | H114: -4.37878258 | I114: -4.423723741 | J114: -1.69331955 | K114: 0.7336428943 | L114: 2.994165511 | M114: 2.837548274 | N114: 2.757181522 | O114: 2.67681477 | P114: 2.596448018 | Q114: 2.516081266 | R114: 2.277377083 | S114: 2.044341227 | T114: 1.909515237 | U114: 1.799205853 | V114: 1.692752834 | W114: 1.515259013 | X114: 1.317952436 | Y114: 1.233533758 | Z114: 1.151408088 | AA114: 1.071303709 | AB114: 1.005676864 | AC114: 0.8572701916 | AD114: 0.6352888682 | AE114: 0.4204693641 | AF114: 0.3297126632 | AG114: 0.2543998082 | AH114: 0.2288732165 | AI114: 0.1347753289 | AJ114: 0.1020914246 | AK114: 0.09636705681 | AL114: =AL110/AL$7 -> 0.0907076422 | AM114: 0.08510790567 | AN114: 0.07956300052 | AO114: 0.07406847368 | AP114: 0.0686202337 | AQ114: 0.06872934368 | AR114: 0.05381902199 | AS114: 0.0401234309 | AT114: 0.01986544692 | AU114: -8.175684323e-08 | AV114: -8.175684379e-08 | AW114: -8.175684379e-08 | AX114: -8.175684379e-08 | AY114: -8.175684379e-08 | AZ114: -8.175684379e-08 | BA114: -8.175684379e-08 | BB114: -8.175684379e-08 | BC114: -8.175684379e-08 | BD114: -8.175684379e-08 | BE114: -8.175684379e-08 | BF114: -8.175684379e-08 | BG114: -8.175684379e-08 | BH114: -8.175684379e-08 | BI114: -1.548620922e-06
B115: - Post-tax + Value of Imputation Credits | E115: =IRR(OFFSET(F115,0,0,1,55+1)) -> 0.05573580061 | F115: =F111/F$7 -> -8.700654986 | G115: -3.224612101 | H115: -4.37878258 | I115: -4.423723741 | J115: -1.69331955 | K115: 0.7336428943 | L115: 2.994165511 | M115: 2.837548274 | N115: 2.757181522 | O115: 2.67681477 | P115: 2.596448018 | Q115: 2.516081266 | R115: 2.435714514 | S115: 2.355347762 | T115: 2.274980602 | U115: 2.194612892 | V115: 2.114246217 | W115: 1.943691964 | X115: 1.742700164 | Y115: 1.67436347 | Z115: 1.606026776 | AA115: 1.537690082 | AB115: 1.314509126 | AC115: 0.9882212085 | AD115: 0.6352888682 | AE115: 0.4204693641 | AF115: 0.3297126632 | AG115: 0.3165634978 | AH115: 0.3034143324 | AI115: 0.182377931 | AJ115: 0.1413489001 | AK115: 0.1361019723 | AL115: =AL111/AL$7 -> 0.1308550445 | AM115: 0.1256081167 | AN115: 0.1203611888 | AO115: 0.115114261 | AP115: 0.1098673332 | AQ115: 0.08568334407 | AR115: 0.06270317397 | AS115: 0.04076466262 | AT115: 0.01986544692 | AU115: -8.175684323e-08 | AV115: -8.175684379e-08 | AW115: -8.175684379e-08 | AX115: -8.175684379e-08 | AY115: -8.175684379e-08 | AZ115: -8.175684379e-08 | BA115: -8.175684379e-08 | BB115: -8.175684379e-08 | BC115: -8.175684379e-08 | BD115: -8.175684379e-08 | BE115: -8.175684379e-08 | BF115: -8.175684379e-08 | BG115: -8.175684379e-08 | BH115: -8.175684379e-08 | BI115: -1.548620922e-06
B116: Net Cash Flow to Debt (excluding revenue adjustments)
B117: Cash flow to debt before Tax calculation | E117: =IRR(OFFSET(F117,0,0,1,55+1)) -> 0.05281477764 | F117: =F72 -> -13.05098248 | G117: =G48+G72 -> -5.434773745 | H117: =H48+H72 -> -7.585624779 | I117: -8.108751646 | J117: -4.018943211 | K117: -0.02543737591 | L117: 3.897979142 | M117: 3.79738342 | N117: 3.825647669 | O117: 3.852786432 | P117: 3.878721337 | Q117: 3.903370674 | R117: 3.926649283 | S117: 3.94846842 | T117: 3.968734754 | U117: 3.987351585 | V117: 4.004222095 | W117: 3.809261181 | X117: 3.522373284 | Y117: 3.534164884 | Z117: 3.544156629 | AA117: 3.552246115 | AB117: 3.148045984 | AC117: 2.427681888 | AD117: 1.571523853 | AE117: 1.038761914 | AF117: 0.8256277057 | AG117: 0.828210539 | AH117: 0.8303620072 | AI117: 0.489465705 | AJ117: 0.3806722966 | AK117: 0.3822164968 | AL117: 0.3835803214 | AM117: 0.3847532592 | AN117: 0.3857243719 | AO117: 0.3864822792 | AP117: 0.3870151431 | AQ117: 0.3133548167 | AR117: 0.2381957979 | AS117: 0.1609296904 | AT117: 0.08154063181 | AU117: -1.70103196e-07 | AV117: -1.745597307e-07 | AW117: -1.791330197e-07 | AX117: -1.838261243e-07 | AY117: -1.886421835e-07 | AZ117: -1.935844186e-07 | BA117: -1.986561352e-07 | BB117: -2.038607257e-07 | BC117: -2.092016713e-07 | BD117: -2.146825442e-07 | BE117: -2.203070105e-07 | BF117: -2.260788321e-07 | BG117: -2.320018697e-07 | BH117: -2.380800848e-07 | BI117: =BI48+BI72+Assets!$BI$774*$D$19 -> -9.36901009e-06
B118: Deduction Utilised to Reduce Tax | G118: =MAX(0,MIN(G48+G103,F119+G48)) -> 0.6172536604 | H118: =MAX(0,MIN(H48+H103,G119+H48)) -> 0.2892603215 | I118: 0.7552816915 | J118: 0.928704573 | K118: 1.352621492 | L118: 1.808564644 | M118: 2.034589687 | N118: 2.495973311 | O118: 2.85404358 | P118: 3.174544511 | Q118: 3.460528699 | R118: 2.614734913 | S118: 1.799649967 | T118: 1.684310184 | U118: 1.561691619 | V118: 1.431492116 | W118: 1.293398497 | X118: 1.158357281 | Y118: 1.031466574 | Z118: 0.8971319676 | AA118: 0.7550505135 | AB118: 0.6049084976 | AC118: 0.468403282 | AD118: 0.2142230931 | AE118: 0.1105170444 | AF118: 0.4801179109 | AG118: 0.3436084511 | AH118: 0.196001474 | AI118: 0.1619515959 | AJ118: 0.1443719785 | AK118: 0.1316883442 | AL118: 0.1182410179 | AM118: 0.1039986897 | AN118: 0.08892893301 | AO118: 0.07299816812 | AP118: 0.05617162358 | AQ118: 0.03841329702 | AR118: 0.02365556109 | AS118: 0.01213991892 | AT118: 0 | AU118: 0 | AV118: 0 | AW118: 0 | AX118: 0 | AY118: 0 | AZ118: 0 | BA118: 0 | BB118: 0 | BC118: 0 | BD118: 0 | BE118: 0 | BF118: 0 | BG118: 0 | BH118: 0 | BI118: 0
B119: Unutilised Deductions Carried Forward | G119: =MAX(0,F119+G48-G118) -> 0 | H119: =MAX(0,G119+H48-H118) -> 0.6350519375 | I119: 1.244706355 | J119: 2.206702281 | K119: 3.161945104 | L119: 3.786486864 | M119: 4.106375206 | N119: 3.887430665 | O119: 3.227292329 | P119: 2.157611106 | Q119: 0.7067322533 | R119: 0 | S119: 0 | T119: 0 | U119: 0 | V119: 0 | W119: 0 | X119: 0 | Y119: 0 | Z119: 0 | AA119: 0 | AB119: 0 | AC119: 0 | AD119: 0.1490141292 | AE119: 0.3368784242 | AF119: 0.1154012525 | AG119: 0 | AH119: 0 | AI119: 0 | AJ119: 0 | AK119: 0 | AL119: 0 | AM119: 0 | AN119: 0 | AO119: 0 | AP119: 0 | AQ119: 0 | AR119: 0 | AS119: 0 | AT119: 0.004153492721 | AU119: 0.004153160426 | AV119: 0.004152819425 | AW119: 0.00415246949 | AX119: 0.004152110388 | AY119: 0.004151741877 | AZ119: 0.004151363712 | BA119: 0.004150975639 | BB119: 0.004150577398 | BC119: 0.004150168725 | BD119: 0.004149749345 | BE119: 0.004149318977 | BF119: 0.004148877334 | BG119: 0.00414842412 | BH119: 0.004147959033 | BI119: 0.004147481761
B120: Net Cash Flow to Debt | C120: Td = | D120: =1-$E$120/$E$117 -> 0.2901954582 | E120: =IRR(OFFSET(F120,0,0,1,55+1)) -> 0.03748816904 | F120: =F72 -> -13.05098248 | G120: =G48-G118*G53+G72 -> -5.619949843 | H120: =H48-H118*H53+H72 -> -7.672402876 | I120: -8.335336154 | J120: -4.297554583 | K120: -0.4312238235 | L120: 3.355409749 | M120: 3.187006514 | N120: 3.076855676 | O120: 2.996573358 | P120: 2.926357983 | Q120: 2.865212065 | R120: 3.142228809 | S120: 3.40857343 | T120: 3.463441699 | U120: 3.518844099 | V120: 3.57477446 | W120: 3.421241632 | X120: 3.1748661 | Y120: 3.224724912 | Z120: 3.275017038 | AA120: 3.32573096 | AB120: 2.966573435 | AC120: 2.287160903 | AD120: 1.507256925 | AE120: 1.005606801 | AF120: 0.6815923325 | AG120: 0.7251280037 | AH120: 0.771561565 | AI120: 0.4408802262 | AJ120: 0.3373607031 | AK120: 0.3427099936 | AL120: 0.3481080161 | AM120: 0.3535536523 | AN120: 0.359045692 | AO120: 0.3645828288 | AP120: 0.370163656 | AQ120: 0.3018308276 | AR120: 0.2310991296 | AS120: 0.1572877147 | AT120: 0.08154063181 | AU120: -1.70103196e-07 | AV120: -1.745597307e-07 | AW120: -1.791330197e-07 | AX120: -1.838261243e-07 | AY120: -1.886421835e-07 | AZ120: -1.935844186e-07 | BA120: -1.986561352e-07 | BB120: -2.038607257e-07 | BC120: -2.092016713e-07 | BD120: -2.146825442e-07 | BE120: -2.203070105e-07 | BF120: -2.260788321e-07 | BG120: -2.320018697e-07 | BH120: -2.380800848e-07 | BI120: =BI48-BI118*BI53+BI72+Assets!BI774*$D$19 -> -9.36901009e-06
B121: Nominal Cash Flows to Assets
B122: Cash flow to Asset | E122: =IRR(OFFSET(F122,0,0,1,55+1)) -> 0.06793751781 | F122: =F102-F70-F30 -> -21.75163747 | G122: =G102-G70-G30 -> -8.71647808 | H122: -12.19685228 | I122: -12.88935541 | J122: -5.896812059 | K122: 0.8094783369 | L122: 7.39473496 | M122: 7.198052285 | N122: 7.216571461 | O122: 7.231120354 | P122: 7.241478217 | Q122: 7.247415464 | R122: 7.411606524 | S122: 7.573441401 | T122: 7.632254889 | U122: 7.661688993 | V122: 7.683031488 | W122: 7.327849659 | X122: 6.808571956 | Y122: 6.814588906 | Z122: 6.81334626 | AA122: 6.80473632 | AB122: 5.881564945 | AC122: 4.398105004 | AD122: 2.753283771 | AE122: 1.841407742 | AF122: 1.471515095 | AG122: 1.558858346 | AH122: 1.572288558 | AI122: 0.9515775664 | AJ122: 0.7520815015 | AK122: 0.7524619428 | AL122: 0.7522339996 | AM122: 0.7513719383 | AN122: 0.7498487286 | AO122: 0.7476360137 | AP122: 0.7447040797 | AQ122: 0.5697363074 | AR122: 0.4236311479 | AS122: 0.2740235074 | AT122: 0.1374341814 | AU122: -4.061613731e-07 | AV122: -4.168023958e-07 | AW122: -4.277221984e-07 | AX122: -4.389280889e-07 | AY122: -4.504275625e-07 | AZ122: -4.622283106e-07 | BA122: -4.743382265e-07 | BB122: -4.867654099e-07 | BC122: -4.995181731e-07 | BD122: -5.126050458e-07 | BE122: -5.260347813e-07 | BF122: -5.398163624e-07 | BG122: -5.53959007e-07 | BH122: -5.684721747e-07 | BI122: =BI102-BI70-BI30+Assets!BI774 -> -1.579118648e-05
B123: Cash flow to Asset Post-tax | E123: 0.06088509193 | F123: =F122-F105 -> -21.75163747 | G123: =G122-G105 -> -8.78017425 | H123: -12.19685228 | I123: -12.88935541 | J123: -5.896812059 | K123: 0.8094783369 | L123: 7.39473496 | M123: 7.198052285 | N123: 7.216571461 | O123: 7.231120354 | P123: 7.241478217 | Q123: 7.247415464 | R123: 7.032738681 | S123: 6.809772248 | T123: 6.711352622 | U123: 6.639236127 | V123: 6.564569457 | W123: 6.161187977 | X123: 5.621643021 | Y123: 5.550446225 | Z123: 5.475506484 | AA123: 5.396309597 | AB123: 4.924497268 | AC123: 3.981657325 | AD123: 2.753283771 | AE123: 1.841407742 | AF123: 1.471515095 | AG123: 1.339620922 | AH123: 1.302511273 | AI123: 0.7747818383 | AJ123: 0.6024596495 | AK123: 0.5970528107 | AL123: 0.5910977413 | AM123: 0.584560935 | AN123: 0.5774079914 | AO123: 0.5696035643 | AP123: 0.5611113097 | AQ123: 0.4922962025 | AR123: 0.3819882153 | AS123: 0.2709390987 | AT123: 0.1374341814 | AU123: -4.061613731e-07 | AV123: -4.168023958e-07 | AW123: -4.277221984e-07 | AX123: -4.389280889e-07 | AY123: -4.504275625e-07 | AZ123: -4.622283106e-07 | BA123: -4.743382265e-07 | BB123: -4.867654099e-07 | BC123: -4.995181731e-07 | BD123: -5.126050458e-07 | BE123: -5.260347813e-07 | BF123: -5.398163624e-07 | BG123: -5.53959007e-07 | BH123: -5.684721747e-07 | BI123: -1.579118648e-05
B124: Cash flow to Asset Real | E124: 0.04067293577 | F124: =F122/F$7 -> -21.75163747 | G124: -8.493945274 | H124: -11.58202762 | I124: -11.92714359 | J124: -5.317297398 | K124: 0.7112909972 | L124: 6.331886334 | M124: 6.006118694 | N124: 5.867839771 | O124: 5.729560848 | P124: 5.591281925 | Q124: 5.453003002 | R124: 5.434171615 | S124: 5.411064121 | T124: 5.313867154 | U124: 5.198173397 | V124: 5.07957378 | W124: 4.721061158 | X124: 4.274521676 | Y124: 4.169073677 | Z124: 4.061895866 | AA124: 3.953193221 | AB124: 3.329645932 | AC124: 2.426270216 | AD124: 1.480106495 | AE124: 0.9646291248 | AF124: 0.751179182 | AG124: 0.7754501611 | AH124: 0.7621630819 | AI124: 0.4494985193 | AJ124: 0.3461922916 | AK124: 0.3375246088 | AL124: 0.3288079263 | AM124: 0.3200462234 | AN124: 0.3112431565 | AO124: 0.3024020849 | AP124: 0.2935260952 | AQ124: 0.2188292122 | AR124: 0.1585578328 | AS124: 0.09994384504 | AT124: 0.04884627038 | AU124: -1.406707114e-07 | AV124: -1.406707128e-07 | AW124: -1.406707128e-07 | AX124: -1.406707128e-07 | AY124: -1.406707128e-07 | AZ124: -1.406707128e-07 | BA124: -1.406707128e-07 | BB124: -1.406707128e-07 | BC124: -1.406707128e-07 | BD124: -1.406707128e-07 | BE124: -1.406707128e-07 | BF124: -1.406707128e-07 | BG124: -1.406707128e-07 | BH124: -1.406707128e-07 | BI124: -3.807830909e-06
B125: Cash flow to Asset Real Post-tax | E125: 0.03380055923 | F125: =F123/F$7 -> -21.75163747 | G125: -8.556015273 | H125: -11.58202762 | I125: -11.92714359 | J125: -5.317297398 | K125: 0.7112909972 | L125: 6.331886334 | M125: 6.006118694 | N125: 5.867839771 | O125: 5.729560848 | P125: 5.591281925 | Q125: 5.453003002 | R125: 5.156386648 | S125: 4.865438621 | T125: 4.672699848 | U125: 4.504476839 | V125: 4.340111704 | W125: 3.969424401 | X125: 3.529350223 | Y125: 3.395688218 | Z125: 3.26431922 | AA125: 3.134971513 | AB125: 2.787834947 | AC125: 2.19653159 | AD125: 1.480106495 | AE125: 0.9646291248 | AF125: 0.751179182 | AG125: 0.6663910565 | AH125: 0.6313891944 | AI125: 0.3659851823 | AJ125: 0.2773195275 | AK125: 0.2678142307 | AL125: 0.2583738871 | AM125: 0.2489932217 | AN125: 0.2396673875 | AO125: 0.2303919317 | AP125: 0.2211627628 | AQ125: 0.1890853519 | AR125: 0.1429716013 | AS125: 0.09881887712 | AT125: 0.04884627038 | AU125: -1.406707114e-07 | AV125: -1.406707128e-07 | AW125: -1.406707128e-07 | AX125: -1.406707128e-07 | AY125: -1.406707128e-07 | AZ125: -1.406707128e-07 | BA125: -1.406707128e-07 | BB125: -1.406707128e-07 | BC125: -1.406707128e-07 | BD125: -1.406707128e-07 | BE125: -1.406707128e-07 | BF125: -1.406707128e-07 | BG125: -1.406707128e-07 | BH125: -1.406707128e-07 | BI125: -3.807830909e-06
B126: Check on Vanilla WACC Cash Flow (nom) | E126: 0.06500460331 | F126: =(F122-F105-F101) -> -21.75163747 | G126: =(G122-G105-G101) -> -8.743867433 | H126: =(H122-H105-H101) -> -12.19685228 | I126: -12.88935541 | J126: -5.896812059 | K126: 0.8094783369 | L126: 7.39473496 | M126: 7.198052285 | N126: 7.216571461 | O126: 7.231120354 | P126: 7.241478217 | Q126: 7.247415464 | R126: 7.248693352 | S126: 7.245063665 | T126: 7.236266914 | U126: 7.222034261 | V126: 7.202092815 | W126: 6.826185135 | X126: 6.298192514 | Y126: 6.271007553 | Z126: 6.238075156 | AA126: 6.199112829 | AB126: 5.470025844 | AC126: 4.219032502 | AD126: 2.753283771 | AE126: 1.841407742 | AF126: 1.471515095 | AG126: 1.464586254 | AH126: 1.456284326 | AI126: 0.8755554033 | AJ126: 0.6877441051 | AK126: 0.685636016 | AL126: 0.6829454086 | AM126: 0.6796432069 | AN126: 0.6756992116 | AO126: 0.6710820604 | AP126: 0.6657591886 | AQ126: 0.5364370623 | AR126: 0.4057246869 | AS126: 0.2726972117 | AT126: 0.1374341814 | AU126: -4.061613731e-07 | AV126: -4.168023958e-07 | AW126: -4.277221984e-07 | AX126: -4.389280889e-07 | AY126: -4.504275625e-07 | AZ126: -4.622283106e-07 | BA126: -4.743382265e-07 | BB126: -4.867654099e-07 | BC126: -4.995181731e-07 | BD126: -5.126050458e-07 | BE126: -5.260347813e-07 | BF126: -5.398163624e-07 | BG126: -5.53959007e-07 | BH126: -5.684721747e-07 | BI126: -1.579118648e-05
B127: Check on Vanilla WACC Cash Flow (real) | E127: 0.03781489896 | F127: =F126/F$7 -> -21.75163747 | G127: =G126/G$7 -> -8.520635374 | H127: -11.58202762 | I127: -11.92714359 | J127: -5.317297398 | K127: 0.7112909972 | L127: 6.331886334 | M127: 6.006118694 | N127: 5.867839771 | O127: 5.729560848 | P127: 5.591281925 | Q127: 5.453003002 | R127: 5.314724079 | S127: 5.176445156 | T127: 5.038165212 | U127: 4.899883877 | V127: 4.761605087 | W127: 4.397857352 | X127: 3.954097951 | Y127: 3.83651793 | Z127: 3.718937908 | AA127: 3.601357886 | AB127: 3.096667208 | AC127: 2.327482607 | AD127: 1.480106495 | AE127: 0.9646291248 | AF127: 0.751179182 | AG127: 0.7285547461 | AH127: 0.7059303103 | AI127: 0.4135877844 | AJ127: 0.316577003 | AK127: 0.3075491462 | AL127: 0.2985212894 | AM127: 0.2894934326 | AN127: 0.2804655759 | AO127: 0.2714377191 | AP127: 0.2624098623 | AQ127: 0.2060393523 | AR127: 0.1518557532 | AS127: 0.09946010883 | AT127: 0.04884627038 | AU127: -1.406707114e-07 | AV127: -1.406707128e-07 | AW127: -1.406707128e-07 | AX127: -1.406707128e-07 | AY127: -1.406707128e-07 | AZ127: -1.406707128e-07 | BA127: -1.406707128e-07 | BB127: -1.406707128e-07 | BC127: -1.406707128e-07 | BD127: -1.406707128e-07 | BE127: -1.406707128e-07 | BF127: -1.406707128e-07 | BG127: -1.406707128e-07 | BH127: -1.406707128e-07 | BI127: -3.807830909e-06
B129: Return on Equity - Individual Years
B131: Return on Equity
B132: Cash flow with Imputation | G132: =G111 -> -3.309093688 | H132: -4.611227501 | I132: -4.780603764 | J132: -1.877868848 | K132: 0.8349157128 | L132: 3.496755818 | M132: 3.400668865 | N132: 3.390923792 | O132: 3.378333922 | P132: 3.362756881 | Q132: 3.344044789 | R132: 3.322044069 | S132: 3.296595245 | T132: 3.26753216 | U132: 3.234682676 | V132: 3.19787072 | W132: 3.016923954 | X132: 2.77581923 | Y132: 2.736842669 | Z132: 2.693918528 | AA132: 2.646866715 | AB132: 2.32197986 | AC132: 1.791350614 | AD132: 1.181759919 | AE132: 0.8026458275 | AF132: 0.6458873896 | AG132: 0.6363757147 | AH132: 0.6259223183 | AI132: 0.3860896983 | AJ132: 0.3070718085 | AK132: 0.3034195192 | AL132: 0.2993650871 | AM132: =AM111 -> 0.2948899477 | AN132: 0.2899748397 | AO132: 0.2845997812 | AP132: 0.2787440455 | AQ132: 0.2230822456 | AR132: 0.167528889 | AS132: 0.1117675213 | AT132: 0.0558935496 | AU132: -2.36058177e-07 | AV132: -2.42242665e-07 | AW132: -2.485891787e-07 | AX132: -2.551019646e-07 | AY132: -2.61785379e-07 | AZ132: -2.686438921e-07 | BA132: -2.756820913e-07 | BB132: -2.829046842e-07 | BC132: -2.903165018e-07 | BD132: -2.979225015e-07 | BE132: -3.057277708e-07 | BF132: -3.137375303e-07 | BG132: -3.219571373e-07 | BH132: -3.303920898e-07 | BI132: =BI111-Assets!BI774*D18 -> -3.390480296e-07
B133: Add back Capex | G133: =G70 -> 10.66101671 | H133: 15.16313812 | I133: 17.15868069 | J133: 11.66321947 | K133: 6.056632045 | L133: 0 | M133: 0 | N133: 0 | O133: 0 | P133: 0 | Q133: 0 | R133: 0 | S133: 0 | T133: 0 | U133: 0 | V133: 0 | W133: 0 | X133: 0 | Y133: 0 | Z133: 0 | AA133: 0 | AB133: 0 | AC133: 0 | AD133: 0 | AE133: 0 | AF133: 0 | AG133: 0 | AH133: 0 | AI133: 0 | AJ133: 0 | AK133: 0 | AL133: 0 | AM133: =AM70 -> 0 | AN133: 0 | AO133: 0 | AP133: 0 | AQ133: 0 | AR133: 0 | AS133: 0 | AT133: 0 | AU133: 0 | AV133: 0 | AW133: 0 | AX133: 0 | AY133: 0 | AZ133: 0 | BA133: 0 | BB133: 0 | BC133: 0 | BD133: 0 | BE133: 0 | BF133: 0 | BG133: 0 | BH133: 0 | BI133: 0
B134: Less Nominal Depreciation of RAB | G134: =-Assets!G773 -> -0.5743043642 | H134: =-Assets!H773 -> -0.9799097199 | I134: =-Assets!I773 -> -1.369201096 | J134: =-Assets!J773 -> -1.813813284 | K134: =-Assets!K773 -> -2.167795893 | L134: =-Assets!L773 -> -2.441454563 | M134: =-Assets!M773 -> -2.404842319 | N134: =-Assets!N773 -> -2.581031498 | O134: =-Assets!O773 -> -2.764801981 | P134: =-Assets!P773 -> -2.95643008 | Q134: =-Assets!Q773 -> -3.156201381 | R134: =-Assets!R773 -> -3.364411039 | S134: =-Assets!S773 -> -3.581364088 | T134: =-Assets!T773 -> -3.807374284 | U134: =-Assets!U773 -> -4.042766609 | V134: =-Assets!V773 -> -4.287883298 | W134: =-Assets!W773 -> -4.193104474 | X134: =-Assets!X773 -> -3.940026672 | Y134: =-Assets!Y773 -> -4.171163851 | Z134: =-Assets!Z773 -> -4.411707768 | AA134: =-Assets!AA773 -> -4.661992668 | AB134: =-Assets!AB773 -> -4.238562478 | AC134: =-Assets!AC773 -> -3.265464343 | AD134: =-Assets!AD773 -> -2.01381105 | AE134: =-Assets!AE773 -> -1.233967624 | AF134: =-Assets!AF773 -> -0.9449782775 | AG134: =-Assets!AG773 -> -1.000005567 | AH134: =-Assets!AH773 -> -1.057267555 | AI134: =-Assets!AI773 -> -0.5458568484 | AJ134: =-Assets!AJ773 -> -0.3938338636 | AK134: =-Assets!AK773 -> -0.4175469211 | AL134: =-Assets!AL773 -> -0.4422321725 | AM134: =-Assets!AM773 -> -0.4679242825 | AN134: =-Assets!AN773 -> -0.4946590648 | AO134: =-Assets!AO773 -> -0.5224735185 | AP134: =-Assets!AP773 -> -0.5514058658 | AQ134: =-Assets!AQ773 -> -0.4582358662 | AR134: =-Assets!AR773 -> -0.3575670614 | AS134: =-Assets!AS773 -> -0.2479829524 | AT134: =-Assets!AT773 -> -0.1289785651 | AU134: =-Assets!AU773 -> -2.703197786e-07 | AV134: =-Assets!AV773 -> -2.774018805e-07 | AW134: =-Assets!AW773 -> -2.846695302e-07 | AX134: =-Assets!AX773 -> -2.92127585e-07 | AY134: =-Assets!AY773 -> -2.997810333e-07 | AZ134: =-Assets!AZ773 -> -3.076349942e-07 | BA134: =-Assets!BA773 -> -3.15694721e-07 | BB134: =-Assets!BB773 -> -3.239656045e-07 | BC134: =-Assets!BC773 -> -3.324531768e-07 | BD134: =-Assets!BD773 -> -3.411631149e-07 | BE134: =-Assets!BE773 -> -3.501012447e-07 | BF134: =-Assets!BF773 -> -3.592735444e-07 | BG134: =-Assets!BG773 -> -3.686861492e-07 | BH134: =-Assets!BH773 -> -3.783453547e-07 | BI134: =-Assets!BI773 -> -3.882576217e-07
B135: Add Debt Repayment | G135: =G72 -> -6.052027405 | H135: -8.509937038 | I135: -9.473687755 | J135: -5.90964371 | K135: -2.333301691 | L135: 1.464872738 | M135: 1.442905392 | N135: 1.548618899 | O135: 1.658881189 | P135: 1.773858048 | Q135: 1.893720828 | R135: 2.018646623 | S135: 2.148818453 | T135: 2.28442457 | U135: 2.425659965 | V135: 2.572729979 | W135: 2.515862684 | X135: 2.364016003 | Y135: 2.502698311 | Z135: 2.647024661 | AA135: 2.797195601 | AB135: 2.543137487 | AC135: 1.959278606 | AD135: 1.20828663 | AE135: 0.7403805746 | AF135: 0.5669869665 | AG135: 0.6000033404 | AH135: 0.6343605332 | AI135: 0.3275141091 | AJ135: 0.2363003182 | AK135: 0.2505281527 | AL135: 0.2653393035 | AM135: =AM72 -> 0.2807545695 | AN135: 0.2967954389 | AO135: 0.3134841111 | AP135: 0.3308435195 | AQ135: 0.2749415197 | AR135: 0.2145402368 | AS135: 0.1487897715 | AT135: 0.07738713909 | AU135: 1.621918672e-07 | AV135: 1.664411283e-07 | AW135: 1.708017181e-07 | AX135: 1.75276551e-07 | AY135: 1.7986862e-07 | AZ135: 1.845809965e-07 | BA135: 1.894168326e-07 | BB135: 1.943793627e-07 | BC135: 1.994719061e-07 | BD135: 2.04697869e-07 | BE135: 2.100607468e-07 | BF135: 2.155641267e-07 | BG135: 2.212116895e-07 | BH135: 2.270072128e-07 | BI135: 2.32954573e-07
B136: Gives Nominal Return to Equity | G136: =SUM(G132:G135) -> 0.7255912489 | H136: 1.062063858 | I136: 1.535188073 | J136: 2.061893625 | K136: 2.390450174 | L136: 2.520173993 | M136: 2.438731937 | N136: 2.358511193 | O136: 2.272413129 | P136: 2.180184849 | Q136: 2.081564237 | R136: 1.976279653 | S136: 1.86404961 | T136: 1.744582446 | U136: 1.617576033 | V136: 1.482717401 | W136: 1.339682165 | X136: 1.199808561 | Y136: 1.068377129 | Z136: 0.9292354206 | AA136: 0.7820696473 | AB136: 0.6265548688 | AC136: 0.485164877 | AD136: 0.3762354985 | AE136: 0.3090587778 | AF136: 0.2678960786 | AG136: 0.2363734877 | AH136: 0.2030152962 | AI136: 0.167746959 | AJ136: 0.149538263 | AK136: 0.1364007507 | AL136: 0.1224722181 | AM136: =SUM(AM132:AM135) -> 0.1077202347 | AN136: 0.0921112138 | AO136: 0.07561037384 | AP136: 0.05818169918 | AQ136: 0.0397878991 | AR136: 0.02450206442 | AS136: 0.01257434031 | AT136: 0.004302123539 | AU136: -3.441860885e-07 | AV136: -3.532034172e-07 | AW136: -3.624569908e-07 | AX136: -3.719529986e-07 | AY136: -3.816977923e-07 | AZ136: -3.916978897e-07 | BA136: -4.019599797e-07 | BB136: -4.12490926e-07 | BC136: -4.232977725e-07 | BD136: -4.343877475e-07 | BE136: -4.457682687e-07 | BF136: -4.57446948e-07 | BG136: -4.69431597e-07 | BH136: -4.817302317e-07 | BI136: -4.943510783e-07
B137: Less Inflation in Equity Component | G137: =-$D$18*(Assets!G775-Assets!F774) -> -0.2279483913 | H137: =-$D$18*(Assets!H775-Assets!G774) -> -0.3336530702 | I137: =-$D$18*(Assets!I775-Assets!H774) -> -0.4822875857 | J137: =-$D$18*(Assets!J775-Assets!I774) -> -0.6477549662 | K137: =-$D$18*(Assets!K775-Assets!J774) -> -0.7509727722 | L137: =-$D$18*(Assets!L775-Assets!K774) -> -0.7917262072 | M137: =-$D$18*(Assets!M775-Assets!L774) -> -0.7661407477 | N137: =-$D$18*(Assets!N775-Assets!M774) -> -0.7409389697 | O137: =-$D$18*(Assets!O775-Assets!N774) -> -0.7138908002 | P137: =-$D$18*(Assets!P775-Assets!O774) -> -0.6849167901 | Q137: =-$D$18*(Assets!Q775-Assets!P774) -> -0.6539345947 | R137: =-$D$18*(Assets!R775-Assets!Q774) -> -0.6208588767 | S137: =-$D$18*(Assets!S775-Assets!R774) -> -0.5856012054 | T137: =-$D$18*(Assets!T775-Assets!S774) -> -0.5480699536 | U137: =-$D$18*(Assets!U775-Assets!T774) -> -0.5081702061 | V137: =-$D$18*(Assets!V775-Assets!U774) -> -0.4658036419 | W137: =-$D$18*(Assets!W775-Assets!V774) -> -0.4208683536 | X137: =-$D$18*(Assets!X775-Assets!W774) -> -0.3769263092 | Y137: =-$D$18*(Assets!Y775-Assets!X774) -> -0.3356364181 | Z137: =-$D$18*(Assets!Z775-Assets!Y774) -> -0.2919243026 | AA137: =-$D$18*(Assets!AA775-Assets!Z774) -> -0.2456913838 | AB137: =-$D$18*(Assets!AB775-Assets!AA774) -> -0.1968355801 | AC137: =-$D$18*(Assets!AC775-Assets!AB774) -> -0.1524171542 | AD137: =-$D$18*(Assets!AD775-Assets!AC774) -> -0.1181964043 | AE137: =-$D$18*(Assets!AE775-Assets!AD774) -> -0.09709247642 | AF137: =-$D$18*(Assets!AF775-Assets!AE774) -> -0.0841609932 | AG137: =-$D$18*(Assets!AG775-Assets!AF774) -> -0.07425800182 | AH137: =-$D$18*(Assets!AH775-Assets!AG774) -> -0.06377834663 | AI137: =-$D$18*(Assets!AI775-Assets!AH774) -> -0.0526986089 | AJ137: =-$D$18*(Assets!AJ775-Assets!AI774) -> -0.04697824919 | AK137: =-$D$18*(Assets!AK775-Assets!AJ774) -> -0.04285102908 | AL137: =-$D$18*(Assets!AL775-Assets!AK774) -> -0.03847530568 | AM137: =-$D$18*(Assets!AM775-Assets!AL774) -> -0.0338408908 | AN137: =-$D$18*(Assets!AN775-Assets!AM774) -> -0.02893723297 | AO137: =-$D$18*(Assets!AO775-Assets!AN774) -> -0.02375340539 | AP137: =-$D$18*(Assets!AP775-Assets!AO774) -> -0.01827809356 | AQ137: =-$D$18*(Assets!AQ775-Assets!AP774) -> -0.01249958239 | AR137: =-$D$18*(Assets!AR775-Assets!AQ774) -> -0.00769745525 | AS137: =-$D$18*(Assets!AS775-Assets!AR774) -> -0.003950296602 | AT137: =-$D$18*(Assets!AT775-Assets!AS774) -> -0.001351535236 | AU137: =-$D$18*(Assets!AU775-Assets!AT774) -> 1.081279099e-07 | AV137: =-$D$18*(Assets!AV775-Assets!AU774) -> 1.109607522e-07 | AW137: =-$D$18*(Assets!AW775-Assets!AV774) -> 1.138678121e-07 | AX137: =-$D$18*(Assets!AX775-Assets!AW774) -> 1.16851034e-07 | AY137: =-$D$18*(Assets!AY775-Assets!AX774) -> 1.199124133e-07 | AZ137: =-$D$18*(Assets!AZ775-Assets!AY774) -> 1.230539977e-07 | BA137: =-$D$18*(Assets!BA775-Assets!AZ774) -> 1.262778884e-07 | BB137: =-$D$18*(Assets!BB775-Assets!BA774) -> 1.295862418e-07 | BC137: =-$D$18*(Assets!BC775-Assets!BB774) -> 1.329812707e-07 | BD137: =-$D$18*(Assets!BD775-Assets!BC774) -> 1.36465246e-07 | BE137: =-$D$18*(Assets!BE775-Assets!BD774) -> 1.400404979e-07 | BF137: =-$D$18*(Assets!BF775-Assets!BE774) -> 1.437094178e-07 | BG137: =-$D$18*(Assets!BG775-Assets!BF774) -> 1.474744597e-07 | BH137: =-$D$18*(Assets!BH775-Assets!BG774) -> 1.513381419e-07 | BI137: =-$D$18*(Assets!BI775-Assets!BH774) -> 1.553030487e-07
B138: Gives Real Return to Equity | G138: =G136+G137 -> 0.4976428576 | H138: =H136+H137 -> 0.7284107877 | I138: 1.052900487 | J138: 1.414138659 | K138: 1.639477402 | L138: 1.728447785 | M138: 1.672591189 | N138: 1.617572223 | O138: 1.558522329 | P138: =P136+P137 -> 1.495268059 | Q138: =Q136+Q137 -> 1.427629642 | R138: =R136+R137 -> 1.355420776 | S138: =S136+S137 -> 1.278448405 | T138: 1.196512492 | U138: 1.109405827 | V138: 1.016913759 | W138: 0.918813811 | X138: 0.822882252 | Y138: 0.7327407105 | Z138: 0.637311118 | AA138: 0.5363782635 | AB138: 0.4297192886 | AC138: 0.3327477229 | AD138: 0.2580390942 | AE138: 0.2119663014 | AF138: 0.1837350854 | AG138: 0.1621154859 | AH138: 0.1392369496 | AI138: 0.1150483501 | AJ138: 0.1025600138 | AK138: 0.09354972165 | AL138: 0.08399691243 | AM138: 0.07387934393 | AN138: 0.06317398083 | AO138: 0.05185696845 | AP138: 0.03990360562 | AQ138: =AQ136+AQ137 -> 0.02728831672 | AR138: 0.01680460917 | AS138: 0.008624043705 | AT138: 0.002950588303 | AU138: -2.360581786e-07 | AV138: -2.42242665e-07 | AW138: -2.485891787e-07 | AX138: -2.551019646e-07 | AY138: -2.61785379e-07 | AZ138: -2.686438921e-07 | BA138: -2.756820913e-07 | BB138: -2.829046842e-07 | BC138: -2.903165018e-07 | BD138: -2.979225015e-07 | BE138: -3.057277708e-07 | BF138: -3.137375303e-07 | BG138: -3.219571373e-07 | BH138: -3.303920898e-07 | BI138: -3.390480296e-07
B139: %ROE (1 year) | G139: =G136/G142 -> 0.08339501452 | H139: 0.08339501452 | I139: 0.08339501452 | J139: 0.08339501452 | K139: 0.08339501452 | L139: 0.08339501452 | M139: 0.08339501452 | N139: 0.08339501452 | O139: 0.08339501452 | P139: 0.08339501452 | Q139: =Q136/Q142 -> 0.08339501452 | R139: =R136/R142 -> 0.08339501452 | S139: =S136/S142 -> 0.08339501452 | T139: 0.08339501452 | U139: 0.08339501452 | V139: 0.08339501452 | W139: 0.08339501452 | X139: 0.08339501452 | Y139: 0.08339501452 | Z139: 0.08339501452 | AA139: 0.08339501452 | AB139: 0.08339501452 | AC139: 0.08339501452 | AD139: 0.08339501452 | AE139: 0.08339501452 | AF139: 0.08339501452 | AG139: 0.08339501452 | AH139: 0.08339501452 | AI139: 0.08339501452 | AJ139: 0.08339501452 | AK139: 0.08339501452 | AL139: 0.08339501452 | AM139: 0.08339501452 | AN139: 0.08339501452 | AO139: 0.08339501452 | AP139: 0.08339501452 | AQ139: 0.08339501452 | AR139: =AR136/AR142 -> 0.08339501452 | AS139: 0.08339501452 | AT139: 0.08339501452 | AU139: 0.08339501452 | AV139: 0.08339501452 | AW139: 0.08339501452 | AX139: 0.08339501452 | AY139: 0.08339501452 | AZ139: 0.08339501452 | BA139: 0.08339501452 | BB139: 0.08339501452 | BC139: 0.08339501452 | BD139: 0.08339501452 | BE139: 0.08339501452 | BF139: 0.08339501452 | BG139: 0.08339501452 | BH139: 0.08339501452 | BI139: 0.08339501452
B140: %real ROE (1 year) | G140: =G138/G142/(1+G$6) -> 0.05573580061 | H140: =H138/H142/(1+H$6) -> 0.05573580061 | I140: 0.05573580061 | J140: 0.05573580061 | K140: 0.05573580061 | L140: 0.05573580061 | M140: 0.05573580061 | N140: 0.05573580061 | O140: 0.05573580061 | P140: 0.05573580061 | Q140: =Q138/Q142/(1+Q$6) -> 0.05573580061 | R140: =R138/R142/(1+R$6) -> 0.05573580061 | S140: =S138/S142/(1+S$6) -> 0.05573580061 | T140: 0.05573580061 | U140: 0.05573580061 | V140: 0.05573580061 | W140: 0.05573580061 | X140: 0.05573580061 | Y140: 0.05573580061 | Z140: 0.05573580061 | AA140: 0.05573580061 | AB140: 0.05573580061 | AC140: 0.05573580061 | AD140: 0.05573580061 | AE140: 0.05573580061 | AF140: 0.05573580061 | AG140: 0.05573580061 | AH140: 0.05573580061 | AI140: 0.05573580061 | AJ140: 0.05573580061 | AK140: 0.05573580061 | AL140: 0.05573580061 | AM140: 0.05573580061 | AN140: 0.05573580061 | AO140: 0.05573580061 | AP140: 0.05573580061 | AQ140: 0.05573580061 | AR140: =AR138/AR142/(1+AR$6) -> 0.05573580061 | AS140: 0.05573580061 | AT140: 0.05573580061 | AU140: 0.05573580061 | AV140: 0.05573580061 | AW140: 0.05573580061 | AX140: 0.05573580061 | AY140: 0.05573580061 | AZ140: 0.05573580061 | BA140: 0.05573580061 | BB140: 0.05573580061 | BC140: 0.05573580061 | BD140: 0.05573580061 | BE140: 0.05573580061 | BF140: 0.05573580061 | BG140: 0.05573580061 | BH140: 0.05573580061 | BI140: 0.05573580061
B142: Equity at Start of Period | G142: =G18 -> 8.700654986 | H142: 12.73533992 | I142: 18.40863128 | J142: 24.72442312 | K142: 28.66418559 | L142: 30.21972005 | M142: 29.24313823 | N142: 28.2812013 | O142: 27.2487887 | P142: 26.14286791 | Q142: 24.96029588 | R142: 23.69781532 | S142: 22.35205091 | T142: 20.91950527 | U142: 19.39655556 | V142: 17.77944892 | W142: 16.0642956 | X142: 14.38705381 | Y142: 12.81104314 | Z142: 11.1425776 | AA142: 9.377894491 | AB142: 7.513097424 | AC142: 5.817672433 | AD142: 4.511486696 | AE142: 3.705962276 | AF142: 3.212375226 | AG142: 2.834383915 | AH142: 2.434381688 | AI142: 2.011474666 | AJ142: 1.793131926 | AK142: 1.635598381 | AL142: 1.468579613 | AM142: =AM18 -> 1.291686744 | AN142: 1.104517031 | AO142: 0.9066534046 | AP142: 0.6976639972 | AQ142: 0.4771016509 | AR142: 0.2938073044 | AS142: 0.1507804799 | AT142: 0.05158729888 | AU142: -4.127178231e-06 | AV142: -4.235306142e-06 | AW142: -4.346266894e-06 | AX142: -4.460134707e-06 | AY142: -4.576985741e-06 | AZ142: -4.696898154e-06 | BA142: -4.819952152e-06 | BB142: -4.94623004e-06 | BC142: -5.075816282e-06 | BD142: -5.208797552e-06 | BE142: -5.345262798e-06 | BF142: -5.485303296e-06 | BG142: -5.629012714e-06 | BH142: -5.776487174e-06 | BI142: -5.927825316e-06
B144: Return on Equity - Regulatory Control Period
B146: Revenue | F146: =F102 -> 0 | G146: =G102 -> 6.032516298 | H146: =IF(COUNT($G146:G146)>='PTRM input'!$R$7,0,H102) -> 6.752869495 | I146: =IF(COUNT($G146:H146)>='PTRM input'!$R$7,0,I102) -> 7.353248783 | J146: =IF(COUNT($G146:I146)>='PTRM input'!$R$7,0,J102) -> 7.913357979 | K146: =IF(COUNT($G146:J146)>='PTRM input'!$R$7,0,K102) -> 8.516084247 | L146: =IF(COUNT($G146:K146)>='PTRM input'!$R$7,0,L102) -> 0 | M146: =IF(COUNT($G146:L146)>='PTRM input'!$R$7,0,M102) -> 0 | N146: =IF(COUNT($G146:M146)>='PTRM input'!$R$7,0,N102) -> 0 | O146: =IF(COUNT($G146:N146)>='PTRM input'!$R$7,0,O102) -> 0 | P146: =IF(COUNT($G146:O146)>='PTRM input'!$R$7,0,P102) -> 0
B147: Less Opex | F147: =-F30 -> 0 | G147: =-G30 -> -4.087977671 | H147: =IF(COUNT($G147:G147)>='PTRM input'!$R$7,0,-H30) -> -3.786583659 | I147: =IF(COUNT($G147:H147)>='PTRM input'!$R$7,0,-I30) -> -3.083923505 | J147: =IF(COUNT($G147:I147)>='PTRM input'!$R$7,0,-J30) -> -2.146950571 | K147: =IF(COUNT($G147:J147)>='PTRM input'!$R$7,0,-K30) -> -1.649973866 | L147: =IF(COUNT($G147:K147)>='PTRM input'!$R$7,0,-L30) -> 0 | M147: =IF(COUNT($G147:L147)>='PTRM input'!$R$7,0,-M30) -> 0 | N147: =IF(COUNT($G147:M147)>='PTRM input'!$R$7,0,-N30) -> 0 | O147: =IF(COUNT($G147:N147)>='PTRM input'!$R$7,0,-O30) -> 0 | P147: =IF(COUNT($G147:O147)>='PTRM input'!$R$7,0,-P30) -> 0
B148: Less Interest | F148: =-F48 -> 0 | G148: =-G48 -> -0.6172536604 | H148: =IF(COUNT($G148:G148)>='PTRM input'!$R$7,0,-H48) -> -0.924312259 | I148: =IF(COUNT($G148:H148)>='PTRM input'!$R$7,0,-I48) -> -1.364936109 | J148: =IF(COUNT($G148:I148)>='PTRM input'!$R$7,0,-J48) -> -1.890700499 | K148: =IF(COUNT($G148:J148)>='PTRM input'!$R$7,0,-K48) -> -2.307864315 | L148: =IF(COUNT($G148:K148)>='PTRM input'!$R$7,0,-L48) -> 0 | M148: =IF(COUNT($G148:L148)>='PTRM input'!$R$7,0,-M48) -> 0 | N148: =IF(COUNT($G148:M148)>='PTRM input'!$R$7,0,-N48) -> 0 | O148: =IF(COUNT($G148:N148)>='PTRM input'!$R$7,0,-O48) -> 0 | P148: =IF(COUNT($G148:O148)>='PTRM input'!$R$7,0,-P48) -> 0
B149: Less Tax | F149: =-F105 -> 0 | G149: =-G105 -> -0.06369617018 | H149: =IF(COUNT($G149:G149)>='PTRM input'!$R$7,0,-H105) -> 0 | I149: =IF(COUNT($G149:H149)>='PTRM input'!$R$7,0,-I105) -> 0 | J149: =IF(COUNT($G149:I149)>='PTRM input'!$R$7,0,-J105) -> 0 | K149: =IF(COUNT($G149:J149)>='PTRM input'!$R$7,0,-K105) -> 0 | L149: =IF(COUNT($G149:K149)>='PTRM input'!$R$7,0,-L105) -> 0 | M149: =IF(COUNT($G149:L149)>='PTRM input'!$R$7,0,-M105) -> 0 | N149: =IF(COUNT($G149:M149)>='PTRM input'!$R$7,0,-N105) -> 0 | O149: =IF(COUNT($G149:N149)>='PTRM input'!$R$7,0,-O105) -> 0 | P149: =IF(COUNT($G149:O149)>='PTRM input'!$R$7,0,-P105) -> 0
B150: Plus Imputation Credits | F150: =-F101 -> 0 | G150: =-G101 -> 0.036306817 | H150: =IF(COUNT($G150:G150)>='PTRM input'!$R$7,0,-H101) -> 0 | I150: =IF(COUNT($G150:H150)>='PTRM input'!$R$7,0,-I101) -> 0 | J150: =IF(COUNT($G150:I150)>='PTRM input'!$R$7,0,-J101) -> 0 | K150: =IF(COUNT($G150:J150)>='PTRM input'!$R$7,0,-K101) -> 0 | L150: =IF(COUNT($G150:K150)>='PTRM input'!$R$7,0,-L101) -> 0 | M150: =IF(COUNT($G150:L150)>='PTRM input'!$R$7,0,-M101) -> 0 | N150: =IF(COUNT($G150:M150)>='PTRM input'!$R$7,0,-N101) -> 0 | O150: =IF(COUNT($G150:N150)>='PTRM input'!$R$7,0,-O101) -> 0 | P150: =IF(COUNT($G150:O150)>='PTRM input'!$R$7,0,-P101) -> 0
B151: Less Capex | F151: =-F70 -> -21.75163747 | G151: =-G70 -> -10.66101671 | H151: =IF(COUNT($G151:G151)>='PTRM input'!$R$7,0,-H70) -> -15.16313812 | I151: =IF(COUNT($G151:H151)>='PTRM input'!$R$7,0,-I70) -> -17.15868069 | J151: =IF(COUNT($G151:I151)>='PTRM input'!$R$7,0,-J70) -> -11.66321947 | K151: =IF(COUNT($G151:J151)>='PTRM input'!$R$7,0,-K70) -> -6.056632045 | L151: =IF(COUNT($G151:K151)>='PTRM input'!$R$7,0,-L70) -> 0 | M151: =IF(COUNT($G151:L151)>='PTRM input'!$R$7,0,-M70) -> 0 | N151: =IF(COUNT($G151:M151)>='PTRM input'!$R$7,0,-N70) -> 0 | O151: =IF(COUNT($G151:N151)>='PTRM input'!$R$7,0,-O70) -> 0 | P151: =IF(COUNT($G151:O151)>='PTRM input'!$R$7,0,-P70) -> 0
B152: Less Loan Repayments | F152: =-F72 -> 13.05098248 | G152: =-G72 -> 6.052027405 | H152: =IF(COUNT($G152:G152)>='PTRM input'!$R$7,0,-H72) -> 8.509937038 | I152: =IF(COUNT($G152:H152)>='PTRM input'!$R$7,0,-I72) -> 9.473687755 | J152: =IF(COUNT($G152:I152)>='PTRM input'!$R$7,0,-J72) -> 5.90964371 | K152: =IF(COUNT($G152:J152)>='PTRM input'!$R$7,0,-K72) -> 2.333301691 | L152: =IF(COUNT($G152:K152)>='PTRM input'!$R$7,0,-L72) -> 0 | M152: =IF(COUNT($G152:L152)>='PTRM input'!$R$7,0,-M72) -> 0 | N152: =IF(COUNT($G152:M152)>='PTRM input'!$R$7,0,-N72) -> 0 | O152: =IF(COUNT($G152:N152)>='PTRM input'!$R$7,0,-O72) -> 0 | P152: =IF(COUNT($G152:O152)>='PTRM input'!$R$7,0,-P72) -> 0
B153: RAB Residual Value | G153: 0 | H153: =IF((COUNT($G153:G153)+1)='PTRM input'!$R$7,I18,0) -> 0 | I153: =IF((COUNT($G153:H153)+1)='PTRM input'!$R$7,J18,0) -> 0 | J153: =IF((COUNT($G153:I153)+1)='PTRM input'!$R$7,K18,0) -> 0 | K153: =IF((COUNT($G153:J153)+1)='PTRM input'!$R$7,L18,0) -> 30.21972005 | L153: =IF((COUNT($G153:K153)+1)='PTRM input'!$R$7,M18,0) -> 0 | M153: =IF((COUNT($G153:L153)+1)='PTRM input'!$R$7,N18,0) -> 0 | N153: =IF((COUNT($G153:M153)+1)='PTRM input'!$R$7,O18,0) -> 0 | O153: =IF((COUNT($G153:N153)+1)='PTRM input'!$R$7,P18,0) -> 0 | P153: =IF((COUNT($G153:O153)+1)='PTRM input'!$R$7,Q18,0) -> 0
B154: Post-tax Return on Equity | F154: =SUM(F146:F153) -> -8.700654986 | G154: -3.309093688 | H154: -4.611227501 | I154: -4.780603764 | J154: -1.877868848 | K154: 31.05463577 | L154: 0 | M154: 0 | N154: 0 | O154: 0 | P154: 0
B156: IRR (during regulatory control period) | E156: =IRR(F154:P154) -> 0.08339501452
B157: Target (during regulatory control period) | E157: =WACC!G10 -> 0.08339501452
B160: Summary for Generation of Graphs
B161: Return on Capital | G161: =G25+G26 -> 1.342844909 | H161: 1.986376117 | I161: 2.900124182 | J161: 3.952594124 | K161: 4.698314489 | L161: 4.953280397 | M161: 4.793209966 | N161: 4.635539964 | O161: 4.466318373 | P161: 4.285048137
B162: Opex | G162: =G30 -> 4.087977671 | H162: 3.786583659 | I162: 3.083923505 | J162: 2.146950571 | K162: 1.649973866 | L162: 0 | M162: 0 | N162: 0 | O162: 0 | P162: 0
B163: Revenue Adjustments | G163: =G32 -> 0 | H163: 0 | I163: 0 | J163: 0 | K163: 0 | L163: 0 | M163: 0 | N163: 0 | O163: 0 | P163: 0
B164: Return of Capital | G164: =G28 -> 0.5743043642 | H164: 0.9799097199 | I164: 1.369201096 | J164: 1.813813284 | K164: 2.167795893 | L164: 2.441454563 | M164: 2.404842319 | N164: 2.581031498 | O164: 2.764801981 | P164: 2.95643008
B165: Net Tax Costs | G165: =G34+G35 -> 0.02738935318 | H165: 0 | I165: 0 | J165: 0 | K165: 0 | L165: 0 | M165: 0 | N165: 0 | O165: 0 | P165: 0
B166: Building Block Total | G166: =SUM(G161,G162,G163,G164,G165) -> 6.032516298 | H166: 6.752869495 | I166: 7.353248783 | J166: 7.913357979 | K166: 8.516084247 | L166: 7.39473496 | M166: 7.198052285 | N166: 7.216571461 | O166: 7.231120354 | P166: 7.241478217
F168: Revenue Forecasts in Absence of Corporate Tax | G168: =G161+G162+G163+G164 -> 6.005126945 | H168: 6.752869495 | I168: 7.353248783 | J168: 7.913357979 | K168: 8.516084247 | L168: 7.39473496 | M168: 7.198052285 | N168: 7.216571461 | O168: 7.231120354 | P168: 7.241478217

Sheet Forecast revenues
E2: ='DMS input'!$C$16&" - Forecast Revenues"&" - DNSP PTRM - version "&Intro!$L$4 -> Jemena Electricity - Forecast Revenues - DNSP PTRM - version 5
E4: Year | F4: ='PTRM input'!F525 -> 2025-26 | G4: ='PTRM input'!G525 -> 2026-27 | H4: ='PTRM input'!H525 -> 2027-28 | I4: ='PTRM input'!I525 -> 2028-29 | J4: ='PTRM input'!J525 -> 2029-30 | K4: ='PTRM input'!K525 -> 2030-31 | L4: ='PTRM input'!L525 -> 2031-32 | M4: ='PTRM input'!M525 -> 2032-33 | N4: ='PTRM input'!N525 -> 2033-34 | O4: ='PTRM input'!O525 -> 2034-35 | P4: ='PTRM input'!P525 -> 2035-36
E5: Total Forecast Revenues ($ Nominal)
E7: Total Revenue | F7: =SUM(F137,Q137,AB137,AM137,AX137,BI137,BT137,CE137,CP137,DA137) -> 6151509.071 | G7: =SUM(G137,R137,AC137,AN137,AY137,BJ137,BU137,CF137,CQ137,DB137) -> 7983768.424 | H7: 7966557.087 | I7: 7413712.62 | J7: 6564255.101 | K7: 5924169.844 | L7: 0 | M7: =SUM(M137,X137,AI137,AT137,BE137,BP137,CA137,CL137,CW137,DH137) -> 0 | N7: =SUM(N137,Y137,AJ137,AU137,BF137,BQ137,CB137,CM137,CX137,DI137) -> 0 | O7: =SUM(O137,Z137,AK137,AV137,BG137,BR137,CC137,CN137,CY137,DJ137) -> 0 | P7: =SUM(P137,AA137,AL137,AW137,BH137,BS137,CD137,CO137,CZ137,DK137) -> 0
E10: Forecast Sales Quantities
E12: Quantities | F12: ='PTRM input'!F571 -> Average Number of Lights | L12: ='PTRM input'!F615 -> Average Number of Lights [years 6-10] | Q12: ='PTRM input'!L571 -> Non TOU Energy (kWh) | W12: ='PTRM input'!L615 -> Non TOU Energy (kWh) [years 6-10] | AB12: ='PTRM input'!R571 -> Peak Energy (KWh) BLK 1 | AH12: ='PTRM input'!R615 -> Peak Energy (KWh) BLK 1 [years 6-10] | AM12: ='PTRM input'!X571 -> Peak Energy (KWh) BLK 2 | AS12: ='PTRM input'!X615 -> Peak Energy (KWh) BLK 2 [years 6-10] | AX12: ='PTRM input'!AD571 -> Off Peak Energy (KWh) BLK 1 | BD12: ='PTRM input'!AD615 -> Off Peak Energy (KWh) BLK 1 [years 6-10] | BI12: ='PTRM input'!AJ571 -> Off Peak Energy (KWh) BLK 2 | BO12: ='PTRM input'!AJ615 -> Off Peak Energy (KWh) BLK 2 [years 6-10] | BT12: ='PTRM input'!AP571 -> Peak Demand (kVa) BLK 1 | BZ12: ='PTRM input'!AP615 -> Peak Demand (kVa) BLK 1 [years 6-10] | CE12: ='PTRM input'!AV571 -> Peak Demand (kVa) BLK 2 | CK12: ='PTRM input'!AV615 -> Peak Demand (kVa) BLK 2 [years 6-10] | CP12: ='PTRM input'!BB571 -> Off Peak Demand (kVa) BLK 1 | CV12: ='PTRM input'!BB615 -> Off Peak Demand (kVa) BLK 1 [years 6-10] | DA12: ='PTRM input'!BH571 -> Off Peak Demand (kVa) BLK 2 | DG12: ='PTRM input'!BH615 -> Off Peak Demand (kVa) BLK 2 [years 6-10]
E13: Year | F13: =$F$4 -> 2025-26 | G13: =$G$4 -> 2026-27 | H13: =$H$4 -> 2027-28 | I13: =$I$4 -> 2028-29 | J13: =$J$4 -> 2029-30 | K13: =$K$4 -> 2030-31 | L13: =$L$4 -> 2031-32 | M13: =$M$4 -> 2032-33 | N13: =$N$4 -> 2033-34 | O13: =$O$4 -> 2034-35 | P13: =$P$4 -> 2035-36 | Q13: =$F$4 -> 2025-26 | R13: =$G$4 -> 2026-27 | S13: =$H$4 -> 2027-28 | T13: =$I$4 -> 2028-29 | U13: =$J$4 -> 2029-30 | V13: =$K$4 -> 2030-31 | W13: =$L$4 -> 2031-32 | X13: =$M$4 -> 2032-33 | Y13: =$N$4 -> 2033-34 | Z13: =$O$4 -> 2034-35 | AA13: =$P$4 -> 2035-36 | AB13: =$F$4 -> 2025-26 | AC13: =$G$4 -> 2026-27 | AD13: =$H$4 -> 2027-28 | AE13: =$I$4 -> 2028-29 | AF13: =$J$4 -> 2029-30 | AG13: =$K$4 -> 2030-31 | AH13: =$L$4 -> 2031-32 | AI13: =$M$4 -> 2032-33 | AJ13: =$N$4 -> 2033-34 | AK13: =$O$4 -> 2034-35 | AL13: =$P$4 -> 2035-36 | AM13: =$F$4 -> 2025-26 | AN13: =$G$4 -> 2026-27 | AO13: =$H$4 -> 2027-28 | AP13: =$I$4 -> 2028-29 | AQ13: =$J$4 -> 2029-30 | AR13: =$K$4 -> 2030-31 | AS13: =$L$4 -> 2031-32 | AT13: =$M$4 -> 2032-33 | AU13: =$N$4 -> 2033-34 | AV13: =$O$4 -> 2034-35 | AW13: =$P$4 -> 2035-36 | AX13: =$F$4 -> 2025-26 | AY13: =$G$4 -> 2026-27 | AZ13: =$H$4 -> 2027-28 | BA13: =$I$4 -> 2028-29 | BB13: =$J$4 -> 2029-30 | BC13: =$K$4 -> 2030-31 | BD13: =$L$4 -> 2031-32 | BE13: =$M$4 -> 2032-33 | BF13: =$N$4 -> 2033-34 | BG13: =$O$4 -> 2034-35 | BH13: =$P$4 -> 2035-36 | BI13: =$F$4 -> 2025-26 | BJ13: =$G$4 -> 2026-27 | BK13: =$H$4 -> 2027-28 | BL13: =$I$4 -> 2028-29 | BM13: =$J$4 -> 2029-30 | BN13: =$K$4 -> 2030-31 | BO13: =$L$4 -> 2031-32 | BP13: =$M$4 -> 2032-33 | BQ13: =$N$4 -> 2033-34 | BR13: =$O$4 -> 2034-35 | BS13: =$P$4 -> 2035-36 | BT13: =$F$4 -> 2025-26 | BU13: =$G$4 -> 2026-27 | BV13: =$H$4 -> 2027-28 | BW13: =$I$4 -> 2028-29 | BX13: =$J$4 -> 2029-30 | BY13: =$K$4 -> 2030-31 | BZ13: =$L$4 -> 2031-32 | CA13: =$M$4 -> 2032-33 | CB13: =$N$4 -> 2033-34 | CC13: =$O$4 -> 2034-35 | CD13: =$P$4 -> 2035-36 | CE13: =$F$4 -> 2025-26 | CF13: =$G$4 -> 2026-27 | CG13: =$H$4 -> 2027-28 | CH13: =$I$4 -> 2028-29 | CI13: =$J$4 -> 2029-30 | CJ13: =$K$4 -> 2030-31 | CK13: =$L$4 -> 2031-32 | CL13: =$M$4 -> 2032-33 | CM13: =$N$4 -> 2033-34 | CN13: =$O$4 -> 2034-35 | CO13: =$P$4 -> 2035-36 | CP13: =$F$4 -> 2025-26 | CQ13: =$G$4 -> 2026-27 | CR13: =$H$4 -> 2027-28 | CS13: =$I$4 -> 2028-29 | CT13: =$J$4 -> 2029-30 | CU13: =$K$4 -> 2030-31 | CV13: =$L$4 -> 2031-32 | CW13: =$M$4 -> 2032-33 | CX13: =$N$4 -> 2033-34 | CY13: =$O$4 -> 2034-35 | CZ13: =$P$4 -> 2035-36 | DA13: =$F$4 -> 2025-26 | DB13: =$G$4 -> 2026-27 | DC13: =$H$4 -> 2027-28 | DD13: =$I$4 -> 2028-29 | DE13: =$J$4 -> 2029-30 | DF13: =$K$4 -> 2030-31 | DG13: =$L$4 -> 2031-32 | DH13: =$M$4 -> 2032-33 | DI13: =$N$4 -> 2033-34 | DJ13: =$O$4 -> 2034-35 | DK13: =$P$4 -> 2035-36
E14: ='PTRM input'!E573 -> Mercury Vapour 80 watt | F14: ='PTRM input'!F573 -> 4695 | G14: ='PTRM input'!G573 -> 4508.710546 | H14: ='PTRM input'!H573 -> 3912.408754 | I14: ='PTRM input'!I573 -> 2783.95839 | J14: ='PTRM input'!J573 -> 1301.782702 | K14: ='PTRM input'!K573 -> 269.0225204 | L14: ='PTRM input'!G617 -> 0 | M14: ='PTRM input'!H617 -> 0 | N14: ='PTRM input'!I617 -> 0 | O14: ='PTRM input'!J617 -> 0 | P14: ='PTRM input'!K617 -> 0 | Q14: ='PTRM input'!L573 -> 0 | R14: ='PTRM input'!M573 -> 0 | S14: ='PTRM input'!N573 -> 0 | T14: ='PTRM input'!O573 -> 0 | U14: ='PTRM input'!P573 -> 0 | V14: ='PTRM input'!Q573 -> 0 | W14: ='PTRM input'!M617 -> 0 | X14: ='PTRM input'!N617 -> 0 | Y14: ='PTRM input'!O617 -> 0 | Z14: ='PTRM input'!P617 -> 0 | AA14: ='PTRM input'!Q617 -> 0 | AB14: ='PTRM input'!R573 -> 0 | AC14: ='PTRM input'!S573 -> 0 | AD14: ='PTRM input'!T573 -> 0 | AE14: ='PTRM input'!U573 -> 0 | AF14: ='PTRM input'!V573 -> 0 | AG14: ='PTRM input'!W573 -> 0 | AH14: ='PTRM input'!S617 -> 0 | AI14: ='PTRM input'!T617 -> 0 | AJ14: ='PTRM input'!U617 -> 0 | AK14: ='PTRM input'!V617 -> 0 | AL14: ='PTRM input'!W617 -> 0 | AM14: ='PTRM input'!X573 -> 0 | AN14: ='PTRM input'!Y573 -> 0 | AO14: ='PTRM input'!Z573 -> 0 | AP14: ='PTRM input'!AA573 -> 0 | AQ14: ='PTRM input'!AB573 -> 0 | AR14: ='PTRM input'!AC573 -> 0 | AS14: ='PTRM input'!Y617 -> 0 | AT14: ='PTRM input'!Z617 -> 0 | AU14: ='PTRM input'!AA617 -> 0 | AV14: ='PTRM input'!AB617 -> 0 | AW14: ='PTRM input'!AC617 -> 0 | AX14: ='PTRM input'!AD573 -> 0 | AY14: ='PTRM input'!AE573 -> 0 | AZ14: ='PTRM input'!AF573 -> 0 | BA14: ='PTRM input'!AG573 -> 0 | BB14: ='PTRM input'!AH573 -> 0 | BC14: ='PTRM input'!AI573 -> 0 | BD14: ='PTRM input'!AE617 -> 0 | BE14: ='PTRM input'!AF617 -> 0 | BF14: ='PTRM input'!AG617 -> 0 | BG14: ='PTRM input'!AH617 -> 0 | BH14: ='PTRM input'!AI617 -> 0 | BI14: ='PTRM input'!AJ573 -> 0 | BJ14: ='PTRM input'!AK573 -> 0 | BK14: ='PTRM input'!AL573 -> 0 | BL14: ='PTRM input'!AM573 -> 0 | BM14: ='PTRM input'!AN573 -> 0 | BN14: ='PTRM input'!AO573 -> 0 | BO14: ='PTRM input'!AK617 -> 0 | BP14: ='PTRM input'!AL617 -> 0 | BQ14: ='PTRM input'!AM617 -> 0 | BR14: ='PTRM input'!AN617 -> 0 | BS14: ='PTRM input'!AO617 -> 0 | BT14: ='PTRM input'!AP573 -> 0 | BU14: ='PTRM input'!AQ573 -> 0 | BV14: ='PTRM input'!AR573 -> 0 | BW14: ='PTRM input'!AS573 -> 0 | BX14: ='PTRM input'!AT573 -> 0 | BY14: ='PTRM input'!AU573 -> 0 | BZ14: ='PTRM input'!AQ617 -> 0 | CA14: ='PTRM input'!AR617 -> 0 | CB14: ='PTRM input'!AS617 -> 0 | CC14: ='PTRM input'!AT617 -> 0 | CD14: ='PTRM input'!AU617 -> 0 | CE14: ='PTRM input'!AV573 -> 0 | CF14: ='PTRM input'!AW573 -> 0 | CG14: ='PTRM input'!AX573 -> 0 | CH14: ='PTRM input'!AY573 -> 0 | CI14: ='PTRM input'!AZ573 -> 0 | CJ14: ='PTRM input'!BA573 -> 0 | CK14: ='PTRM input'!AW617 -> 0 | CL14: ='PTRM input'!AX617 -> 0 | CM14: ='PTRM input'!AY617 -> 0 | CN14: ='PTRM input'!AZ617 -> 0 | CO14: ='PTRM input'!BA617 -> 0 | CP14: ='PTRM input'!BB573 -> 0 | CQ14: ='PTRM input'!BC573 -> 0 | CR14: ='PTRM input'!BD573 -> 0 | CS14: ='PTRM input'!BE573 -> 0 | CT14: ='PTRM input'!BF573 -> 0 | CU14: ='PTRM input'!BG573 -> 0 | CV14: ='PTRM input'!BC617 -> 0 | CW14: ='PTRM input'!BD617 -> 0 | CX14: ='PTRM input'!BE617 -> 0 | CY14: ='PTRM input'!BF617 -> 0 | CZ14: ='PTRM input'!BG617 -> 0 | DA14: ='PTRM input'!BH573 -> 0 | DB14: ='PTRM input'!BI573 -> 0 | DC14: ='PTRM input'!BJ573 -> 0 | DD14: ='PTRM input'!BK573 -> 0 | DE14: ='PTRM input'!BL573 -> 0 | DF14: ='PTRM input'!BM573 -> 0 | DG14: ='PTRM input'!BI617 -> 0 | DH14: ='PTRM input'!BJ617 -> 0 | DI14: ='PTRM input'!BK617 -> 0 | DJ14: ='PTRM input'!BL617 -> 0 | DK14: ='PTRM input'!BM617 -> 0
E15: ='PTRM input'!E574 -> Sodium High Pressure 150 watt | F15: ='PTRM input'!F574 -> 14613 | G15: ='PTRM input'!G574 -> 14613 | H15: ='PTRM input'!H574 -> 13956.75 | I15: ='PTRM input'!I574 -> 11765.5 | J15: ='PTRM input'!J574 -> 7233.5 | K15: ='PTRM input'!K574 -> 2118.25 | L15: ='PTRM input'!G618 -> 0 | M15: ='PTRM input'!H618 -> 0 | N15: ='PTRM input'!I618 -> 0 | O15: ='PTRM input'!J618 -> 0 | P15: ='PTRM input'!K618 -> 0 | Q15: ='PTRM input'!L574 -> 0 | R15: ='PTRM input'!M574 -> 0 | S15: ='PTRM input'!N574 -> 0 | T15: ='PTRM input'!O574 -> 0 | U15: ='PTRM input'!P574 -> 0 | V15: ='PTRM input'!Q574 -> 0 | W15: ='PTRM input'!M618 -> 0 | X15: ='PTRM input'!N618 -> 0 | Y15: ='PTRM input'!O618 -> 0 | Z15: ='PTRM input'!P618 -> 0 | AA15: ='PTRM input'!Q618 -> 0 | AB15: ='PTRM input'!R574 -> 0 | AC15: ='PTRM input'!S574 -> 0 | AD15: ='PTRM input'!T574 -> 0 | AE15: ='PTRM input'!U574 -> 0 | AF15: ='PTRM input'!V574 -> 0 | AG15: ='PTRM input'!W574 -> 0 | AH15: ='PTRM input'!S618 -> 0 | AI15: ='PTRM input'!T618 -> 0 | AJ15: ='PTRM input'!U618 -> 0 | AK15: ='PTRM input'!V618 -> 0 | AL15: ='PTRM input'!W618 -> 0 | AM15: ='PTRM input'!X574 -> 0 | AN15: ='PTRM input'!Y574 -> 0 | AO15: ='PTRM input'!Z574 -> 0 | AP15: ='PTRM input'!AA574 -> 0 | AQ15: ='PTRM input'!AB574 -> 0 | AR15: ='PTRM input'!AC574 -> 0 | AS15: ='PTRM input'!Y618 -> 0 | AT15: ='PTRM input'!Z618 -> 0 | AU15: ='PTRM input'!AA618 -> 0 | AV15: ='PTRM input'!AB618 -> 0 | AW15: ='PTRM input'!AC618 -> 0 | AX15: ='PTRM input'!AD574 -> 0 | AY15: ='PTRM input'!AE574 -> 0 | AZ15: ='PTRM input'!AF574 -> 0 | BA15: ='PTRM input'!AG574 -> 0 | BB15: ='PTRM input'!AH574 -> 0 | BC15: ='PTRM input'!AI574 -> 0 | BD15: ='PTRM input'!AE618 -> 0 | BE15: ='PTRM input'!AF618 -> 0 | BF15: ='PTRM input'!AG618 -> 0 | BG15: ='PTRM input'!AH618 -> 0 | BH15: ='PTRM input'!AI618 -> 0 | BI15: ='PTRM input'!AJ574 -> 0 | BJ15: ='PTRM input'!AK574 -> 0 | BK15: ='PTRM input'!AL574 -> 0 | BL15: ='PTRM input'!AM574 -> 0 | BM15: ='PTRM input'!AN574 -> 0 | BN15: ='PTRM input'!AO574 -> 0 | BO15: ='PTRM input'!AK618 -> 0 | BP15: ='PTRM input'!AL618 -> 0 | BQ15: ='PTRM input'!AM618 -> 0 | BR15: ='PTRM input'!AN618 -> 0 | BS15: ='PTRM input'!AO618 -> 0 | BT15: ='PTRM input'!AP574 -> 0 | BU15: ='PTRM input'!AQ574 -> 0 | BV15: ='PTRM input'!AR574 -> 0 | BW15: ='PTRM input'!AS574 -> 0 | BX15: ='PTRM input'!AT574 -> 0 | BY15: ='PTRM input'!AU574 -> 0 | BZ15: ='PTRM input'!AQ618 -> 0 | CA15: ='PTRM input'!AR618 -> 0 | CB15: ='PTRM input'!AS618 -> 0 | CC15: ='PTRM input'!AT618 -> 0 | CD15: ='PTRM input'!AU618 -> 0 | CE15: ='PTRM input'!AV574 -> 0 | CF15: ='PTRM input'!AW574 -> 0 | CG15: ='PTRM input'!AX574 -> 0 | CH15: ='PTRM input'!AY574 -> 0 | CI15: ='PTRM input'!AZ574 -> 0 | CJ15: ='PTRM input'!BA574 -> 0 | CK15: ='PTRM input'!AW618 -> 0 | CL15: ='PTRM input'!AX618 -> 0 | CM15: ='PTRM input'!AY618 -> 0 | CN15: ='PTRM input'!AZ618 -> 0 | CO15: ='PTRM input'!BA618 -> 0 | CP15: ='PTRM input'!BB574 -> 0 | CQ15: ='PTRM input'!BC574 -> 0 | CR15: ='PTRM input'!BD574 -> 0 | CS15: ='PTRM input'!BE574 -> 0 | CT15: ='PTRM input'!BF574 -> 0 | CU15: ='PTRM input'!BG574 -> 0 | CV15: ='PTRM input'!BC618 -> 0 | CW15: ='PTRM input'!BD618 -> 0 | CX15: ='PTRM input'!BE618 -> 0 | CY15: ='PTRM input'!BF618 -> 0 | CZ15: ='PTRM input'!BG618 -> 0 | DA15: ='PTRM input'!BH574 -> 0 | DB15: ='PTRM input'!BI574 -> 0 | DC15: ='PTRM input'!BJ574 -> 0 | DD15: ='PTRM input'!BK574 -> 0 | DE15: ='PTRM input'!BL574 -> 0 | DF15: ='PTRM input'!BM574 -> 0 | DG15: ='PTRM input'!BI618 -> 0 | DH15: ='PTRM input'!BJ618 -> 0 | DI15: ='PTRM input'!BK618 -> 0 | DJ15: ='PTRM input'!BL618 -> 0 | DK15: ='PTRM input'!BM618 -> 0
E16: ='PTRM input'!E575 -> Sodium High Pressure 250 watt | F16: ='PTRM input'!F575 -> 4242 | G16: ='PTRM input'!G575 -> 4242 | H16: ='PTRM input'!H575 -> 4032.75 | I16: ='PTRM input'!I575 -> 3298.5 | J16: ='PTRM input'!J575 -> 1922.25 | K16: ='PTRM input'!K575 -> 535.5 | L16: ='PTRM input'!G619 -> 0 | M16: ='PTRM input'!H619 -> 0 | N16: ='PTRM input'!I619 -> 0 | O16: ='PTRM input'!J619 -> 0 | P16: ='PTRM input'!K619 -> 0 | Q16: ='PTRM input'!L575 -> 0 | R16: ='PTRM input'!M575 -> 0 | S16: ='PTRM input'!N575 -> 0 | T16: ='PTRM input'!O575 -> 0 | U16: ='PTRM input'!P575 -> 0 | V16: ='PTRM input'!Q575 -> 0 | W16: ='PTRM input'!M619 -> 0 | X16: ='PTRM input'!N619 -> 0 | Y16: ='PTRM input'!O619 -> 0 | Z16: ='PTRM input'!P619 -> 0 | AA16: ='PTRM input'!Q619 -> 0 | AB16: ='PTRM input'!R575 -> 0 | AC16: ='PTRM input'!S575 -> 0 | AD16: ='PTRM input'!T575 -> 0 | AE16: ='PTRM input'!U575 -> 0 | AF16: ='PTRM input'!V575 -> 0 | AG16: ='PTRM input'!W575 -> 0 | AH16: ='PTRM input'!S619 -> 0 | AI16: ='PTRM input'!T619 -> 0 | AJ16: ='PTRM input'!U619 -> 0 | AK16: ='PTRM input'!V619 -> 0 | AL16: ='PTRM input'!W619 -> 0 | AM16: ='PTRM input'!X575 -> 0 | AN16: ='PTRM input'!Y575 -> 0 | AO16: ='PTRM input'!Z575 -> 0 | AP16: ='PTRM input'!AA575 -> 0 | AQ16: ='PTRM input'!AB575 -> 0 | AR16: ='PTRM input'!AC575 -> 0 | AS16: ='PTRM input'!Y619 -> 0 | AT16: ='PTRM input'!Z619 -> 0 | AU16: ='PTRM input'!AA619 -> 0 | AV16: ='PTRM input'!AB619 -> 0 | AW16: ='PTRM input'!AC619 -> 0 | AX16: ='PTRM input'!AD575 -> 0 | AY16: ='PTRM input'!AE575 -> 0 | AZ16: ='PTRM input'!AF575 -> 0 | BA16: ='PTRM input'!AG575 -> 0 | BB16: ='PTRM input'!AH575 -> 0 | BC16: ='PTRM input'!AI575 -> 0 | BD16: ='PTRM input'!AE619 -> 0 | BE16: ='PTRM input'!AF619 -> 0 | BF16: ='PTRM input'!AG619 -> 0 | BG16: ='PTRM input'!AH619 -> 0 | BH16: ='PTRM input'!AI619 -> 0 | BI16: ='PTRM input'!AJ575 -> 0 | BJ16: ='PTRM input'!AK575 -> 0 | BK16: ='PTRM input'!AL575 -> 0 | BL16: ='PTRM input'!AM575 -> 0 | BM16: ='PTRM input'!AN575 -> 0 | BN16: ='PTRM input'!AO575 -> 0 | BO16: ='PTRM input'!AK619 -> 0 | BP16: ='PTRM input'!AL619 -> 0 | BQ16: ='PTRM input'!AM619 -> 0 | BR16: ='PTRM input'!AN619 -> 0 | BS16: ='PTRM input'!AO619 -> 0 | BT16: ='PTRM input'!AP575 -> 0 | BU16: ='PTRM input'!AQ575 -> 0 | BV16: ='PTRM input'!AR575 -> 0 | BW16: ='PTRM input'!AS575 -> 0 | BX16: ='PTRM input'!AT575 -> 0 | BY16: ='PTRM input'!AU575 -> 0 | BZ16: ='PTRM input'!AQ619 -> 0 | CA16: ='PTRM input'!AR619 -> 0 | CB16: ='PTRM input'!AS619 -> 0 | CC16: ='PTRM input'!AT619 -> 0 | CD16: ='PTRM input'!AU619 -> 0 | CE16: ='PTRM input'!AV575 -> 0 | CF16: ='PTRM input'!AW575 -> 0 | CG16: ='PTRM input'!AX575 -> 0 | CH16: ='PTRM input'!AY575 -> 0 | CI16: ='PTRM input'!AZ575 -> 0 | CJ16: ='PTRM input'!BA575 -> 0 | CK16: ='PTRM input'!AW619 -> 0 | CL16: ='PTRM input'!AX619 -> 0 | CM16: ='PTRM input'!AY619 -> 0 | CN16: ='PTRM input'!AZ619 -> 0 | CO16: ='PTRM input'!BA619 -> 0 | CP16: ='PTRM input'!BB575 -> 0 | CQ16: ='PTRM input'!BC575 -> 0 | CR16: ='PTRM input'!BD575 -> 0 | CS16: ='PTRM input'!BE575 -> 0 | CT16: ='PTRM input'!BF575 -> 0 | CU16: ='PTRM input'!BG575 -> 0 | CV16: ='PTRM input'!BC619 -> 0 | CW16: ='PTRM input'!BD619 -> 0 | CX16: ='PTRM input'!BE619 -> 0 | CY16: ='PTRM input'!BF619 -> 0 | CZ16: ='PTRM input'!BG619 -> 0 | DA16: ='PTRM input'!BH575 -> 0 | DB16: ='PTRM input'!BI575 -> 0 | DC16: ='PTRM input'!BJ575 -> 0 | DD16: ='PTRM input'!BK575 -> 0 | DE16: ='PTRM input'!BL575 -> 0 | DF16: ='PTRM input'!BM575 -> 0 | DG16: ='PTRM input'!BI619 -> 0 | DH16: ='PTRM input'!BJ619 -> 0 | DI16: ='PTRM input'!BK619 -> 0 | DJ16: ='PTRM input'!BL619 -> 0 | DK16: ='PTRM input'!BM619 -> 0
E17: ='PTRM input'!E576 -> Fluorescent 20 watt | F17: ='PTRM input'!F576 -> 0 | G17: ='PTRM input'!G576 -> 0 | H17: ='PTRM input'!H576 -> 0 | I17: ='PTRM input'!I576 -> 0 | J17: ='PTRM input'!J576 -> 0 | K17: ='PTRM input'!K576 -> 0 | L17: ='PTRM input'!G620 -> 0 | M17: ='PTRM input'!H620 -> 0 | N17: ='PTRM input'!I620 -> 0 | O17: ='PTRM input'!J620 -> 0 | P17: ='PTRM input'!K620 -> 0 | Q17: ='PTRM input'!L576 -> 0 | R17: ='PTRM input'!M576 -> 0 | S17: ='PTRM input'!N576 -> 0 | T17: ='PTRM input'!O576 -> 0 | U17: ='PTRM input'!P576 -> 0 | V17: ='PTRM input'!Q576 -> 0 | W17: ='PTRM input'!M620 -> 0 | X17: ='PTRM input'!N620 -> 0 | Y17: ='PTRM input'!O620 -> 0 | Z17: ='PTRM input'!P620 -> 0 | AA17: ='PTRM input'!Q620 -> 0 | AB17: ='PTRM input'!R576 -> 0 | AC17: ='PTRM input'!S576 -> 0 | AD17: ='PTRM input'!T576 -> 0 | AE17: ='PTRM input'!U576 -> 0 | AF17: ='PTRM input'!V576 -> 0 | AG17: ='PTRM input'!W576 -> 0 | AH17: ='PTRM input'!S620 -> 0 | AI17: ='PTRM input'!T620 -> 0 | AJ17: ='PTRM input'!U620 -> 0 | AK17: ='PTRM input'!V620 -> 0 | AL17: ='PTRM input'!W620 -> 0 | AM17: ='PTRM input'!X576 -> 0 | AN17: ='PTRM input'!Y576 -> 0 | AO17: ='PTRM input'!Z576 -> 0 | AP17: ='PTRM input'!AA576 -> 0 | AQ17: ='PTRM input'!AB576 -> 0 | AR17: ='PTRM input'!AC576 -> 0 | AS17: ='PTRM input'!Y620 -> 0 | AT17: ='PTRM input'!Z620 -> 0 | AU17: ='PTRM input'!AA620 -> 0 | AV17: ='PTRM input'!AB620 -> 0 | AW17: ='PTRM input'!AC620 -> 0 | AX17: ='PTRM input'!AD576 -> 0 | AY17: ='PTRM input'!AE576 -> 0 | AZ17: ='PTRM input'!AF576 -> 0 | BA17: ='PTRM input'!AG576 -> 0 | BB17: ='PTRM input'!AH576 -> 0 | BC17: ='PTRM input'!AI576 -> 0 | BD17: ='PTRM input'!AE620 -> 0 | BE17: ='PTRM input'!AF620 -> 0 | BF17: ='PTRM input'!AG620 -> 0 | BG17: ='PTRM input'!AH620 -> 0 | BH17: ='PTRM input'!AI620 -> 0 | BI17: ='PTRM input'!AJ576 -> 0 | BJ17: ='PTRM input'!AK576 -> 0 | BK17: ='PTRM input'!AL576 -> 0 | BL17: ='PTRM input'!AM576 -> 0 | BM17: ='PTRM input'!AN576 -> 0 | BN17: ='PTRM input'!AO576 -> 0 | BO17: ='PTRM input'!AK620 -> 0 | BP17: ='PTRM input'!AL620 -> 0 | BQ17: ='PTRM input'!AM620 -> 0 | BR17: ='PTRM input'!AN620 -> 0 | BS17: ='PTRM input'!AO620 -> 0 | BT17: ='PTRM input'!AP576 -> 0 | BU17: ='PTRM input'!AQ576 -> 0 | BV17: ='PTRM input'!AR576 -> 0 | BW17: ='PTRM input'!AS576 -> 0 | BX17: ='PTRM input'!AT576 -> 0 | BY17: ='PTRM input'!AU576 -> 0 | BZ17: ='PTRM input'!AQ620 -> 0 | CA17: ='PTRM input'!AR620 -> 0 | CB17: ='PTRM input'!AS620 -> 0 | CC17: ='PTRM input'!AT620 -> 0 | CD17: ='PTRM input'!AU620 -> 0 | CE17: ='PTRM input'!AV576 -> 0 | CF17: ='PTRM input'!AW576 -> 0 | CG17: ='PTRM input'!AX576 -> 0 | CH17: ='PTRM input'!AY576 -> 0 | CI17: ='PTRM input'!AZ576 -> 0 | CJ17: ='PTRM input'!BA576 -> 0 | CK17: ='PTRM input'!AW620 -> 0 | CL17: ='PTRM input'!AX620 -> 0 | CM17: ='PTRM input'!AY620 -> 0 | CN17: ='PTRM input'!AZ620 -> 0 | CO17: ='PTRM input'!BA620 -> 0 | CP17: ='PTRM input'!BB576 -> 0 | CQ17: ='PTRM input'!BC576 -> 0 | CR17: ='PTRM input'!BD576 -> 0 | CS17: ='PTRM input'!BE576 -> 0 | CT17: ='PTRM input'!BF576 -> 0 | CU17: ='PTRM input'!BG576 -> 0 | CV17: ='PTRM input'!BC620 -> 0 | CW17: ='PTRM input'!BD620 -> 0 | CX17: ='PTRM input'!BE620 -> 0 | CY17: ='PTRM input'!BF620 -> 0 | CZ17: ='PTRM input'!BG620 -> 0 | DA17: ='PTRM input'!BH576 -> 0 | DB17: ='PTRM input'!BI576 -> 0 | DC17: ='PTRM input'!BJ576 -> 0 | DD17: ='PTRM input'!BK576 -> 0 | DE17: ='PTRM input'!BL576 -> 0 | DF17: ='PTRM input'!BM576 -> 0 | DG17: ='PTRM input'!BI620 -> 0 | DH17: ='PTRM input'!BJ620 -> 0 | DI17: ='PTRM input'!BK620 -> 0 | DJ17: ='PTRM input'!BL620 -> 0 | DK17: ='PTRM input'!BM620 -> 0
E18: ='PTRM input'!E577 -> Fluorescent 40 watt | F18: ='PTRM input'!F577 -> 13 | G18: ='PTRM input'!G577 -> 12.48418256 | H18: ='PTRM input'!H577 -> 11.01859719 | I18: ='PTRM input'!I577 -> 7.769801915 | J18: ='PTRM input'!J577 -> 3.170542488 | K18: ='PTRM input'!K577 -> 0.4351552057 | L18: ='PTRM input'!G621 -> 0 | M18: ='PTRM input'!H621 -> 0 | N18: ='PTRM input'!I621 -> 0 | O18: ='PTRM input'!J621 -> 0 | P18: ='PTRM input'!K621 -> 0 | Q18: ='PTRM input'!L577 -> 0 | R18: ='PTRM input'!M577 -> 0 | S18: ='PTRM input'!N577 -> 0 | T18: ='PTRM input'!O577 -> 0 | U18: ='PTRM input'!P577 -> 0 | V18: ='PTRM input'!Q577 -> 0 | W18: ='PTRM input'!M621 -> 0 | X18: ='PTRM input'!N621 -> 0 | Y18: ='PTRM input'!O621 -> 0 | Z18: ='PTRM input'!P621 -> 0 | AA18: ='PTRM input'!Q621 -> 0 | AB18: ='PTRM input'!R577 -> 0 | AC18: ='PTRM input'!S577 -> 0 | AD18: ='PTRM input'!T577 -> 0 | AE18: ='PTRM input'!U577 -> 0 | AF18: ='PTRM input'!V577 -> 0 | AG18: ='PTRM input'!W577 -> 0 | AH18: ='PTRM input'!S621 -> 0 | AI18: ='PTRM input'!T621 -> 0 | AJ18: ='PTRM input'!U621 -> 0 | AK18: ='PTRM input'!V621 -> 0 | AL18: ='PTRM input'!W621 -> 0 | AM18: ='PTRM input'!X577 -> 0 | AN18: ='PTRM input'!Y577 -> 0 | AO18: ='PTRM input'!Z577 -> 0 | AP18: ='PTRM input'!AA577 -> 0 | AQ18: ='PTRM input'!AB577 -> 0 | AR18: ='PTRM input'!AC577 -> 0 | AS18: ='PTRM input'!Y621 -> 0 | AT18: ='PTRM input'!Z621 -> 0 | AU18: ='PTRM input'!AA621 -> 0 | AV18: ='PTRM input'!AB621 -> 0 | AW18: ='PTRM input'!AC621 -> 0 | AX18: ='PTRM input'!AD577 -> 0 | AY18: ='PTRM input'!AE577 -> 0 | AZ18: ='PTRM input'!AF577 -> 0 | BA18: ='PTRM input'!AG577 -> 0 | BB18: ='PTRM input'!AH577 -> 0 | BC18: ='PTRM input'!AI577 -> 0 | BD18: ='PTRM input'!AE621 -> 0 | BE18: ='PTRM input'!AF621 -> 0 | BF18: ='PTRM input'!AG621 -> 0 | BG18: ='PTRM input'!AH621 -> 0 | BH18: ='PTRM input'!AI621 -> 0 | BI18: ='PTRM input'!AJ577 -> 0 | BJ18: ='PTRM input'!AK577 -> 0 | BK18: ='PTRM input'!AL577 -> 0 | BL18: ='PTRM input'!AM577 -> 0 | BM18: ='PTRM input'!AN577 -> 0 | BN18: ='PTRM input'!AO577 -> 0 | BO18: ='PTRM input'!AK621 -> 0 | BP18: ='PTRM input'!AL621 -> 0 | BQ18: ='PTRM input'!AM621 -> 0 | BR18: ='PTRM input'!AN621 -> 0 | BS18: ='PTRM input'!AO621 -> 0 | BT18: ='PTRM input'!AP577 -> 0 | BU18: ='PTRM input'!AQ577 -> 0 | BV18: ='PTRM input'!AR577 -> 0 | BW18: ='PTRM input'!AS577 -> 0 | BX18: ='PTRM input'!AT577 -> 0 | BY18: ='PTRM input'!AU577 -> 0 | BZ18: ='PTRM input'!AQ621 -> 0 | CA18: ='PTRM input'!AR621 -> 0 | CB18: ='PTRM input'!AS621 -> 0 | CC18: ='PTRM input'!AT621 -> 0 | CD18: ='PTRM input'!AU621 -> 0 | CE18: ='PTRM input'!AV577 -> 0 | CF18: ='PTRM input'!AW577 -> 0 | CG18: ='PTRM input'!AX577 -> 0 | CH18: ='PTRM input'!AY577 -> 0 | CI18: ='PTRM input'!AZ577 -> 0 | CJ18: ='PTRM input'!BA577 -> 0 | CK18: ='PTRM input'!AW621 -> 0 | CL18: ='PTRM input'!AX621 -> 0 | CM18: ='PTRM input'!AY621 -> 0 | CN18: ='PTRM input'!AZ621 -> 0 | CO18: ='PTRM input'!BA621 -> 0 | CP18: ='PTRM input'!BB577 -> 0 | CQ18: ='PTRM input'!BC577 -> 0 | CR18: ='PTRM input'!BD577 -> 0 | CS18: ='PTRM input'!BE577 -> 0 | CT18: ='PTRM input'!BF577 -> 0 | CU18: ='PTRM input'!BG577 -> 0 | CV18: ='PTRM input'!BC621 -> 0 | CW18: ='PTRM input'!BD621 -> 0 | CX18: ='PTRM input'!BE621 -> 0 | CY18: ='PTRM input'!BF621 -> 0 | CZ18: ='PTRM input'!BG621 -> 0 | DA18: ='PTRM input'!BH577 -> 0 | DB18: ='PTRM input'!BI577 -> 0 | DC18: ='PTRM input'!BJ577 -> 0 | DD18: ='PTRM input'!BK577 -> 0 | DE18: ='PTRM input'!BL577 -> 0 | DF18: ='PTRM input'!BM577 -> 0 | DG18: ='PTRM input'!BI621 -> 0 | DH18: ='PTRM input'!BJ621 -> 0 | DI18: ='PTRM input'!BK621 -> 0 | DJ18: ='PTRM input'!BL621 -> 0 | DK18: ='PTRM input'!BM621 -> 0
E19: ='PTRM input'!E578 -> Fluorescent 80 watt | F19: ='PTRM input'!F578 -> 0 | G19: ='PTRM input'!G578 -> 0 | H19: ='PTRM input'!H578 -> 0 | I19: ='PTRM input'!I578 -> 0 | J19: ='PTRM input'!J578 -> 0 | K19: ='PTRM input'!K578 -> 0 | L19: ='PTRM input'!G622 -> 0 | M19: ='PTRM input'!H622 -> 0 | N19: ='PTRM input'!I622 -> 0 | O19: ='PTRM input'!J622 -> 0 | P19: ='PTRM input'!K622 -> 0 | Q19: ='PTRM input'!L578 -> 0 | R19: ='PTRM input'!M578 -> 0 | S19: ='PTRM input'!N578 -> 0 | T19: ='PTRM input'!O578 -> 0 | U19: ='PTRM input'!P578 -> 0 | V19: ='PTRM input'!Q578 -> 0 | W19: ='PTRM input'!M622 -> 0 | X19: ='PTRM input'!N622 -> 0 | Y19: ='PTRM input'!O622 -> 0 | Z19: ='PTRM input'!P622 -> 0 | AA19: ='PTRM input'!Q622 -> 0 | AB19: ='PTRM input'!R578 -> 0 | AC19: ='PTRM input'!S578 -> 0 | AD19: ='PTRM input'!T578 -> 0 | AE19: ='PTRM input'!U578 -> 0 | AF19: ='PTRM input'!V578 -> 0 | AG19: ='PTRM input'!W578 -> 0 | AH19: ='PTRM input'!S622 -> 0 | AI19: ='PTRM input'!T622 -> 0 | AJ19: ='PTRM input'!U622 -> 0 | AK19: ='PTRM input'!V622 -> 0 | AL19: ='PTRM input'!W622 -> 0 | AM19: ='PTRM input'!X578 -> 0 | AN19: ='PTRM input'!Y578 -> 0 | AO19: ='PTRM input'!Z578 -> 0 | AP19: ='PTRM input'!AA578 -> 0 | AQ19: ='PTRM input'!AB578 -> 0 | AR19: ='PTRM input'!AC578 -> 0 | AS19: ='PTRM input'!Y622 -> 0 | AT19: ='PTRM input'!Z622 -> 0 | AU19: ='PTRM input'!AA622 -> 0 | AV19: ='PTRM input'!AB622 -> 0 | AW19: ='PTRM input'!AC622 -> 0 | AX19: ='PTRM input'!AD578 -> 0 | AY19: ='PTRM input'!AE578 -> 0 | AZ19: ='PTRM input'!AF578 -> 0 | BA19: ='PTRM input'!AG578 -> 0 | BB19: ='PTRM input'!AH578 -> 0 | BC19: ='PTRM input'!AI578 -> 0 | BD19: ='PTRM input'!AE622 -> 0 | BE19: ='PTRM input'!AF622 -> 0 | BF19: ='PTRM input'!AG622 -> 0 | BG19: ='PTRM input'!AH622 -> 0 | BH19: ='PTRM input'!AI622 -> 0 | BI19: ='PTRM input'!AJ578 -> 0 | BJ19: ='PTRM input'!AK578 -> 0 | BK19: ='PTRM input'!AL578 -> 0 | BL19: ='PTRM input'!AM578 -> 0 | BM19: ='PTRM input'!AN578 -> 0 | BN19: ='PTRM input'!AO578 -> 0 | BO19: ='PTRM input'!AK622 -> 0 | BP19: ='PTRM input'!AL622 -> 0 | BQ19: ='PTRM input'!AM622 -> 0 | BR19: ='PTRM input'!AN622 -> 0 | BS19: ='PTRM input'!AO622 -> 0 | BT19: ='PTRM input'!AP578 -> 0 | BU19: ='PTRM input'!AQ578 -> 0 | BV19: ='PTRM input'!AR578 -> 0 | BW19: ='PTRM input'!AS578 -> 0 | BX19: ='PTRM input'!AT578 -> 0 | BY19: ='PTRM input'!AU578 -> 0 | BZ19: ='PTRM input'!AQ622 -> 0 | CA19: ='PTRM input'!AR622 -> 0 | CB19: ='PTRM input'!AS622 -> 0 | CC19: ='PTRM input'!AT622 -> 0 | CD19: ='PTRM input'!AU622 -> 0 | CE19: ='PTRM input'!AV578 -> 0 | CF19: ='PTRM input'!AW578 -> 0 | CG19: ='PTRM input'!AX578 -> 0 | CH19: ='PTRM input'!AY578 -> 0 | CI19: ='PTRM input'!AZ578 -> 0 | CJ19: ='PTRM input'!BA578 -> 0 | CK19: ='PTRM input'!AW622 -> 0 | CL19: ='PTRM input'!AX622 -> 0 | CM19: ='PTRM input'!AY622 -> 0 | CN19: ='PTRM input'!AZ622 -> 0 | CO19: ='PTRM input'!BA622 -> 0 | CP19: ='PTRM input'!BB578 -> 0 | CQ19: ='PTRM input'!BC578 -> 0 | CR19: ='PTRM input'!BD578 -> 0 | CS19: ='PTRM input'!BE578 -> 0 | CT19: ='PTRM input'!BF578 -> 0 | CU19: ='PTRM input'!BG578 -> 0 | CV19: ='PTRM input'!BC622 -> 0 | CW19: ='PTRM input'!BD622 -> 0 | CX19: ='PTRM input'!BE622 -> 0 | CY19: ='PTRM input'!BF622 -> 0 | CZ19: ='PTRM input'!BG622 -> 0 | DA19: ='PTRM input'!BH578 -> 0 | DB19: ='PTRM input'!BI578 -> 0 | DC19: ='PTRM input'!BJ578 -> 0 | DD19: ='PTRM input'!BK578 -> 0 | DE19: ='PTRM input'!BL578 -> 0 | DF19: ='PTRM input'!BM578 -> 0 | DG19: ='PTRM input'!BI622 -> 0 | DH19: ='PTRM input'!BJ622 -> 0 | DI19: ='PTRM input'!BK622 -> 0 | DJ19: ='PTRM input'!BL622 -> 0 | DK19: ='PTRM input'!BM622 -> 0
E20: ='PTRM input'!E579 -> Mercury Vapour 50 watt | F20: ='PTRM input'!F579 -> 1 | G20: ='PTRM input'!G579 -> 0.9603217351 | H20: ='PTRM input'!H579 -> 0.8475843991 | I20: ='PTRM input'!I579 -> 0.7130616858 | J20: ='PTRM input'!J579 -> 0.5998894839 | K20: ='PTRM input'!K579 -> 0.5046791884 | L20: ='PTRM input'!G623 -> 0 | M20: ='PTRM input'!H623 -> 0 | N20: ='PTRM input'!I623 -> 0 | O20: ='PTRM input'!J623 -> 0 | P20: ='PTRM input'!K623 -> 0 | Q20: ='PTRM input'!L579 -> 0 | R20: ='PTRM input'!M579 -> 0 | S20: ='PTRM input'!N579 -> 0 | T20: ='PTRM input'!O579 -> 0 | U20: ='PTRM input'!P579 -> 0 | V20: ='PTRM input'!Q579 -> 0 | W20: ='PTRM input'!M623 -> 0 | X20: ='PTRM input'!N623 -> 0 | Y20: ='PTRM input'!O623 -> 0 | Z20: ='PTRM input'!P623 -> 0 | AA20: ='PTRM input'!Q623 -> 0 | AB20: ='PTRM input'!R579 -> 0 | AC20: ='PTRM input'!S579 -> 0 | AD20: ='PTRM input'!T579 -> 0 | AE20: ='PTRM input'!U579 -> 0 | AF20: ='PTRM input'!V579 -> 0 | AG20: ='PTRM input'!W579 -> 0 | AH20: ='PTRM input'!S623 -> 0 | AI20: ='PTRM input'!T623 -> 0 | AJ20: ='PTRM input'!U623 -> 0 | AK20: ='PTRM input'!V623 -> 0 | AL20: ='PTRM input'!W623 -> 0 | AM20: ='PTRM input'!X579 -> 0 | AN20: ='PTRM input'!Y579 -> 0 | AO20: ='PTRM input'!Z579 -> 0 | AP20: ='PTRM input'!AA579 -> 0 | AQ20: ='PTRM input'!AB579 -> 0 | AR20: ='PTRM input'!AC579 -> 0 | AS20: ='PTRM input'!Y623 -> 0 | AT20: ='PTRM input'!Z623 -> 0 | AU20: ='PTRM input'!AA623 -> 0 | AV20: ='PTRM input'!AB623 -> 0 | AW20: ='PTRM input'!AC623 -> 0 | AX20: ='PTRM input'!AD579 -> 0 | AY20: ='PTRM input'!AE579 -> 0 | AZ20: ='PTRM input'!AF579 -> 0 | BA20: ='PTRM input'!AG579 -> 0 | BB20: ='PTRM input'!AH579 -> 0 | BC20: ='PTRM input'!AI579 -> 0 | BD20: ='PTRM input'!AE623 -> 0 | BE20: ='PTRM input'!AF623 -> 0 | BF20: ='PTRM input'!AG623 -> 0 | BG20: ='PTRM input'!AH623 -> 0 | BH20: ='PTRM input'!AI623 -> 0 | BI20: ='PTRM input'!AJ579 -> 0 | BJ20: ='PTRM input'!AK579 -> 0 | BK20: ='PTRM input'!AL579 -> 0 | BL20: ='PTRM input'!AM579 -> 0 | BM20: ='PTRM input'!AN579 -> 0 | BN20: ='PTRM input'!AO579 -> 0 | BO20: ='PTRM input'!AK623 -> 0 | BP20: ='PTRM input'!AL623 -> 0 | BQ20: ='PTRM input'!AM623 -> 0 | BR20: ='PTRM input'!AN623 -> 0 | BS20: ='PTRM input'!AO623 -> 0 | BT20: ='PTRM input'!AP579 -> 0 | BU20: ='PTRM input'!AQ579 -> 0 | BV20: ='PTRM input'!AR579 -> 0 | BW20: ='PTRM input'!AS579 -> 0 | BX20: ='PTRM input'!AT579 -> 0 | BY20: ='PTRM input'!AU579 -> 0 | BZ20: ='PTRM input'!AQ623 -> 0 | CA20: ='PTRM input'!AR623 -> 0 | CB20: ='PTRM input'!AS623 -> 0 | CC20: ='PTRM input'!AT623 -> 0 | CD20: ='PTRM input'!AU623 -> 0 | CE20: ='PTRM input'!AV579 -> 0 | CF20: ='PTRM input'!AW579 -> 0 | CG20: ='PTRM input'!AX579 -> 0 | CH20: ='PTRM input'!AY579 -> 0 | CI20: ='PTRM input'!AZ579 -> 0 | CJ20: ='PTRM input'!BA579 -> 0 | CK20: ='PTRM input'!AW623 -> 0 | CL20: ='PTRM input'!AX623 -> 0 | CM20: ='PTRM input'!AY623 -> 0 | CN20: ='PTRM input'!AZ623 -> 0 | CO20: ='PTRM input'!BA623 -> 0 | CP20: ='PTRM input'!BB579 -> 0 | CQ20: ='PTRM input'!BC579 -> 0 | CR20: ='PTRM input'!BD579 -> 0 | CS20: ='PTRM input'!BE579 -> 0 | CT20: ='PTRM input'!BF579 -> 0 | CU20: ='PTRM input'!BG579 -> 0 | CV20: ='PTRM input'!BC623 -> 0 | CW20: ='PTRM input'!BD623 -> 0 | CX20: ='PTRM input'!BE623 -> 0 | CY20: ='PTRM input'!BF623 -> 0 | CZ20: ='PTRM input'!BG623 -> 0 | DA20: ='PTRM input'!BH579 -> 0 | DB20: ='PTRM input'!BI579 -> 0 | DC20: ='PTRM input'!BJ579 -> 0 | DD20: ='PTRM input'!BK579 -> 0 | DE20: ='PTRM input'!BL579 -> 0 | DF20: ='PTRM input'!BM579 -> 0 | DG20: ='PTRM input'!BI623 -> 0 | DH20: ='PTRM input'!BJ623 -> 0 | DI20: ='PTRM input'!BK623 -> 0 | DJ20: ='PTRM input'!BL623 -> 0 | DK20: ='PTRM input'!BM623 -> 0
E21: ='PTRM input'!E580 -> Mercury Vapour 125 watt | F21: ='PTRM input'!F580 -> 56 | G21: ='PTRM input'!G580 -> 53.77801716 | H21: ='PTRM input'!H580 -> 46.71472635 | I21: ='PTRM input'!I580 -> 30.2442593 | J21: ='PTRM input'!J580 -> 9.456408208 | K21: ='PTRM input'!K580 -> 0.1488580927 | L21: ='PTRM input'!G624 -> 0 | M21: ='PTRM input'!H624 -> 0 | N21: ='PTRM input'!I624 -> 0 | O21: ='PTRM input'!J624 -> 0 | P21: ='PTRM input'!K624 -> 0 | Q21: ='PTRM input'!L580 -> 0 | R21: ='PTRM input'!M580 -> 0 | S21: ='PTRM input'!N580 -> 0 | T21: ='PTRM input'!O580 -> 0 | U21: ='PTRM input'!P580 -> 0 | V21: ='PTRM input'!Q580 -> 0 | W21: ='PTRM input'!M624 -> 0 | X21: ='PTRM input'!N624 -> 0 | Y21: ='PTRM input'!O624 -> 0 | Z21: ='PTRM input'!P624 -> 0 | AA21: ='PTRM input'!Q624 -> 0 | AB21: ='PTRM input'!R580 -> 0 | AC21: ='PTRM input'!S580 -> 0 | AD21: ='PTRM input'!T580 -> 0 | AE21: ='PTRM input'!U580 -> 0 | AF21: ='PTRM input'!V580 -> 0 | AG21: ='PTRM input'!W580 -> 0 | AH21: ='PTRM input'!S624 -> 0 | AI21: ='PTRM input'!T624 -> 0 | AJ21: ='PTRM input'!U624 -> 0 | AK21: ='PTRM input'!V624 -> 0 | AL21: ='PTRM input'!W624 -> 0 | AM21: ='PTRM input'!X580 -> 0 | AN21: ='PTRM input'!Y580 -> 0 | AO21: ='PTRM input'!Z580 -> 0 | AP21: ='PTRM input'!AA580 -> 0 | AQ21: ='PTRM input'!AB580 -> 0 | AR21: ='PTRM input'!AC580 -> 0 | AS21: ='PTRM input'!Y624 -> 0 | AT21: ='PTRM input'!Z624 -> 0 | AU21: ='PTRM input'!AA624 -> 0 | AV21: ='PTRM input'!AB624 -> 0 | AW21: ='PTRM input'!AC624 -> 0 | AX21: ='PTRM input'!AD580 -> 0 | AY21: ='PTRM input'!AE580 -> 0 | AZ21: ='PTRM input'!AF580 -> 0 | BA21: ='PTRM input'!AG580 -> 0 | BB21: ='PTRM input'!AH580 -> 0 | BC21: ='PTRM input'!AI580 -> 0 | BD21: ='PTRM input'!AE624 -> 0 | BE21: ='PTRM input'!AF624 -> 0 | BF21: ='PTRM input'!AG624 -> 0 | BG21: ='PTRM input'!AH624 -> 0 | BH21: ='PTRM input'!AI624 -> 0 | BI21: ='PTRM input'!AJ580 -> 0 | BJ21: ='PTRM input'!AK580 -> 0 | BK21: ='PTRM input'!AL580 -> 0 | BL21: ='PTRM input'!AM580 -> 0 | BM21: ='PTRM input'!AN580 -> 0 | BN21: ='PTRM input'!AO580 -> 0 | BO21: ='PTRM input'!AK624 -> 0 | BP21: ='PTRM input'!AL624 -> 0 | BQ21: ='PTRM input'!AM624 -> 0 | BR21: ='PTRM input'!AN624 -> 0 | BS21: ='PTRM input'!AO624 -> 0 | BT21: ='PTRM input'!AP580 -> 0 | BU21: ='PTRM input'!AQ580 -> 0 | BV21: ='PTRM input'!AR580 -> 0 | BW21: ='PTRM input'!AS580 -> 0 | BX21: ='PTRM input'!AT580 -> 0 | BY21: ='PTRM input'!AU580 -> 0 | BZ21: ='PTRM input'!AQ624 -> 0 | CA21: ='PTRM input'!AR624 -> 0 | CB21: ='PTRM input'!AS624 -> 0 | CC21: ='PTRM input'!AT624 -> 0 | CD21: ='PTRM input'!AU624 -> 0 | CE21: ='PTRM input'!AV580 -> 0 | CF21: ='PTRM input'!AW580 -> 0 | CG21: ='PTRM input'!AX580 -> 0 | CH21: ='PTRM input'!AY580 -> 0 | CI21: ='PTRM input'!AZ580 -> 0 | CJ21: ='PTRM input'!BA580 -> 0 | CK21: ='PTRM input'!AW624 -> 0 | CL21: ='PTRM input'!AX624 -> 0 | CM21: ='PTRM input'!AY624 -> 0 | CN21: ='PTRM input'!AZ624 -> 0 | CO21: ='PTRM input'!BA624 -> 0 | CP21: ='PTRM input'!BB580 -> 0 | CQ21: ='PTRM input'!BC580 -> 0 | CR21: ='PTRM input'!BD580 -> 0 | CS21: ='PTRM input'!BE580 -> 0 | CT21: ='PTRM input'!BF580 -> 0 | CU21: ='PTRM input'!BG580 -> 0 | CV21: ='PTRM input'!BC624 -> 0 | CW21: ='PTRM input'!BD624 -> 0 | CX21: ='PTRM input'!BE624 -> 0 | CY21: ='PTRM input'!BF624 -> 0 | CZ21: ='PTRM input'!BG624 -> 0 | DA21: ='PTRM input'!BH580 -> 0 | DB21: ='PTRM input'!BI580 -> 0 | DC21: ='PTRM input'!BJ580 -> 0 | DD21: ='PTRM input'!BK580 -> 0 | DE21: ='PTRM input'!BL580 -> 0 | DF21: ='PTRM input'!BM580 -> 0 | DG21: ='PTRM input'!BI624 -> 0 | DH21: ='PTRM input'!BJ624 -> 0 | DI21: ='PTRM input'!BK624 -> 0 | DJ21: ='PTRM input'!BL624 -> 0 | DK21: ='PTRM input'!BM624 -> 0
E22: ='PTRM input'!E581 -> Mercury Vapour 250 watt | F22: ='PTRM input'!F581 -> 42 | G22: ='PTRM input'!G581 -> 42 | H22: ='PTRM input'!H581 -> 33.25 | I22: ='PTRM input'!I581 -> 15.25 | J22: ='PTRM input'!J581 -> 4.25 | K22: ='PTRM input'!K581 -> 1.25 | L22: ='PTRM input'!G625 -> 0 | M22: ='PTRM input'!H625 -> 0 | N22: ='PTRM input'!I625 -> 0 | O22: ='PTRM input'!J625 -> 0 | P22: ='PTRM input'!K625 -> 0 | Q22: ='PTRM input'!L581 -> 0 | R22: ='PTRM input'!M581 -> 0 | S22: ='PTRM input'!N581 -> 0 | T22: ='PTRM input'!O581 -> 0 | U22: ='PTRM input'!P581 -> 0 | V22: ='PTRM input'!Q581 -> 0 | W22: ='PTRM input'!M625 -> 0 | X22: ='PTRM input'!N625 -> 0 | Y22: ='PTRM input'!O625 -> 0 | Z22: ='PTRM input'!P625 -> 0 | AA22: ='PTRM input'!Q625 -> 0 | AB22: ='PTRM input'!R581 -> 0 | AC22: ='PTRM input'!S581 -> 0 | AD22: ='PTRM input'!T581 -> 0 | AE22: ='PTRM input'!U581 -> 0 | AF22: ='PTRM input'!V581 -> 0 | AG22: ='PTRM input'!W581 -> 0 | AH22: ='PTRM input'!S625 -> 0 | AI22: ='PTRM input'!T625 -> 0 | AJ22: ='PTRM input'!U625 -> 0 | AK22: ='PTRM input'!V625 -> 0 | AL22: ='PTRM input'!W625 -> 0 | AM22: ='PTRM input'!X581 -> 0 | AN22: ='PTRM input'!Y581 -> 0 | AO22: ='PTRM input'!Z581 -> 0 | AP22: ='PTRM input'!AA581 -> 0 | AQ22: ='PTRM input'!AB581 -> 0 | AR22: ='PTRM input'!AC581 -> 0 | AS22: ='PTRM input'!Y625 -> 0 | AT22: ='PTRM input'!Z625 -> 0 | AU22: ='PTRM input'!AA625 -> 0 | AV22: ='PTRM input'!AB625 -> 0 | AW22: ='PTRM input'!AC625 -> 0 | AX22: ='PTRM input'!AD581 -> 0 | AY22: ='PTRM input'!AE581 -> 0 | AZ22: ='PTRM input'!AF581 -> 0 | BA22: ='PTRM input'!AG581 -> 0 | BB22: ='PTRM input'!AH581 -> 0 | BC22: ='PTRM input'!AI581 -> 0 | BD22: ='PTRM input'!AE625 -> 0 | BE22: ='PTRM input'!AF625 -> 0 | BF22: ='PTRM input'!AG625 -> 0 | BG22: ='PTRM input'!AH625 -> 0 | BH22: ='PTRM input'!AI625 -> 0 | BI22: ='PTRM input'!AJ581 -> 0 | BJ22: ='PTRM input'!AK581 -> 0 | BK22: ='PTRM input'!AL581 -> 0 | BL22: ='PTRM input'!AM581 -> 0 | BM22: ='PTRM input'!AN581 -> 0 | BN22: ='PTRM input'!AO581 -> 0 | BO22: ='PTRM input'!AK625 -> 0 | BP22: ='PTRM input'!AL625 -> 0 | BQ22: ='PTRM input'!AM625 -> 0 | BR22: ='PTRM input'!AN625 -> 0 | BS22: ='PTRM input'!AO625 -> 0 | BT22: ='PTRM input'!AP581 -> 0 | BU22: ='PTRM input'!AQ581 -> 0 | BV22: ='PTRM input'!AR581 -> 0 | BW22: ='PTRM input'!AS581 -> 0 | BX22: ='PTRM input'!AT581 -> 0 | BY22: ='PTRM input'!AU581 -> 0 | BZ22: ='PTRM input'!AQ625 -> 0 | CA22: ='PTRM input'!AR625 -> 0 | CB22: ='PTRM input'!AS625 -> 0 | CC22: ='PTRM input'!AT625 -> 0 | CD22: ='PTRM input'!AU625 -> 0 | CE22: ='PTRM input'!AV581 -> 0 | CF22: ='PTRM input'!AW581 -> 0 | CG22: ='PTRM input'!AX581 -> 0 | CH22: ='PTRM input'!AY581 -> 0 | CI22: ='PTRM input'!AZ581 -> 0 | CJ22: ='PTRM input'!BA581 -> 0 | CK22: ='PTRM input'!AW625 -> 0 | CL22: ='PTRM input'!AX625 -> 0 | CM22: ='PTRM input'!AY625 -> 0 | CN22: ='PTRM input'!AZ625 -> 0 | CO22: ='PTRM input'!BA625 -> 0 | CP22: ='PTRM input'!BB581 -> 0 | CQ22: ='PTRM input'!BC581 -> 0 | CR22: ='PTRM input'!BD581 -> 0 | CS22: ='PTRM input'!BE581 -> 0 | CT22: ='PTRM input'!BF581 -> 0 | CU22: ='PTRM input'!BG581 -> 0 | CV22: ='PTRM input'!BC625 -> 0 | CW22: ='PTRM input'!BD625 -> 0 | CX22: ='PTRM input'!BE625 -> 0 | CY22: ='PTRM input'!BF625 -> 0 | CZ22: ='PTRM input'!BG625 -> 0 | DA22: ='PTRM input'!BH581 -> 0 | DB22: ='PTRM input'!BI581 -> 0 | DC22: ='PTRM input'!BJ581 -> 0 | DD22: ='PTRM input'!BK581 -> 0 | DE22: ='PTRM input'!BL581 -> 0 | DF22: ='PTRM input'!BM581 -> 0 | DG22: ='PTRM input'!BI625 -> 0 | DH22: ='PTRM input'!BJ625 -> 0 | DI22: ='PTRM input'!BK625 -> 0 | DJ22: ='PTRM input'!BL625 -> 0 | DK22: ='PTRM input'!BM625 -> 0
E23: ='PTRM input'!E582 -> Mercury Vapour 400 watt | F23: ='PTRM input'!F582 -> 49 | G23: ='PTRM input'!G582 -> 49 | H23: ='PTRM input'!H582 -> 45.5 | I23: ='PTRM input'!I582 -> 33.75 | J23: ='PTRM input'!J582 -> 16.75 | K23: ='PTRM input'!K582 -> 4 | L23: ='PTRM input'!G626 -> 0 | M23: ='PTRM input'!H626 -> 0 | N23: ='PTRM input'!I626 -> 0 | O23: ='PTRM input'!J626 -> 0 | P23: ='PTRM input'!K626 -> 0 | Q23: ='PTRM input'!L582 -> 0 | R23: ='PTRM input'!M582 -> 0 | S23: ='PTRM input'!N582 -> 0 | T23: ='PTRM input'!O582 -> 0 | U23: ='PTRM input'!P582 -> 0 | V23: ='PTRM input'!Q582 -> 0 | W23: ='PTRM input'!M626 -> 0 | X23: ='PTRM input'!N626 -> 0 | Y23: ='PTRM input'!O626 -> 0 | Z23: ='PTRM input'!P626 -> 0 | AA23: ='PTRM input'!Q626 -> 0 | AB23: ='PTRM input'!R582 -> 0 | AC23: ='PTRM input'!S582 -> 0 | AD23: ='PTRM input'!T582 -> 0 | AE23: ='PTRM input'!U582 -> 0 | AF23: ='PTRM input'!V582 -> 0 | AG23: ='PTRM input'!W582 -> 0 | AH23: ='PTRM input'!S626 -> 0 | AI23: ='PTRM input'!T626 -> 0 | AJ23: ='PTRM input'!U626 -> 0 | AK23: ='PTRM input'!V626 -> 0 | AL23: ='PTRM input'!W626 -> 0 | AM23: ='PTRM input'!X582 -> 0 | AN23: ='PTRM input'!Y582 -> 0 | AO23: ='PTRM input'!Z582 -> 0 | AP23: ='PTRM input'!AA582 -> 0 | AQ23: ='PTRM input'!AB582 -> 0 | AR23: ='PTRM input'!AC582 -> 0 | AS23: ='PTRM input'!Y626 -> 0 | AT23: ='PTRM input'!Z626 -> 0 | AU23: ='PTRM input'!AA626 -> 0 | AV23: ='PTRM input'!AB626 -> 0 | AW23: ='PTRM input'!AC626 -> 0 | AX23: ='PTRM input'!AD582 -> 0 | AY23: ='PTRM input'!AE582 -> 0 | AZ23: ='PTRM input'!AF582 -> 0 | BA23: ='PTRM input'!AG582 -> 0 | BB23: ='PTRM input'!AH582 -> 0 | BC23: ='PTRM input'!AI582 -> 0 | BD23: ='PTRM input'!AE626 -> 0 | BE23: ='PTRM input'!AF626 -> 0 | BF23: ='PTRM input'!AG626 -> 0 | BG23: ='PTRM input'!AH626 -> 0 | BH23: ='PTRM input'!AI626 -> 0 | BI23: ='PTRM input'!AJ582 -> 0 | BJ23: ='PTRM input'!AK582 -> 0 | BK23: ='PTRM input'!AL582 -> 0 | BL23: ='PTRM input'!AM582 -> 0 | BM23: ='PTRM input'!AN582 -> 0 | BN23: ='PTRM input'!AO582 -> 0 | BO23: ='PTRM input'!AK626 -> 0 | BP23: ='PTRM input'!AL626 -> 0 | BQ23: ='PTRM input'!AM626 -> 0 | BR23: ='PTRM input'!AN626 -> 0 | BS23: ='PTRM input'!AO626 -> 0 | BT23: ='PTRM input'!AP582 -> 0 | BU23: ='PTRM input'!AQ582 -> 0 | BV23: ='PTRM input'!AR582 -> 0 | BW23: ='PTRM input'!AS582 -> 0 | BX23: ='PTRM input'!AT582 -> 0 | BY23: ='PTRM input'!AU582 -> 0 | BZ23: ='PTRM input'!AQ626 -> 0 | CA23: ='PTRM input'!AR626 -> 0 | CB23: ='PTRM input'!AS626 -> 0 | CC23: ='PTRM input'!AT626 -> 0 | CD23: ='PTRM input'!AU626 -> 0 | CE23: ='PTRM input'!AV582 -> 0 | CF23: ='PTRM input'!AW582 -> 0 | CG23: ='PTRM input'!AX582 -> 0 | CH23: ='PTRM input'!AY582 -> 0 | CI23: ='PTRM input'!AZ582 -> 0 | CJ23: ='PTRM input'!BA582 -> 0 | CK23: ='PTRM input'!AW626 -> 0 | CL23: ='PTRM input'!AX626 -> 0 | CM23: ='PTRM input'!AY626 -> 0 | CN23: ='PTRM input'!AZ626 -> 0 | CO23: ='PTRM input'!BA626 -> 0 | CP23: ='PTRM input'!BB582 -> 0 | CQ23: ='PTRM input'!BC582 -> 0 | CR23: ='PTRM input'!BD582 -> 0 | CS23: ='PTRM input'!BE582 -> 0 | CT23: ='PTRM input'!BF582 -> 0 | CU23: ='PTRM input'!BG582 -> 0 | CV23: ='PTRM input'!BC626 -> 0 | CW23: ='PTRM input'!BD626 -> 0 | CX23: ='PTRM input'!BE626 -> 0 | CY23: ='PTRM input'!BF626 -> 0 | CZ23: ='PTRM input'!BG626 -> 0 | DA23: ='PTRM input'!BH582 -> 0 | DB23: ='PTRM input'!BI582 -> 0 | DC23: ='PTRM input'!BJ582 -> 0 | DD23: ='PTRM input'!BK582 -> 0 | DE23: ='PTRM input'!BL582 -> 0 | DF23: ='PTRM input'!BM582 -> 0 | DG23: ='PTRM input'!BI626 -> 0 | DH23: ='PTRM input'!BJ626 -> 0 | DI23: ='PTRM input'!BK626 -> 0 | DJ23: ='PTRM input'!BL626 -> 0 | DK23: ='PTRM input'!BM626 -> 0
E24: ='PTRM input'!E583 -> Sodium Low Pressure 90 watt | F24: ='PTRM input'!F583 -> 0 | G24: ='PTRM input'!G583 -> 0 | H24: ='PTRM input'!H583 -> 0 | I24: ='PTRM input'!I583 -> 0 | J24: ='PTRM input'!J583 -> 0 | K24: ='PTRM input'!K583 -> 0 | L24: ='PTRM input'!G627 -> 0 | M24: ='PTRM input'!H627 -> 0 | N24: ='PTRM input'!I627 -> 0 | O24: ='PTRM input'!J627 -> 0 | P24: ='PTRM input'!K627 -> 0 | Q24: ='PTRM input'!L583 -> 0 | R24: ='PTRM input'!M583 -> 0 | S24: ='PTRM input'!N583 -> 0 | T24: ='PTRM input'!O583 -> 0 | U24: ='PTRM input'!P583 -> 0 | V24: ='PTRM input'!Q583 -> 0 | W24: ='PTRM input'!M627 -> 0 | X24: ='PTRM input'!N627 -> 0 | Y24: ='PTRM input'!O627 -> 0 | Z24: ='PTRM input'!P627 -> 0 | AA24: ='PTRM input'!Q627 -> 0 | AB24: ='PTRM input'!R583 -> 0 | AC24: ='PTRM input'!S583 -> 0 | AD24: ='PTRM input'!T583 -> 0 | AE24: ='PTRM input'!U583 -> 0 | AF24: ='PTRM input'!V583 -> 0 | AG24: ='PTRM input'!W583 -> 0 | AH24: ='PTRM input'!S627 -> 0 | AI24: ='PTRM input'!T627 -> 0 | AJ24: ='PTRM input'!U627 -> 0 | AK24: ='PTRM input'!V627 -> 0 | AL24: ='PTRM input'!W627 -> 0 | AM24: ='PTRM input'!X583 -> 0 | AN24: ='PTRM input'!Y583 -> 0 | AO24: ='PTRM input'!Z583 -> 0 | AP24: ='PTRM input'!AA583 -> 0 | AQ24: ='PTRM input'!AB583 -> 0 | AR24: ='PTRM input'!AC583 -> 0 | AS24: ='PTRM input'!Y627 -> 0 | AT24: ='PTRM input'!Z627 -> 0 | AU24: ='PTRM input'!AA627 -> 0 | AV24: ='PTRM input'!AB627 -> 0 | AW24: ='PTRM input'!AC627 -> 0 | AX24: ='PTRM input'!AD583 -> 0 | AY24: ='PTRM input'!AE583 -> 0 | AZ24: ='PTRM input'!AF583 -> 0 | BA24: ='PTRM input'!AG583 -> 0 | BB24: ='PTRM input'!AH583 -> 0 | BC24: ='PTRM input'!AI583 -> 0 | BD24: ='PTRM input'!AE627 -> 0 | BE24: ='PTRM input'!AF627 -> 0 | BF24: ='PTRM input'!AG627 -> 0 | BG24: ='PTRM input'!AH627 -> 0 | BH24: ='PTRM input'!AI627 -> 0 | BI24: ='PTRM input'!AJ583 -> 0 | BJ24: ='PTRM input'!AK583 -> 0 | BK24: ='PTRM input'!AL583 -> 0 | BL24: ='PTRM input'!AM583 -> 0 | BM24: ='PTRM input'!AN583 -> 0 | BN24: ='PTRM input'!AO583 -> 0 | BO24: ='PTRM input'!AK627 -> 0 | BP24: ='PTRM input'!AL627 -> 0 | BQ24: ='PTRM input'!AM627 -> 0 | BR24: ='PTRM input'!AN627 -> 0 | BS24: ='PTRM input'!AO627 -> 0 | BT24: ='PTRM input'!AP583 -> 0 | BU24: ='PTRM input'!AQ583 -> 0 | BV24: ='PTRM input'!AR583 -> 0 | BW24: ='PTRM input'!AS583 -> 0 | BX24: ='PTRM input'!AT583 -> 0 | BY24: ='PTRM input'!AU583 -> 0 | BZ24: ='PTRM input'!AQ627 -> 0 | CA24: ='PTRM input'!AR627 -> 0 | CB24: ='PTRM input'!AS627 -> 0 | CC24: ='PTRM input'!AT627 -> 0 | CD24: ='PTRM input'!AU627 -> 0 | CE24: ='PTRM input'!AV583 -> 0 | CF24: ='PTRM input'!AW583 -> 0 | CG24: ='PTRM input'!AX583 -> 0 | CH24: ='PTRM input'!AY583 -> 0 | CI24: ='PTRM input'!AZ583 -> 0 | CJ24: ='PTRM input'!BA583 -> 0 | CK24: ='PTRM input'!AW627 -> 0 | CL24: ='PTRM input'!AX627 -> 0 | CM24: ='PTRM input'!AY627 -> 0 | CN24: ='PTRM input'!AZ627 -> 0 | CO24: ='PTRM input'!BA627 -> 0 | CP24: ='PTRM input'!BB583 -> 0 | CQ24: ='PTRM input'!BC583 -> 0 | CR24: ='PTRM input'!BD583 -> 0 | CS24: ='PTRM input'!BE583 -> 0 | CT24: ='PTRM input'!BF583 -> 0 | CU24: ='PTRM input'!BG583 -> 0 | CV24: ='PTRM input'!BC627 -> 0 | CW24: ='PTRM input'!BD627 -> 0 | CX24: ='PTRM input'!BE627 -> 0 | CY24: ='PTRM input'!BF627 -> 0 | CZ24: ='PTRM input'!BG627 -> 0 | DA24: ='PTRM input'!BH583 -> 0 | DB24: ='PTRM input'!BI583 -> 0 | DC24: ='PTRM input'!BJ583 -> 0 | DD24: ='PTRM input'!BK583 -> 0 | DE24: ='PTRM input'!BL583 -> 0 | DF24: ='PTRM input'!BM583 -> 0 | DG24: ='PTRM input'!BI627 -> 0 | DH24: ='PTRM input'!BJ627 -> 0 | DI24: ='PTRM input'!BK627 -> 0 | DJ24: ='PTRM input'!BL627 -> 0 | DK24: ='PTRM input'!BM627 -> 0
E25: ='PTRM input'!E584 -> Sodium High Pressure 100 watt | F25: ='PTRM input'!F584 -> 938 | G25: ='PTRM input'!G584 -> 938 | H25: ='PTRM input'!H584 -> 891.75 | I25: ='PTRM input'!I584 -> 741 | J25: ='PTRM input'!J584 -> 448.25 | K25: ='PTRM input'!K584 -> 130 | L25: ='PTRM input'!G628 -> 0 | M25: ='PTRM input'!H628 -> 0 | N25: ='PTRM input'!I628 -> 0 | O25: ='PTRM input'!J628 -> 0 | P25: ='PTRM input'!K628 -> 0 | Q25: ='PTRM input'!L584 -> 0 | R25: ='PTRM input'!M584 -> 0 | S25: ='PTRM input'!N584 -> 0 | T25: ='PTRM input'!O584 -> 0 | U25: ='PTRM input'!P584 -> 0 | V25: ='PTRM input'!Q584 -> 0 | W25: ='PTRM input'!M628 -> 0 | X25: ='PTRM input'!N628 -> 0 | Y25: ='PTRM input'!O628 -> 0 | Z25: ='PTRM input'!P628 -> 0 | AA25: ='PTRM input'!Q628 -> 0 | AB25: ='PTRM input'!R584 -> 0 | AC25: ='PTRM input'!S584 -> 0 | AD25: ='PTRM input'!T584 -> 0 | AE25: ='PTRM input'!U584 -> 0 | AF25: ='PTRM input'!V584 -> 0 | AG25: ='PTRM input'!W584 -> 0 | AH25: ='PTRM input'!S628 -> 0 | AI25: ='PTRM input'!T628 -> 0 | AJ25: ='PTRM input'!U628 -> 0 | AK25: ='PTRM input'!V628 -> 0 | AL25: ='PTRM input'!W628 -> 0 | AM25: ='PTRM input'!X584 -> 0 | AN25: ='PTRM input'!Y584 -> 0 | AO25: ='PTRM input'!Z584 -> 0 | AP25: ='PTRM input'!AA584 -> 0 | AQ25: ='PTRM input'!AB584 -> 0 | AR25: ='PTRM input'!AC584 -> 0 | AS25: ='PTRM input'!Y628 -> 0 | AT25: ='PTRM input'!Z628 -> 0 | AU25: ='PTRM input'!AA628 -> 0 | AV25: ='PTRM input'!AB628 -> 0 | AW25: ='PTRM input'!AC628 -> 0 | AX25: ='PTRM input'!AD584 -> 0 | AY25: ='PTRM input'!AE584 -> 0 | AZ25: ='PTRM input'!AF584 -> 0 | BA25: ='PTRM input'!AG584 -> 0 | BB25: ='PTRM input'!AH584 -> 0 | BC25: ='PTRM input'!AI584 -> 0 | BD25: ='PTRM input'!AE628 -> 0 | BE25: ='PTRM input'!AF628 -> 0 | BF25: ='PTRM input'!AG628 -> 0 | BG25: ='PTRM input'!AH628 -> 0 | BH25: ='PTRM input'!AI628 -> 0 | BI25: ='PTRM input'!AJ584 -> 0 | BJ25: ='PTRM input'!AK584 -> 0 | BK25: ='PTRM input'!AL584 -> 0 | BL25: ='PTRM input'!AM584 -> 0 | BM25: ='PTRM input'!AN584 -> 0 | BN25: ='PTRM input'!AO584 -> 0 | BO25: ='PTRM input'!AK628 -> 0 | BP25: ='PTRM input'!AL628 -> 0 | BQ25: ='PTRM input'!AM628 -> 0 | BR25: ='PTRM input'!AN628 -> 0 | BS25: ='PTRM input'!AO628 -> 0 | BT25: ='PTRM input'!AP584 -> 0 | BU25: ='PTRM input'!AQ584 -> 0 | BV25: ='PTRM input'!AR584 -> 0 | BW25: ='PTRM input'!AS584 -> 0 | BX25: ='PTRM input'!AT584 -> 0 | BY25: ='PTRM input'!AU584 -> 0 | BZ25: ='PTRM input'!AQ628 -> 0 | CA25: ='PTRM input'!AR628 -> 0 | CB25: ='PTRM input'!AS628 -> 0 | CC25: ='PTRM input'!AT628 -> 0 | CD25: ='PTRM input'!AU628 -> 0 | CE25: ='PTRM input'!AV584 -> 0 | CF25: ='PTRM input'!AW584 -> 0 | CG25: ='PTRM input'!AX584 -> 0 | CH25: ='PTRM input'!AY584 -> 0 | CI25: ='PTRM input'!AZ584 -> 0 | CJ25: ='PTRM input'!BA584 -> 0 | CK25: ='PTRM input'!AW628 -> 0 | CL25: ='PTRM input'!AX628 -> 0 | CM25: ='PTRM input'!AY628 -> 0 | CN25: ='PTRM input'!AZ628 -> 0 | CO25: ='PTRM input'!BA628 -> 0 | CP25: ='PTRM input'!BB584 -> 0 | CQ25: ='PTRM input'!BC584 -> 0 | CR25: ='PTRM input'!BD584 -> 0 | CS25: ='PTRM input'!BE584 -> 0 | CT25: ='PTRM input'!BF584 -> 0 | CU25: ='PTRM input'!BG584 -> 0 | CV25: ='PTRM input'!BC628 -> 0 | CW25: ='PTRM input'!BD628 -> 0 | CX25: ='PTRM input'!BE628 -> 0 | CY25: ='PTRM input'!BF628 -> 0 | CZ25: ='PTRM input'!BG628 -> 0 | DA25: ='PTRM input'!BH584 -> 0 | DB25: ='PTRM input'!BI584 -> 0 | DC25: ='PTRM input'!BJ584 -> 0 | DD25: ='PTRM input'!BK584 -> 0 | DE25: ='PTRM input'!BL584 -> 0 | DF25: ='PTRM input'!BM584 -> 0 | DG25: ='PTRM input'!BI628 -> 0 | DH25: ='PTRM input'!BJ628 -> 0 | DI25: ='PTRM input'!BK628 -> 0 | DJ25: ='PTRM input'!BL628 -> 0 | DK25: ='PTRM input'!BM628 -> 0
E26: ='PTRM input'!E585 -> Sodium High Pressure 400 watt | F26: ='PTRM input'!F585 -> 312 | G26: ='PTRM input'!G585 -> 312 | H26: ='PTRM input'!H585 -> 306 | I26: ='PTRM input'!I585 -> 291.25 | J26: ='PTRM input'!J585 -> 210.5 | K26: ='PTRM input'!K585 -> 69.25 | L26: ='PTRM input'!G629 -> 0 | M26: ='PTRM input'!H629 -> 0 | N26: ='PTRM input'!I629 -> 0 | O26: ='PTRM input'!J629 -> 0 | P26: ='PTRM input'!K629 -> 0 | Q26: ='PTRM input'!L585 -> 0 | R26: ='PTRM input'!M585 -> 0 | S26: ='PTRM input'!N585 -> 0 | T26: ='PTRM input'!O585 -> 0 | U26: ='PTRM input'!P585 -> 0 | V26: ='PTRM input'!Q585 -> 0 | W26: ='PTRM input'!M629 -> 0 | X26: ='PTRM input'!N629 -> 0 | Y26: ='PTRM input'!O629 -> 0 | Z26: ='PTRM input'!P629 -> 0 | AA26: ='PTRM input'!Q629 -> 0 | AB26: ='PTRM input'!R585 -> 0 | AC26: ='PTRM input'!S585 -> 0 | AD26: ='PTRM input'!T585 -> 0 | AE26: ='PTRM input'!U585 -> 0 | AF26: ='PTRM input'!V585 -> 0 | AG26: ='PTRM input'!W585 -> 0 | AH26: ='PTRM input'!S629 -> 0 | AI26: ='PTRM input'!T629 -> 0 | AJ26: ='PTRM input'!U629 -> 0 | AK26: ='PTRM input'!V629 -> 0 | AL26: ='PTRM input'!W629 -> 0 | AM26: ='PTRM input'!X585 -> 0 | AN26: ='PTRM input'!Y585 -> 0 | AO26: ='PTRM input'!Z585 -> 0 | AP26: ='PTRM input'!AA585 -> 0 | AQ26: ='PTRM input'!AB585 -> 0 | AR26: ='PTRM input'!AC585 -> 0 | AS26: ='PTRM input'!Y629 -> 0 | AT26: ='PTRM input'!Z629 -> 0 | AU26: ='PTRM input'!AA629 -> 0 | AV26: ='PTRM input'!AB629 -> 0 | AW26: ='PTRM input'!AC629 -> 0 | AX26: ='PTRM input'!AD585 -> 0 | AY26: ='PTRM input'!AE585 -> 0 | AZ26: ='PTRM input'!AF585 -> 0 | BA26: ='PTRM input'!AG585 -> 0 | BB26: ='PTRM input'!AH585 -> 0 | BC26: ='PTRM input'!AI585 -> 0 | BD26: ='PTRM input'!AE629 -> 0 | BE26: ='PTRM input'!AF629 -> 0 | BF26: ='PTRM input'!AG629 -> 0 | BG26: ='PTRM input'!AH629 -> 0 | BH26: ='PTRM input'!AI629 -> 0 | BI26: ='PTRM input'!AJ585 -> 0 | BJ26: ='PTRM input'!AK585 -> 0 | BK26: ='PTRM input'!AL585 -> 0 | BL26: ='PTRM input'!AM585 -> 0 | BM26: ='PTRM input'!AN585 -> 0 | BN26: ='PTRM input'!AO585 -> 0 | BO26: ='PTRM input'!AK629 -> 0 | BP26: ='PTRM input'!AL629 -> 0 | BQ26: ='PTRM input'!AM629 -> 0 | BR26: ='PTRM input'!AN629 -> 0 | BS26: ='PTRM input'!AO629 -> 0 | BT26: ='PTRM input'!AP585 -> 0 | BU26: ='PTRM input'!AQ585 -> 0 | BV26: ='PTRM input'!AR585 -> 0 | BW26: ='PTRM input'!AS585 -> 0 | BX26: ='PTRM input'!AT585 -> 0 | BY26: ='PTRM input'!AU585 -> 0 | BZ26: ='PTRM input'!AQ629 -> 0 | CA26: ='PTRM input'!AR629 -> 0 | CB26: ='PTRM input'!AS629 -> 0 | CC26: ='PTRM input'!AT629 -> 0 | CD26: ='PTRM input'!AU629 -> 0 | CE26: ='PTRM input'!AV585 -> 0 | CF26: ='PTRM input'!AW585 -> 0 | CG26: ='PTRM input'!AX585 -> 0 | CH26: ='PTRM input'!AY585 -> 0 | CI26: ='PTRM input'!AZ585 -> 0 | CJ26: ='PTRM input'!BA585 -> 0 | CK26: ='PTRM input'!AW629 -> 0 | CL26: ='PTRM input'!AX629 -> 0 | CM26: ='PTRM input'!AY629 -> 0 | CN26: ='PTRM input'!AZ629 -> 0 | CO26: ='PTRM input'!BA629 -> 0 | CP26: ='PTRM input'!BB585 -> 0 | CQ26: ='PTRM input'!BC585 -> 0 | CR26: ='PTRM input'!BD585 -> 0 | CS26: ='PTRM input'!BE585 -> 0 | CT26: ='PTRM input'!BF585 -> 0 | CU26: ='PTRM input'!BG585 -> 0 | CV26: ='PTRM input'!BC629 -> 0 | CW26: ='PTRM input'!BD629 -> 0 | CX26: ='PTRM input'!BE629 -> 0 | CY26: ='PTRM input'!BF629 -> 0 | CZ26: ='PTRM input'!BG629 -> 0 | DA26: ='PTRM input'!BH585 -> 0 | DB26: ='PTRM input'!BI585 -> 0 | DC26: ='PTRM input'!BJ585 -> 0 | DD26: ='PTRM input'!BK585 -> 0 | DE26: ='PTRM input'!BL585 -> 0 | DF26: ='PTRM input'!BM585 -> 0 | DG26: ='PTRM input'!BI629 -> 0 | DH26: ='PTRM input'!BJ629 -> 0 | DI26: ='PTRM input'!BK629 -> 0 | DJ26: ='PTRM input'!BL629 -> 0 | DK26: ='PTRM input'!BM629 -> 0
